Workbook

Sheet Kullanım
C3: GİRİŞ
C5: Bu hesaplama aracının hazırlanma amacı, ısı pompası sistemlerinin kolay ve detaylı hesaplamalar yoluyla karşılaştırılabilmesini sağlamaktır.
C6: Bu excel hesap programı yardımıyla, Basit ve Detaylı bilgi girişleri çerçevesinde enerji tüketimi ve/veya performans katsayıları yaklaşık olarak bulunabilmektedir.
C7: Her iki hesap yönteminde de hesaplamalar farklı sistemler (toprak, su, hava) için tekrarlanarak girilen bilgiler ve iklim koşullarına bağlı olarak ısı pompalarının birbiri ile ve bilgisi girilen konvansiyonel sistemlerle karşılaştırılması yapılabilmektedir.
C8: Özellikle detaylı hesaplamada kullanılan kriterler, ısı pompası verimi hesaplarını önemli oranda etkilemekte olduğundan veri girişlerinin doğru girilmesi son derece önemlidir.
C9: Detaylı hesaplama bölümü, söz konusu kriterlere bağlı olarak ısı pompalarının verimlerinin değişiminin gözlemlenebilmesi bakımından önemli bir uygulamadır.
C10: Aşağıda, her iki hesap yönteminde de girişi yapılan bazı dataların tanımları yer almaktadır.
C12: Önemli not:
C13: 1. Bu excel hesaplama aracı, giriş bilgileri doğrultusunda sonuçlar üretmek ve bu sonuçlara göre sistemlerin birbiri ile kıyaslanmasında kullanıcıya ön fikir vermek amacıyla hazırlanmıştır. Yatırıma yönelik kesin hesap sonuçlarını elde etmede kullanılması uygun olmayabilir.
C14: 2. Hesaplarda teorik veri olarak girilen yük, çalışma süresi vb. kabullerin gerçek çalışma koşulları ile aynı olmaması olasılığı çok yüksektir. Bu nedenle, burada hesaplanan tasarrufların bir sözleşmeye/taahhüte konu edilmemesi önemle tavsiye edilir.
C15: Kurulum
C16: Bu excel programı makrolar içermektedir. Ayrıca, termodinamik hesaplamalarda kullanılan bazı veriler CoolProp adlı bir kütüphaneden yüklenmektedir. CoolProp'un yüklenmemesi halinde hesaplamaların bir kısmı gerçekleştirilemececeğinden hatalı sonuçlar alınabilir. CoolProp'un yüklenmesi, çalıştırılması ve ilgili excel dosyasıyla ilişkilendirilmesi: 1. CoolProp Yükle butonuna basınız. 2. Açılan internet sayfasından "CoolProp" dosyasını bilgisayarınıza indiriniz ve çalıştırınız. 3. Dosya > Seçenekler > Güven Merkezi > Güven Merkezi Ayarları > Makro Ayarları > «VBA Makrolarını etkinleştir» ve «VBA projesi nesne modeli erişimine güven» işaretleyiniz. 4. CoolProp Bağla butonuna basınız (Bu işlemi sadece bu sayfadan yapınız. Korumalı sayfalardayken işlem yapıldığında bağlantı kurulamamaktadır) 5. Açılan pencerede; Kaynağı Değiştir > C:\Kullanıcılar\kullanıcı adınız\AppData\Roaming\Microsoft\AddIns altında “CoolProp” adlı dosyayı seçip “Tamam” denilmesi ve ardından “Değerleri Güncelleştir” tıklanması gerekmektedir. (AppData klasörü gizli bir klasör olduğu için gizli klasörleri görünür hale getirilmiş olmalıdır.)
C18: Sarı Renkli Hücreler | E18: El ile giriş yapılan hücreleri göstermektedir. Kullanıcının tayin edebileceği verilerdir.
C19: Mavi Renkli Hücreler | E19: Açılan listelerden seçim yapılan hücreleri göstermektedir. Kullanacının seçebileceği verilerdir.
C20: BASİT HESAP
C22: Basit Hesap sekmesinde; kullanıma bağlı temel bilgiler ile bir veya daha fazla ısı pompasına ait kapasite ve Sezonsal Isıtma/Soğutma (SCOP/ESEER) değerlerinin girişleri yapılarak, sistemlerin enerji verimliliğinin değerlendirilmesinde yol gösterici olabilecek enerji tüketimi ve maliyet bilgileri elde edilebilmektedir. Veri giriş bilgilerine ilişkin açıklamalar aşağıda yer almaktadır
C23: Yıllık Ortalma Isıtma Yüzdesi | D23: : | E23: Kullanıcak bölgeye göre yıl içindeki ısıtma gün sayısının oranı
C24: Yıllık Ortalma Soğutma Yüzdesi | D24: : | E24: Kullanıcak bölgeye göre yıl içindeki soğutma gün sayısının oranı
C25: Isı Pompası Soğutma Kapasitesi | D25: : | E25: Isı pompasının soğutma kapasitesi
C26: Isı Pompası Isıtma Kapasitesi | D26: : | E26: Isı pompasının ısıtma kapasitesi
C27: Sezonsal Hesaplama Kapasite Kullanım Ortalması | D27: : | E27: Kullanılan Sezonsal hesaplama sistemine göre kapasite kullanım ağırlığı, bkz. Sezonsal Verim
E28: Her bir opsiyon için değerler girilir.
C29: Isı Pompası Sezonsal Soğutma Performansı | D29: : | E29: Sezonsal Soğutma Değeri, Soğutma gereksinimi olan zamanlardaki performans değerinin girilmesi gerekir.
C30: Isı Pompası Sezonsal Isıtma Performansı | D30: : | E30: Sezonsal Soğutma Değeri, Isıtma gereksinimi olan zamanlardaki performans değerinin girilmesi gerekir.
C31: Yatırım Tutarı | D31: : | E31: Yapılacak yatırımın toplam tutarı girilir. Girilmiş değerlere göre ortalama enerji tüketim verileri belirlenir ve 10 yıllık (ilk yatırım dahil) basit maliyet hesabı yapılır. Yapılan bu hesaba göre karşılaştırma sağlanır.
C33: DETAYLI HESAP
C35: Detaylı Hesap sekmesinde; detaylı hesaplamalar için gerekli lokasyon, kullanım koşulları ve ısı pompası sisteminin teknik özellikleri ile ilgili bilgi girişlerinin yapılması beklenmektedir. Yapılan bilgi girişleri doğrultusunda excel programında yerleşik formüller vasıtasıyla, hava şartlandırma veya sıcak su kullanımına göre su, toprak ve hava kaynaklı ısı pompaları birbiri ile karşılaştırılmakta ve ayrıca seçilmiş olan fosil yakıtlı sistemin enerji/yakıt tüketimi ve maliyeti de ısı pompası sistemleri ile kıyaslanabilmektedir. Karşılaştırılan sistemlerin COP, enerji tüketimi, maliyet bilgileri ve geri ödeme sürelerine ilişkin hesap sonuçları "Detaylı Sonuç" sekmesinde yer almaktadır. Veri giriş bilgilerine ilişkin açıklamalar aşağıda yer almaktadır.
C36: Yaklaşım Sıcaklığı Kondenser/Evaporatör (K) | D36: : | E36: Yaklaşım Sıcaklığı, ısı değişimi yapılan ortamla soğutucu akışkanın kaynama sıcaklığı arasındaki farkı gösterir. Bu değer ısı değiştirici seçiminin performansa etkisini göstermek içindir. Örnek olarak suyun evaporatörde 7oC ye soğutulduğu durumda, yaklaşım sıcaklığı 5oC ise soğutucu akışkan kaynama sıcaklığı 2oC olacaktır. Yaklaşım sıcaklığı 3oC ise soğutucu akışkan sıcaklığı 4oC olacaktır. Kondenser içinde benzeri olup, su çıkış sıcaklığı 35oC ise yaklaşım sıcaklığı 5oC ise soğutucu akışkan sıcaklığı 40oC olacaktır gibi.
C37: Kompresör tipi | D37: : | E37: Kompresörlerin yapılarına göre verimleri değişmektedir. Kompresör tipi seçimi sıkıştırma verimini belirleyerek sistem performansına olan etkisini gösterir
C38: Delta T_Kon/Delta T_Evap | D38: : | E38: Isı değişimi yapılan ortamın ısı değişimi sonucundaki çıkış sıcaklığını göstermektedir. Delta T'nin soğutucu akışkanın kaynama sıcaklığı üzerindeki etkisini ve dolayısıyla da performans üzerindeki etkisini göstermek içindir. Örnek olarak 10oC olarak evaporatöre giren suyun ısı değiştiriciden 5oC sıcaklıkta çıkmasıyla 2oC sıcaklıkta çıkması arasındaki soğutucu akışkan sıcaklığ, ısı pompası performans ve debi farkı gibi.
C39: Şehir Seçimi | D39: : | E39: Türkiye'de 81 ilinden seçim yapılır, veritabanındaki veriler ve hesaplamalar bu seçime göre yapılır.
C40: İlçe Seçimi | D40: : | E40: Hava Şartlarının detaylı olarak belirlenmesi için İlçe seçimi yapılması gerekemektedir. Önemli not: Dataların veri tabanından aktarılması için "Uygula" butonu komutu gerekmektedir. İlçe seçiminden sonra sistem kendini güncelleyecektir.
C41: Isıl Kapasite | D41: : | E41: Isı pompası ünitesinin ısıtma ve soğutma kapasitesi olarak maksimum kapasite seçimidir. Kurulu kapasite gibi düşünülebilir.
C42: Kullanılan Gaz | D42: : | E42: Kullanılan soğutucu akışkanın cinsinin seçimine göre sistem performansı hesaplanır.
D43: : | E43: İç ortam sıcaklığının belirlenmesi için 2 seçenek bulunmaktadır. Sabit Sıcaklık seçimi yapılması durumunda belirlenmiş olan sabit sıcaklık tüm aylar için otomatik yazılır. Aylık sıcaklık sıcaklık verileri kullanıcı tarafından her ay için ayrı girilir.
D44: : | E44: Sabit Kapasite seçildiğinde belirlenmiş kapasite değerinin tüm aylar için geçer olur. Aylık Kapasite Elle Giriş seçildiğinde her ay için kullanıcı tarafından girililr. Otomatik seçimi yapıldığında seçilmiş olan sabit sıcaklık, yıllık hava sıcaklığı ile orantılı yaklaşık bir kapasite hesabı otomatik yapılarak belirlenir.
C45: Toprak Tipi | D45: : | E45: Farklı Toprak tiplerinin toprak kaynaklı ısı pompasına etkisini ortaya koymak için yapılması gereken seçimdir.
C46: Toprak Derinliği (m) | D46: : | E46: Yapılacak Toprak Kaynaklı ısı pompasının toprak derinliği belirtilir,toprak derinliğine göre yıl içindeki sıcaklıkları hesaplanır.
C47: Isıtma Başlangıç Sıcaklığı | D47: : | E47: Dış ortam sıcaklığı ısıtma başlangıç sıcaklığı değerinin altına indiğinde ısı pompası çalışır konuma geçer.
C48: Soğutma Başlangıç Sıcaklığı | D48: : | E48: Dış ortam sıcaklığı soğutma başlangıç sıcaklığı değerinin üstüne çıktığında ısı pompası çalışır konuma geçer.
E49: Dış ortam sıcaklığı ısıtma başlangıç sıcaklığından yüksek ama soğutma başlangıç sıcaklığından düşükse ısı pompası çalışmaz. Isıtma veya soğutmaya ihtiyaç olmadığı düşünülen bölgedir.
C50: *** Enerji ve Tabii Kaynaklar Bakanlığı / Enerji Verimliliği ve Çevre Dairesi Başkanlığı (EVÇED), bu hesaplama aracında açıklanan herhangi bir bilgi, belge, ürün veya sürecin doğruluğu, tamlığı veya yararlılığına ilişkin, aleni veya zımni olarak, herhangi bir taahhüt sunmaz veya yasal bir yükümlülük veya sorumluluk üstlenmez veya bunların kullanımının özel hakları ihlal etmediğini beyan etmez. EVÇED hesaplama aracında yer alan bütün bilgileri ve tasarımı önceden bildirimde bulunmaksızın güncelleme/değiştirebilme yetkisine sahiptir.

Sheet Basit
A2: Elektrik Birim Fiyat (TL/kWh) | B2: 3
A3: Yıllık ortalama çalışma günü | B3: 100
A4: Günlük ortalama çalışma saati | B4: 8
A5: Yıllık Ortalama Isıtma Yüzdesi | B5: 0.6
A6: Yıllık Ortalama Soğutma Yüzdesi | B6: =1-B5 -> 0.4
A7: Isı Pompası Soğutma Kapasitesi | B7: 15
A8: Sezonsal Soğutma Kullanım Ortalaması | B8: 0.54
A9: Isı Pompası Isıtma Kapasitesi | B9: 16
A10: Sezonsal Isıtma Kullanım Ortalaması | B10: 0.54
A12: Opsiyon - 1 | D12: Yıllık Enerji Tüketimi | E12: Yıllık Enerji Maliyeti | F12: 10 Yıllık Maliyet
A13: Isı Pompası Sezonsal Soğutma değeri | B13: 4 | C13: =IF(B13>0,$B$7/B13*$B$8*$B$3*$B$4*$B$6,0) -> 648 | D13: =C13+C14 -> 1477.44 | E13: =D13*$B$2 -> 4432.32 | F13: =E13*10+B15 -> 69323.2
A14: Isı Pompası Sezonsal Isıtma değeri | B14: 5 | C14: =IF(B14>0,$B$9/B14*$B$10*$B$3*$B$4*$B$5,0) -> 829.44
A15: Yatırım Tutarı | B15: 25000
A16: Opsiyon - 2
A17: Isı Pompası Sezonsal Soğutma değeri | B17: 4.2 | C17: =IF(B17>0,$B$7/B17*$B$8*$B$3*$B$4*$B$6,0) -> 617.1428571 | D17: =C17+C18 -> 1653.942857 | E17: =D17*$B$2 -> 4961.828571 | F17: =E17*10+B19 -> 67618.28571
A18: Isı Pompası Sezonsal Isıtma değeri | B18: 4 | C18: =IF(B18>0,$B$9/B18*$B$10*$B$3*$B$4*$B$5,0) -> 1036.8
A19: Yatırım Tutarı | B19: 18000
A20: Opsiyon - 3
A21: Isı Pompası Sezonsal Soğutma değeri | B21: 6.1 | C21: =IF(B21>0,$B$7/B21*$B$8*$B$3*$B$4*$B$6,0) -> 424.9180328 | D21: =C21+C22 -> 1271.28538 | E21: =D21*$B$2 -> 3813.856139 | F21: =E21*10+B23 -> 56138.56139
A22: Isı Pompası Sezonsal Isıtma değeri | B22: 4.9 | C22: =IF(B22>0,$B$9/B22*$B$10*$B$3*$B$4*$B$5,0) -> 846.3673469
A23: Yatırım Tutarı | B23: 18000
A24: Opsiyon - 4
A25: Isı Pompası Sezonsal Soğutma değeri | B25: 7 | C25: =IF(B25>0,$B$7/B25*$B$8*$B$3*$B$4*$B$6,0) -> 370.2857143 | D25: =C25+C26 -> 1061.485714 | E25: =D25*$B$2 -> 3184.457143 | F25: =E25*10+B27 -> 98844.57143
A26: Isı Pompası Sezonsal Isıtma değeri | B26: 6 | C26: =IF(B26>0,$B$9/B26*$B$10*$B$3*$B$4*$B$5,0) -> 691.2
A27: Yatırım Tutarı | B27: 67000
A28: Opsiyon - 5
A29: Isı Pompası Sezonsal Soğutma değeri | B29: 4.3 | C29: =IF(B29>0,$B$7/B29*$B$8*$B$3*$B$4*$B$6,0) -> 602.7906977 | D29: =C29+C30 -> 1898.790698 | E29: =D29*$B$2 -> 5696.372093 | F29: =E29*10+B31 -> 72963.72093
A30: Isı Pompası Sezonsal Isıtma değeri | B30: 3.2 | C30: =IF(B30>0,$B$9/B30*$B$10*$B$3*$B$4*$B$5,0) -> 1296
A31: Yatırım Tutarı | B31: 16000
A32: *Not ESEER hesaplama metodolojisi enerji tüketimiyle direkt ilişkilendirmek çok doğru bir sonuç vermeyebilir.

Sheet Detaylı
B2: Şehir Seçimi | C2: ERZURUM | H2: Sudan | I2: Havadan | J2: Topraktan | M2: Sudan | N2: Havadan | O2: Topraktan | S2: Dış Ortam Maksimum | T2: =MAX(F30:Q30) -> 21.546194
B3: İlçe Seçimi | C3: HINIS | E3: Yaklaşım Sıcaklığı İç Ünite (K) | H3: 3 | I3: 5 | J3: 4 | L3: Delta T_İç | M3: 3 | N3: 5 | O3: 3 | S3: Dış Ortam Minimum | T3: =MIN(F30:Q30) -> -12.948826
B4: Kullanılan Gaz | C4: R134a | E4: Yaklaşım Sıcaklığı Dış Ünite (K) | H4: 4 | I4: 5 | J4: 6 | L4: Delta T_Dış | M4: 5 | N4: 3 | O4: 5 | S4: Fark Maksimum | T4: =MAX(F31:Q31) -> 33.948826
B5: Elektrik Birim Fiyat (TL/kWh) | C5: 3 | E5: Kompresör tipi | H5: Scroll | S5: Fark Minimmum | T5: =MIN(F31:Q31) -> 0.4814
B6: Karşılaştırılan Klima/Chiller Sezonsal Verim | C6: 3 | S6: Kapasite Kullanım Maksimum | T6: 1
B7: Karşılaştırılan Yakıt | C7: Doğalgaz | S7: Kapasite Kullanım Minimum | T7: 0.1
B8: ="Karşılaştırılan Yakıtın Isıl Değeri (" & Veriler!M14 & ")" -> Karşılaştırılan Yakıtın Isıl Değeri (kCal/Sm3) | C8: 8250 | S8: İstenilen için sıcaklık farkı | T8: 6
B9: Karşılaştırılan Yakıtın Birim Fiyatı (TL/*) | C9: 8 | F9: Ocak | G9: Şubat | H9: Mart | I9: Nisan | J9: Mayıs | K9: Haziran | L9: Temmuz | M9: Ağustos | N9: Eylül | O9: Ekim | P9: Kasım | Q9: Aralık
B10: Isıl Kapasite (kW) | C10: 100 | E10: İç Ortama Verilen Havanın Sıcaklığı | F10: =IF(Veriler!$J$1=1,Detaylı!F13,IF(Veriler!$J$1=2,Detaylı!F15,IF(Veriler!$J$1=3,Detaylı!F16))) -> 27 | G10: =IF(Veriler!$J$1=1,Detaylı!G13,IF(Veriler!$J$1=2,Detaylı!G15,IF(Veriler!$J$1=3,Detaylı!G16))) -> 26.75022188 | H10: =IF(Veriler!$J$1=1,Detaylı!H13,IF(Veriler!$J$1=2,Detaylı!H15,IF(Veriler!$J$1=3,Detaylı!H16))) -> 25.78813892 | I10: =IF(Veriler!$J$1=1,Detaylı!I13,IF(Veriler!$J$1=2,Detaylı!I15,IF(Veriler!$J$1=3,Detaylı!I16))) -> 24.55347522 | J10: =IF(Veriler!$J$1=1,Detaylı!J13,IF(Veriler!$J$1=2,Detaylı!J15,IF(Veriler!$J$1=3,Detaylı!J16))) -> 23.03198605 | K10: =IF(Veriler!$J$1=1,Detaylı!K13,IF(Veriler!$J$1=2,Detaylı!K15,IF(Veriler!$J$1=3,Detaylı!K16))) -> 22.10330027 | L10: =IF(Veriler!$J$1=1,Detaylı!L13,IF(Veriler!$J$1=2,Detaylı!L15,IF(Veriler!$J$1=3,Detaylı!L16))) -> 21 | M10: =IF(Veriler!$J$1=1,Detaylı!M13,IF(Veriler!$J$1=2,Detaylı!M15,IF(Veriler!$J$1=3,Detaylı!M16))) -> 21 | N10: =IF(Veriler!$J$1=1,Detaylı!N13,IF(Veriler!$J$1=2,Detaylı!N15,IF(Veriler!$J$1=3,Detaylı!N16))) -> 22.15791675 | O10: =IF(Veriler!$J$1=1,Detaylı!O13,IF(Veriler!$J$1=2,Detaylı!O15,IF(Veriler!$J$1=3,Detaylı!O16))) -> 23.23596359 | P10: =IF(Veriler!$J$1=1,Detaylı!P13,IF(Veriler!$J$1=2,Detaylı!P15,IF(Veriler!$J$1=3,Detaylı!P16))) -> 25.29523087 | Q10: =IF(Veriler!$J$1=1,Detaylı!Q13,IF(Veriler!$J$1=2,Detaylı!Q15,IF(Veriler!$J$1=3,Detaylı!Q16))) -> 26.36971311
B11: Aylık ortalama çalışma günü | C11: 22 | E11: Kapasite | F11: =IF(Veriler!$J$2=1,Detaylı!F18,IF(Veriler!$J$2=2,Detaylı!F19,IF(Veriler!$J$2=3,Detaylı!F20))) -> 100 | G11: =IF(Veriler!$J$2=1,Detaylı!G18,IF(Veriler!$J$2=2,Detaylı!G19,IF(Veriler!$J$2=3,Detaylı!G20))) -> 95.8370313 | H11: =IF(Veriler!$J$2=1,Detaylı!H18,IF(Veriler!$J$2=2,Detaylı!H19,IF(Veriler!$J$2=3,Detaylı!H20))) -> 79.8023154 | I11: =IF(Veriler!$J$2=1,Detaylı!I18,IF(Veriler!$J$2=2,Detaylı!I19,IF(Veriler!$J$2=3,Detaylı!I20))) -> 59.22458703 | J11: =IF(Veriler!$J$2=1,Detaylı!J18,IF(Veriler!$J$2=2,Detaylı!J19,IF(Veriler!$J$2=3,Detaylı!J20))) -> 33.86643414 | K11: =IF(Veriler!$J$2=1,Detaylı!K18,IF(Veriler!$J$2=2,Detaylı!K19,IF(Veriler!$J$2=3,Detaylı!K20))) -> 18.38833779 | L11: =IF(Veriler!$J$2=1,Detaylı!L18,IF(Veriler!$J$2=2,Detaylı!L19,IF(Veriler!$J$2=3,Detaylı!L20))) -> 0 | M11: =IF(Veriler!$J$2=1,Detaylı!M18,IF(Veriler!$J$2=2,Detaylı!M19,IF(Veriler!$J$2=3,Detaylı!M20))) -> 0 | N11: =IF(Veriler!$J$2=1,Detaylı!N18,IF(Veriler!$J$2=2,Detaylı!N19,IF(Veriler!$J$2=3,Detaylı!N20))) -> 19.29861256 | O11: =IF(Veriler!$J$2=1,Detaylı!O18,IF(Veriler!$J$2=2,Detaylı!O19,IF(Veriler!$J$2=3,Detaylı!O20))) -> 37.2660598 | P11: =IF(Veriler!$J$2=1,Detaylı!P18,IF(Veriler!$J$2=2,Detaylı!P19,IF(Veriler!$J$2=3,Detaylı!P20))) -> 71.58718125 | Q11: =IF(Veriler!$J$2=1,Detaylı!Q18,IF(Veriler!$J$2=2,Detaylı!Q19,IF(Veriler!$J$2=3,Detaylı!Q20))) -> 89.49521848
B12: Günlük ortalama çalışma saati | C12: 10
B13: İstenilen İç ortam sıcaklığı | C13: 21 | F13: =IF(F30>$C$13,$C$13-($T$8*F33),$C$13+($T$8*F33)) -> 27 | G13: =IF(G30>$C$13,$C$13-($T$8*G33),$C$13+($T$8*G33)) -> 26.75022188 | H13: 25.78813892 | I13: 24.55347522 | J13: 23.03198605 | K13: 22.10330027 | L13: 21 | M13: 21 | N13: 22.15791675 | O13: 23.23596359 | P13: 25.29523087 | Q13: 26.36971311 | S13: cs01_1234
F15: 22 | G15: 22 | H15: 22 | I15: 27 | J15: 22 | K15: 18 | L15: 22 | M15: 25 | N15: 25 | O15: 22 | P15: 22 | Q15: 22
F18: =$C$10 -> 100 | G18: 100 | H18: 100 | I18: 100 | J18: 100 | K18: 100 | L18: 100 | M18: 100 | N18: 100 | O18: 100 | P18: 100 | Q18: 100
F19: 16 | G19: 19 | H19: 15 | I19: 13 | J19: 17 | K19: 22 | L19: 25 | M19: 28 | N19: 19 | O19: 14 | P19: 15 | Q19: 18
F20: =IF(F34=1,IF(F31>=0,F31/$T$4*($T$6-$T$7)+$T$7,F31/$T$5*($T$6))*$C$10,0) -> 100 | G20: =IF(G34=1,IF(G31>=0,G31/$T$4*($T$6-$T$7)+$T$7,G31/$T$5*($T$6))*$C$10,0) -> 95.8370313 | H20: 79.8023154 | I20: 59.22458703 | J20: 33.86643414 | K20: 18.38833779 | L20: 0 | M20: 0 | N20: 19.29861256 | O20: 37.2660598 | P20: 71.58718125 | Q20: 89.49521848
B22: Toprak Tipi | C22: Doğal zemin
B23: Toprak Derinliği (m) | C23: 1
B24: Fan, pompa vb. tüketim tahmini | C24: 0.1
B25: Isıtmanın Sonlandırılacağı Sıcaklık | C25: 19
B26: Soğutma Başlangıç Sıcaklığı | C26: 23
D27: Hava Şartlandırma | F27: Ocak | G27: Şubat | H27: Mart | I27: Nisan | J27: Mayıs | K27: Haziran | L27: Temmuz | M27: Ağustos | N27: Eylül | O27: Ekim | P27: Kasım | Q27: Aralık
E28: Kapasite | F28: =F11 -> 100 | G28: 95.8370313 | H28: 79.8023154 | I28: 59.22458703 | J28: 33.86643414 | K28: 18.38833779 | L28: 0 | M28: 0 | N28: 19.29861256 | O28: 37.2660598 | P28: 71.58718125 | Q28: 89.49521848
E29: İç Ortama Verilen Havanın Sıcaklığı | F29: =F10 -> 27 | G29: 26.75022188 | H29: 25.78813892 | I29: 24.55347522 | J29: 23.03198605 | K29: 22.10330027 | L29: 21 | M29: 21 | N29: 22.15791675 | O29: 23.23596359 | P29: 25.29523087 | Q29: 26.36971311
E30: Dış Ortam Hava Sıcaklığı | F30: =Veriler!I80-273.15 -> -12.948826 | G30: =Veriler!J80-273.15 -> -11.378516 | H30: =Veriler!K80-273.15 -> -5.330074 | I30: =Veriler!L80-273.15 -> 2.432034 | J30: =Veriler!M80-273.15 -> 11.997362 | K30: =Veriler!N80-273.15 -> 17.835842 | L30: =Veriler!O80-273.15 -> 21.546194 | M30: =Veriler!P80-273.15 -> 21.4814 | N30: =Veriler!Q80-273.15 -> 17.492478 | O30: =Veriler!R80-273.15 -> 10.714992 | P30: =Veriler!S80-273.15 -> -2.23125 | Q30: =Veriler!T80-273.15 -> -8.986326
E31: Fark | F31: =ABS($C$13-F30) -> 33.948826 | G31: =ABS($C$13-G30) -> 32.378516 | H31: 26.330074 | I31: 18.567966 | J31: 9.002638 | K31: 3.164158 | L31: 0.546194 | M31: 0.4814 | N31: 3.507522 | O31: 10.285008 | P31: 23.23125 | Q31: 29.986326
E32: Şartlandırma | F32: =_xlfn.IFS(F30<=$C$25,"Isıtma",F30>=$C$26,"Soğutma",$C$26>F30>$C$25,"Kapalı") -> Isıtma | G32: =_xlfn.IFS(G30<=$C$25,"Isıtma",G30>=$C$26,"Soğutma",$C$26>G30>$C$25,"Kapalı") -> Isıtma | H32: =_xlfn.IFS(H30<=$C$25,"Isıtma",H30>=$C$26,"Soğutma",$C$26>H30>$C$25,"Kapalı") -> Isıtma | I32: =_xlfn.IFS(I30<=$C$25,"Isıtma",I30>=$C$26,"Soğutma",$C$26>I30>$C$25,"Kapalı") -> Isıtma | J32: =_xlfn.IFS(J30<=$C$25,"Isıtma",J30>=$C$26,"Soğutma",$C$26>J30>$C$25,"Kapalı") -> Isıtma | K32: =_xlfn.IFS(K30<=$C$25,"Isıtma",K30>=$C$26,"Soğutma",$C$26>K30>$C$25,"Kapalı") -> Isıtma | L32: =_xlfn.IFS(L30<=$C$25,"Isıtma",L30>=$C$26,"Soğutma",$C$26>L30>$C$25,"Kapalı") -> Kapalı | M32: =_xlfn.IFS(M30<=$C$25,"Isıtma",M30>=$C$26,"Soğutma",$C$26>M30>$C$25,"Kapalı") -> Kapalı | N32: =_xlfn.IFS(N30<=$C$25,"Isıtma",N30>=$C$26,"Soğutma",$C$26>N30>$C$25,"Kapalı") -> Isıtma | O32: =_xlfn.IFS(O30<=$C$25,"Isıtma",O30>=$C$26,"Soğutma",$C$26>O30>$C$25,"Kapalı") -> Isıtma | P32: =_xlfn.IFS(P30<=$C$25,"Isıtma",P30>=$C$26,"Soğutma",$C$26>P30>$C$25,"Kapalı") -> Isıtma | Q32: =_xlfn.IFS(Q30<=$C$25,"Isıtma",Q30>=$C$26,"Soğutma",$C$26>Q30>$C$25,"Kapalı") -> Isıtma
E33: % Kapasite | F33: =F11/$C$10 -> 1 | G33: =G11/$C$10 -> 0.958370313 | H33: 0.798023154 | I33: 0.5922458703 | J33: 0.3386643414 | K33: 0.1838833779 | L33: 0 | M33: 0 | N33: 0.1929861256 | O33: 0.372660598 | P33: 0.7158718125 | Q33: 0.8949521848
E34: Aktif | F34: =IF(F30>$C$26,1,IF(F30<$C$25,1,0)) -> 1 | G34: =IF(G30>$C$26,1,IF(G30<$C$25,1,0)) -> 1 | H34: 1 | I34: 1 | J34: 1 | K34: 1 | L34: 0 | M34: 0 | N34: 1 | O34: 1 | P34: 1 | Q34: 1
E35: Su Kaynaklı Isı Pompası | F35: Ocak | G35: Şubat | H35: Mart | I35: Nisan | J35: Mayıs | K35: Haziran | L35: Temmuz | M35: Ağustos | N35: Eylül | O35: Ekim | P35: Kasım | Q35: Aralık
E36: Isı kaynağı ortalama sıcaklık | F36: 5 | G36: 8 | H36: 10 | I36: 9 | J36: 14 | K36: 22 | L36: 23 | M36: 22 | N36: 21 | O36: 18 | P36: 13 | Q36: 10
E37: Isı Pompası COP | F37: ='Sudan Havaya'!B9 -> 5.101369692 | G37: ='Sudan Havaya'!C9 -> 8.038285815 | H37: ='Sudan Havaya'!D9 -> 9.308429222 | I37: ='Sudan Havaya'!E9 -> 9.401553831 | J37: ='Sudan Havaya'!F9 -> 14 | K37: ='Sudan Havaya'!G9 -> 14 | L37: ='Sudan Havaya'!H9 -> 0 | M37: ='Sudan Havaya'!I9 -> 0 | N37: ='Sudan Havaya'!J9 -> 14 | O37: ='Sudan Havaya'!K9 -> 14 | P37: ='Sudan Havaya'!L9 -> 11.45579339 | Q37: ='Sudan Havaya'!M9 -> 9.036271338
E38: Isı Pompası Enerji Tüketimi (kWh) | F38: ='Sudan Havaya'!B14 -> 4312.567277 | G38: ='Sudan Havaya'!C14 -> 2622.965564 | H38: ='Sudan Havaya'!D14 -> 1886.087219 | I38: ='Sudan Havaya'!E14 -> 1385.878269 | J38: ='Sudan Havaya'!F14 -> 532.1868223 | K38: ='Sudan Havaya'!G14 -> 288.9595938 | L38: ='Sudan Havaya'!H14 -> 0 | M38: ='Sudan Havaya'!I14 -> 0 | N38: ='Sudan Havaya'!J14 -> 303.2639117 | O38: ='Sudan Havaya'!K14 -> 585.6095112 | P38: ='Sudan Havaya'!L14 -> 1374.778624 | Q38: ='Sudan Havaya'!M14 -> 2178.879687
E40: Toprak Kaynaklı Isı Pompası
E41: Isı kaynağı ortalama sıcaklık | F41: ='Topraktan Havaya'!B2 -> 6.223110808 | G41: ='Topraktan Havaya'!C2 -> 5.135541891 | H41: ='Topraktan Havaya'!D2 -> 5.488629148 | I41: ='Topraktan Havaya'!E2 -> 7.158569067 | J41: ='Topraktan Havaya'!F2 -> 9.709805878 | K41: ='Topraktan Havaya'!G2 -> 12.47692288 | L41: ='Topraktan Havaya'!H2 -> 14.73819724 | M41: ='Topraktan Havaya'!I2 -> 15.90384061 | N41: ='Topraktan Havaya'!J2 -> 15.66982848 | O41: ='Topraktan Havaya'!K2 -> 14.09719616 | P41: ='Topraktan Havaya'!L2 -> 11.59611954 | Q41: ='Topraktan Havaya'!M2 -> 8.818932478
E42: Isı Pompası COP | F42: ='Topraktan Havaya'!B9 -> 4.843124621 | G42: ='Topraktan Havaya'!C9 -> 4.727898152 | H42: ='Topraktan Havaya'!D9 -> 4.898324378 | I42: ='Topraktan Havaya'!E9 -> 5.332822918 | J42: ='Topraktan Havaya'!F9 -> 6.094741261 | K42: ='Topraktan Havaya'!G9 -> 7.01156951 | L42: ='Topraktan Havaya'!H9 -> 0 | M42: ='Topraktan Havaya'!I9 -> 0 | N42: ='Topraktan Havaya'!J9 -> 8.054275949 | O42: ='Topraktan Havaya'!K9 -> 7.174043551 | P42: ='Topraktan Havaya'!L9 -> 6.042558181 | Q42: ='Topraktan Havaya'!M9 -> 5.326437733
E43: Isı Pompası Enerji Tüketimi (kWh) | F43: ='Topraktan Havaya'!B14*(1+$C$24) -> 4996.774168 | G43: ='Topraktan Havaya'!C14*(1+$C$24) -> 4905.469794 | H43: ='Topraktan Havaya'!D14*(1+$C$24) -> 3942.605438 | I43: ='Topraktan Havaya'!E14*(1+$C$24) -> 2687.572845 | J43: ='Topraktan Havaya'!F14*(1+$C$24) -> 1344.712878 | K43: ='Topraktan Havaya'!G14*(1+$C$24) -> 634.662145 | L43: ='Topraktan Havaya'!H14*(1+$C$24) -> 0 | M43: ='Topraktan Havaya'!I14*(1+$C$24) -> 0 | N43: ='Topraktan Havaya'!J14*(1+$C$24) -> 579.8490479 | O43: ='Topraktan Havaya'!K14*(1+$C$24) -> 1257.085549 | P43: ='Topraktan Havaya'!L14*(1+$C$24) -> 2867.013828 | Q43: ='Topraktan Havaya'!M14*(1+$C$24) -> 4066.102705
E45: Hava Kaynaklı Isı Pompası
E46: Isı kaynağı ortalama sıcaklık | F46: ='Havadan Havaya'!B2 -> -12.948826 | G46: ='Havadan Havaya'!C2 -> -11.378516 | H46: ='Havadan Havaya'!D2 -> -5.330074 | I46: ='Havadan Havaya'!E2 -> 2.432034 | J46: ='Havadan Havaya'!F2 -> 11.997362 | K46: ='Havadan Havaya'!G2 -> 17.835842 | L46: ='Havadan Havaya'!H2 -> 21.546194 | M46: ='Havadan Havaya'!I2 -> 21.4814 | N46: ='Havadan Havaya'!J2 -> 17.492478 | O46: ='Havadan Havaya'!K2 -> 10.714992 | P46: ='Havadan Havaya'!L2 -> -2.23125 | Q46: ='Havadan Havaya'!M2 -> -8.986326
E47: Isı Pompası COP | F47: ='Havadan Havaya'!B9 -> 2.388426523 | G47: ='Havadan Havaya'!C9 -> 2.458245845 | H47: ='Havadan Havaya'!D9 -> 2.779767496 | I47: ='Havadan Havaya'!E9 -> 3.373370635 | J47: ='Havadan Havaya'!F9 -> 4.675567346 | K47: ='Havadan Havaya'!G9 -> 6.211420829 | L47: ='Havadan Havaya'!H9 -> 0 | M47: ='Havadan Havaya'!I9 -> 0 | N47: ='Havadan Havaya'!J9 -> 6.091752082 | O47: ='Havadan Havaya'!K9 -> 4.439713131 | P47: ='Havadan Havaya'!L9 -> 2.986276485 | Q47: ='Havadan Havaya'!M9 -> 2.574518127
E48: Isı Pompası Enerji Tüketimi (kWh) | F48: ='Havadan Havaya'!B14*(1+$C$24) -> 10132.19363 | G48: ='Havadan Havaya'!C14 -> 8576.907363 | H48: ='Havadan Havaya'!D14 -> 6315.819368 | I48: ='Havadan Havaya'!E14 -> 3862.430358 | J48: ='Havadan Havaya'!F14 -> 1593.521162 | K48: ='Havadan Havaya'!G14 -> 651.2896847 | L48: ='Havadan Havaya'!H14 -> 0 | M48: ='Havadan Havaya'!I14 -> 0 | N48: ='Havadan Havaya'!J14 -> 696.9579043 | O48: ='Havadan Havaya'!K14 -> 1846.635788 | P48: ='Havadan Havaya'!L14 -> 5273.851887 | Q48: ='Havadan Havaya'!M14 -> 7647.624564
E52: Sıcak Su | F52: Ocak | G52: Şubat | H52: Mart | I52: Nisan | J52: Mayıs | K52: Haziran | L52: Temmuz | M52: Ağustos | N52: Eylül | O52: Ekim | P52: Kasım | Q52: Aralık
E53: Kapasite | F53: 35 | G53: 35 | H53: 35 | I53: 35 | J53: 35 | K53: 35 | L53: 35 | M53: 35 | N53: 35 | O53: 35 | P53: 35 | Q53: 35
E54: İstenilen Su Sıcaklığı | F54: 52 | G54: 52 | H54: 52 | I54: 52 | J54: 52 | K54: 52 | L54: 52 | M54: 52 | N54: 52 | O54: 52 | P54: 52 | Q54: 52
E56: Su Kaynaklı Isı Pompası | F56: Ocak | G56: Şubat | H56: Mart | I56: Nisan | J56: Mayıs | K56: Haziran | L56: Temmuz | M56: Ağustos | N56: Eylül | O56: Ekim | P56: Kasım | Q56: Aralık
E57: Isı kaynağı ortalama sıcaklık | F57: 8 | G57: 8 | H57: 10 | I57: 9 | J57: 12 | K57: 17 | L57: 19 | M57: 22 | N57: 21 | O57: 18 | P57: 13 | Q57: 10
E58: Isı Pompası COP | F58: ='Sudan Sıcak Su'!B9 -> 3.387071074 | G58: ='Sudan Sıcak Su'!C9 -> 3.387071074 | H58: ='Sudan Sıcak Su'!D9 -> 3.520427417 | I58: ='Sudan Sıcak Su'!E9 -> 3.452497602 | J58: ='Sudan Sıcak Su'!F9 -> 3.664373921 | K58: ='Sudan Sıcak Su'!G9 -> 4.079435841 | L58: ='Sudan Sıcak Su'!H9 -> 4.271951844 | M58: ='Sudan Sıcak Su'!I9 -> 4.595865096 | N58: ='Sudan Sıcak Su'!J9 -> 4.482773005 | O58: ='Sudan Sıcak Su'!K9 -> 4.173554894 | P58: ='Sudan Sıcak Su'!L9 -> 3.740707431 | Q58: ='Sudan Sıcak Su'!M9 -> 3.520427417
E59: Isı Pompası Enerji Tüketimi (kWh) | F59: ='Sudan Sıcak Su'!B15 -> 2273.350582 | G59: ='Sudan Sıcak Su'!C15 -> 2273.350582 | H59: ='Sudan Sıcak Su'!D15 -> 2187.234414 | I59: ='Sudan Sıcak Su'!E15 -> 2230.269471 | J59: ='Sudan Sıcak Su'!F15 -> 2101.313939 | K59: ='Sudan Sıcak Su'!G15 -> 1887.515897 | L59: ='Sudan Sıcak Su'!H15 -> 1802.454775 | M59: ='Sudan Sıcak Su'!I15 -> 1675.419064 | N59: ='Sudan Sıcak Su'!J15 -> 1717.686796 | O59: ='Sudan Sıcak Su'!K15 -> 1844.949976 | P59: ='Sudan Sıcak Su'!L15 -> 2058.434171 | Q59: ='Sudan Sıcak Su'!M15 -> 2187.234414
E61: Toprak Kaynaklı Isı Pompası
E62: Isı kaynağı ortalama sıcaklık | F62: ='Topraktan Sıcak Su'!B3 -> 6.223110808 | G62: ='Topraktan Sıcak Su'!C3 -> 5.135541891 | H62: ='Topraktan Sıcak Su'!D3 -> 5.488629148 | I62: ='Topraktan Sıcak Su'!E3 -> 7.158569067 | J62: ='Topraktan Sıcak Su'!F3 -> 9.709805878 | K62: ='Topraktan Sıcak Su'!G3 -> 12.47692288 | L62: ='Topraktan Sıcak Su'!H3 -> 14.73819724 | M62: ='Topraktan Sıcak Su'!I3 -> 15.90384061 | N62: ='Topraktan Sıcak Su'!J3 -> 15.66982848 | O62: ='Topraktan Sıcak Su'!K3 -> 14.09719616 | P62: ='Topraktan Sıcak Su'!L3 -> 11.59611954 | Q62: ='Topraktan Sıcak Su'!M3 -> 8.818932478
E63: Isı Pompası COP | F63: ='Topraktan Sıcak Su'!B11 -> 3.487184515 | G63: ='Topraktan Sıcak Su'!C11 -> 3.420979457 | H63: ='Topraktan Sıcak Su'!D11 -> 3.442207857 | I63: ='Topraktan Sıcak Su'!E11 -> 3.546121806 | J63: ='Topraktan Sıcak Su'!F11 -> 3.716968234 | K63: ='Topraktan Sıcak Su'!G11 -> 3.92091202 | L63: ='Topraktan Sıcak Su'!H11 -> 4.104063387 | M63: ='Topraktan Sıcak Su'!I11 -> 4.204969046 | N63: ='Topraktan Sıcak Su'!J11 -> 4.184334936 | O63: ='Topraktan Sıcak Su'!K11 -> 4.050514669 | P63: ='Topraktan Sıcak Su'!L11 -> 3.853721596 | Q63: ='Topraktan Sıcak Su'!M11 -> 3.655553981
E64: Isı Pompası Enerji Tüketimi (kWh) | F64: ='Topraktan Sıcak Su'!B16 -> 2208.085052 | G64: ='Topraktan Sıcak Su'!C16 -> 2250.817375 | H64: ='Topraktan Sıcak Su'!D16 -> 2236.936385 | I64: ='Topraktan Sıcak Su'!E16 -> 2171.386213 | J64: ='Topraktan Sıcak Su'!F16 -> 2071.580792 | K64: ='Topraktan Sıcak Su'!G16 -> 1963.828814 | L64: ='Topraktan Sıcak Su'!H16 -> 1876.189346 | M64: ='Topraktan Sıcak Su'!I16 -> 1831.166869 | N64: ='Topraktan Sıcak Su'!J16 -> 1840.196857 | O64: ='Topraktan Sıcak Su'!K16 -> 1900.992992 | P64: ='Topraktan Sıcak Su'!L16 -> 1998.06857 | Q64: ='Topraktan Sıcak Su'!M16 -> 2106.383886
E66: Hava Kaynaklı Isı Pompası
E67: Isı kaynağı ortalama sıcaklık | F67: ='Havadan Sıcak Su'!B2 -> -12.948826 | G67: ='Havadan Sıcak Su'!C2 -> -11.378516 | H67: ='Havadan Sıcak Su'!D2 -> -5.330074 | I67: ='Havadan Sıcak Su'!E2 -> 2.432034 | J67: ='Havadan Sıcak Su'!F2 -> 11.997362 | K67: ='Havadan Sıcak Su'!G2 -> 17.835842 | L67: ='Havadan Sıcak Su'!H2 -> 21.546194 | M67: ='Havadan Sıcak Su'!I2 -> 21.4814 | N67: ='Havadan Sıcak Su'!J2 -> 17.492478 | O67: ='Havadan Sıcak Su'!K2 -> 10.714992 | P67: ='Havadan Sıcak Su'!L2 -> -2.23125 | Q67: ='Havadan Sıcak Su'!M2 -> -8.986326
E68: Isı Pompası COP | F68: ='Havadan Sıcak Su'!B11 -> 2.387937518 | G68: ='Havadan Sıcak Su'!C11 -> 2.439479149 | H68: ='Havadan Sıcak Su'!D11 -> 2.661031586 | I68: ='Havadan Sıcak Su'!E11 -> 3.012015726 | J68: ='Havadan Sıcak Su'!F11 -> 3.592883475 | K68: ='Havadan Sıcak Su'!G11 -> 4.067387378 | L68: ='Havadan Sıcak Su'!H11 -> 4.436958999 | M68: ='Havadan Sıcak Su'!I11 -> 4.429952827 | N68: ='Havadan Sıcak Su'!J11 -> 4.036167868 | O68: ='Havadan Sıcak Su'!K11 -> 3.502698952 | P68: ='Havadan Sıcak Su'!L11 -> 2.790949652 | Q68: ='Havadan Sıcak Su'!M11 -> 2.522501026
E69: Isı Pompası Enerji Tüketimi (kWh) | F69: ='Havadan Sıcak Su'!B17 -> 3224.539981 | G69: ='Havadan Sıcak Su'!C17 -> 3156.411484 | H69: ='Havadan Sıcak Su'!D17 -> 2893.614657 | I69: ='Havadan Sıcak Su'!E17 -> 2556.427556 | J69: ='Havadan Sıcak Su'!F17 -> 2143.125446 | K69: ='Havadan Sıcak Su'!G17 -> 1893.107119 | L69: ='Havadan Sıcak Su'!H17 -> 1735.422843 | M69: ='Havadan Sıcak Su'!I17 -> 1738.167493 | N69: ='Havadan Sıcak Su'!J17 -> 1907.750186 | O69: ='Havadan Sıcak Su'!K17 -> 2198.304823 | P69: ='Havadan Sıcak Su'!L17 -> 2758.917559 | Q69: ='Havadan Sıcak Su'!M17 -> 3052.526013
B93: COP limit | C93: 13
D100: =MATCH(1,D105:D1061,0)+104 -> 413 | E100: =MATCH(MAX(D105:D1061),D105:D1061,0)+104 -> 432
D101: ="B"&D100&":B"&E100 -> B413:B432
B105: ALADAĞ(KARSANTI) | C105: =IF(Detaylı!$C$2=E105,1,0) -> 0 | D105: =IF(C105=1,1,0) -> 0 | E105: ADANA
B106: CEYHAN | C106: =IF(Detaylı!$C$2=E106,1,0) -> 0 | D106: =IF(C106=1,D105+1,0) -> 0 | E106: ADANA
B107: ÇUKUROVA | C107: =IF(Detaylı!$C$2=E107,1,0) -> 0 | D107: =IF(C107=1,D106+1,0) -> 0 | E107: ADANA
B108: FEKE | C108: =IF(Detaylı!$C$2=E108,1,0) -> 0 | D108: 0 | E108: ADANA
B109: İMAMOĞLU | C109: =IF(Detaylı!$C$2=E109,1,0) -> 0 | D109: 0 | E109: ADANA
B110: KARAİSALI | C110: =IF(Detaylı!$C$2=E110,1,0) -> 0 | D110: 0 | E110: ADANA
B111: KARATAŞ | C111: =IF(Detaylı!$C$2=E111,1,0) -> 0 | D111: 0 | E111: ADANA
B112: KOZAN | C112: =IF(Detaylı!$C$2=E112,1,0) -> 0 | D112: 0 | E112: ADANA
B113: POZANTI | C113: =IF(Detaylı!$C$2=E113,1,0) -> 0 | D113: 0 | E113: ADANA
B114: SAİMBEYLİ | C114: =IF(Detaylı!$C$2=E114,1,0) -> 0 | D114: 0 | E114: ADANA
B115: SARIÇAM | C115: =IF(Detaylı!$C$2=E115,1,0) -> 0 | D115: 0 | E115: ADANA
B116: SEYHAN | C116: =IF(Detaylı!$C$2=E116,1,0) -> 0 | D116: 0 | E116: ADANA
B117: TUFANBEYLİ | C117: =IF(Detaylı!$C$2=E117,1,0) -> 0 | D117: 0 | E117: ADANA
B118: YUMURTALIK | C118: =IF(Detaylı!$C$2=E118,1,0) -> 0 | D118: 0 | E118: ADANA
B119: YÜREĞİR | C119: =IF(Detaylı!$C$2=E119,1,0) -> 0 | D119: 0 | E119: ADANA
B120: ADIYAMAN | C120: =IF(Detaylı!$C$2=E120,1,0) -> 0 | D120: 0 | E120: ADIYAMAN
B121: BESNİ | C121: =IF(Detaylı!$C$2=E121,1,0) -> 0 | D121: 0 | E121: ADIYAMAN
B122: ÇELİKHAN | C122: =IF(Detaylı!$C$2=E122,1,0) -> 0 | D122: 0 | E122: ADIYAMAN
B123: GERGER | C123: =IF(Detaylı!$C$2=E123,1,0) -> 0 | D123: 0 | E123: ADIYAMAN
B124: GÖLBAŞI | C124: =IF(Detaylı!$C$2=E124,1,0) -> 0 | D124: 0 | E124: ADIYAMAN
B125: KAHTA | C125: =IF(Detaylı!$C$2=E125,1,0) -> 0 | D125: 0 | E125: ADIYAMAN
B126: SAMSAT | C126: =IF(Detaylı!$C$2=E126,1,0) -> 0 | D126: 0 | E126: ADIYAMAN
B127: SİNCİK | C127: =IF(Detaylı!$C$2=E127,1,0) -> 0 | D127: 0 | E127: ADIYAMAN
B128: TUT | C128: =IF(Detaylı!$C$2=E128,1,0) -> 0 | D128: 0 | E128: ADIYAMAN
B129: AFYON | C129: =IF(Detaylı!$C$2=E129,1,0) -> 0 | D129: 0 | E129: AFYONKARAHİSAR
B130: BAŞMAKÇI | C130: =IF(Detaylı!$C$2=E130,1,0) -> 0 | D130: 0 | E130: AFYONKARAHİSAR
B131: BAYAT | C131: =IF(Detaylı!$C$2=E131,1,0) -> 0 | D131: 0 | E131: AFYONKARAHİSAR
B132: BOLVADİN | C132: =IF(Detaylı!$C$2=E132,1,0) -> 0 | D132: 0 | E132: AFYONKARAHİSAR
B133: ÇAY | C133: =IF(Detaylı!$C$2=E133,1,0) -> 0 | D133: 0 | E133: AFYONKARAHİSAR
B134: ÇOBANLAR | C134: =IF(Detaylı!$C$2=E134,1,0) -> 0 | D134: 0 | E134: AFYONKARAHİSAR
B135: DAZKIRI | C135: =IF(Detaylı!$C$2=E135,1,0) -> 0 | D135: 0 | E135: AFYONKARAHİSAR
B136: DİNAR | C136: =IF(Detaylı!$C$2=E136,1,0) -> 0 | D136: 0 | E136: AFYONKARAHİSAR
B137: EMİRDAĞ | C137: =IF(Detaylı!$C$2=E137,1,0) -> 0 | D137: 0 | E137: AFYONKARAHİSAR
B138: EVCİLER | C138: =IF(Detaylı!$C$2=E138,1,0) -> 0 | D138: 0 | E138: AFYONKARAHİSAR
B139: HOCALAR | C139: =IF(Detaylı!$C$2=E139,1,0) -> 0 | D139: 0 | E139: AFYONKARAHİSAR
B140: İHSANİYE | C140: =IF(Detaylı!$C$2=E140,1,0) -> 0 | D140: 0 | E140: AFYONKARAHİSAR
B141: İSCEHİSAR | C141: =IF(Detaylı!$C$2=E141,1,0) -> 0 | D141: 0 | E141: AFYONKARAHİSAR
B142: KIZILÖREN | C142: =IF(Detaylı!$C$2=E142,1,0) -> 0 | D142: 0 | E142: AFYONKARAHİSAR
B143: SANDIKLI | C143: =IF(Detaylı!$C$2=E143,1,0) -> 0 | D143: 0 | E143: AFYONKARAHİSAR
B144: SİNCANLI(SİNANPAŞA) | C144: =IF(Detaylı!$C$2=E144,1,0) -> 0 | D144: 0 | E144: AFYONKARAHİSAR
B145: SULTANDAĞI | C145: =IF(Detaylı!$C$2=E145,1,0) -> 0 | D145: 0 | E145: AFYONKARAHİSAR
B146: ŞUHUT | C146: =IF(Detaylı!$C$2=E146,1,0) -> 0 | D146: 0 | E146: AFYONKARAHİSAR
B147: AĞRI | C147: =IF(Detaylı!$C$2=E147,1,0) -> 0 | D147: 0 | E147: AĞRI
B148: DİYADİN | C148: =IF(Detaylı!$C$2=E148,1,0) -> 0 | D148: 0 | E148: AĞRI
B149: DOĞUBAYAZIT(DOĞUBEYAZIT) | C149: =IF(Detaylı!$C$2=E149,1,0) -> 0 | D149: 0 | E149: AĞRI
B150: ELEŞKİRT | C150: =IF(Detaylı!$C$2=E150,1,0) -> 0 | D150: 0 | E150: AĞRI
B151: HAMUR | C151: =IF(Detaylı!$C$2=E151,1,0) -> 0 | D151: 0 | E151: AĞRI
B152: PATNOS | C152: =IF(Detaylı!$C$2=E152,1,0) -> 0 | D152: 0 | E152: AĞRI
B153: TAŞLIÇAY | C153: =IF(Detaylı!$C$2=E153,1,0) -> 0 | D153: 0 | E153: AĞRI
B154: TUTAK | C154: =IF(Detaylı!$C$2=E154,1,0) -> 0 | D154: 0 | E154: AĞRI
B155: AMASYA | C155: =IF(Detaylı!$C$2=E155,1,0) -> 0 | D155: 0 | E155: AMASYA
B156: GÖYNÜCEK | C156: =IF(Detaylı!$C$2=E156,1,0) -> 0 | D156: 0 | E156: AMASYA
B157: GÜMÜŞHACIKÖY | C157: =IF(Detaylı!$C$2=E157,1,0) -> 0 | D157: 0 | E157: AMASYA
B158: HAMAMÖZÜ | C158: =IF(Detaylı!$C$2=E158,1,0) -> 0 | D158: 0 | E158: AMASYA
B159: MERZİFON | C159: =IF(Detaylı!$C$2=E159,1,0) -> 0 | D159: 0 | E159: AMASYA
B160: SULUOVA | C160: =IF(Detaylı!$C$2=E160,1,0) -> 0 | D160: 0 | E160: AMASYA
B161: TAŞOVA | C161: =IF(Detaylı!$C$2=E161,1,0) -> 0 | D161: 0 | E161: AMASYA
B162: AKYURT | C162: =IF(Detaylı!$C$2=E162,1,0) -> 0 | D162: 0 | E162: ANKARA
B163: ALTINDAĞ | C163: =IF(Detaylı!$C$2=E163,1,0) -> 0 | D163: 0 | E163: ANKARA
B164: AYAŞ | C164: =IF(Detaylı!$C$2=E164,1,0) -> 0 | D164: 0 | E164: ANKARA
B165: BALA | C165: =IF(Detaylı!$C$2=E165,1,0) -> 0 | D165: 0 | E165: ANKARA
B166: BEYPAZARI | C166: =IF(Detaylı!$C$2=E166,1,0) -> 0 | D166: 0 | E166: ANKARA
B167: ÇAMLIDERE | C167: =IF(Detaylı!$C$2=E167,1,0) -> 0 | D167: 0 | E167: ANKARA
B168: ÇANKAYA | C168: =IF(Detaylı!$C$2=E168,1,0) -> 0 | D168: 0 | E168: ANKARA
B169: ÇUBUK | C169: =IF(Detaylı!$C$2=E169,1,0) -> 0 | D169: 0 | E169: ANKARA
B170: ELMADAĞ | C170: =IF(Detaylı!$C$2=E170,1,0) -> 0 | D170: 0 | E170: ANKARA
B171: ETİMESGUT | C171: =IF(Detaylı!$C$2=E171,1,0) -> 0 | D171: =IF(C171=1,D170+1,0) -> 0 | E171: ANKARA
B172: EVREN | C172: =IF(Detaylı!$C$2=E172,1,0) -> 0 | D172: 0 | E172: ANKARA
B173: GÖLBAŞI | C173: =IF(Detaylı!$C$2=E173,1,0) -> 0 | D173: 0 | E173: ANKARA
B174: GÜDÜL | C174: =IF(Detaylı!$C$2=E174,1,0) -> 0 | D174: 0 | E174: ANKARA
B175: HAYMANA | C175: =IF(Detaylı!$C$2=E175,1,0) -> 0 | D175: 0 | E175: ANKARA
B176: KALECİK | C176: =IF(Detaylı!$C$2=E176,1,0) -> 0 | D176: 0 | E176: ANKARA
B177: KAZAN | C177: =IF(Detaylı!$C$2=E177,1,0) -> 0 | D177: 0 | E177: ANKARA
B178: KEÇİÖREN | C178: =IF(Detaylı!$C$2=E178,1,0) -> 0 | D178: 0 | E178: ANKARA
B179: KIZILCAHAMAM | C179: =IF(Detaylı!$C$2=E179,1,0) -> 0 | D179: 0 | E179: ANKARA
B180: MAMAK | C180: =IF(Detaylı!$C$2=E180,1,0) -> 0 | D180: 0 | E180: ANKARA
B181: NALLIHAN | C181: =IF(Detaylı!$C$2=E181,1,0) -> 0 | D181: 0 | E181: ANKARA
B182: POLATLI | C182: =IF(Detaylı!$C$2=E182,1,0) -> 0 | D182: 0 | E182: ANKARA
B183: PURSAKLAR | C183: =IF(Detaylı!$C$2=E183,1,0) -> 0 | D183: 0 | E183: ANKARA
B184: SİNCAN | C184: =IF(Detaylı!$C$2=E184,1,0) -> 0 | D184: 0 | E184: ANKARA
B185: ŞEREFLİKOÇHİSAR | C185: =IF(Detaylı!$C$2=E185,1,0) -> 0 | D185: 0 | E185: ANKARA
B186: YENİMAHALLE | C186: =IF(Detaylı!$C$2=E186,1,0) -> 0 | D186: 0 | E186: ANKARA
B187: AKSEKİ | C187: =IF(Detaylı!$C$2=E187,1,0) -> 0 | D187: 0 | E187: ANTALYA
B188: AKSU | C188: =IF(Detaylı!$C$2=E188,1,0) -> 0 | D188: 0 | E188: ANTALYA
B189: ALANYA | C189: =IF(Detaylı!$C$2=E189,1,0) -> 0 | D189: 0 | E189: ANTALYA
B190: DEMRE(KALE) | C190: =IF(Detaylı!$C$2=E190,1,0) -> 0 | D190: 0 | E190: ANTALYA
B191: DÖŞEMEALTI | C191: =IF(Detaylı!$C$2=E191,1,0) -> 0 | D191: 0 | E191: ANTALYA
B192: ELMALI | C192: =IF(Detaylı!$C$2=E192,1,0) -> 0 | D192: 0 | E192: ANTALYA
B193: FİNİKE | C193: =IF(Detaylı!$C$2=E193,1,0) -> 0 | D193: 0 | E193: ANTALYA
B194: GAZİPAŞA | C194: =IF(Detaylı!$C$2=E194,1,0) -> 0 | D194: 0 | E194: ANTALYA
B195: GÜNDOĞMUŞ | C195: =IF(Detaylı!$C$2=E195,1,0) -> 0 | D195: 0 | E195: ANTALYA
B196: İBRADI(AYDINKENT) | C196: =IF(Detaylı!$C$2=E196,1,0) -> 0 | D196: 0 | E196: ANTALYA
B197: KAŞ | C197: =IF(Detaylı!$C$2=E197,1,0) -> 0 | D197: 0 | E197: ANTALYA
B198: KEMER | C198: =IF(Detaylı!$C$2=E198,1,0) -> 0 | D198: 0 | E198: ANTALYA
B199: KEPEZ | C199: =IF(Detaylı!$C$2=E199,1,0) -> 0 | D199: 0 | E199: ANTALYA
B200: KONYAALTI | C200: =IF(Detaylı!$C$2=E200,1,0) -> 0 | D200: 0 | E200: ANTALYA
B201: KORKUTELİ | C201: =IF(Detaylı!$C$2=E201,1,0) -> 0 | D201: 0 | E201: ANTALYA
B202: KUMLUCA | C202: =IF(Detaylı!$C$2=E202,1,0) -> 0 | D202: 0 | E202: ANTALYA
B203: MANAVGAT | C203: =IF(Detaylı!$C$2=E203,1,0) -> 0 | D203: 0 | E203: ANTALYA
B204: MURATPAŞA | C204: =IF(Detaylı!$C$2=E204,1,0) -> 0 | D204: 0 | E204: ANTALYA
B205: SERİK | C205: =IF(Detaylı!$C$2=E205,1,0) -> 0 | D205: 0 | E205: ANTALYA
B206: ARDANUÇ | C206: =IF(Detaylı!$C$2=E206,1,0) -> 0 | D206: 0 | E206: ARTVİN
B207: ARHAVİ | C207: =IF(Detaylı!$C$2=E207,1,0) -> 0 | D207: 0 | E207: ARTVİN
B208: ARTVİN | C208: =IF(Detaylı!$C$2=E208,1,0) -> 0 | D208: 0 | E208: ARTVİN
B209: BORÇKA | C209: =IF(Detaylı!$C$2=E209,1,0) -> 0 | D209: 0 | E209: ARTVİN
B210: HOPA | C210: =IF(Detaylı!$C$2=E210,1,0) -> 0 | D210: 0 | E210: ARTVİN
B211: MURGUL(GÖKTAŞ) | C211: =IF(Detaylı!$C$2=E211,1,0) -> 0 | D211: 0 | E211: ARTVİN
B212: ŞAVŞAT | C212: =IF(Detaylı!$C$2=E212,1,0) -> 0 | D212: 0 | E212: ARTVİN
B213: YUSUFELİ | C213: =IF(Detaylı!$C$2=E213,1,0) -> 0 | D213: 0 | E213: ARTVİN
B214: AYDIN | C214: =IF(Detaylı!$C$2=E214,1,0) -> 0 | D214: 0 | E214: AYDIN
B215: BOZDOĞAN | C215: =IF(Detaylı!$C$2=E215,1,0) -> 0 | D215: 0 | E215: AYDIN
B216: BUHARKENT(ÇUBUKDAĞI) | C216: =IF(Detaylı!$C$2=E216,1,0) -> 0 | D216: 0 | E216: AYDIN
B217: ÇİNE | C217: =IF(Detaylı!$C$2=E217,1,0) -> 0 | D217: 0 | E217: AYDIN
B218: DİDİM(YENİHİSAR) | C218: =IF(Detaylı!$C$2=E218,1,0) -> 0 | D218: 0 | E218: AYDIN
B219: GERMENCİK | C219: =IF(Detaylı!$C$2=E219,1,0) -> 0 | D219: 0 | E219: AYDIN
B220: İNCİRLİOVA | C220: =IF(Detaylı!$C$2=E220,1,0) -> 0 | D220: 0 | E220: AYDIN
B221: KARACASU | C221: =IF(Detaylı!$C$2=E221,1,0) -> 0 | D221: 0 | E221: AYDIN
B222: KARPUZLU | C222: =IF(Detaylı!$C$2=E222,1,0) -> 0 | D222: 0 | E222: AYDIN
B223: KOÇARLI | C223: =IF(Detaylı!$C$2=E223,1,0) -> 0 | D223: 0 | E223: AYDIN
B224: KÖŞK | C224: =IF(Detaylı!$C$2=E224,1,0) -> 0 | D224: 0 | E224: AYDIN
B225: KUŞADASI | C225: =IF(Detaylı!$C$2=E225,1,0) -> 0 | D225: 0 | E225: AYDIN
B226: KUYUCAK | C226: =IF(Detaylı!$C$2=E226,1,0) -> 0 | D226: 0 | E226: AYDIN
B227: NAZİLLİ | C227: =IF(Detaylı!$C$2=E227,1,0) -> 0 | D227: 0 | E227: AYDIN
B228: SÖKE | C228: =IF(Detaylı!$C$2=E228,1,0) -> 0 | D228: 0 | E228: AYDIN
B229: SULTANHİSAR | C229: =IF(Detaylı!$C$2=E229,1,0) -> 0 | D229: 0 | E229: AYDIN
B230: YENİPAZAR | C230: =IF(Detaylı!$C$2=E230,1,0) -> 0 | D230: 0 | E230: AYDIN
B231: AYVALIK | C231: =IF(Detaylı!$C$2=E231,1,0) -> 0 | D231: 0 | E231: BALIKESİR
B232: BALIKESİR | C232: =IF(Detaylı!$C$2=E232,1,0) -> 0 | D232: 0 | E232: BALIKESİR
B233: BALYA | C233: =IF(Detaylı!$C$2=E233,1,0) -> 0 | D233: 0 | E233: BALIKESİR
B234: BANDIRMA | C234: =IF(Detaylı!$C$2=E234,1,0) -> 0 | D234: 0 | E234: BALIKESİR
B235: BİGADİÇ | C235: =IF(Detaylı!$C$2=E235,1,0) -> 0 | D235: =IF(C235=1,D234+1,0) -> 0 | E235: BALIKESİR
B236: BURHANİYE | C236: =IF(Detaylı!$C$2=E236,1,0) -> 0 | D236: 0 | E236: BALIKESİR
B237: DURSUNBEY | C237: =IF(Detaylı!$C$2=E237,1,0) -> 0 | D237: 0 | E237: BALIKESİR
B238: EDREMİT | C238: =IF(Detaylı!$C$2=E238,1,0) -> 0 | D238: 0 | E238: BALIKESİR
B239: ERDEK | C239: =IF(Detaylı!$C$2=E239,1,0) -> 0 | D239: 0 | E239: BALIKESİR
B240: GÖMEÇ | C240: =IF(Detaylı!$C$2=E240,1,0) -> 0 | D240: 0 | E240: BALIKESİR
B241: GÖNEN | C241: =IF(Detaylı!$C$2=E241,1,0) -> 0 | D241: 0 | E241: BALIKESİR
B242: HAVRAN | C242: =IF(Detaylı!$C$2=E242,1,0) -> 0 | D242: 0 | E242: BALIKESİR
B243: İVRİNDİ | C243: =IF(Detaylı!$C$2=E243,1,0) -> 0 | D243: 0 | E243: BALIKESİR
B244: KEPSUT | C244: =IF(Detaylı!$C$2=E244,1,0) -> 0 | D244: 0 | E244: BALIKESİR
B245: MANYAS | C245: =IF(Detaylı!$C$2=E245,1,0) -> 0 | D245: 0 | E245: BALIKESİR
... 816 more rows

Sheet Detaylı_Sonuç
B2: Isıtma (Hava Şartlandırma) | G2: Sıcak Su Sağlama (Proses, radyatör vb.)
B3: Sistem | C3: COP Ortalama | D3: Toplam Enerji Tüketimi | E3: Enerji Maliyeti | G3: Sistem | H3: COP Ortalama | I3: Toplam Enerji Tüketimi | J3: Enerji Maliyeti | K3: Yatırım Maliyeti | L3: Geri Ödeme Süresi
B4: Su Kaynaklı Isı Pompası | C4: ='Sudan Havaya'!B21/'Sudan Havaya'!B16 -> 8.599764296 | D4: ='Sudan Havaya'!B16 -> 15471.17648 | E4: =D4*Detaylı!$C$5 -> 46413.52944 | G4: Su Kaynaklı Isı Pompası | H4: =SUM('Sudan Sıcak Su'!B20:M20)/SUM('Sudan Sıcak Su'!B15:M15) -> 3.812004782 | I4: =SUM('Sudan Sıcak Su'!B15:M15) -> 24239.21408 | J4: =I4*Detaylı!$C$5 -> 72717.64225 | K4: 44000 | L4: =ABS(K4/($J$7-J4)) -> 10.1420866
B5: Toprak Kaynaklı Isı Pompası | C5: ='Topraktan Havaya'!B21/'Topraktan Havaya'!B16 -> 5.364494226 | D5: ='Topraktan Havaya'!B16 -> 24801.68036 | E5: =D5*Detaylı!$C$5 -> 74405.04109 | G5: Toprak Kaynaklı Isı Pompası | H5: =SUM('Topraktan Sıcak Su'!B23:M23)/SUM('Topraktan Sıcak Su'!B17:M17) -> 3.778270611 | I5: =SUM('Topraktan Sıcak Su'!B17:M17) -> 24455.63315 | J5: =I5*Detaylı!$C$5 -> 73366.89945 | K5: 49000 | L5: =ABS(K5/($J$7-J5)) -> 13.28237042
B6: Hava Kaynaklı Isı Pompası | C6: ='Havadan Havaya'!B21/'Havadan Havaya'!B16 -> 2.912866982 | D6: ='Havadan Havaya'!B16 -> 45676.1232 | E6: =D6*Detaylı!$C$5 -> 137028.3696 | G6: Hava Kaynaklı Isı Pompası | H6: =SUM('Havadan Sıcak Su'!B23:M23)/Detaylı_Sonuç!I6 -> 3.158076584 | I6: =SUM('Havadan Sıcak Su'!B17:M17) -> 29258.31516 | J6: =I6*Detaylı!$C$5 -> 87774.94548 | K6: 35000 | L6: =ABS(K6/($J$7-J6)) -> 3.265246574
B7: ="Kazan/Kombi "&Detaylı!C7 -> Kazan/Kombi Doğalgaz | D7: =FIXED(C5*D5*860/Detaylı!C8,0,FALSE)& " "&Veriler!N14&" / "&(FIXED(C5*D5,0,FALSE))&" kWh" -> 13.869 Sm3 / 133.048 kWh | E7: =C5*D5*860/Detaylı!C8*Detaylı!C9 -> 110954.3614 | G7: ="Kazan/Kombi "&Detaylı!C7 -> Kazan/Kombi Doğalgaz | I7: =FIXED(H5*I5*860/Detaylı!C8,0,FALSE)& " " &Veriler!N14&" / "&(FIXED(H5*I5,0,FALSE))&" kWh" -> 9.632 Sm3 / 92.400 kWh | J7: =H5*I5*860/Detaylı!C8*Detaylı!C9 -> 77056
B9: Soğutma (Hava Şartlandırma)
B10: Sistem | C10: COP Ortalama | D10: Toplam Enerji Tüketimi | E10: Enerji Maliyeti
B11: Su Kaynaklı Isı Pompası | C11: =IF('Sudan Havaya'!B23=0,"-",'Sudan Havaya'!B23/'Sudan Havaya'!B18) -> - | D11: ='Sudan Havaya'!B18 -> 0 | E11: =D11*Detaylı!$C$5 -> 0
B12: Toprak Kaynaklı Isı Pompası | C12: =IF('Topraktan Havaya'!B23=0,"-",'Topraktan Havaya'!B23/'Topraktan Havaya'!B18) -> - | D12: ='Topraktan Havaya'!B18 -> 0 | E12: =D12*Detaylı!$C$5 -> 0
B13: Hava Kaynaklı Isı Pompası | C13: =IF('Havadan Havaya'!B23=0,"-",'Havadan Havaya'!B23/'Havadan Havaya'!B18) -> - | D13: ='Havadan Havaya'!B18 -> 0 | E13: =D13*Detaylı!$C$5 -> 0
B14: Klima/Chiller | C14: =Detaylı!C6 -> 3 | D14: =IF('Havadan Havaya'!B23=0,0,D13*C13/C14) -> 0 | E14: =D14*Detaylı!$C$5 -> 0
B17: Finansal (Hava Şartlandırma)
B18: Sistem | C18: Toplam Kazanç | D18: Yatırım Maliyeti | E18: Geri Ödeme Süresi
B19: Su Kaynaklı Isı Pompası | C19: =$E$7-E4 +$E$14-E11 -> 64540.83192 | D19: 960000 | E19: =IF((D19/C19)>0,(D19/C19),"Uygun Değildir") -> 14.87430471
B20: Toprak Kaynaklı Isı Pompası | C20: =$E$7-E5 +$E$14-E12 -> 36549.32028 | D20: 80000 | E20: 2.188823196
B21: Hava Kaynaklı Isı Pompası | C21: =$E$7-E6 +$E$14-E13 -> -26074.00823 | D21: 40000 | E21: =IF((D21/C21)>0,(D21/C21),"Uygun Değildir") -> Uygun Değildir

Sheet Sudan Havaya (hidden)
A1: Sütun1 | B1: Ocak | C1: Şubat | D1: Mart | E1: Nisan | F1: Mayıs | G1: Haziran | H1: Temmuz | I1: Ağustos | J1: Eylül | K1: Ekim | L1: Kasım | M1: Aralık | O1: Subcooler Sıcaklığı | P1: 5
A2: Isı kaynağı ortalama sıcaklık | B2: =Detaylı!F36 -> 5 | C2: =Detaylı!G36 -> 8 | D2: =Detaylı!H36 -> 10 | E2: =Detaylı!I36 -> 9 | F2: =Detaylı!J36 -> 14 | G2: =Detaylı!K36 -> 22 | H2: =Detaylı!L36 -> 23 | I2: =Detaylı!M36 -> 22 | J2: =Detaylı!N36 -> 21 | K2: =Detaylı!O36 -> 18 | L2: =Detaylı!P36 -> 13 | M2: =Detaylı!Q36 -> 10 | O2: Evap Superheat Sıcak | P2: 5
A3: Isı aktırımı ortalama sıcaklık | B3: =Detaylı!F10 -> 27 | C3: =Detaylı!G10 -> 26.75022188 | D3: =Detaylı!H10 -> 25.78813892 | E3: =Detaylı!I10 -> 24.55347522 | F3: =Detaylı!J10 -> 23.03198605 | G3: =Detaylı!K10 -> 22.10330027 | H3: =Detaylı!L10 -> 21 | I3: =Detaylı!M10 -> 21 | J3: =Detaylı!N10 -> 22.15791675 | K3: =Detaylı!O10 -> 23.23596359 | L3: =Detaylı!P10 -> 25.29523087 | M3: =Detaylı!Q10 -> 26.36971311 | O3: Soğutma Kapasitesi | P3: =Detaylı!C10 -> 100
A4: Isıtma / Soğutma | B4: =Detaylı!F32 -> Isıtma | C4: =Detaylı!G32 -> Isıtma | D4: =Detaylı!H32 -> Isıtma | E4: =Detaylı!I32 -> Isıtma | F4: =Detaylı!J32 -> Isıtma | G4: =Detaylı!K32 -> Isıtma | H4: =Detaylı!L32 -> Kapalı | I4: =Detaylı!M32 -> Kapalı | J4: =Detaylı!N32 -> Isıtma | K4: =Detaylı!O32 -> Isıtma | L4: =Detaylı!P32 -> Isıtma | M4: =Detaylı!Q32 -> Isıtma | O4: Kompresör | P4: =VLOOKUP(Detaylı!H5,Komp_liste,2,) -> 0.65
A5: Kapasite Kullanım % | B5: =Detaylı!F33 -> 1 | C5: =Detaylı!G33 -> 0.958370313 | D5: =Detaylı!H33 -> 0.798023154 | E5: =Detaylı!I33 -> 0.5922458703 | F5: =Detaylı!J33 -> 0.3386643414 | G5: =Detaylı!K33 -> 0.1838833779 | H5: =Detaylı!L33 -> 0 | I5: =Detaylı!M33 -> 0 | J5: =Detaylı!N33 -> 0.1929861256 | K5: =Detaylı!O33 -> 0.372660598 | L5: =Detaylı!P33 -> 0.7158718125 | M5: =Detaylı!Q33 -> 0.8949521848 | O5: Gaz | P5: =Detaylı!C4 -> R134a
A6: Isıtma Kapasitesi | B6: =B61 -> 100 | C6: 95.8370313 | D6: 79.8023154 | E6: 59.22458703 | F6: 33.86643414 | G6: 18.38833779 | H6: 0 | I6: 0 | J6: 19.29861256 | K6: 37.2660598 | L6: 71.58718125 | M6: 89.49521848
A7: Soğutma Kapasitesi | B7: =B59 -> 80.39742147 | C7: 83.91446056 | D7: 71.22919168 | E7: 52.92514035 | F7: 31.44740313 | G7: 17.07488509 | H7: 0 | I7: 0 | J7: 17.92014024 | K7: 34.60419839 | L7: 65.3381875 | M7: 79.5912199
A8: Kapasite Kullanım kW | B8: =IF(B4="Isıtma",B6,B7) -> 100 | C8: =IF(C4="Isıtma",C6,C7) -> 95.8370313 | D8: 79.8023154 | E8: 59.22458703 | F8: 33.86643414 | G8: 18.38833779 | H8: 0 | I8: 0 | J8: 19.29861256 | K8: 37.2660598 | L8: 71.58718125 | M8: 89.49521848
A9: COP | B9: =IF(B8>0,B8/B10,0) -> 5.101369692 | C9: 8.038285815 | D9: 9.308429222 | E9: 9.401553831 | F9: =IF(F8>0,F8/F10,0) -> 14 | G9: =IF(G8>0,G8/G10,0) -> 14 | H9: =IF(H8>0,H8/H10,0) -> 0 | I9: =IF(I8>0,I8/I10,0) -> 0 | J9: =IF(J8>0,J8/J10,0) -> 14 | K9: 14 | L9: =IF(L8>0,L8/L10,0) -> 11.45579339 | M9: =IF(M8>0,M8/M10,0) -> 9.036271338
A10: Güç Gereksinimi (kW) | B10: =B60 -> 19.60257853 | C10: 11.92257075 | D10: 8.573123725 | E10: 6.299446676 | F10: 2.41903101 | G10: 1.313452699 | H10: 0 | I10: 0 | J10: 1.378472326 | K10: 2.661861415 | L10: 6.248993744 | M10: 9.903998578
A11: Çalışma Saati Günlük | B11: =Detaylı!$C$12 -> 10 | C11: =Detaylı!$C$12 -> 10 | D11: =Detaylı!$C$12 -> 10 | E11: =Detaylı!$C$12 -> 10 | F11: =Detaylı!$C$12 -> 10 | G11: =Detaylı!$C$12 -> 10 | H11: =Detaylı!$C$12 -> 10 | I11: =Detaylı!$C$12 -> 10 | J11: =Detaylı!$C$12 -> 10 | K11: =Detaylı!$C$12 -> 10 | L11: =Detaylı!$C$12 -> 10 | M11: =Detaylı!$C$12 -> 10
A12: Ayda Kaç Gün | B12: =Detaylı!$C$11 -> 22 | C12: =Detaylı!$C$11 -> 22 | D12: =Detaylı!$C$11 -> 22 | E12: =Detaylı!$C$11 -> 22 | F12: =Detaylı!$C$11 -> 22 | G12: =Detaylı!$C$11 -> 22 | H12: =Detaylı!$C$11 -> 22 | I12: =Detaylı!$C$11 -> 22 | J12: =Detaylı!$C$11 -> 22 | K12: =Detaylı!$C$11 -> 22 | L12: =Detaylı!$C$11 -> 22 | M12: =Detaylı!$C$11 -> 22
A13: Ayda Kaç Saat | B13: =B12*B11 -> 220 | C13: =C12*C11 -> 220 | D13: 220 | E13: 220 | F13: 220 | G13: 220 | H13: 220 | I13: 220 | J13: 220 | K13: 220 | L13: 220 | M13: 220
A14: Aylık Toplam Elektrik Tüketimi | B14: =B13*B10 -> 4312.567277 | C14: =C13*C10 -> 2622.965564 | D14: 1886.087219 | E14: 1385.878269 | F14: 532.1868223 | G14: 288.9595938 | H14: 0 | I14: 0 | J14: 303.2639117 | K14: 585.6095112 | L14: 1374.778624 | M14: 2178.879687
A15: Isıtma için Harcanan Enerji | B15: =IF(B4="Isıtma",B14,0) -> 4312.567277 | C15: =IF(C4="Isıtma",C14,0) -> 2622.965564 | D15: 1886.087219 | E15: 1385.878269 | F15: 532.1868223 | G15: 288.9595938 | H15: 0 | I15: 0 | J15: 303.2639117 | K15: 585.6095112 | L15: 1374.778624 | M15: 2178.879687
A16: Toplam Isıtma İçin Harcanan Enerji (kWh) | B16: =SUM(B15:M15) -> 15471.17648
A17: Soğutma için Harcanan Enerji | B17: =IF(B4="Soğutma",B14,0) -> 0 | C17: =IF(C4="Soğutma",C14,0) -> 0 | D17: 0 | E17: 0 | F17: 0 | G17: 0 | H17: 0 | I17: 0 | J17: 0 | K17: 0 | L17: 0 | M17: 0
A18: Toplam Soğutma için Harcanan Enerji (kWh) | B18: =SUM(B17:M17) -> 0
A19: Yıllık Toplam Isıtma + Soğutma(kWh) | B19: =SUM(B14:M14) -> 15471.17648
A20: Aylık Isıtma Kapasitesi | B20: =IF(B4="Isıtma",B6*B13,0) -> 22000 | C20: 21084.14689 | D20: 17556.50939 | E20: 13029.40915 | F20: 7450.615512 | G20: 4045.434313 | H20: 0 | I20: 0 | J20: 4245.694764 | K20: 8198.533157 | L20: 15749.17987 | M20: 19688.94807
A21: Toplam Isıtma Kapasitesi | B21: =SUM(B20:M20) -> 133048.4711
A22: Aylık Soğutma Kapasitesi | B22: =IF(B4="Soğutma",B7*B13,0) -> 0 | C22: 0 | D22: 0 | E22: 0 | F22: 0 | G22: 0 | H22: 0 | I22: 0 | J22: 0 | K22: 0 | L22: 0 | M22: 0
A23: Toplam Soğutma Kapasitesi | B23: =SUM(B22:M22) -> 0
A26: Sütun1 | B26: Ocak | C26: Şubat | D26: Mart | E26: Nisan | F26: Mayıs | G26: Haziran | H26: Temmuz | I26: Ağustos | J26: Eylül | K26: Ekim | L26: Kasım | M26: Aralık | N26: Sütun2
A27: Açıklama | B27: =Tablo4[[#Headers],[Ocak]] -> Ocak | C27: =Tablo4[[#Headers],[Şubat]] -> Şubat | D27: =Tablo4[[#Headers],[Mart]] -> Mart | E27: =Tablo4[[#Headers],[Nisan]] -> Nisan | F27: =Tablo4[[#Headers],[Mayıs]] -> Mayıs | G27: =Tablo4[[#Headers],[Haziran]] -> Haziran | H27: =Tablo4[[#Headers],[Temmuz]] -> Temmuz | I27: =Tablo4[[#Headers],[Ağustos]] -> Ağustos | J27: =Tablo4[[#Headers],[Eylül]] -> Eylül | K27: =Tablo4[[#Headers],[Ekim]] -> Ekim | L27: =Tablo4[[#Headers],[Kasım]] -> Kasım | M27: =Tablo4[[#Headers],[Aralık]] -> Aralık | N27: Birim
A28: Isı Kaynağı Isı Pompası Giriş Sıcaklığı | B28: =IF(B4="Isıtma",B2,B3) -> 5 | C28: 8 | D28: 10 | E28: 9 | F28: =IF(F4="Isıtma",F2,F3) -> 14 | G28: =IF(G4="Isıtma",G2,G3) -> 22 | H28: 21 | I28: 21 | J28: 21 | K28: 18 | L28: 13 | M28: 10 | N28: C
A29: Isı Kaynağı Isı Pompası Çıkış Sıcaklığı | B29: =IF(B4="Isıtma",IF(B28-Detaylı!$M$4>0,B28+Detaylı!$M$4,1),B28-Detaylı!$M$4) -> 1 | C29: =IF(C4="Isıtma",IF(C28-Detaylı!$M$4>0,C28+Detaylı!$M$4,1),C28-Detaylı!$M$4) -> 13 | D29: =IF(D4="Isıtma",IF(D28-Detaylı!$M$4>0,D28+Detaylı!$M$4,1),D28-Detaylı!$M$4) -> 15 | E29: =IF(E4="Isıtma",IF(E28-Detaylı!$M$4>0,E28+Detaylı!$M$4,1),E28-Detaylı!$M$4) -> 14 | F29: =IF(F4="Isıtma",IF(F28-Detaylı!$M$4>0,F28+Detaylı!$M$4,1),F28-Detaylı!$M$4) -> 19 | G29: =IF(G4="Isıtma",IF(G28-Detaylı!$M$4>0,G28+Detaylı!$M$4,1),G28-Detaylı!$M$4) -> 27 | H29: =IF(H4="Isıtma",IF(H28-Detaylı!$M$4>0,H28+Detaylı!$M$4,1),H28-Detaylı!$M$4) -> 16 | I29: =IF(I4="Isıtma",IF(I28-Detaylı!$M$4>0,I28+Detaylı!$M$4,1),I28-Detaylı!$M$4) -> 16 | J29: =IF(J4="Isıtma",IF(J28-Detaylı!$M$4>0,J28+Detaylı!$M$4,1),J28-Detaylı!$M$4) -> 26 | K29: =IF(K4="Isıtma",IF(K28-Detaylı!$M$4>0,K28+Detaylı!$M$4,1),K28-Detaylı!$M$4) -> 23 | L29: =IF(L4="Isıtma",IF(L28-Detaylı!$M$4>0,L28+Detaylı!$M$4,1),L28-Detaylı!$M$4) -> 18 | M29: =IF(M4="Isıtma",IF(M28-Detaylı!$M$4>0,M28+Detaylı!$M$4,1),M28-Detaylı!$M$4) -> 15 | N29: C
A30: Isıtılacak Hava Çıkış Sıcaklığı | B30: =IF(B4="Isıtma",B3,B2) -> 27 | C30: 26.75022188 | D30: 25.78813892 | E30: 24.55347522 | F30: 23.03198605 | G30: =IF(G4="Isıtma",G3,G2) -> 22.10330027 | H30: =IF(H4="Isıtma",H3,H2) -> 23 | I30: 22 | J30: 22.15791675 | K30: 23.23596359 | L30: 25.29523087 | M30: 26.36971311 | N30: C
A31: Subcooler kaç derece? | B31: =$P$1 -> 5 | C31: =$P$1 -> 5 | D31: 5 | E31: 5 | F31: 5 | G31: 5 | H31: 5 | I31: 5 | J31: 5 | K31: 5 | L31: 5 | M31: 5 | N31: C
A32: Superheat kaç derece | B32: =$P$2 -> 5 | C32: =$P$2 -> 5 | D32: 5 | E32: 5 | F32: 5 | G32: 5 | H32: 5 | I32: 5 | J32: 5 | K32: 5 | L32: 5 | M32: 5 | N32: C
A33: dış ünite Yaklaşım Sıcaklığı | B33: =Detaylı!$H$4 -> 4 | C33: =Detaylı!$H$4 -> 4 | D33: =Detaylı!$H$4 -> 4 | E33: =Detaylı!$H$4 -> 4 | F33: =Detaylı!$H$4 -> 4 | G33: =Detaylı!$H$4 -> 4 | H33: =Detaylı!$H$4 -> 4 | I33: =Detaylı!$H$4 -> 4 | J33: =Detaylı!$H$4 -> 4 | K33: =Detaylı!$H$4 -> 4 | L33: =Detaylı!$H$4 -> 4 | M33: =Detaylı!$H$4 -> 4 | N33: Önerilen değer
A34: iç ünite Yaklaşım Sıcaklığı | B34: =Detaylı!$H$3 -> 3 | C34: =Detaylı!$H$3 -> 3 | D34: =Detaylı!$H$3 -> 3 | E34: =Detaylı!$H$3 -> 3 | F34: =Detaylı!$H$3 -> 3 | G34: =Detaylı!$H$3 -> 3 | H34: =Detaylı!$H$3 -> 3 | I34: =Detaylı!$H$3 -> 3 | J34: =Detaylı!$H$3 -> 3 | K34: =Detaylı!$H$3 -> 3 | L34: =Detaylı!$H$3 -> 3 | M34: =Detaylı!$H$3 -> 3 | N34: Önerilen değer
A35: Soğutucu akışkan evaporasyon faz değişim sıcaklığı | B35: =IF(B4="Isıtma",B29-B33,B29-B34) -> -3 | C35: =IF(C4="Isıtma",C29-C33,C29-C34) -> 9 | D35: 11 | E35: 10 | F35: 15 | G35: 23 | H35: 13 | I35: 13 | J35: 22 | K35: 19 | L35: 14 | M35: 11 | N35: C
A36: Soğutucu Akışkan evaporasyon çıkış sıcaklığı | B36: =B35+B32 -> 2 | C36: 14 | D36: 16 | E36: 15 | F36: 20 | G36: 28 | H36: 18 | I36: 18 | J36: 27 | K36: 24 | L36: 19 | M36: 16 | N36: C
A37: Soğutucu akışkan evaporasyon faz değişim basıncı | B37: =[1]!PropsSI("P","T",B35+273,"Q",1,$P$5) -> 260824.2108 | C37: =[1]!PropsSI("P","T",C35+273,"Q",1,$P$5) -> 398915.1279 | D37: =[1]!PropsSI("P","T",D35+273,"Q",1,$P$5) -> 426505.3808 | E37: =[1]!PropsSI("P","T",E35+273,"Q",1,$P$5) -> 412534.3852 | F37: =[1]!PropsSI("P","T",F35+273,"Q",1,$P$5) -> 486025.4815 | G37: =[1]!PropsSI("P","T",G35+273,"Q",1,$P$5) -> 623783.0957 | H37: =[1]!PropsSI("P","T",H35+273,"Q",1,$P$5) -> 455526.2539 | I37: =[1]!PropsSI("P","T",I35+273,"Q",1,$P$5) -> 455526.2539 | J37: =[1]!PropsSI("P","T",J35+273,"Q",1,$P$5) -> 605119.0345 | K37: =[1]!PropsSI("P","T",K35+273,"Q",1,$P$5) -> 551653.1378 | L37: =[1]!PropsSI("P","T",L35+273,"Q",1,$P$5) -> 470588.0651 | M37: =[1]!PropsSI("P","T",M35+273,"Q",1,$P$5) -> 426505.3808 | N37: kPa
A38: Soğutucu akışkan evaporasyon sıvı entalpisi | B38: =[1]!PropsSI("H","P",B37,"Q",0,$P$5)/1000 -> 195.7814903 | C38: =[1]!PropsSI("H","P",C37,"Q",0,$P$5)/1000 -> 212.0007453 | D38: =[1]!PropsSI("H","P",D37,"Q",0,$P$5)/1000 -> 214.7451212 | E38: =[1]!PropsSI("H","P",E37,"Q",0,$P$5)/1000 -> 213.371375 | F38: =[1]!PropsSI("H","P",F37,"Q",0,$P$5)/1000 -> 220.2721794 | G38: =[1]!PropsSI("H","P",G37,"Q",0,$P$5)/1000 -> 231.4906187 | H38: =[1]!PropsSI("H","P",H37,"Q",0,$P$5)/1000 -> 217.5021425 | I38: =[1]!PropsSI("H","P",I37,"Q",0,$P$5)/1000 -> 217.5021425 | J38: =[1]!PropsSI("H","P",J37,"Q",0,$P$5)/1000 -> 230.0756376 | K38: =[1]!PropsSI("H","P",K37,"Q",0,$P$5)/1000 -> 225.852882 | L38: =[1]!PropsSI("H","P",L37,"Q",0,$P$5)/1000 -> 218.8855101 | M38: =[1]!PropsSI("H","P",M37,"Q",0,$P$5)/1000 -> 214.7451212 | N38: kj/kg
A39: Soğutucu akışkan evaporasyon gaz entalpisi | B39: =[1]!PropsSI("H","P",B37,"Q",1,$P$5)/1000 -> 396.7543878 | C39: =[1]!PropsSI("H","P",C37,"Q",1,$P$5)/1000 -> 403.6741559 | D39: =[1]!PropsSI("H","P",D37,"Q",1,$P$5)/1000 -> 404.7916882 | E39: =[1]!PropsSI("H","P",E37,"Q",1,$P$5)/1000 -> 404.2343334 | F39: =[1]!PropsSI("H","P",F37,"Q",1,$P$5)/1000 -> 406.9915225 | G39: =[1]!PropsSI("H","P",G37,"Q",1,$P$5)/1000 -> 411.2338109 | H39: =[1]!PropsSI("H","P",H37,"Q",1,$P$5)/1000 -> 405.8976612 | I39: =[1]!PropsSI("H","P",I37,"Q",1,$P$5)/1000 -> 405.8976612 | J39: =[1]!PropsSI("H","P",J37,"Q",1,$P$5)/1000 -> 410.7160242 | K39: =[1]!PropsSI("H","P",K37,"Q",1,$P$5)/1000 -> 409.1405645 | L39: =[1]!PropsSI("H","P",L37,"Q",1,$P$5)/1000 -> 406.4461414 | M39: =[1]!PropsSI("H","P",M37,"Q",1,$P$5)/1000 -> 404.7916882 | N39: kj/kg
A40: Soğutucu akışkan evaporasyon + superheat entalpi | B40: =[1]!PropsSI("H","T",273+B36,"P",B37,$P$5)/1000 -> 401.1544238 | C40: =[1]!PropsSI("H","T",273+C36,"P",C37,$P$5)/1000 -> 408.3429489 | D40: =[1]!PropsSI("H","T",273+D36,"P",D37,$P$5)/1000 -> 409.5091703 | E40: =[1]!PropsSI("H","T",273+E36,"P",E37,$P$5)/1000 -> 408.9273159 | F40: =[1]!PropsSI("H","T",273+F36,"P",F37,$P$5)/1000 -> 411.8102853 | G40: =[1]!PropsSI("H","T",273+G36,"P",G37,$P$5)/1000 -> 416.2731237 | H40: =[1]!PropsSI("H","T",273+H36,"P",H37,$P$5)/1000 -> 410.6651083 | I40: =[1]!PropsSI("H","T",273+I36,"P",I37,$P$5)/1000 -> 410.6651083 | J40: =[1]!PropsSI("H","T",273+J36,"P",J37,$P$5)/1000 -> 415.726297 | K40: =[1]!PropsSI("H","T",273+K36,"P",K37,$P$5)/1000 -> 414.0663489 | L40: =[1]!PropsSI("H","T",273+L36,"P",L37,$P$5)/1000 -> 411.2390725 | M40: =[1]!PropsSI("H","T",273+M36,"P",M37,$P$5)/1000 -> 409.5091703 | N40: kj/kg
A41: Soğutucu akışkan evaporasyon çıkış entropisi | B41: =[1]!PropsSI("S","T",B36+273,"P",B37,$P$5) -> 1745.048679 | C41: =[1]!PropsSI("S","T",C36+273,"P",C37,$P$5) -> 1739.041339 | D41: =[1]!PropsSI("S","T",D36+273,"P",D37,$P$5) -> 1738.20202 | E41: =[1]!PropsSI("S","T",E36+273,"P",E37,$P$5) -> 1738.616687 | F41: =[1]!PropsSI("S","T",F36+273,"P",F37,$P$5) -> 1736.636099 | G41: =[1]!PropsSI("S","T",G36+273,"P",G37,$P$5) -> 1733.876157 | H41: =[1]!PropsSI("S","T",H36+273,"P",H37,$P$5) -> 1737.401219 | I41: =[1]!PropsSI("S","T",I36+273,"P",I37,$P$5) -> 1737.401219 | J41: =[1]!PropsSI("S","T",J36+273,"P",J37,$P$5) -> 1734.19854 | K41: =[1]!PropsSI("S","T",K36+273,"P",K37,$P$5) -> 1735.201637 | L41: =[1]!PropsSI("S","T",L36+273,"P",L37,$P$5) -> 1737.014375 | M41: =[1]!PropsSI("S","T",M36+273,"P",M37,$P$5) -> 1738.20202
A42: Soğutucu akışkan kondenzasyon faz değişim sıcaklığı | B42: =IF(Detaylı!F32="Isıtma",B30+B33,B30+B34) -> 31 | C42: =IF(Detaylı!G32="Isıtma",C30+C33,C30+C34) -> 30.75022188 | D42: =IF(Detaylı!H32="Isıtma",D30+D33,D30+D34) -> 29.78813892 | E42: =IF(Detaylı!I32="Isıtma",E30+E33,E30+E34) -> 28.55347522 | F42: =IF(Detaylı!J32="Isıtma",F30+F33,F30+F34) -> 27.03198605 | G42: =IF(Detaylı!K32="Isıtma",G30+G33,G30+G34) -> 26.10330027 | H42: =IF(Detaylı!L32="Isıtma",H30+H33,H30+H34) -> 26 | I42: =IF(Detaylı!M32="Isıtma",I30+I33,I30+I34) -> 25 | J42: =IF(Detaylı!N32="Isıtma",J30+J33,J30+J34) -> 26.15791675 | K42: =IF(Detaylı!O32="Isıtma",K30+K33,K30+K34) -> 27.23596359 | L42: =IF(Detaylı!P32="Isıtma",L30+L33,L30+L34) -> 29.29523087 | M42: =IF(Detaylı!Q32="Isıtma",M30+M33,M30+M34) -> 30.36971311 | N42: C
A43: Soğutucu akışkan kondenzasyon faz değişim basıncı | B43: =[1]!PropsSI("P","T",B42+273,"Q",1,$P$5) -> 789182.0506 | C43: =[1]!PropsSI("P","T",C42+273,"Q",1,$P$5) -> 783566.8366 | D43: =[1]!PropsSI("P","T",D42+273,"Q",1,$P$5) -> 762218.9072 | E43: =[1]!PropsSI("P","T",E42+273,"Q",1,$P$5) -> 735467.6216 | F43: =[1]!PropsSI("P","T",F42+273,"Q",1,$P$5) -> 703481.6264 | G43: =[1]!PropsSI("P","T",G42+273,"Q",1,$P$5) -> 684480.4737 | H43: =[1]!PropsSI("P","T",H42+273,"Q",1,$P$5) -> 682391.1008 | I43: =[1]!PropsSI("P","T",I42+273,"Q",1,$P$5) -> 662412.6694 | J43: =[1]!PropsSI("P","T",J42+273,"Q",1,$P$5) -> 685587.106 | K43: =[1]!PropsSI("P","T",K42+273,"Q",1,$P$5) -> 707707.7714 | L43: =[1]!PropsSI("P","T",L42+273,"Q",1,$P$5) -> 751452.7829 | M43: =[1]!PropsSI("P","T",M42+273,"Q",1,$P$5) -> 775070.5427 | N43: Pa
A44: Soğutucu akışkan kondenzasyon sıvı entalpisi | B44: =[1]!PropsSI("H","P",B43,"Q",0,$P$5)/1000 -> 242.9528505 | C44: =[1]!PropsSI("H","P",C43,"Q",0,$P$5)/1000 -> 242.590947 | D44: =[1]!PropsSI("H","P",D43,"Q",0,$P$5)/1000 -> 241.1995087 | E44: =[1]!PropsSI("H","P",E43,"Q",0,$P$5)/1000 -> 239.4196278 | F44: =[1]!PropsSI("H","P",F43,"Q",0,$P$5)/1000 -> 237.235009 | G44: =[1]!PropsSI("H","P",G43,"Q",0,$P$5)/1000 -> 235.9062072 | H44: =[1]!PropsSI("H","P",H43,"Q",0,$P$5)/1000 -> 235.7586153 | I44: =[1]!PropsSI("H","P",I43,"Q",0,$P$5)/1000 -> 234.3320429 | J44: =[1]!PropsSI("H","P",J43,"Q",0,$P$5)/1000 -> 235.9842586 | K44: =[1]!PropsSI("H","P",K43,"Q",0,$P$5)/1000 -> 237.5273364 | L44: =[1]!PropsSI("H","P",L43,"Q",0,$P$5)/1000 -> 240.4881636 | M44: =[1]!PropsSI("H","P",M43,"Q",0,$P$5)/1000 -> 242.0401488 | N44: kj/kg
A45: Soğutucu akışkan kondenzasyon gaz entalpisi | B45: =[1]!PropsSI("H","P",B43,"Q",1,$P$5)/1000 -> 415.2299077 | C45: =[1]!PropsSI("H","P",C43,"Q",1,$P$5)/1000 -> 415.109363 | D45: =[1]!PropsSI("H","P",D43,"Q",1,$P$5)/1000 -> 414.6423669 | E45: =[1]!PropsSI("H","P",E43,"Q",1,$P$5)/1000 -> 414.0369334 | F45: =[1]!PropsSI("H","P",F43,"Q",1,$P$5)/1000 -> 413.2816685 | G45: =[1]!PropsSI("H","P",G43,"Q",1,$P$5)/1000 -> 412.8158371 | H45: =[1]!PropsSI("H","P",H43,"Q",1,$P$5)/1000 -> 412.7637997 | I45: =[1]!PropsSI("H","P",I43,"Q",1,$P$5)/1000 -> 412.2577935 | J45: =[1]!PropsSI("H","P",J43,"Q",1,$P$5)/1000 -> 412.8433323 | K45: =[1]!PropsSI("H","P",K43,"Q",1,$P$5)/1000 -> 413.3834988 | L45: =[1]!PropsSI("H","P",L43,"Q",1,$P$5)/1000 -> 414.4014788 | M45: =[1]!PropsSI("H","P",M43,"Q",1,$P$5)/1000 -> 414.9251711 | N45: kj/kg
A46: Subcooling sonrası sıcaklık | B46: =B42-B31 -> 26 | C46: 25.75022188 | D46: 24.78813892 | E46: 23.55347522 | F46: 22.03198605 | G46: 21.10330027 | H46: 21 | I46: 20 | J46: 21.15791675 | K46: 22.23596359 | L46: 24.29523087 | M46: 25.36971311 | N46: C
A47: Subcooling sonrası entalpi | B47: =[1]!PropsSI("H","T",B46+273,"Q",0,$P$5)/1000 -> 235.7586153 | C47: =[1]!PropsSI("H","T",C46+273,"Q",0,$P$5)/1000 -> 235.401917 | D47: =[1]!PropsSI("H","T",D46+273,"Q",0,$P$5)/1000 -> 234.0303143 | E47: =[1]!PropsSI("H","T",E46+273,"Q",0,$P$5)/1000 -> 232.2754051 | F47: =[1]!PropsSI("H","T",F46+273,"Q",0,$P$5)/1000 -> 230.1208391 | G47: =[1]!PropsSI("H","T",G46+273,"Q",0,$P$5)/1000 -> 228.8100047 | H47: =[1]!PropsSI("H","T",H46+273,"Q",0,$P$5)/1000 -> 228.6643942 | I47: =[1]!PropsSI("H","T",I46+273,"Q",0,$P$5)/1000 -> 227.2568284 | J47: =[1]!PropsSI("H","T",J46+273,"Q",0,$P$5)/1000 -> 228.8870071 | K47: =[1]!PropsSI("H","T",K46+273,"Q",0,$P$5)/1000 -> 230.4091824 | L47: =[1]!PropsSI("H","T",L46+273,"Q",0,$P$5)/1000 -> 233.3290028 | M47: =[1]!PropsSI("H","T",M46+273,"Q",0,$P$5)/1000 -> 234.8590041 | N47: kj/kg
A48: Expansion sonrası flaşh buhar yüzdesi | B48: =(B47-B38)/(B39-B38) -> 0.198917991 | C48: =(C47-C38)/(C39-C38) -> 0.1220887739 | D48: 0.1014761459 | E48: 0.09904504387 | F48: 0.05274579216 | G48: -0.01491357741 | H48: 0.05924902979 | I48: 0.05177769621 | J48: -0.006580092649 | K48: 0.02485873776 | L48: 0.07700705934 | M48: 0.1058366024 | N48: %
A49: Expansion sonrası flaşh sıvı yüzdesi | B49: =1-B48 -> 0.801082009 | C49: =1-C48 -> 0.8779112261 | D49: 0.8985238541 | E49: 0.9009549561 | F49: 0.9472542078 | G49: 1.014913577 | H49: 0.9407509702 | I49: 0.9482223038 | J49: 1.006580093 | K49: 0.9751412622 | L49: 0.9229929407 | M49: 0.8941633976 | N49: %
A50: Evaporatör soğutma kabiliyeti(sadece buharlaşma) | B50: =B49*(B39-B38) -> 160.9957725 | C50: =C49*(C39-C38) -> 168.2722389 | D50: 170.7613739 | E50: 171.9589284 | F50: 176.8706834 | G50: 182.4238062 | H50: 177.233267 | I50: 178.6408328 | J50: 181.8290171 | K50: 178.731382 | L50: 173.1171386 | M50: 169.9326841 | N50: kj/kg
A51: Evaporatör soğutma kabiliyeti superheat dahil | B51: =B40-B47 -> 165.3958085 | C51: =C40-C47 -> 172.941032 | D51: 175.4788559 | E51: 176.6519108 | F51: 181.6894462 | G51: 187.4631191 | H51: 182.0007141 | I51: 183.4082798 | J51: 186.8392899 | K51: 183.6571664 | L51: 177.9100697 | M51: 174.6501661 | N51: kj/kg
A52: Kompresör çıkış sıcaklığı | B52: =[1]!PropsSI("T","S",B41,"P",B43,$P$5) -> 313.0678894 | C52: =[1]!PropsSI("T","S",C41,"P",C43,$P$5) -> 310.9862114 | D52: =[1]!PropsSI("T","S",D41,"P",D43,$P$5) -> 309.6937895 | E52: =[1]!PropsSI("T","S",E41,"P",E43,$P$5) -> 308.4809874 | F52: =[1]!PropsSI("T","S",F41,"P",F43,$P$5) -> 306.2329839 | G52: =[1]!PropsSI("T","S",G41,"P",G43,$P$5) -> 304.3929989 | H52: =[1]!PropsSI("T","S",H41,"P",H43,$P$5) -> 305.3404617 | I52: =[1]!PropsSI("T","S",I41,"P",I43,$P$5) -> 304.2506673 | J52: =[1]!PropsSI("T","S",J41,"P",J43,$P$5) -> 304.5491893 | K52: =[1]!PropsSI("T","S",K41,"P",K43,$P$5) -> 306.0241006 | L52: =[1]!PropsSI("T","S",L41,"P",L43,$P$5) -> 308.803689 | M52: =[1]!PropsSI("T","S",M41,"P",M43,$P$5) -> 310.3230961 | N52: K
A53: Kompresör çıkış entalpisi | B53: =[1]!PropsSI("H","T",B52,"P",B43,$P$5)/1000 -> 424.7457007 | C53: =[1]!PropsSI("H","T",C52,"P",C43,$P$5)/1000 -> 422.7172592 | D53: =[1]!PropsSI("H","T",D52,"P",D43,$P$5)/1000 -> 421.8647104 | E53: =[1]!PropsSI("H","T",E52,"P",E43,$P$5)/1000 -> 421.2275844 | F53: =[1]!PropsSI("H","T",F52,"P",F43,$P$5)/1000 -> 419.668117 | G53: =[1]!PropsSI("H","T",G52,"P",G43,$P$5)/1000 -> 418.2427029 | H53: =[1]!PropsSI("H","T",H52,"P",H43,$P$5)/1000 -> 419.2522805 | I53: =[1]!PropsSI("H","T",I52,"P",I43,$P$5)/1000 -> 418.6178443 | J53: =[1]!PropsSI("H","T",J52,"P",J43,$P$5)/1000 -> 418.3751619 | K53: =[1]!PropsSI("H","T",K52,"P",K43,$P$5)/1000 -> 419.3566404 | L53: =[1]!PropsSI("H","T",L52,"P",L43,$P$5)/1000 -> 421.193113 | M53: =[1]!PropsSI("H","T",M52,"P",M43,$P$5)/1000 -> 422.222821 | N53: kj/kg
A54: Basınçlandırma için gereken entalpi %100 | B54: =B53-B40 -> 23.59127687 | C54: =C53-C40 -> 14.37431022 | D54: 12.35554014 | E54: 12.30026849 | F54: 7.857831673 | G54: 1.969579153 | H54: 8.587172259 | I54: 7.952736015 | J54: 2.648864834 | K54: 5.290291522 | L54: 9.954040489 | M54: 12.71365076 | N54: kj/kg
A55: Basınçlandırma için gereken entalpi gerçekleşen | B55: =B54/$P$4 -> 36.29427211 | C55: =C54/$P$4 -> 22.11432341 | D55: 19.00852329 | E55: 18.92348998 | F55: 12.0889718 | G55: 3.030121774 | H55: 13.21103425 | I55: 12.23497848 | J55: 4.075176668 | K55: 8.138910034 | L55: 15.31390844 | M55: 19.55946271
A56: Sistem Entalpi ihtiyacı | B56: =B55/(1-Detaylı!$C$24) -> 40.32696901 | C56: =C55/(1-Detaylı!$C$24) -> 24.57147046 | D56: =D55/(1-Detaylı!$C$24) -> 21.12058143 | E56: =E55/(1-Detaylı!$C$24) -> 21.02609998 | F56: =F55/(1-Detaylı!$C$24) -> 13.43219089 | G56: =G55/(1-Detaylı!$C$24) -> 3.366801972 | H56: =H55/(1-Detaylı!$C$24) -> 14.67892694 | I56: =I55/(1-Detaylı!$C$24) -> 13.59442054 | J56: =J55/(1-Detaylı!$C$24) -> 4.527974075 | K56: =K55/(1-Detaylı!$C$24) -> 9.043233371 | L56: =L55/(1-Detaylı!$C$24) -> 17.01545383 | M56: =M55/(1-Detaylı!$C$24) -> 21.73273634
A57: Isı Pompası soğutma COP'si (Sistem) | B57: =IF(ABS(B51/B56)>Detaylı!$C$93,Detaylı!$C$93,B51/B56) -> 4.101369692 | C57: =IF(ABS(C51/C56)>Detaylı!$C$93,Detaylı!$C$93,C51/C56) -> 7.038285815 | D57: =IF(ABS(D51/D56)>Detaylı!$C$93,Detaylı!$C$93,D51/D56) -> 8.308429222 | E57: =IF(ABS(E51/E56)>Detaylı!$C$93,Detaylı!$C$93,E51/E56) -> 8.401553831 | F57: =IF(ABS(F51/F56)>Detaylı!$C$93,Detaylı!$C$93,F51/F56) -> 13 | G57: =IF(ABS(G51/G56)>Detaylı!$C$93,Detaylı!$C$93,G51/G56) -> 13 | H57: =IF(ABS(H51/H56)>Detaylı!$C$93,Detaylı!$C$93,H51/H56) -> 12.39877512 | I57: =IF(ABS(I51/I56)>Detaylı!$C$93,Detaylı!$C$93,I51/I56) -> 13 | J57: =IF(ABS(J51/J56)>Detaylı!$C$93,Detaylı!$C$93,J51/J56) -> 13 | K57: =IF(ABS(K51/K56)>Detaylı!$C$93,Detaylı!$C$93,K51/K56) -> 13 | L57: =IF(ABS(L51/L56)>Detaylı!$C$93,Detaylı!$C$93,L51/L56) -> 10.45579339 | M57: =IF(ABS(M51/M56)>Detaylı!$C$93,Detaylı!$C$93,M51/M56) -> 8.036271338 | N57: kW/kW
A58: Isı Pompası ısıtma COP'si | B58: =B57+1 -> 5.101369692 | C58: =C57+1 -> 8.038285815 | D58: 9.308429222 | E58: 9.401553831 | F58: 14 | G58: 14 | H58: 13.39877512 | I58: 14 | J58: 14 | K58: 14 | L58: 11.45579339 | M58: 9.036271338 | N58: kW/kW
A59: Soğutma için gereken güç | B59: =IF(B4="Isıtma",B61-B60,Detaylı!F28) -> 80.39742147 | C59: =IF(C4="Isıtma",C61-C60,Detaylı!G28) -> 83.91446056 | D59: =IF(D4="Isıtma",D61-D60,Detaylı!H28) -> 71.22919168 | E59: =IF(E4="Isıtma",E61-E60,Detaylı!I28) -> 52.92514035 | F59: =IF(F4="Isıtma",F61-F60,Detaylı!J28) -> 31.44740313 | G59: =IF(G4="Isıtma",G61-G60,Detaylı!K28) -> 17.07488509 | H59: =IF(H4="Isıtma",H61-H60,Detaylı!L28) -> 0 | I59: =IF(I4="Isıtma",I61-I60,Detaylı!M28) -> 0 | J59: =IF(J4="Isıtma",J61-J60,Detaylı!N28) -> 17.92014024 | K59: =IF(K4="Isıtma",K61-K60,Detaylı!O28) -> 34.60419839 | L59: =IF(L4="Isıtma",L61-L60,Detaylı!P28) -> 65.3381875 | M59: =IF(M4="Isıtma",M61-M60,Detaylı!Q28) -> 79.5912199 | N59: kW
A60: Kompresör elektrik tüketimi | B60: =IF(B4="Isıtma",B61/B58,B59/B57) -> 19.60257853 | C60: 11.92257075 | D60: 8.573123725 | E60: 6.299446676 | F60: 2.41903101 | G60: 1.313452699 | H60: 0 | I60: 0 | J60: 1.378472326 | K60: 2.661861415 | L60: 6.248993744 | M60: 9.903998578 | N60: kW
A61: Isıtma gücü | B61: =IF(B4="Isıtma",Detaylı!F28,Detaylı!F28/B57*B58) -> 100 | C61: =IF(C4="Isıtma",Detaylı!G28,Detaylı!G28/C57*C58) -> 95.8370313 | D61: =IF(D4="Isıtma",Detaylı!H28,Detaylı!H28/D57*D58) -> 79.8023154 | E61: =IF(E4="Isıtma",Detaylı!I28,Detaylı!I28/E57*E58) -> 59.22458703 | F61: =IF(F4="Isıtma",Detaylı!J28,Detaylı!J28/F57*F58) -> 33.86643414 | G61: =IF(G4="Isıtma",Detaylı!K28,Detaylı!K28/G57*G58) -> 18.38833779 | H61: =IF(H4="Isıtma",Detaylı!L28,Detaylı!L28/H57*H58) -> 0 | I61: =IF(I4="Isıtma",Detaylı!M28,Detaylı!M28/I57*I58) -> 0 | J61: =IF(J4="Isıtma",Detaylı!N28,Detaylı!N28/J57*J58) -> 19.29861256 | K61: =IF(K4="Isıtma",Detaylı!O28,Detaylı!O28/K57*K58) -> 37.2660598 | L61: =IF(L4="Isıtma",Detaylı!P28,Detaylı!P28/L57*L58) -> 71.58718125 | M61: =IF(M4="Isıtma",Detaylı!Q28,Detaylı!Q28/M57*M58) -> 89.49521848 | N61: kW

Sheet Havadan Havaya (hidden)
A1: Açıklama | B1: Ocak | C1: Şubat | D1: Mart | E1: Nisan | F1: Mayıs | G1: Haziran | H1: Temmuz | I1: Ağustos | J1: Eylül | K1: Ekim | L1: Kasım | M1: Aralık | O1: Subcooler | P1: 5
A2: Isı kaynağı ortalama sıcaklık | B2: =Detaylı!F30 -> -12.948826 | C2: =Detaylı!G30 -> -11.378516 | D2: =Detaylı!H30 -> -5.330074 | E2: =Detaylı!I30 -> 2.432034 | F2: =Detaylı!J30 -> 11.997362 | G2: =Detaylı!K30 -> 17.835842 | H2: =Detaylı!L30 -> 21.546194 | I2: =Detaylı!M30 -> 21.4814 | J2: =Detaylı!N30 -> 17.492478 | K2: =Detaylı!O30 -> 10.714992 | L2: =Detaylı!P30 -> -2.23125 | M2: =Detaylı!Q30 -> -8.986326 | O2: Superheat | P2: 5
A3: Isı aktırımı ortalama sıcaklık | B3: =Detaylı!F29 -> 27 | C3: =Detaylı!G29 -> 26.75022188 | D3: =Detaylı!H29 -> 25.78813892 | E3: =Detaylı!I29 -> 24.55347522 | F3: =Detaylı!J29 -> 23.03198605 | G3: =Detaylı!K29 -> 22.10330027 | H3: =Detaylı!L29 -> 21 | I3: =Detaylı!M29 -> 21 | J3: =Detaylı!N29 -> 22.15791675 | K3: =Detaylı!O29 -> 23.23596359 | L3: =Detaylı!P29 -> 25.29523087 | M3: =Detaylı!Q29 -> 26.36971311
A4: Isıtma / Soğutma | B4: =Detaylı!F32 -> Isıtma | C4: =Detaylı!G32 -> Isıtma | D4: =Detaylı!H32 -> Isıtma | E4: =Detaylı!I32 -> Isıtma | F4: =Detaylı!J32 -> Isıtma | G4: =Detaylı!K32 -> Isıtma | H4: =Detaylı!L32 -> Kapalı | I4: =Detaylı!M32 -> Kapalı | J4: =Detaylı!N32 -> Isıtma | K4: =Detaylı!O32 -> Isıtma | L4: =Detaylı!P32 -> Isıtma | M4: =Detaylı!Q32 -> Isıtma | O4: Kompresör Verimi | P4: =VLOOKUP(Detaylı!H5,Komp_liste,2,) -> 0.65
A5: Kapasite Kullanım | B5: =Detaylı!F33 -> 1 | C5: =Detaylı!G33 -> 0.958370313 | D5: =Detaylı!H33 -> 0.798023154 | E5: =Detaylı!I33 -> 0.5922458703 | F5: =Detaylı!J33 -> 0.3386643414 | G5: =Detaylı!K33 -> 0.1838833779 | H5: =Detaylı!L33 -> 0 | I5: =Detaylı!M33 -> 0 | J5: =Detaylı!N33 -> 0.1929861256 | K5: =Detaylı!O33 -> 0.372660598 | L5: =Detaylı!P33 -> 0.7158718125 | M5: =Detaylı!Q33 -> 0.8949521848 | O5: Gaz | P5: =Detaylı!C4 -> R134a
A6: Isıtma Kapasitesi | B6: =B60 -> 100 | C6: 95.8370313 | D6: 79.8023154 | E6: 59.22458703 | F6: 33.86643414 | G6: 18.38833779 | H6: 0 | I6: 0 | J6: 19.29861256 | K6: 37.2660598 | L6: 71.58718125 | M6: 89.49521848
A7: Soğutma Kapasitesi | B7: =B6-B10 -> 58.13143129 | C7: =C6-C10 -> 56.85108874 | D7: =D6-D10 -> 51.09404555 | E7: 41.6680854 | F7: 26.62315613 | G7: 15.42793013 | H7: 0 | I7: 0 | J7: 16.13062209 | K7: 28.87226077 | L7: 47.61512722 | M7: 54.73328864
A8: Kapasite Kullanım kW | B8: =IF(B4="Isıtma",B6,B7) -> 100 | C8: 95.8370313 | D8: 79.8023154 | E8: 59.22458703 | F8: 33.86643414 | G8: 18.38833779 | H8: 0 | I8: 0 | J8: 19.29861256 | K8: 37.2660598 | L8: 71.58718125 | M8: 89.49521848
A9: COP | B9: =IF(B8>0,B8/B10,0) -> 2.388426523 | C9: 2.458245845 | D9: 2.779767496 | E9: 3.373370635 | F9: =IF(F8>0,F8/F10,0) -> 4.675567346 | G9: =IF(G8>0,G8/G10,0) -> 6.211420829 | H9: 0 | I9: 0 | J9: 6.091752082 | K9: 4.439713131 | L9: 2.986276485 | M9: 2.574518127
A10: Güç Gereksinimi (kW) | B10: =B59 -> 41.86856871 | C10: 38.98594256 | D10: 28.70826985 | E10: 17.55650163 | F10: 7.243278011 | G10: 2.960407658 | H10: 0 | I10: 0 | J10: 3.167990474 | K10: 8.393799037 | L10: 23.97205403 | M10: 34.76192984
A11: Çalışma Saati Günlük | B11: =Detaylı!$C$12 -> 10 | C11: =Detaylı!$C$12 -> 10 | D11: =Detaylı!$C$12 -> 10 | E11: =Detaylı!$C$12 -> 10 | F11: =Detaylı!$C$12 -> 10 | G11: =Detaylı!$C$12 -> 10 | H11: =Detaylı!$C$12 -> 10 | I11: =Detaylı!$C$12 -> 10 | J11: =Detaylı!$C$12 -> 10 | K11: =Detaylı!$C$12 -> 10 | L11: =Detaylı!$C$12 -> 10 | M11: =Detaylı!$C$12 -> 10
A12: Ayda Kaç Gün | B12: =Detaylı!$C$11 -> 22 | C12: =Detaylı!$C$11 -> 22 | D12: =Detaylı!$C$11 -> 22 | E12: =Detaylı!$C$11 -> 22 | F12: =Detaylı!$C$11 -> 22 | G12: =Detaylı!$C$11 -> 22 | H12: =Detaylı!$C$11 -> 22 | I12: =Detaylı!$C$11 -> 22 | J12: =Detaylı!$C$11 -> 22 | K12: =Detaylı!$C$11 -> 22 | L12: =Detaylı!$C$11 -> 22 | M12: =Detaylı!$C$11 -> 22
A13: Ayda Kaç Saat | B13: =B12*B11 -> 220 | C13: =C12*C11 -> 220 | D13: 220 | E13: 220 | F13: 220 | G13: 220 | H13: 220 | I13: 220 | J13: 220 | K13: 220 | L13: 220 | M13: 220
A14: Aylık Toplam Elektrik Tüketimi | B14: =B13*B10 -> 9211.085117 | C14: =C13*C10 -> 8576.907363 | D14: 6315.819368 | E14: 3862.430358 | F14: 1593.521162 | G14: 651.2896847 | H14: 0 | I14: 0 | J14: 696.9579043 | K14: 1846.635788 | L14: 5273.851887 | M14: 7647.624564
A15: Isıtma için Harcanan Enerji | B15: =IF(B4="Isıtma",B14,0) -> 9211.085117 | C15: 8576.907363 | D15: 6315.819368 | E15: 3862.430358 | F15: 1593.521162 | G15: 651.2896847 | H15: 0 | I15: 0 | J15: 696.9579043 | K15: 1846.635788 | L15: 5273.851887 | M15: 7647.624564
A16: Toplam Isıtma İçin Harcanan Enerji (kWh) | B16: =SUM(B15:M15) -> 45676.1232
A17: Soğutma için Harcanan Enerji | B17: =IF(B4="Soğutma",B14,0) -> 0 | C17: 0 | D17: 0 | E17: 0 | F17: 0 | G17: 0 | H17: 0 | I17: 0 | J17: 0 | K17: 0 | L17: 0 | M17: 0
A18: Toplam Soğutma için Harcanan Enerji (kWh) | B18: =SUM(B17:M17) -> 0
A19: Yıllık Toplam (kWh) | B19: =SUM(B14:M14) -> 45676.1232
A20: Aylık Isıtma Kapasitesi | B20: =IF(B4="Isıtma",B6*B13,0) -> 22000 | C20: 21084.14689 | D20: 17556.50939 | E20: 13029.40915 | F20: =IF(F4="Isıtma",F6*F13,0) -> 7450.615512 | G20: 4045.434313 | H20: 0 | I20: 0 | J20: 4245.694764 | K20: 8198.533157 | L20: 15749.17987 | M20: 19688.94807
A21: Toplam Isıtma Kapasitesi | B21: =SUM(B20:M20) -> 133048.4711
A22: Aylık Soğutma Kapasitesi | B22: =IF(B4="Soğutma",B7*B13,0) -> 0 | C22: 0 | D22: 0 | E22: 0 | F22: 0 | G22: 0 | H22: 0 | I22: 0 | J22: 0 | K22: 0 | L22: 0 | M22: 0
A23: Toplam Soğutma Kapasitesi | B23: =SUM(B22:M22) -> 0
A25: Sütun1 | B25: Ocak | C25: Şubat | D25: Mart | E25: Nisan | F25: Mayıs | G25: Haziran | H25: Temmuz | I25: Ağustos | J25: Eylül | K25: Ekim | L25: Kasım | M25: Aralık | N25: Sütun2
A26: Açıklama | B26: Ocak | C26: Şubat | D26: Mart | E26: Nisan | F26: Mayıs | G26: Haziran | H26: Temmuz | I26: Ağustos | J26: Eylül | K26: Ekim | L26: Kasım | M26: Aralık | N26: Birim
A27: Isı Kaynağı Isı Pompası Giriş Sıcaklığı | B27: =IF(B4="Isıtma",B2,B3) -> -12.948826 | C27: -11.378516 | D27: -5.330074 | E27: 2.432034 | F27: 11.997362 | G27: 17.835842 | H27: 21 | I27: 21 | J27: 17.492478 | K27: 10.714992 | L27: -2.23125 | M27: -8.986326 | N27: C
A28: Isı Kaynağı Isı Pompası Çıkış Sıcaklığı | B28: =B27-5 -> -17.948826 | C28: -16.378516 | D28: -10.330074 | E28: -2.567966 | F28: 6.997362 | G28: 12.835842 | H28: 16 | I28: 16 | J28: 12.492478 | K28: 5.714992 | L28: -7.23125 | M28: -13.986326 | N28: C
A29: Isıtılacak Hava Çıkış Sıcaklığı | B29: =IF(B4="Isıtma",B3,B2) -> 27 | C29: =IF(C4="Isıtma",C3,C2) -> 26.75022188 | D29: 25.78813892 | E29: 24.55347522 | F29: 23.03198605 | G29: 22.10330027 | H29: 21.546194 | I29: 21.4814 | J29: 22.15791675 | K29: 23.23596359 | L29: 25.29523087 | M29: 26.36971311 | N29: C
A30: Subcooler kaç derece? | B30: =$P$1 -> 5 | C30: 5 | D30: 5 | E30: 5 | F30: 5 | G30: 5 | H30: 5 | I30: 5 | J30: 5 | K30: 5 | L30: 5 | M30: 5 | N30: K
A31: Superheat kaç derece | B31: =$P$2 -> 5 | C31: 5 | D31: 5 | E31: 5 | F31: 5 | G31: 5 | H31: 5 | I31: 5 | J31: 5 | K31: 5 | L31: 5 | M31: 5 | N31: K
A32: Evaporatör Yaklaşım Sıcaklığı | B32: =Detaylı!I4 -> 5 | C32: 5 | D32: 5 | E32: 5 | F32: 5 | G32: 5 | H32: 5 | I32: 5 | J32: 5 | K32: 5 | L32: 5 | M32: 5 | N32: K
A33: Kondenser Yaklaşım Sıcaklığı | B33: =Detaylı!I3 -> 5 | C33: =Detaylı!$H$3 -> 3 | D33: =Detaylı!$H$3 -> 3 | E33: =Detaylı!$H$3 -> 3 | F33: =Detaylı!$H$3 -> 3 | G33: =Detaylı!$H$3 -> 3 | H33: =Detaylı!$H$3 -> 3 | I33: =Detaylı!$H$3 -> 3 | J33: =Detaylı!$H$3 -> 3 | K33: =Detaylı!$H$3 -> 3 | L33: =Detaylı!$H$3 -> 3 | M33: =Detaylı!$H$3 -> 3 | N33: K
A34: Soğutucu akışkan evap faz değişim sıcaklığı | B34: =IF(B4="Isıtma",B28-B32,B28-B33) -> -22.948826 | C34: -21.378516 | D34: -15.330074 | E34: -7.567966 | F34: 1.997362 | G34: 7.835842 | H34: =IF(H4="Isıtma",H28-H32,H28-H33) -> 13 | I34: 13 | J34: 7.492478 | K34: 0.714992 | L34: -12.23125 | M34: -18.986326 | N34: K
A35: Soğutucu Akışkan evap çıkış sıcaklığı | B35: =B34+B31 -> -17.948826 | C35: -16.378516 | D35: -10.330074 | E35: -2.567966 | F35: 6.997362 | G35: 12.835842 | H35: 18 | I35: 18 | J35: 12.492478 | K35: 5.714992 | L35: -7.23125 | M35: -13.986326 | N35: K
A36: Soğutucu akışkan evap faz değişim basıncı | B36: =[1]!PropsSI("P","T",B34+273,"Q",1,$P$5) -> 115875.71 | C36: =[1]!PropsSI("P","T",C34+273,"Q",1,$P$5) -> 124193.7778 | D36: =[1]!PropsSI("P","T",D34+273,"Q",1,$P$5) -> 160716.6137 | E36: =[1]!PropsSI("P","T",E34+273,"Q",1,$P$5) -> 219317.7412 | F36: =[1]!PropsSI("P","T",F34+273,"Q",1,$P$5) -> 312911.7549 | G36: =[1]!PropsSI("P","T",G34+273,"Q",1,$P$5) -> 383495.456 | H36: =[1]!PropsSI("P","T",H34+273,"Q",1,$P$5) -> 455526.2539 | I36: =[1]!PropsSI("P","T",I34+273,"Q",1,$P$5) -> 455526.2539 | J36: =[1]!PropsSI("P","T",J34+273,"Q",1,$P$5) -> 379035.6546 | K36: =[1]!PropsSI("P","T",K34+273,"Q",1,$P$5) -> 298844.406 | L36: =[1]!PropsSI("P","T",L34+273,"Q",1,$P$5) -> 182423.2663 | M36: =[1]!PropsSI("P","T",M34+273,"Q",1,$P$5) -> 137761.1939 | N36: kPa
A37: Soğutucu akışkan evap sıvı entalpisi | B37: =[1]!PropsSI("H","P",B36,"Q",0,$P$5)/1000 -> 169.6335349 | C37: =[1]!PropsSI("H","P",C36,"Q",0,$P$5)/1000 -> 171.6590692 | D37: =[1]!PropsSI("H","P",D36,"Q",0,$P$5)/1000 -> 179.5108525 | E37: =[1]!PropsSI("H","P",E36,"Q",0,$P$5)/1000 -> 189.7100899 | F37: =[1]!PropsSI("H","P",F36,"Q",0,$P$5)/1000 -> 202.4865295 | G37: =[1]!PropsSI("H","P",G36,"Q",0,$P$5)/1000 -> 210.4089842 | H37: =[1]!PropsSI("H","P",H36,"Q",0,$P$5)/1000 -> 217.5021425 | I37: =[1]!PropsSI("H","P",I36,"Q",0,$P$5)/1000 -> 217.5021425 | J37: =[1]!PropsSI("H","P",J36,"Q",0,$P$5)/1000 -> 209.9402858 | K37: =[1]!PropsSI("H","P",K36,"Q",0,$P$5)/1000 -> 200.7594653 | L37: =[1]!PropsSI("H","P",L36,"Q",0,$P$5)/1000 -> 183.5655111 | M37: =[1]!PropsSI("H","P",M36,"Q",0,$P$5)/1000 -> 174.7548795 | N37: kj/kg
A38: Soğutucu akışkan evap gaz entalpisi | B38: =[1]!PropsSI("H","P",B36,"Q",1,$P$5)/1000 -> 384.6331731 | C38: =[1]!PropsSI("H","P",C36,"Q",1,$P$5)/1000 -> 385.608087 | D38: =[1]!PropsSI("H","P",D36,"Q",1,$P$5)/1000 -> 389.3344681 | E38: =[1]!PropsSI("H","P",E36,"Q",1,$P$5)/1000 -> 394.0370323 | F38: =[1]!PropsSI("H","P",F36,"Q",1,$P$5)/1000 -> 399.6776711 | G38: =[1]!PropsSI("H","P",G36,"Q",1,$P$5)/1000 -> 403.0185517 | H38: =[1]!PropsSI("H","P",H36,"Q",1,$P$5)/1000 -> 405.8976612 | I38: =[1]!PropsSI("H","P",I36,"Q",1,$P$5)/1000 -> 405.8976612 | J38: =[1]!PropsSI("H","P",J36,"Q",1,$P$5)/1000 -> 402.8244848 | K38: =[1]!PropsSI("H","P",K36,"Q",1,$P$5)/1000 -> 398.9328138 | L38: =[1]!PropsSI("H","P",L36,"Q",1,$P$5)/1000 -> 391.2236118 | M38: =[1]!PropsSI("H","P",M36,"Q",1,$P$5)/1000 -> 387.0876092 | N38: kj/kg
A39: Soğutucu akışkan evap + superheat entalpi | B39: =[1]!PropsSI("H","T",273+B35,"P",B36,$P$5)/1000 -> 388.6560307 | C39: =[1]!PropsSI("H","T",273+C35,"P",C36,$P$5)/1000 -> 389.658047 | D39: =[1]!PropsSI("H","T",273+D35,"P",D36,$P$5)/1000 -> 393.4926587 | E39: =[1]!PropsSI("H","T",273+E35,"P",E36,$P$5)/1000 -> 398.3438689 | F39: =[1]!PropsSI("H","T",273+F35,"P",F36,$P$5)/1000 -> 404.1851133 | G39: =[1]!PropsSI("H","T",273+G35,"P",G36,$P$5)/1000 -> 407.6595641 | H39: =[1]!PropsSI("H","T",273+H35,"P",H36,$P$5)/1000 -> 410.6651083 | I39: =[1]!PropsSI("H","T",273+I35,"P",I36,$P$5)/1000 -> 410.6651083 | J39: =[1]!PropsSI("H","T",273+J35,"P",J36,$P$5)/1000 -> 407.4573798 | K39: =[1]!PropsSI("H","T",273+K35,"P",K36,$P$5)/1000 -> 403.412119 | L39: =[1]!PropsSI("H","T",273+L35,"P",L36,$P$5)/1000 -> 395.4397603 | M39: =[1]!PropsSI("H","T",273+M35,"P",M36,$P$5)/1000 -> 391.1796302 | N39: kj/kg
A40: Soğutucu akışkan evap çıkış entropisi | B40: =[1]!PropsSI("S","T",B35+273,"P",B36,$P$5) -> 1760.139916 | C40: =[1]!PropsSI("S","T",C35+273,"P",C36,$P$5) -> 1758.657645 | D40: =[1]!PropsSI("S","T",D35+273,"P",D36,$P$5) -> 1753.462618 | E40: =[1]!PropsSI("S","T",E35+273,"P",E36,$P$5) -> 1747.861433 | F40: =[1]!PropsSI("S","T",F35+273,"P",F36,$P$5) -> 1742.325188 | G40: =[1]!PropsSI("S","T",G35+273,"P",G36,$P$5) -> 1739.548755 | H40: =[1]!PropsSI("S","T",H35+273,"P",H36,$P$5) -> 1737.401219 | I40: =[1]!PropsSI("S","T",I35+273,"P",I36,$P$5) -> 1737.401219 | J40: =[1]!PropsSI("S","T",J35+273,"P",J36,$P$5) -> 1739.701176 | K40: =[1]!PropsSI("S","T",K35+273,"P",K36,$P$5) -> 1742.991393 | L40: =[1]!PropsSI("S","T",L35+273,"P",L36,$P$5) -> 1751.092895 | M40: =[1]!PropsSI("S","T",M35+273,"P",M36,$P$5) -> 1756.508234
A41: Soğutucu akışkan kondenser faz değişim sıcaklığı | B41: =IF(B4="Isıtma",B29+B32,B29+B31) -> 32 | C41: 31.75022188 | D41: 30.78813892 | E41: 29.55347522 | F41: =IF(F4="Isıtma",F29+F32,F29+F31) -> 28.03198605 | G41: 27.10330027 | H41: 26.546194 | I41: 26.4814 | J41: 27.15791675 | K41: 28.23596359 | L41: 30.29523087 | M41: 31.36971311 | N41: C
A42: Soğutucu akışkan kondenser faz değişim basıncı | B42: =[1]!PropsSI("P","T",B41+273,"Q",1,$P$5) -> 811966.6269 | C42: =[1]!PropsSI("P","T",C41+273,"Q",1,$P$5) -> 806229.7796 | D42: =[1]!PropsSI("P","T",D41+273,"Q",1,$P$5) -> 784417.3009 | E42: =[1]!PropsSI("P","T",E41+273,"Q",1,$P$5) -> 757078.9891 | F42: =[1]!PropsSI("P","T",F41+273,"Q",1,$P$5) -> 724383.6054 | G42: =[1]!PropsSI("P","T",G41+273,"Q",1,$P$5) -> 704956.9939 | H42: =[1]!PropsSI("P","T",H41+273,"Q",1,$P$5) -> 693493.2698 | I42: =[1]!PropsSI("P","T",I41+273,"Q",1,$P$5) -> 692169.1692 | J42: =[1]!PropsSI("P","T",J41+273,"Q",1,$P$5) -> 706088.4904 | K42: =[1]!PropsSI("P","T",K41+273,"Q",1,$P$5) -> 728703.9616 | L42: =[1]!PropsSI("P","T",L41+273,"Q",1,$P$5) -> 773415.5934 | M42: =[1]!PropsSI("P","T",M41+273,"Q",1,$P$5) -> 797549.0051 | N42: Pa
A43: Soğutucu akışkan kondenser sıvı entalpisi | B43: =[1]!PropsSI("H","P",B42,"Q",0,$P$5)/1000 -> 244.4044925 | C43: =[1]!PropsSI("H","P",C42,"Q",0,$P$5)/1000 -> 244.0414904 | D43: =[1]!PropsSI("H","P",D42,"Q",0,$P$5)/1000 -> 242.6458675 | E43: =[1]!PropsSI("H","P",E42,"Q",0,$P$5)/1000 -> 240.8607226 | F43: =[1]!PropsSI("H","P",F42,"Q",0,$P$5)/1000 -> 238.669775 | G43: =[1]!PropsSI("H","P",G42,"Q",0,$P$5)/1000 -> 237.3371926 | H43: =[1]!PropsSI("H","P",H42,"Q",0,$P$5)/1000 -> 236.5394837 | I43: =[1]!PropsSI("H","P",I42,"Q",0,$P$5)/1000 -> 236.446788 | J43: =[1]!PropsSI("H","P",J42,"Q",0,$P$5)/1000 -> 237.4154647 | K43: =[1]!PropsSI("H","P",K42,"Q",0,$P$5)/1000 -> 238.962941 | L43: =[1]!PropsSI("H","P",L42,"Q",0,$P$5)/1000 -> 241.9324068 | M43: =[1]!PropsSI("H","P",M42,"Q",0,$P$5)/1000 -> 243.4890283 | N43: kj/kg
A44: Soğutucu akışkan kondenser gaz entalpisi | B44: =[1]!PropsSI("H","P",B42,"Q",1,$P$5)/1000 -> 415.7095788 | C44: =[1]!PropsSI("H","P",C42,"Q",1,$P$5)/1000 -> 415.5902115 | D44: =[1]!PropsSI("H","P",D42,"Q",1,$P$5)/1000 -> 415.1276808 | E44: =[1]!PropsSI("H","P",E42,"Q",1,$P$5)/1000 -> 414.5278212 | F44: =[1]!PropsSI("H","P",F42,"Q",1,$P$5)/1000 -> 413.7791923 | G44: =[1]!PropsSI("H","P",G42,"Q",1,$P$5)/1000 -> 413.3172902 | H44: =[1]!PropsSI("H","P",H42,"Q",1,$P$5)/1000 -> 413.0384433 | I44: =[1]!PropsSI("H","P",I42,"Q",1,$P$5)/1000 -> 413.0059277 | J44: =[1]!PropsSI("H","P",J42,"Q",1,$P$5)/1000 -> 413.3445568 | K44: =[1]!PropsSI("H","P",K42,"Q",1,$P$5)/1000 -> 413.8801475 | L44: =[1]!PropsSI("H","P",L42,"Q",1,$P$5)/1000 -> 414.8890387 | M44: =[1]!PropsSI("H","P",M42,"Q",1,$P$5)/1000 -> 415.4077987 | N44: kj/kg
A45: Subcooling sonrası sıcaklık | B45: =B41-B30 -> 27 | C45: 26.75022188 | D45: 25.78813892 | E45: 24.55347522 | F45: 23.03198605 | G45: 22.10330027 | H45: 21.546194 | I45: 21.4814 | J45: 22.15791675 | K45: 23.23596359 | L45: 25.29523087 | M45: 26.36971311 | N45: C
A46: Subcooling sonrası entalpi | B46: =[1]!PropsSI("H","T",B45+273,"Q",0,$P$5)/1000 -> 237.189184 | C46: =[1]!PropsSI("H","T",C45+273,"Q",0,$P$5)/1000 -> 236.831481 | D46: =[1]!PropsSI("H","T",D45+273,"Q",0,$P$5)/1000 -> 235.4560488 | E46: =[1]!PropsSI("H","T",E45+273,"Q",0,$P$5)/1000 -> 233.6963158 | F46: =[1]!PropsSI("H","T",F45+273,"Q",0,$P$5)/1000 -> 231.5359407 | G46: =[1]!PropsSI("H","T",G45+273,"Q",0,$P$5)/1000 -> 230.2216314 | H46: =[1]!PropsSI("H","T",H45+273,"Q",0,$P$5)/1000 -> 229.4347473 | I46: =[1]!PropsSI("H","T",I45+273,"Q",0,$P$5)/1000 -> 229.3433041 | J46: =[1]!PropsSI("H","T",J45+273,"Q",0,$P$5)/1000 -> 230.2988368 | K46: =[1]!PropsSI("H","T",K45+273,"Q",0,$P$5)/1000 -> 231.8250544 | L46: =[1]!PropsSI("H","T",L45+273,"Q",0,$P$5)/1000 -> 234.7527994 | M46: =[1]!PropsSI("H","T",M45+273,"Q",0,$P$5)/1000 -> 236.287046 | N46: kj/kg
A47: Expansion sonrası flaşh buhar yüzdesi | B47: =(B46-B37)/(B38-B37) -> 0.3142128501 | C47: =(C46-C37)/(C38-C37) -> 0.3046165507 | D47: 0.2666296457 | E47: 0.2152737439 | F47: 0.1473160052 | G47: 0.1028642943 | H47: 0.06333805014 | I47: 0.06285267097 | J47: 0.1055480492 | K47: 0.1567596719 | L47: 0.2464979123 | M47: 0.2897912472 | N47: %
A48: Expansion sonrası flaşh sıvı yüzdesi | B48: =1-B47 -> 0.6857871499 | C48: =1-C47 -> 0.6953834493 | D48: 0.7333703543 | E48: 0.7847262561 | F48: 0.8526839948 | G48: 0.8971357057 | H48: 0.9366619499 | I48: 0.937147329 | J48: 0.8944519508 | K48: 0.8432403281 | L48: 0.7535020877 | M48: 0.7102087528 | N48: %
A49: Evaporatör soğutma kabiliyeti(sadece buharlaşma) | B49: =B48*(B38-B37) -> 147.4439891 | C49: =C48*(C38-C37) -> 148.776606 | D49: 153.8784193 | E49: 160.3407166 | F49: 168.1417303 | G49: 172.7969203 | H49: 176.4629139 | I49: 176.5543572 | J49: 172.525648 | K49: 167.1077594 | L49: 156.4708124 | M49: 150.8005632 | N49: kj/kg
A50: Evaporatör soğutma kabiliyeti superheat dahil | B50: =B39-B46 -> 151.4668467 | C50: =C39-C46 -> 152.826566 | D50: 158.0366099 | E50: 164.6475532 | F50: 172.6491726 | G50: 177.4379327 | H50: 181.230361 | I50: 181.3218042 | J50: 177.158543 | K50: 171.5870646 | L50: 160.6869609 | M50: 154.8925842 | N50: kj/kg
A51: Kompresör çıkış sıcaklığı | B51: =[1]!PropsSI("T","S",B40,"P",B42,$P$5) -> 318.7725896 | C51: =[1]!PropsSI("T","S",C40,"P",C42,$P$5) -> 318.046013 | D51: =[1]!PropsSI("T","S",D40,"P",D42,$P$5) -> 315.4114085 | E51: =[1]!PropsSI("T","S",E40,"P",E42,$P$5) -> 312.3661401 | F51: =[1]!PropsSI("T","S",F40,"P",F42,$P$5) -> 309.0368625 | G51: =[1]!PropsSI("T","S",G40,"P",G42,$P$5) -> 307.1888574 | H51: =[1]!PropsSI("T","S",H40,"P",H42,$P$5) -> 305.9349523 | I51: =[1]!PropsSI("T","S",I40,"P",I42,$P$5) -> 305.8644559 | J51: =[1]!PropsSI("T","S",J40,"P",J42,$P$5) -> 307.2942515 | K51: =[1]!PropsSI("T","S",K40,"P",K42,$P$5) -> 309.4598932 | L51: =[1]!PropsSI("T","S",L40,"P",L42,$P$5) -> 314.153874 | M51: =[1]!PropsSI("T","S",M40,"P",M42,$P$5) -> 316.9739036 | N51: K
A52: Kompresör çıkış entalpisi %100 verim | B52: =[1]!PropsSI("H","T",B51,"P",B42,$P$5)/1000 -> 430.1384336 | C52: =[1]!PropsSI("H","T",C51,"P",C42,$P$5)/1000 -> 429.5088732 | D52: =[1]!PropsSI("H","T",D51,"P",D42,$P$5)/1000 -> 427.2574179 | E52: =[1]!PropsSI("H","T",E51,"P",E42,$P$5)/1000 -> 424.722906 | F52: =[1]!PropsSI("H","T",F51,"P",F42,$P$5)/1000 -> 422.0462601 | G52: =[1]!PropsSI("H","T",G51,"P",G42,$P$5)/1000 -> 420.6062779 | H52: =[1]!PropsSI("H","T",H51,"P",H42,$P$5)/1000 -> 419.5969927 | I52: =[1]!PropsSI("H","T",I51,"P",I42,$P$5)/1000 -> 419.556167 | J52: =[1]!PropsSI("H","T",J51,"P",J42,$P$5)/1000 -> 420.6875086 | K52: =[1]!PropsSI("H","T",K51,"P",K42,$P$5)/1000 -> 422.3805559 | L52: =[1]!PropsSI("H","T",L51,"P",L42,$P$5)/1000 -> 426.201448 | M52: =[1]!PropsSI("H","T",M51,"P",M42,$P$5)/1000 -> 428.5865702 | N52: kj/kg
A53: Basınçlandırma için gereken entalpi %100 | B53: =B52-B39 -> 41.48240292 | C53: 39.8508262 | D53: 33.76475918 | E53: 26.37903713 | F53: 17.86114678 | G53: 12.94671379 | H53: 8.9318844 | I53: 8.89105869 | J53: 13.23012882 | K53: 18.96843685 | L53: 30.76168769 | M53: 37.40694003 | N53: kj/kg
A54: Basınçlandırma için gereken entalpi gerçekleşen | B54: =B53/$P$4 -> 63.81908141 | C54: =C53/$P$4 -> 61.30896338 | D54: 51.94578336 | E54: 40.58313404 | F54: 27.47868736 | G54: 19.91802122 | H54: 13.74136061 | I54: 13.67855183 | J54: 20.35404435 | K54: 29.18221054 | L54: 47.32567337 | M54: 57.54913851
A55: Sistem Entalpi ihtiyacı | B55: =B54/(1-Detaylı!$C$24) -> 70.91009046 | C55: =C54/(1-Detaylı!$C$24) -> 68.12107042 | D55: =D54/(1-Detaylı!$C$24) -> 57.71753707 | E55: =E54/(1-Detaylı!$C$24) -> 45.09237116 | F55: =F54/(1-Detaylı!$C$24) -> 30.53187484 | G55: =G54/(1-Detaylı!$C$24) -> 22.13113469 | H55: =H54/(1-Detaylı!$C$24) -> 15.26817846 | I55: =I54/(1-Detaylı!$C$24) -> 15.19839092 | J55: =J54/(1-Detaylı!$C$24) -> 22.61560483 | K55: =K54/(1-Detaylı!$C$24) -> 32.42467838 | L55: =L54/(1-Detaylı!$C$24) -> 52.58408152 | M55: =M54/(1-Detaylı!$C$24) -> 63.94348723
A56: Isı Pompası soğutma COP'si | B56: =IF(ABS(B50/B55)*$P$4>Detaylı!$C$93,Detaylı!$C$93,B50/B55*$P$4) -> 1.388426523 | C56: =IF(ABS(C50/C55)*$P$4>Detaylı!$C$93,Detaylı!$C$93,C50/C55*$P$4) -> 1.458245845 | D56: =IF(ABS(D50/D55)*$P$4>Detaylı!$C$93,Detaylı!$C$93,D50/D55*$P$4) -> 1.779767496 | E56: =IF(ABS(E50/E55)*$P$4>Detaylı!$C$93,Detaylı!$C$93,E50/E55*$P$4) -> 2.373370635 | F56: =IF(ABS(F50/F55)*$P$4>Detaylı!$C$93,Detaylı!$C$93,F50/F55*$P$4) -> 3.675567346 | G56: =IF(ABS(G50/G55)*$P$4>Detaylı!$C$93,Detaylı!$C$93,G50/G55*$P$4) -> 5.211420829 | H56: =IF(ABS(H50/H55)*$P$4>Detaylı!$C$93,Detaylı!$C$93,H50/H55*$P$4) -> 7.715375801 | I56: =IF(ABS(I50/I55)*$P$4>Detaylı!$C$93,Detaylı!$C$93,I50/I55*$P$4) -> 7.75471386 | J56: =IF(ABS(J50/J55)*$P$4>Detaylı!$C$93,Detaylı!$C$93,J50/J55*$P$4) -> 5.091752082 | K56: =IF(ABS(K50/K55)*$P$4>Detaylı!$C$93,Detaylı!$C$93,K50/K55*$P$4) -> 3.439713131 | L56: =IF(ABS(L50/L55)*$P$4>Detaylı!$C$93,Detaylı!$C$93,L50/L55*$P$4) -> 1.986276485 | M56: =IF(ABS(M50/M55)*$P$4>Detaylı!$C$93,Detaylı!$C$93,M50/M55*$P$4) -> 1.574518127 | N56: kW/kW
A57: Isı Pompası ısıtma COP'si | B57: =B56+1 -> 2.388426523 | C57: =C56+1 -> 2.458245845 | D57: 2.779767496 | E57: 3.373370635 | F57: 4.675567346 | G57: 6.211420829 | H57: 8.715375801 | I57: 8.75471386 | J57: 6.091752082 | K57: 4.439713131 | L57: 2.986276485 | M57: 2.574518127 | N57: kW/kW
A58: Soğutma için gereken güç | B58: =IF(B4="Isıtma",B60-B59,Detaylı!F28) -> 58.13143129 | C58: =IF(C4="Isıtma",C60-C59,Detaylı!G28) -> 56.85108874 | D58: =IF(D4="Isıtma",D60-D59,Detaylı!H28) -> 51.09404555 | E58: =IF(E4="Isıtma",E60-E59,Detaylı!I28) -> 41.6680854 | F58: =IF(F4="Isıtma",F60-F59,Detaylı!J28) -> 26.62315613 | G58: =IF(G4="Isıtma",G60-G59,Detaylı!K28) -> 15.42793013 | H58: =IF(H4="Isıtma",H60-H59,Detaylı!L28) -> 0 | I58: =IF(I4="Isıtma",I60-I59,Detaylı!M28) -> 0 | J58: =IF(J4="Isıtma",J60-J59,Detaylı!N28) -> 16.13062209 | K58: =IF(K4="Isıtma",K60-K59,Detaylı!O28) -> 28.87226077 | L58: =IF(L4="Isıtma",L60-L59,Detaylı!P28) -> 47.61512722 | M58: =IF(M4="Isıtma",M60-M59,Detaylı!Q28) -> 54.73328864 | N58: kW
A59: Kompresör elektrik tüketimi | B59: =IF(B4="Isıtma",B60/B57,B58/B56) -> 41.86856871 | C59: 38.98594256 | D59: 28.70826985 | E59: 17.55650163 | F59: 7.243278011 | G59: 2.960407658 | H59: 0 | I59: 0 | J59: 3.167990474 | K59: 8.393799037 | L59: 23.97205403 | M59: 34.76192984 | N59: kW
A60: Isıtma gücü | B60: =IF(B4="Isıtma",Detaylı!F28,Detaylı!F28/B56*B57) -> 100 | C60: =IF(C4="Isıtma",Detaylı!G28,Detaylı!G28/C56*C57) -> 95.8370313 | D60: =IF(D4="Isıtma",Detaylı!H28,Detaylı!H28/D56*D57) -> 79.8023154 | E60: =IF(E4="Isıtma",Detaylı!I28,Detaylı!I28/E56*E57) -> 59.22458703 | F60: =IF(F4="Isıtma",Detaylı!J28,Detaylı!J28/F56*F57) -> 33.86643414 | G60: =IF(G4="Isıtma",Detaylı!K28,Detaylı!K28/G56*G57) -> 18.38833779 | H60: =IF(H4="Isıtma",Detaylı!L28,Detaylı!L28/H56*H57) -> 0 | I60: =IF(I4="Isıtma",Detaylı!M28,Detaylı!M28/I56*I57) -> 0 | J60: =IF(J4="Isıtma",Detaylı!N28,Detaylı!N28/J56*J57) -> 19.29861256 | K60: =IF(K4="Isıtma",Detaylı!O28,Detaylı!O28/K56*K57) -> 37.2660598 | L60: =IF(L4="Isıtma",Detaylı!P28,Detaylı!P28/L56*L57) -> 71.58718125 | M60: =IF(M4="Isıtma",Detaylı!Q28,Detaylı!Q28/M56*M57) -> 89.49521848 | N60: kW

Sheet Topraktan Havaya (hidden)
A1: Sütun1 | B1: Ocak | C1: Şubat | D1: Mart | E1: Nisan | F1: Mayıs | G1: Haziran | H1: Temmuz | I1: Ağustos | J1: Eylül | K1: Ekim | L1: Kasım | M1: Aralık | O1: Subcooler | P1: 5
A2: Isı kaynağı ortalama sıcaklık | B2: =Veriler!Z84 -> 6.223110808 | C2: =Veriler!AA84 -> 5.135541891 | D2: =Veriler!AB84 -> 5.488629148 | E2: =Veriler!AC84 -> 7.158569067 | F2: =Veriler!AD84 -> 9.709805878 | G2: =Veriler!AE84 -> 12.47692288 | H2: =Veriler!AF84 -> 14.73819724 | I2: =Veriler!AG84 -> 15.90384061 | J2: =Veriler!AH84 -> 15.66982848 | K2: =Veriler!AI84 -> 14.09719616 | L2: =Veriler!AJ84 -> 11.59611954 | M2: =Veriler!AK84 -> 8.818932478 | O2: Superheat | P2: 5
A3: Isı aktırımı ortalama sıcaklık | B3: =Detaylı!F10 -> 27 | C3: =Detaylı!G10 -> 26.75022188 | D3: =Detaylı!H10 -> 25.78813892 | E3: =Detaylı!I10 -> 24.55347522 | F3: =Detaylı!J10 -> 23.03198605 | G3: =Detaylı!K10 -> 22.10330027 | H3: =Detaylı!L10 -> 21 | I3: =Detaylı!M10 -> 21 | J3: =Detaylı!N10 -> 22.15791675 | K3: =Detaylı!O10 -> 23.23596359 | L3: =Detaylı!P10 -> 25.29523087 | M3: =Detaylı!Q10 -> 26.36971311
A4: Isıtma / Soğutma | B4: =IF(Detaylı!F30<Detaylı!F29,"Isıtma","Soğutma") -> Isıtma | C4: =IF(Detaylı!G30<Detaylı!G29,"Isıtma","Soğutma") -> Isıtma | D4: =IF(Detaylı!H30<Detaylı!H29,"Isıtma","Soğutma") -> Isıtma | E4: =IF(Detaylı!I30<Detaylı!I29,"Isıtma","Soğutma") -> Isıtma | F4: =IF(Detaylı!J30<Detaylı!J29,"Isıtma","Soğutma") -> Isıtma | G4: =IF(Detaylı!K30<Detaylı!K29,"Isıtma","Soğutma") -> Isıtma | H4: =IF(Detaylı!L30<Detaylı!L29,"Isıtma","Soğutma") -> Soğutma | I4: =IF(Detaylı!M30<Detaylı!M29,"Isıtma","Soğutma") -> Soğutma | J4: =IF(Detaylı!N30<Detaylı!N29,"Isıtma","Soğutma") -> Isıtma | K4: =IF(Detaylı!O30<Detaylı!O29,"Isıtma","Soğutma") -> Isıtma | L4: =IF(Detaylı!P30<Detaylı!P29,"Isıtma","Soğutma") -> Isıtma | M4: =IF(Detaylı!Q30<Detaylı!Q29,"Isıtma","Soğutma") -> Isıtma | O4: kompresör verimi | P4: =VLOOKUP(Detaylı!H5,Komp_liste,2,) -> 0.65
A5: Kapasite Kullanım % | B5: =Detaylı!F33 -> 1 | C5: =Detaylı!G33 -> 0.958370313 | D5: =Detaylı!H33 -> 0.798023154 | E5: =Detaylı!I33 -> 0.5922458703 | F5: =Detaylı!J33 -> 0.3386643414 | G5: =Detaylı!K33 -> 0.1838833779 | H5: =Detaylı!L33 -> 0 | I5: =Detaylı!M33 -> 0 | J5: =Detaylı!N33 -> 0.1929861256 | K5: =Detaylı!O33 -> 0.372660598 | L5: =Detaylı!P33 -> 0.7158718125 | M5: =Detaylı!Q33 -> 0.8949521848 | O5: Gaz | P5: =Detaylı!C4 -> R134a
A6: Isıtma Kapasitesi | B6: =B62 -> 100 | C6: 95.8370313 | D6: 79.8023154 | E6: 59.22458703 | F6: 33.86643414 | G6: 18.38833779 | H6: 0 | I6: 0 | J6: 19.29861256 | K6: 37.2660598 | L6: 71.58718125 | M6: 89.49521848
A7: Soğutma Kapasitesi | B7: =B60 -> 79.35217286 | C7: 75.56649496 | D7: 63.51055739 | E7: 48.11891412 | F7: 28.30976936 | G7: 15.76576694 | H7: 0 | I7: 0 | J7: 16.90254212 | K7: 32.07149142 | L7: 59.74001667 | M7: 72.69314119
A8: Kapasite Kullanım kW | B8: =IF(B4="Isıtma",B6,B7) -> 100 | C8: =IF(C4="Isıtma",C6,C7) -> 95.8370313 | D8: 79.8023154 | E8: 59.22458703 | F8: 33.86643414 | G8: 18.38833779 | H8: 0 | I8: 0 | J8: 19.29861256 | K8: 37.2660598 | L8: 71.58718125 | M8: 89.49521848
A9: COP | B9: =IF(B8>0,B8/B10,0) -> 4.843124621 | C9: 4.727898152 | D9: 4.898324378 | E9: 5.332822918 | F9: =IF(F8>0,F8/F10,0) -> 6.094741261 | G9: =IF(G8>0,G8/G10,0) -> 7.01156951 | H9: 0 | I9: 0 | J9: 8.054275949 | K9: 7.174043551 | L9: 6.042558181 | M9: 5.326437733
A10: Güç Gereksinimi (kW) | B10: =B61 -> 20.64782714 | C10: 20.27053634 | D10: 16.29175801 | E10: 11.10567291 | F10: 5.556664786 | G10: 2.622570847 | H10: 0 | I10: 0 | J10: 2.396070446 | K10: 5.194568383 | L10: 11.84716458 | M10: 16.80207729
A11: Çalışma Saati Günlük | B11: =Detaylı!$C$12 -> 10 | C11: =Detaylı!$C$12 -> 10 | D11: =Detaylı!$C$12 -> 10 | E11: =Detaylı!$C$12 -> 10 | F11: =Detaylı!$C$12 -> 10 | G11: =Detaylı!$C$12 -> 10 | H11: =Detaylı!$C$12 -> 10 | I11: =Detaylı!$C$12 -> 10 | J11: =Detaylı!$C$12 -> 10 | K11: =Detaylı!$C$12 -> 10 | L11: =Detaylı!$C$12 -> 10 | M11: =Detaylı!$C$12 -> 10
A12: Ayda Kaç Gün | B12: =Detaylı!$C$11 -> 22 | C12: =Detaylı!$C$11 -> 22 | D12: =Detaylı!$C$11 -> 22 | E12: =Detaylı!$C$11 -> 22 | F12: =Detaylı!$C$11 -> 22 | G12: =Detaylı!$C$11 -> 22 | H12: =Detaylı!$C$11 -> 22 | I12: =Detaylı!$C$11 -> 22 | J12: =Detaylı!$C$11 -> 22 | K12: =Detaylı!$C$11 -> 22 | L12: =Detaylı!$C$11 -> 22 | M12: =Detaylı!$C$11 -> 22
A13: Ayda Kaç Saat | B13: =B12*B11 -> 220 | C13: =C12*C11 -> 220 | D13: 220 | E13: 220 | F13: 220 | G13: 220 | H13: 220 | I13: 220 | J13: 220 | K13: 220 | L13: 220 | M13: 220
A14: Aylık Toplam Elektrik Tüketimi | B14: =B13*B10 -> 4542.521971 | C14: =C13*C10 -> 4459.517994 | D14: 3584.186762 | E14: 2443.248041 | F14: 1222.466253 | G14: 576.9655864 | H14: 0 | I14: 0 | J14: 527.1354981 | K14: 1142.805044 | L14: 2606.376207 | M14: 3696.457004
A15: Isıtma için Harcanan Enerji | B15: =IF(B4="Isıtma",B14,0) -> 4542.521971 | C15: =IF(C4="Isıtma",C14,0) -> 4459.517994 | D15: 3584.186762 | E15: 2443.248041 | F15: 1222.466253 | G15: 576.9655864 | H15: 0 | I15: 0 | J15: 527.1354981 | K15: 1142.805044 | L15: 2606.376207 | M15: 3696.457004
A16: Toplam Isıtma İçin Harcanan Enerji (kWh) | B16: =SUM(B15:M15) -> 24801.68036
A17: Soğutma için Harcanan Enerji | B17: =IF(B4="Soğutma",B14,0) -> 0 | C17: =IF(C4="Soğutma",C14,0) -> 0 | D17: 0 | E17: 0 | F17: 0 | G17: 0 | H17: 0 | I17: 0 | J17: 0 | K17: 0 | L17: 0 | M17: 0
A18: Toplam Soğutma için Harcanan Enerji (kWh) | B18: =SUM(B17:M17) -> 0
A19: Yıllık Toplam (kWh) | B19: =SUM(B14:M14) -> 24801.68036
A20: Aylık Isıtma Kapasitesi | B20: =IF(B4="Isıtma",B6*B13,0) -> 22000 | C20: 21084.14689 | D20: 17556.50939 | E20: 13029.40915 | F20: 7450.615512 | G20: 4045.434313 | H20: 0 | I20: 0 | J20: 4245.694764 | K20: 8198.533157 | L20: 15749.17987 | M20: 19688.94807
A21: Toplam Isıtma Kapasitesi | B21: =SUM(B20:M20) -> 133048.4711
A22: Aylık Soğutma Kapasitesi | B22: =IF(B4="Soğutma",B7*B13,0) -> 0 | C22: =IF(C4="Soğutma",C7*C13,0) -> 0 | D22: 0 | E22: 0 | F22: 0 | G22: 0 | H22: 0 | I22: 0 | J22: 0 | K22: 0 | L22: 0 | M22: 0
A23: Toplam Soğutma Kapasitesi | B23: =SUM(B22:M22) -> 0
A27: Sütun1 | B27: Ocak | C27: Şubat | D27: Mart | E27: Nisan | F27: Mayıs | G27: Haziran | H27: Temmuz | I27: Ağustos | J27: Eylül | K27: Ekim | L27: Kasım | M27: Aralık | N27: Sütun2
A28: Açıklama | B28: Ocak | C28: Şubat | D28: Mart | E28: Nisan | F28: Mayıs | G28: Haziran | H28: Temmuz | I28: Ağustos | J28: Eylül | K28: Ekim | L28: Kasım | M28: Aralık | N28: Birim
A29: Isı Kaynağı Isı Pompası Giriş Sıcaklığı | B29: =IF(B4="Isıtma",B2,B3) -> 6.223110808 | C29: 5.135541891 | D29: 5.488629148 | E29: 7.158569067 | F29: 9.709805878 | G29: 12.47692288 | H29: 21 | I29: 21 | J29: 15.66982848 | K29: 14.09719616 | L29: 11.59611954 | M29: 8.818932478 | N29: C
A30: Isı Kaynağı Isı Pompası Çıkış Sıcaklığı | B30: =B29-Detaylı!$O$4 -> 1.223110808 | C30: =C29-Detaylı!$O$4 -> 0.1355418913 | D30: =D29-Detaylı!$O$4 -> 0.4886291482 | E30: =E29-Detaylı!$O$4 -> 2.158569067 | F30: =F29-Detaylı!$O$4 -> 4.709805878 | G30: =G29-Detaylı!$O$4 -> 7.476922881 | H30: =H29-Detaylı!$O$4 -> 16 | I30: =I29-Detaylı!$O$4 -> 16 | J30: =J29-Detaylı!$O$4 -> 10.66982848 | K30: =K29-Detaylı!$O$4 -> 9.097196155 | L30: =L29-Detaylı!$O$4 -> 6.596119537 | M30: =M29-Detaylı!$O$4 -> 3.818932478 | N30: C
A31: Isıtılacak Hava Çıkış Sıcaklığı | B31: =IF(B4="Isıtma",B3,B2) -> 27 | C31: 26.75022188 | D31: 25.78813892 | E31: 24.55347522 | F31: 23.03198605 | G31: 22.10330027 | H31: =IF(H4="Isıtma",H3,H2) -> 14.73819724 | I31: 15.90384061 | J31: 22.15791675 | K31: 23.23596359 | L31: 25.29523087 | M31: 26.36971311 | N31: C
A32: Subcooler kaç derece? | B32: =$P$1 -> 5 | C32: =$P$1 -> 5 | D32: 5 | E32: 5 | F32: 5 | G32: 5 | H32: 5 | I32: 5 | J32: 5 | K32: 5 | L32: 5 | M32: 5 | N32: K
A33: Superheat kaç derece | B33: =$P$2 -> 5 | C33: =$P$2 -> 5 | D33: 5 | E33: 5 | F33: 5 | G33: 5 | H33: 5 | I33: 5 | J33: 5 | K33: 5 | L33: 5 | M33: 5 | N33: K
A34: Evaporatör Yaklaşım Sıcaklığı | B34: =Detaylı!$J$4 -> 6 | C34: =Detaylı!$J$4 -> 6 | D34: =Detaylı!$J$4 -> 6 | E34: =Detaylı!$J$4 -> 6 | F34: =Detaylı!$J$4 -> 6 | G34: =Detaylı!$J$4 -> 6 | H34: =Detaylı!$J$4 -> 6 | I34: =Detaylı!$J$4 -> 6 | J34: =Detaylı!$J$4 -> 6 | K34: =Detaylı!$J$4 -> 6 | L34: =Detaylı!$J$4 -> 6 | M34: =Detaylı!$J$4 -> 6 | N34: Önerilen değer
A35: Kondenser Yaklaşım Sıcaklığı | B35: =Detaylı!$J$3 -> 4 | C35: =Detaylı!$J$3 -> 4 | D35: =Detaylı!$J$3 -> 4 | E35: =Detaylı!$J$3 -> 4 | F35: =Detaylı!$J$3 -> 4 | G35: =Detaylı!$J$3 -> 4 | H35: =Detaylı!$J$3 -> 4 | I35: =Detaylı!$J$3 -> 4 | J35: =Detaylı!$J$3 -> 4 | K35: =Detaylı!$J$3 -> 4 | L35: =Detaylı!$J$3 -> 4 | M35: =Detaylı!$J$3 -> 4 | N35: Önerilen değer
A36: Soğutucu akışkan evap faz değişim sıcaklığı | B36: =IF(B4="Isıtma",B30-B34,B30-B35) -> -4.776889192 | C36: =IF(C4="Isıtma",C30-C34,C30-C35) -> -5.864458109 | D36: -5.511370852 | E36: -3.841430933 | F36: -1.290194122 | G36: 1.476922881 | H36: 12 | I36: 12 | J36: 4.669828475 | K36: 3.097196155 | L36: 0.5961195368 | M36: -2.181067522 | N36: C
A37: Soğutucu Akışkan evap çıkış sıcaklığı | B37: =B36+B33 -> 0.2231108078 | C37: -0.8644581087 | D37: -0.5113708518 | E37: 1.158569067 | F37: 3.709805878 | G37: 6.476922881 | H37: 17 | I37: 17 | J37: 9.669828475 | K37: 8.097196155 | L37: 5.596119537 | M37: 2.818932478 | N37: C
A38: Soğutucu akışkan evap faz değişim basıncı | B38: =[1]!PropsSI("P","T",B36+273,"Q",1,$P$5) -> 244015.5618 | C38: =[1]!PropsSI("P","T",C36+273,"Q",1,$P$5) -> 234148.7717 | D38: =[1]!PropsSI("P","T",D36+273,"Q",1,$P$5) -> 237317.6102 | E38: =[1]!PropsSI("P","T",E36+273,"Q",1,$P$5) -> 252756.796 | F38: =[1]!PropsSI("P","T",F36+273,"Q",1,$P$5) -> 277828.4507 | G38: =[1]!PropsSI("P","T",G36+273,"Q",1,$P$5) -> 307142.6483 | H38: =[1]!PropsSI("P","T",H36+273,"Q",1,$P$5) -> 440834.0214 | I38: =[1]!PropsSI("P","T",I36+273,"Q",1,$P$5) -> 440834.0214 | J38: =[1]!PropsSI("P","T",J36+273,"Q",1,$P$5) -> 343858.5085 | K38: =[1]!PropsSI("P","T",K36+273,"Q",1,$P$5) -> 325377.0277 | L38: =[1]!PropsSI("P","T",L36+273,"Q",1,$P$5) -> 297565.4626 | M38: =[1]!PropsSI("P","T",M36+273,"Q",1,$P$5) -> 268865.3119 | N38: kPa
A39: Soğutucu akışkan evap sıvı entalpisi | B39: =[1]!PropsSI("H","P",B38,"Q",0,$P$5)/1000 -> 193.4134334 | C39: =[1]!PropsSI("H","P",C38,"Q",0,$P$5)/1000 -> 191.9680471 | D39: =[1]!PropsSI("H","P",D38,"Q",0,$P$5)/1000 -> 192.4369716 | E39: =[1]!PropsSI("H","P",E38,"Q",0,$P$5)/1000 -> 194.6590942 | F39: =[1]!PropsSI("H","P",F38,"Q",0,$P$5)/1000 -> 198.0679726 | G39: =[1]!PropsSI("H","P",G38,"Q",0,$P$5)/1000 -> 201.7850646 | H39: =[1]!PropsSI("H","P",H38,"Q",0,$P$5)/1000 -> 216.1220285 | I39: =[1]!PropsSI("H","P",I38,"Q",0,$P$5)/1000 -> 216.1220285 | J39: =[1]!PropsSI("H","P",J38,"Q",0,$P$5)/1000 -> 206.1006145 | K39: =[1]!PropsSI("H","P",K38,"Q",0,$P$5)/1000 -> 203.9714207 | L39: =[1]!PropsSI("H","P",L38,"Q",0,$P$5)/1000 -> 200.5996012 | M39: =[1]!PropsSI("H","P",M38,"Q",0,$P$5)/1000 -> 196.8756609 | N39: kj/kg
A40: Soğutucu akışkan evap gaz entalpisi | B40: =[1]!PropsSI("H","P",B38,"Q",1,$P$5)/1000 -> 395.7022096 | C40: =[1]!PropsSI("H","P",C38,"Q",1,$P$5)/1000 -> 395.0551222 | D40: =[1]!PropsSI("H","P",D38,"Q",1,$P$5)/1000 -> 395.2654553 | E40: =[1]!PropsSI("H","P",E38,"Q",1,$P$5)/1000 -> 396.2569315 | F40: =[1]!PropsSI("H","P",F38,"Q",1,$P$5)/1000 -> 397.7606979 | G40: =[1]!PropsSI("H","P",G38,"Q",1,$P$5)/1000 -> 399.3758332 | H40: =[1]!PropsSI("H","P",H38,"Q",1,$P$5)/1000 -> 405.3461536 | I40: =[1]!PropsSI("H","P",I38,"Q",1,$P$5)/1000 -> 405.3461536 | J40: =[1]!PropsSI("H","P",J38,"Q",1,$P$5)/1000 -> 401.2174795 | K40: =[1]!PropsSI("H","P",K38,"Q",1,$P$5)/1000 -> 400.3134494 | L40: =[1]!PropsSI("H","P",L38,"Q",1,$P$5)/1000 -> 398.8635772 | M40: =[1]!PropsSI("H","P",M38,"Q",1,$P$5)/1000 -> 397.237141 | N40: kj/kg
A41: Soğutucu akışkan evap + superheat entalpi | B41: =[1]!PropsSI("H","T",273+B37,"P",B38,$P$5)/1000 -> 400.0654534 | C41: =[1]!PropsSI("H","T",273+C37,"P",C38,$P$5)/1000 -> 399.396189 | D41: =[1]!PropsSI("H","T",273+D37,"P",D38,$P$5)/1000 -> 399.6136941 | E41: =[1]!PropsSI("H","T",273+E37,"P",E38,$P$5)/1000 -> 400.6394572 | F41: =[1]!PropsSI("H","T",273+F37,"P",F38,$P$5)/1000 -> 402.1968129 | G41: =[1]!PropsSI("H","T",273+G37,"P",G38,$P$5)/1000 -> 403.8718067 | H41: =[1]!PropsSI("H","T",273+H37,"P",H38,$P$5)/1000 -> 410.0884541 | I41: =[1]!PropsSI("H","T",273+I37,"P",I38,$P$5)/1000 -> 410.0884541 | J41: =[1]!PropsSI("H","T",273+J37,"P",J38,$P$5)/1000 -> 405.7849133 | K41: =[1]!PropsSI("H","T",273+K37,"P",K38,$P$5)/1000 -> 404.845355 | L41: =[1]!PropsSI("H","T",273+L37,"P",L38,$P$5)/1000 -> 403.3402948 | M41: =[1]!PropsSI("H","T",273+M37,"P",M38,$P$5)/1000 -> 401.6543732 | N41: kj/kg
A42: Soğutucu akışkan evap çıkış entropisi | B42: =[1]!PropsSI("S","T",B37+273,"P",B38,$P$5) -> 1746.103889 | C42: =[1]!PropsSI("S","T",C37+273,"P",C38,$P$5) -> 1746.773833 | D42: =[1]!PropsSI("S","T",D37+273,"P",D38,$P$5) -> 1746.554281 | E42: =[1]!PropsSI("S","T",E37+273,"P",E38,$P$5) -> 1745.542385 | F42: =[1]!PropsSI("S","T",F37+273,"P",F38,$P$5) -> 1744.077589 | G42: =[1]!PropsSI("S","T",G37+273,"P",G38,$P$5) -> 1742.592956 | H42: =[1]!PropsSI("S","T",H37+273,"P",H38,$P$5) -> 1737.796983 | I42: =[1]!PropsSI("S","T",I37+273,"P",I38,$P$5) -> 1737.796983 | J42: =[1]!PropsSI("S","T",J37+273,"P",J38,$P$5) -> 1741.004149 | K42: =[1]!PropsSI("S","T",K37+273,"P",K38,$P$5) -> 1741.770762 | L42: =[1]!PropsSI("S","T",L37+273,"P",L38,$P$5) -> 1743.054252 | M42: =[1]!PropsSI("S","T",M37+273,"P",M38,$P$5) -> 1744.578269
A43: Soğutucu akışkan kondenser faz değişim sıcaklığı | B43: =IF(B4="Isıtma",B31+B35,B31+B34) -> 31 | C43: 30.75022188 | D43: 29.78813892 | E43: 28.55347522 | F43: 27.03198605 | G43: 26.10330027 | H43: =IF(H4="Isıtma",H31+H35,H31+H34) -> 20.73819724 | I43: 21.90384061 | J43: 26.15791675 | K43: 27.23596359 | L43: 29.29523087 | M43: 30.36971311 | N43: C
A44: Soğutucu akışkan kondenser faz değişim basıncı | B44: =[1]!PropsSI("P","T",B43+273,"Q",1,$P$5) -> 789182.0506 | C44: =[1]!PropsSI("P","T",C43+273,"Q",1,$P$5) -> 783566.8366 | D44: =[1]!PropsSI("P","T",D43+273,"Q",1,$P$5) -> 762218.9072 | E44: =[1]!PropsSI("P","T",E43+273,"Q",1,$P$5) -> 735467.6216 | F44: =[1]!PropsSI("P","T",F43+273,"Q",1,$P$5) -> 703481.6264 | G44: =[1]!PropsSI("P","T",G43+273,"Q",1,$P$5) -> 684480.4737 | H44: =[1]!PropsSI("P","T",H43+273,"Q",1,$P$5) -> 582174.7366 | I44: =[1]!PropsSI("P","T",I43+273,"Q",1,$P$5) -> 603346.8244 | J44: =[1]!PropsSI("P","T",J43+273,"Q",1,$P$5) -> 685587.106 | K44: =[1]!PropsSI("P","T",K43+273,"Q",1,$P$5) -> 707707.7714 | L44: =[1]!PropsSI("P","T",L43+273,"Q",1,$P$5) -> 751452.7829 | M44: =[1]!PropsSI("P","T",M43+273,"Q",1,$P$5) -> 775070.5427 | N44: Pa
A45: Soğutucu akışkan kondenser sıvı entalpisi | B45: =[1]!PropsSI("H","P",B44,"Q",0,$P$5)/1000 -> 242.9528505 | C45: =[1]!PropsSI("H","P",C44,"Q",0,$P$5)/1000 -> 242.590947 | D45: =[1]!PropsSI("H","P",D44,"Q",0,$P$5)/1000 -> 241.1995087 | E45: =[1]!PropsSI("H","P",E44,"Q",0,$P$5)/1000 -> 239.4196278 | F45: =[1]!PropsSI("H","P",F44,"Q",0,$P$5)/1000 -> 237.235009 | G45: =[1]!PropsSI("H","P",G44,"Q",0,$P$5)/1000 -> 235.9062072 | H45: =[1]!PropsSI("H","P",H44,"Q",0,$P$5)/1000 -> 228.2955366 | I45: =[1]!PropsSI("H","P",I44,"Q",0,$P$5)/1000 -> 229.9397719 | J45: =[1]!PropsSI("H","P",J44,"Q",0,$P$5)/1000 -> 235.9842586 | K45: =[1]!PropsSI("H","P",K44,"Q",0,$P$5)/1000 -> 237.5273364 | L45: =[1]!PropsSI("H","P",L44,"Q",0,$P$5)/1000 -> 240.4881636 | M45: =[1]!PropsSI("H","P",M44,"Q",0,$P$5)/1000 -> 242.0401488 | N45: kj/kg
A46: Soğutucu akışkan kondenser gaz entalpisi | B46: =[1]!PropsSI("H","P",B44,"Q",1,$P$5)/1000 -> 415.2299077 | C46: =[1]!PropsSI("H","P",C44,"Q",1,$P$5)/1000 -> 415.109363 | D46: =[1]!PropsSI("H","P",D44,"Q",1,$P$5)/1000 -> 414.6423669 | E46: =[1]!PropsSI("H","P",E44,"Q",1,$P$5)/1000 -> 414.0369334 | F46: =[1]!PropsSI("H","P",F44,"Q",1,$P$5)/1000 -> 413.2816685 | G46: =[1]!PropsSI("H","P",G44,"Q",1,$P$5)/1000 -> 412.8158371 | H46: =[1]!PropsSI("H","P",H44,"Q",1,$P$5)/1000 -> 410.0573514 | I46: =[1]!PropsSI("H","P",I44,"Q",1,$P$5)/1000 -> 410.6660356 | J46: =[1]!PropsSI("H","P",J44,"Q",1,$P$5)/1000 -> 412.8433323 | K46: =[1]!PropsSI("H","P",K44,"Q",1,$P$5)/1000 -> 413.3834988 | L46: =[1]!PropsSI("H","P",L44,"Q",1,$P$5)/1000 -> 414.4014788 | M46: =[1]!PropsSI("H","P",M44,"Q",1,$P$5)/1000 -> 414.9251711 | N46: kj/kg
A47: Subcooling sonrası sıcaklık | B47: =B43-B32 -> 26 | C47: 25.75022188 | D47: 24.78813892 | E47: 23.55347522 | F47: 22.03198605 | G47: 21.10330027 | H47: 15.73819724 | I47: 16.90384061 | J47: 21.15791675 | K47: 22.23596359 | L47: 24.29523087 | M47: 25.36971311 | N47: C
A48: Subcooling sonrası entalpi | B48: =[1]!PropsSI("H","T",B47+273,"Q",0,$P$5)/1000 -> 235.7586153 | C48: =[1]!PropsSI("H","T",C47+273,"Q",0,$P$5)/1000 -> 235.401917 | D48: =[1]!PropsSI("H","T",D47+273,"Q",0,$P$5)/1000 -> 234.0303143 | E48: =[1]!PropsSI("H","T",E47+273,"Q",0,$P$5)/1000 -> 232.2754051 | F48: =[1]!PropsSI("H","T",F47+273,"Q",0,$P$5)/1000 -> 230.1208391 | G48: =[1]!PropsSI("H","T",G47+273,"Q",0,$P$5)/1000 -> 228.8100047 | H48: =[1]!PropsSI("H","T",H47+273,"Q",0,$P$5)/1000 -> 221.297962 | I48: =[1]!PropsSI("H","T",I47+273,"Q",0,$P$5)/1000 -> 222.9214822 | J48: =[1]!PropsSI("H","T",J47+273,"Q",0,$P$5)/1000 -> 228.8870071 | K48: =[1]!PropsSI("H","T",K47+273,"Q",0,$P$5)/1000 -> 230.4091824 | L48: =[1]!PropsSI("H","T",L47+273,"Q",0,$P$5)/1000 -> 233.3290028 | M48: =[1]!PropsSI("H","T",M47+273,"Q",0,$P$5)/1000 -> 234.8590041 | N48: kj/kg
A49: Expansion sonrası flaşh buhar yüzdesi | B49: =(B48-B39)/(B40-B39) -> 0.2093303578 | C49: =(C48-C39)/(C40-C39) -> 0.2138682133 | D49: 0.2050665765 | E49: 0.1865908454 | F49: 0.1605109369 | G49: 0.1367722807 | H49: 0.02735345463 | I49: 0.03593333396 | J49: 0.1167833066 | K49: 0.1346515667 | L49: 0.1650799216 | M49: 0.1895740799 | N49: %
A50: Expansion sonrası flaşh sıvı yüzdesi | B50: =1-B49 -> 0.7906696422 | C50: =1-C49 -> 0.7861317867 | D50: 0.7949334235 | E50: 0.8134091546 | F50: 0.8394890631 | G50: 0.8632277193 | H50: 0.9726465454 | I50: 0.964066666 | J50: 0.8832166934 | K50: 0.8653484333 | L50: 0.8349200784 | M50: 0.8104259201 | N50: %
A51: Evaporatör soğutma kabiliyeti(sadece buharlaşma) | B51: =B50*(B40-B39) -> 159.9435943 | C51: =C50*(C40-C39) -> 159.6532052 | D51: 161.235141 | E51: 163.9815264 | F51: 167.6398589 | G51: 170.5658285 | H51: 184.0481916 | I51: 182.4246714 | J51: 172.3304723 | K51: 169.9042669 | L51: 165.5345744 | M51: 162.3781369 | N51: kj/kg
A52: Evaporatör soğutma kabiliyeti superheat dahil | B52: =B41-B48 -> 164.3068381 | C52: =C41-C48 -> 163.994272 | D52: 165.5833797 | E52: 168.3640521 | F52: 172.0759738 | G52: 175.061802 | H52: 188.7904921 | I52: 187.1669719 | J52: 176.8979061 | K52: 174.4361726 | L52: 170.011292 | M52: 166.7953691 | N52: kj/kg
A53: Kompresör çıkış sıcaklığı | B53: =[1]!PropsSI("T","S",B42,"P",B44,$P$5) -> 313.3882116 | C53: =[1]!PropsSI("T","S",C42,"P",C44,$P$5) -> 313.3231267 | D53: =[1]!PropsSI("T","S",D42,"P",D44,$P$5) -> 312.2201038 | E53: =[1]!PropsSI("T","S",E42,"P",E44,$P$5) -> 310.5794105 | F53: =[1]!PropsSI("T","S",F42,"P",F44,$P$5) -> 308.4866171 | G53: =[1]!PropsSI("T","S",G42,"P",G44,$P$5) -> 307.026723 | H53: =[1]!PropsSI("T","S",H42,"P",H44,$P$5) -> 299.7046082 | I53: =[1]!PropsSI("T","S",I42,"P",I44,$P$5) -> 300.9845267 | J53: =[1]!PropsSI("T","S",J42,"P",J44,$P$5) -> 306.6028895 | K53: =[1]!PropsSI("T","S",K42,"P",K44,$P$5) -> 308.0059846 | L53: =[1]!PropsSI("T","S",L42,"P",L44,$P$5) -> 310.6243544 | M53: =[1]!PropsSI("T","S",M42,"P",M44,$P$5) -> 312.2461238 | N53: K
A54: Kompresör çıkış entalpisi | B54: =[1]!PropsSI("H","T",B53,"P",B44,$P$5)/1000 -> 425.0762219 | C54: =[1]!PropsSI("H","T",C53,"P",C44,$P$5)/1000 -> 425.1309718 | D54: =[1]!PropsSI("H","T",D53,"P",D44,$P$5)/1000 -> 424.461877 | E54: =[1]!PropsSI("H","T",E53,"P",E44,$P$5)/1000 -> 423.3712817 | F54: =[1]!PropsSI("H","T",F53,"P",F44,$P$5)/1000 -> 421.9553128 | G54: =[1]!PropsSI("H","T",G53,"P",G44,$P$5)/1000 -> 420.9074833 | H54: =[1]!PropsSI("H","T",H53,"P",H44,$P$5)/1000 -> 415.9841595 | I54: =[1]!PropsSI("H","T",I53,"P",I44,$P$5)/1000 -> 416.7452655 | J54: =[1]!PropsSI("H","T",J53,"P",J44,$P$5)/1000 -> 420.4547781 | K54: =[1]!PropsSI("H","T",K53,"P",K44,$P$5)/1000 -> 421.3734472 | L54: =[1]!PropsSI("H","T",L53,"P",L44,$P$5)/1000 -> 423.0637372 | M54: =[1]!PropsSI("H","T",M53,"P",M44,$P$5)/1000 -> 424.2076369 | N54: kj/kg
A55: Basınçlandırma için gereken entalpi %100 verim | B55: =B54-B41 -> 25.01076852 | C55: 25.73478277 | D55: 24.8481829 | E55: 22.73182458 | F55: 19.7584999 | G55: 17.03567663 | H55: 5.895705342 | I55: 6.656811408 | J55: 14.66986489 | K55: 16.52809218 | L55: 19.7234424 | M55: 22.55326366 | N55: kj/kg
A56: Basınçlandırma için gereken entalpi gerçek verim | B56: =B55/$P$4 -> 38.47810541 | C56: 39.59197349 | D56: 38.22797369 | E56: 34.97203781 | F56: 30.39769215 | G56: 26.20873327 | H56: 9.07031591 | I56: 10.24124832 | J56: 22.56902291 | K56: 25.42783413 | L56: 30.34375754 | M56: 34.69732871 | N56: kj/kg
A57: Basınçlandırma için gereken entalpi gerçek verim Sistem | B57: =B56/(1-Detaylı!$C$24) -> 42.75345046 | C57: =C56/(1-Detaylı!$C$24) -> 43.99108166 | D57: =D56/(1-Detaylı!$C$24) -> 42.47552633 | E57: =E56/(1-Detaylı!$C$24) -> 38.85781979 | F57: =F56/(1-Detaylı!$C$24) -> 33.77521351 | G57: =G56/(1-Detaylı!$C$24) -> 29.12081474 | H57: =H56/(1-Detaylı!$C$24) -> 10.07812879 | I57: =I56/(1-Detaylı!$C$24) -> 11.3791648 | J57: =J56/(1-Detaylı!$C$24) -> 25.07669212 | K57: =K56/(1-Detaylı!$C$24) -> 28.25314903 | L57: =L56/(1-Detaylı!$C$24) -> 33.71528616 | M57: =M56/(1-Detaylı!$C$24) -> 38.55258746
A58: Isı Pompası soğutma COP'si | B58: =IF(ABS(B52/B57)>Detaylı!$C$93,Detaylı!$C$93,B52/B57) -> 3.843124621 | C58: =IF(ABS(C52/C57)>Detaylı!$C$93,Detaylı!$C$93,C52/C57) -> 3.727898152 | D58: =IF(ABS(D52/D57)>Detaylı!$C$93,Detaylı!$C$93,D52/D57) -> 3.898324378 | E58: =IF(ABS(E52/E57)>Detaylı!$C$93,Detaylı!$C$93,E52/E57) -> 4.332822918 | F58: =IF(ABS(F52/F57)>Detaylı!$C$93,Detaylı!$C$93,F52/F57) -> 5.094741261 | G58: =IF(ABS(G52/G57)>Detaylı!$C$93,Detaylı!$C$93,G52/G57) -> 6.01156951 | H58: =IF(ABS(H52/H57)>Detaylı!$C$93,Detaylı!$C$93,H52/H57) -> 13 | I58: =IF(ABS(I52/I57)>Detaylı!$C$93,Detaylı!$C$93,I52/I57) -> 13 | J58: =IF(ABS(J52/J57)>Detaylı!$C$93,Detaylı!$C$93,J52/J57) -> 7.054275949 | K58: =IF(ABS(K52/K57)>Detaylı!$C$93,Detaylı!$C$93,K52/K57) -> 6.174043551 | L58: =IF(ABS(L52/L57)>Detaylı!$C$93,Detaylı!$C$93,L52/L57) -> 5.042558181 | M58: =IF(ABS(M52/M57)>Detaylı!$C$93,Detaylı!$C$93,M52/M57) -> 4.326437733 | N58: kW/kW
A59: Isı Pompası ısıtma COP'si | B59: =B58+1 -> 4.843124621 | C59: =C58+1 -> 4.727898152 | D59: 4.898324378 | E59: 5.332822918 | F59: 6.094741261 | G59: 7.01156951 | H59: 14 | I59: 14 | J59: 8.054275949 | K59: 7.174043551 | L59: 6.042558181 | M59: 5.326437733 | N59: kW/kW
A60: Soğutma için gereken güç | B60: =IF(B4="Isıtma",B62-B61,Detaylı!F28) -> 79.35217286 | C60: =IF(C4="Isıtma",C62-C61,Detaylı!G28) -> 75.56649496 | D60: =IF(D4="Isıtma",D62-D61,Detaylı!H28) -> 63.51055739 | E60: =IF(E4="Isıtma",E62-E61,Detaylı!I28) -> 48.11891412 | F60: =IF(F4="Isıtma",F62-F61,Detaylı!J28) -> 28.30976936 | G60: =IF(G4="Isıtma",G62-G61,Detaylı!K28) -> 15.76576694 | H60: =IF(H4="Isıtma",H62-H61,Detaylı!L28) -> 0 | I60: =IF(I4="Isıtma",I62-I61,Detaylı!M28) -> 0 | J60: =IF(J4="Isıtma",J62-J61,Detaylı!N28) -> 16.90254212 | K60: =IF(K4="Isıtma",K62-K61,Detaylı!O28) -> 32.07149142 | L60: =IF(L4="Isıtma",L62-L61,Detaylı!P28) -> 59.74001667 | M60: =IF(M4="Isıtma",M62-M61,Detaylı!Q28) -> 72.69314119 | N60: kW
A61: Kompresör elektrik tüketimi | B61: =IF(B4="Isıtma",B62/B59,B60/B58) -> 20.64782714 | C61: 20.27053634 | D61: 16.29175801 | E61: 11.10567291 | F61: 5.556664786 | G61: 2.622570847 | H61: 0 | I61: 0 | J61: 2.396070446 | K61: 5.194568383 | L61: 11.84716458 | M61: 16.80207729 | N61: kW
A62: Isıtma gücü | B62: =IF(B4="Isıtma",Detaylı!F28,Detaylı!F28/B58*B59) -> 100 | C62: =IF(C4="Isıtma",Detaylı!G28,Detaylı!G28/C58*C59) -> 95.8370313 | D62: =IF(D4="Isıtma",Detaylı!H28,Detaylı!H28/D58*D59) -> 79.8023154 | E62: =IF(E4="Isıtma",Detaylı!I28,Detaylı!I28/E58*E59) -> 59.22458703 | F62: =IF(F4="Isıtma",Detaylı!J28,Detaylı!J28/F58*F59) -> 33.86643414 | G62: =IF(G4="Isıtma",Detaylı!K28,Detaylı!K28/G58*G59) -> 18.38833779 | H62: =IF(H4="Isıtma",Detaylı!L28,Detaylı!L28/H58*H59) -> 0 | I62: =IF(I4="Isıtma",Detaylı!M28,Detaylı!M28/I58*I59) -> 0 | J62: =IF(J4="Isıtma",Detaylı!N28,Detaylı!N28/J58*J59) -> 19.29861256 | K62: =IF(K4="Isıtma",Detaylı!O28,Detaylı!O28/K58*K59) -> 37.2660598 | L62: =IF(L4="Isıtma",Detaylı!P28,Detaylı!P28/L58*L59) -> 71.58718125 | M62: =IF(M4="Isıtma",Detaylı!Q28,Detaylı!Q28/M58*M59) -> 89.49521848 | N62: kW

Sheet Sudan Sıcak Su (hidden)
A1: Sütun1 | B1: Ocak | C1: Şubat | D1: Mart | E1: Nisan | F1: Mayıs | G1: Haziran | H1: Temmuz | I1: Ağustos | J1: Eylül | K1: Ekim | L1: Kasım | M1: Aralık
A2: Isı kaynağı ortalama sıcaklık | B2: 35 | C2: =Detaylı!G57 -> 8 | D2: =Detaylı!H57 -> 10 | E2: =Detaylı!I57 -> 9 | F2: =Detaylı!J57 -> 12 | G2: =Detaylı!K57 -> 17 | H2: =Detaylı!L57 -> 19 | I2: =Detaylı!M57 -> 22 | J2: =Detaylı!N57 -> 21 | K2: =Detaylı!O57 -> 18 | L2: =Detaylı!P57 -> 13 | M2: =Detaylı!Q57 -> 10
A3: Isı aktırımı ortalama sıcaklık | B3: =Detaylı!F54 -> 52 | C3: =Detaylı!G54 -> 52 | D3: =Detaylı!H54 -> 52 | E3: =Detaylı!I54 -> 52 | F3: =Detaylı!J54 -> 52 | G3: =Detaylı!K54 -> 52 | H3: =Detaylı!L54 -> 52 | I3: =Detaylı!M54 -> 52 | J3: =Detaylı!N54 -> 52 | K3: =Detaylı!O54 -> 52 | L3: =Detaylı!P54 -> 52 | M3: =Detaylı!Q54 -> 52 | O3: Soğutma Kapasitesi | P3: =Detaylı!C10 -> 100
A4: Isıtma / Soğutma | B4: =IF(B2<B3,"Isıtma","Soğutma") -> Isıtma | C4: Isıtma | D4: Isıtma | E4: Isıtma | F4: Isıtma | G4: Isıtma | H4: Isıtma | I4: Isıtma | J4: Isıtma | K4: Isıtma | L4: Isıtma | M4: Isıtma | O4: Kompresör Verimi | P4: =VLOOKUP(Detaylı!H5,Komp_liste,2,) -> 0.65
A5: Kapasite Kullanım % | O5: Gaz | P5: =Detaylı!C4 -> R134a
A6: Isıtma Kapasitesi | B6: =B60 -> 35 | C6: 35 | D6: 35 | E6: 35 | F6: 35 | G6: 35 | H6: 35 | I6: 35 | J6: 35 | K6: 35 | L6: 35 | M6: 35
A7: Soğutma Kapasitesi | B7: =B6-B10 -> 24.66658826 | C7: =C6-C10 -> 24.66658826 | D7: =D6-D10 -> 25.05802539 | E7: 24.8624115 | F7: 25.448573 | G7: 26.42038229 | H7: 26.80702375 | I7: 27.3844588 | J7: 27.19233275 | K7: 26.61386375 | L7: 25.64348104 | M7: 25.05802539
A8: Kapasite Kullanım kW | B8: =IF(B4="Isıtma",B6,B7) -> 35 | C8: =IF(C4="Isıtma",C6,C7) -> 35 | D8: 35 | E8: 35 | F8: 35 | G8: 35 | H8: 35 | I8: 35 | J8: 35 | K8: 35 | L8: 35 | M8: 35
A9: COP | B9: =(B8/B10) -> 3.387071074 | C9: =(C8/C10) -> 3.387071074 | D9: =(D8/D10) -> 3.520427417 | E9: 3.452497602 | F9: 3.664373921 | G9: 4.079435841 | H9: 4.271951844 | I9: 4.595865096 | J9: 4.482773005 | K9: 4.173554894 | L9: 3.740707431 | M9: 3.520427417
A10: Güç Gereksinimi (kW) | B10: =B59 -> 10.33341174 | C10: 10.33341174 | D10: 9.941974611 | E10: 10.1375885 | F10: 9.551426997 | G10: 8.579617713 | H10: 8.192976251 | I10: 7.615541202 | J10: 7.807667254 | K10: 8.386136252 | L10: 9.356518961 | M10: 9.941974611
A11: Çalışma Saati Günlük | B11: =Detaylı!$C$12 -> 10 | C11: =Detaylı!$C$12 -> 10 | D11: =Detaylı!$C$12 -> 10 | E11: =Detaylı!$C$12 -> 10 | F11: =Detaylı!$C$12 -> 10 | G11: =Detaylı!$C$12 -> 10 | H11: =Detaylı!$C$12 -> 10 | I11: =Detaylı!$C$12 -> 10 | J11: =Detaylı!$C$12 -> 10 | K11: =Detaylı!$C$12 -> 10 | L11: =Detaylı!$C$12 -> 10 | M11: =Detaylı!$C$12 -> 10
A12: Ayda Kaç Gün | B12: =Detaylı!$C$11 -> 22 | C12: =Detaylı!$C$11 -> 22 | D12: =Detaylı!$C$11 -> 22 | E12: =Detaylı!$C$11 -> 22 | F12: =Detaylı!$C$11 -> 22 | G12: =Detaylı!$C$11 -> 22 | H12: =Detaylı!$C$11 -> 22 | I12: =Detaylı!$C$11 -> 22 | J12: =Detaylı!$C$11 -> 22 | K12: =Detaylı!$C$11 -> 22 | L12: =Detaylı!$C$11 -> 22 | M12: =Detaylı!$C$11 -> 22
A13: Ayda Kaç Saat | B13: =B12*B11 -> 220 | C13: =C12*C11 -> 220 | D13: 220 | E13: 220 | F13: 220 | G13: 220 | H13: 220 | I13: 220 | J13: 220 | K13: 220 | L13: 220 | M13: 220
A14: Aylık Toplam Elektrik Tüketimi | B14: =B13*B10 -> 2273.350582 | C14: =C13*C10 -> 2273.350582 | D14: 2187.234414 | E14: 2230.269471 | F14: 2101.313939 | G14: 1887.515897 | H14: 1802.454775 | I14: 1675.419064 | J14: 1717.686796 | K14: 1844.949976 | L14: 2058.434171 | M14: 2187.234414
A15: Isıtma için Harcanan Enerji | B15: =IF(B4="Isıtma",B14,0) -> 2273.350582 | C15: =IF(C4="Isıtma",C14,0) -> 2273.350582 | D15: 2187.234414 | E15: 2230.269471 | F15: 2101.313939 | G15: 1887.515897 | H15: 1802.454775 | I15: 1675.419064 | J15: 1717.686796 | K15: 1844.949976 | L15: 2058.434171 | M15: 2187.234414
A16: Toplam Isıtma İçin Harcanan Enerji (kWh) | B16: =SUM(B15:M15) -> 24239.21408
A17: Soğutma için Harcanan Enerji | B17: =IF(B4="Soğutma",B14,0) -> 0 | C17: =IF(C4="Soğutma",C14,0) -> 0 | D17: 0 | E17: 0 | F17: 0 | G17: 0 | H17: 0 | I17: 0 | J17: 0 | K17: 0 | L17: 0 | M17: 0
A18: Toplam Soğutma için Harcanan Enerji (kWh) | B18: =SUM(B17:M17) -> 0
A19: Yıllık Toplam (kWh) | B19: =SUM(B14:M14) -> 24239.21408
A20: Aylık Isıtma Kapasitesi | B20: =B6*B13 -> 7700 | C20: 7700 | D20: 7700 | E20: 7700 | F20: 7700 | G20: 7700 | H20: 7700 | I20: 7700 | J20: 7700 | K20: 7700 | L20: 7700 | M20: 7700
A21: Toplam Isıtma Kapasitesi | B21: =SUM(B20:M20) -> 92400
A24: Sütun1 | B24: OCAK | C24: ŞUBAT | D24: MART | E24: NİSAN | F24: MAYIS | G24: HAZİRAN | H24: TEMMUZ | I24: AĞUSTOS | J24: EYLÜL | K24: EKİM | L24: KASIM | M24: ARALIK | N24: Sütun2
A25: Açıklama | B25: Değer | C25: Değer | D25: Değer | E25: Değer | F25: Değer | G25: Değer | H25: Değer | I25: Değer | J25: Değer | K25: Değer | L25: Değer | M25: Değer | N25: Birim
A26: Kapasite | B26: =B58 -> 24.66658826 | C26: =C58 -> 24.66658826 | D26: 25.05802539 | E26: 24.8624115 | F26: 25.448573 | G26: 26.42038229 | H26: 26.80702375 | I26: 27.3844588 | J26: 27.19233275 | K26: 26.61386375 | L26: 25.64348104 | M26: 25.05802539 | N26: kW
A27: Isı Kaynağı Su Debisi | B27: =B26*3600/4.186/(B28-B29)/1000 -> 4.242700322 | C27: 4.242700322 | D27: 4.310028256 | E27: 4.276382293 | F27: 4.377203192 | G27: 4.544356246 | H27: 4.610859317 | I27: 4.710179249 | J27: 4.677133201 | K27: 4.577635427 | L27: 4.410727747 | M27: 4.310028256 | N27: m3/h
A28: Isı Kaynağı Isı Pompası Giriş Sıcaklığı | B28: =Detaylı!F57 -> 8 | C28: =Detaylı!G57 -> 8 | D28: =Detaylı!H57 -> 10 | E28: =Detaylı!I57 -> 9 | F28: =Detaylı!J57 -> 12 | G28: =Detaylı!K57 -> 17 | H28: =Detaylı!L57 -> 19 | I28: =Detaylı!M57 -> 22 | J28: =Detaylı!N57 -> 21 | K28: =Detaylı!O57 -> 18 | L28: =Detaylı!P57 -> 13 | M28: =Detaylı!Q57 -> 10 | N28: C
A29: Isı Kaynağı Isı Pompası Çıkış Sıcaklığı | B29: =B28-Detaylı!$M$4 -> 3 | C29: =C28-Detaylı!$M$4 -> 3 | D29: =D28-Detaylı!$M$4 -> 5 | E29: =E28-Detaylı!$M$4 -> 4 | F29: =F28-Detaylı!$M$4 -> 7 | G29: =G28-Detaylı!$M$4 -> 12 | H29: =H28-Detaylı!$M$4 -> 14 | I29: =I28-Detaylı!$M$4 -> 17 | J29: =J28-Detaylı!$M$4 -> 16 | K29: =K28-Detaylı!$M$4 -> 13 | L29: =L28-Detaylı!$M$4 -> 8 | M29: =M28-Detaylı!$M$4 -> 5 | N29: C
A30: Isıtılacak Su Giriş Sıcaklığı | B30: =B31-Detaylı!$M$3 -> 49 | C30: =C31-Detaylı!$M$3 -> 49 | D30: =D31-Detaylı!$M$3 -> 49 | E30: =E31-Detaylı!$M$3 -> 49 | F30: =F31-Detaylı!$M$3 -> 49 | G30: =G31-Detaylı!$M$3 -> 49 | H30: =H31-Detaylı!$M$3 -> 49 | I30: =I31-Detaylı!$M$3 -> 49 | J30: =J31-Detaylı!$M$3 -> 49 | K30: =K31-Detaylı!$M$3 -> 49 | L30: =L31-Detaylı!$M$3 -> 49 | M30: =M31-Detaylı!$M$3 -> 49 | N30: C
A31: Isıtılacak Su Çıkış Sıcaklığı | B31: =Detaylı!F54 -> 52 | C31: =Detaylı!G54 -> 52 | D31: =Detaylı!H54 -> 52 | E31: =Detaylı!I54 -> 52 | F31: =Detaylı!J54 -> 52 | G31: =Detaylı!K54 -> 52 | H31: =Detaylı!L54 -> 52 | I31: =Detaylı!M54 -> 52 | J31: =Detaylı!N54 -> 52 | K31: =Detaylı!O54 -> 52 | L31: =Detaylı!P54 -> 52 | M31: =Detaylı!Q54 -> 52 | N31: C
A32: Subcooler kaç derece? | B32: 5 | C32: 5 | D32: 5 | E32: 5 | F32: 5 | G32: 5 | H32: 5 | I32: 5 | J32: 5 | K32: 5 | L32: 5 | M32: 5 | N32: C
A33: Superheat kaç derece | B33: 5 | C33: 5 | D33: 5 | E33: 5 | F33: 5 | G33: 5 | H33: 5 | I33: 5 | J33: 5 | K33: 5 | L33: 5 | M33: 5 | N33: C
A34: Evaporatör Yaklaşım Sıcaklığı | B34: =Detaylı!$H$4 -> 4 | C34: =Detaylı!$H$4 -> 4 | D34: =Detaylı!$H$4 -> 4 | E34: =Detaylı!$H$4 -> 4 | F34: =Detaylı!$H$4 -> 4 | G34: =Detaylı!$H$4 -> 4 | H34: =Detaylı!$H$4 -> 4 | I34: =Detaylı!$H$4 -> 4 | J34: =Detaylı!$H$4 -> 4 | K34: =Detaylı!$H$4 -> 4 | L34: =Detaylı!$H$4 -> 4 | M34: =Detaylı!$H$4 -> 4 | N34: Önerilen değer
A35: Kondenser Yaklaşım Sıcaklığı | B35: =Detaylı!$H$3 -> 3 | C35: =Detaylı!$H$3 -> 3 | D35: =Detaylı!$H$3 -> 3 | E35: =Detaylı!$H$3 -> 3 | F35: =Detaylı!$H$3 -> 3 | G35: =Detaylı!$H$3 -> 3 | H35: =Detaylı!$H$3 -> 3 | I35: =Detaylı!$H$3 -> 3 | J35: =Detaylı!$H$3 -> 3 | K35: =Detaylı!$H$3 -> 3 | L35: =Detaylı!$H$3 -> 3 | M35: =Detaylı!$H$3 -> 3 | N35: Önerilen değer
A36: Soğutucu akışkan evap faz değişim sıcaklığı | B36: =B29-B34 -> -1 | C36: -1 | D36: 1 | E36: 0 | F36: 3 | G36: 8 | H36: 10 | I36: 13 | J36: 12 | K36: 9 | L36: 4 | M36: 1 | N36: C
A37: Soğutucu Akışkan evap çıkış sıcaklığı | B37: =B36+B33 -> 4 | C37: 4 | D37: 6 | E37: 5 | F37: 8 | G37: 13 | H37: 15 | I37: 18 | J37: 17 | K37: 14 | L37: 9 | M37: 6 | N37: C
A38: Soğutucu akışkan evap faz değişim basıncı | B38: =[1]!PropsSI("P","T",B36+273,"Q",1,$P$5) -> 280797.2543 | C38: =[1]!PropsSI("P","T",C36+273,"Q",1,$P$5) -> 280797.2543 | D38: =[1]!PropsSI("P","T",D36+273,"Q",1,$P$5) -> 301928.0092 | E38: =[1]!PropsSI("P","T",E36+273,"Q",1,$P$5) -> 291215.1923 | F38: =[1]!PropsSI("P","T",F36+273,"Q",1,$P$5) -> 324260.332 | G38: =[1]!PropsSI("P","T",G36+273,"Q",1,$P$5) -> 385641.7417 | H38: =[1]!PropsSI("P","T",H36+273,"Q",1,$P$5) -> 412534.3852 | I38: =[1]!PropsSI("P","T",I36+273,"Q",1,$P$5) -> 455526.2539 | J38: =[1]!PropsSI("P","T",J36+273,"Q",1,$P$5) -> 440834.0214 | K38: =[1]!PropsSI("P","T",K36+273,"Q",1,$P$5) -> 398915.1279 | L38: =[1]!PropsSI("P","T",L36+273,"Q",1,$P$5) -> 335890.9673 | M38: =[1]!PropsSI("P","T",M36+273,"Q",1,$P$5) -> 301928.0092 | N38: kPa
A39: Soğutucu akışkan evap sıvı entalpisi | B39: =[1]!PropsSI("H","P",B38,"Q",0,$P$5)/1000 -> 198.4568162 | C39: =[1]!PropsSI("H","P",C38,"Q",0,$P$5)/1000 -> 198.4568162 | D39: =[1]!PropsSI("H","P",D38,"Q",0,$P$5)/1000 -> 201.1429133 | E39: =[1]!PropsSI("H","P",E38,"Q",0,$P$5)/1000 -> 199.7985014 | F39: =[1]!PropsSI("H","P",F38,"Q",0,$P$5)/1000 -> 203.8400581 | G39: =[1]!PropsSI("H","P",G38,"Q",0,$P$5)/1000 -> 210.6331888 | H39: =[1]!PropsSI("H","P",H38,"Q",0,$P$5)/1000 -> 213.371375 | I39: =[1]!PropsSI("H","P",I38,"Q",0,$P$5)/1000 -> 217.5021425 | J39: =[1]!PropsSI("H","P",J38,"Q",0,$P$5)/1000 -> 216.1220285 | K39: =[1]!PropsSI("H","P",K38,"Q",0,$P$5)/1000 -> 212.0007453 | L39: =[1]!PropsSI("H","P",L38,"Q",0,$P$5)/1000 -> 205.1928634 | M39: =[1]!PropsSI("H","P",M38,"Q",0,$P$5)/1000 -> 201.1429133 | N39: kj/kg
A40: Soğutucu akışkan evap gaz entalpisi | B40: =[1]!PropsSI("H","P",B38,"Q",1,$P$5)/1000 -> 397.9308748 | C40: =[1]!PropsSI("H","P",C38,"Q",1,$P$5)/1000 -> 397.9308748 | D40: =[1]!PropsSI("H","P",D38,"Q",1,$P$5)/1000 -> 399.0986848 | E40: =[1]!PropsSI("H","P",E38,"Q",1,$P$5)/1000 -> 398.5158915 | F40: =[1]!PropsSI("H","P",F38,"Q",1,$P$5)/1000 -> 400.2573792 | G40: =[1]!PropsSI("H","P",G38,"Q",1,$P$5)/1000 -> 403.111221 | H40: =[1]!PropsSI("H","P",H38,"Q",1,$P$5)/1000 -> 404.2343334 | I40: =[1]!PropsSI("H","P",I38,"Q",1,$P$5)/1000 -> 405.8976612 | J40: =[1]!PropsSI("H","P",J38,"Q",1,$P$5)/1000 -> 405.3461536 | K40: =[1]!PropsSI("H","P",K38,"Q",1,$P$5)/1000 -> 403.6741559 | L40: =[1]!PropsSI("H","P",L38,"Q",1,$P$5)/1000 -> 400.833167 | M40: =[1]!PropsSI("H","P",M38,"Q",1,$P$5)/1000 -> 399.0986848 | N40: kj/kg
A41: Soğutucu akışkan evap + superheat entalpi | B41: =[1]!PropsSI("H","T",273+B37,"P",B38,$P$5)/1000 -> 402.3731808 | C41: =[1]!PropsSI("H","T",273+C37,"P",C38,$P$5)/1000 -> 402.3731808 | D41: =[1]!PropsSI("H","T",273+D37,"P",D38,$P$5)/1000 -> 403.5842081 | E41: =[1]!PropsSI("H","T",273+E37,"P",E38,$P$5)/1000 -> 402.9796852 | F41: =[1]!PropsSI("H","T",273+F37,"P",F38,$P$5)/1000 -> 404.7871103 | G41: =[1]!PropsSI("H","T",273+G37,"P",G38,$P$5)/1000 -> 407.7561265 | H41: =[1]!PropsSI("H","T",273+H37,"P",H38,$P$5)/1000 -> 408.9273159 | I41: =[1]!PropsSI("H","T",273+I37,"P",I38,$P$5)/1000 -> 410.6651083 | J41: =[1]!PropsSI("H","T",273+J37,"P",J38,$P$5)/1000 -> 410.0884541 | K41: =[1]!PropsSI("H","T",273+K37,"P",K38,$P$5)/1000 -> 408.3429489 | L41: =[1]!PropsSI("H","T",273+L37,"P",L38,$P$5)/1000 -> 405.3853881 | M41: =[1]!PropsSI("H","T",273+M37,"P",M38,$P$5)/1000 -> 403.5842081 | N41: kj/kg
A42: Soğutucu akışkan evap çıkış entropisi | B42: =[1]!PropsSI("S","T",B37+273,"P",B38,$P$5) -> 1743.916939 | C42: =[1]!PropsSI("S","T",C37+273,"P",C38,$P$5) -> 1743.916939 | D42: =[1]!PropsSI("S","T",D37+273,"P",D38,$P$5) -> 1742.841451 | E42: =[1]!PropsSI("S","T",E37+273,"P",E38,$P$5) -> 1743.372357 | F42: =[1]!PropsSI("S","T",F37+273,"P",F38,$P$5) -> 1741.819142 | G42: =[1]!PropsSI("S","T",G37+273,"P",G38,$P$5) -> 1739.476334 | H42: =[1]!PropsSI("S","T",H37+273,"P",H38,$P$5) -> 1738.616687 | I42: =[1]!PropsSI("S","T",I37+273,"P",I38,$P$5) -> 1737.401219 | J42: =[1]!PropsSI("S","T",J37+273,"P",J38,$P$5) -> 1737.796983 | K42: =[1]!PropsSI("S","T",K37+273,"P",K38,$P$5) -> 1739.041339 | L42: =[1]!PropsSI("S","T",L37+273,"P",L38,$P$5) -> 1741.326984 | M42: =[1]!PropsSI("S","T",M37+273,"P",M38,$P$5) -> 1742.841451
A43: Soğutucu akışkan kondenser faz değişim sıcaklığı | B43: =B31+B35 -> 55 | C43: 55 | D43: 55 | E43: 55 | F43: 55 | G43: 55 | H43: 55 | I43: 55 | J43: 55 | K43: 55 | L43: 55 | M43: 55 | N43: C
A44: Soğutucu akışkan kondenser faz değişim basıncı | B44: =[1]!PropsSI("P","T",B43+273,"Q",1,$P$5) -> 1486068.729 | C44: =[1]!PropsSI("P","T",C43+273,"Q",1,$P$5) -> 1486068.729 | D44: =[1]!PropsSI("P","T",D43+273,"Q",1,$P$5) -> 1486068.729 | E44: =[1]!PropsSI("P","T",E43+273,"Q",1,$P$5) -> 1486068.729 | F44: =[1]!PropsSI("P","T",F43+273,"Q",1,$P$5) -> 1486068.729 | G44: =[1]!PropsSI("P","T",G43+273,"Q",1,$P$5) -> 1486068.729 | H44: =[1]!PropsSI("P","T",H43+273,"Q",1,$P$5) -> 1486068.729 | I44: =[1]!PropsSI("P","T",I43+273,"Q",1,$P$5) -> 1486068.729 | J44: =[1]!PropsSI("P","T",J43+273,"Q",1,$P$5) -> 1486068.729 | K44: =[1]!PropsSI("P","T",K43+273,"Q",1,$P$5) -> 1486068.729 | L44: =[1]!PropsSI("P","T",L43+273,"Q",1,$P$5) -> 1486068.729 | M44: =[1]!PropsSI("P","T",M43+273,"Q",1,$P$5) -> 1486068.729 | N44: Pa
A45: Soğutucu akışkan kondenser sıvı entalpisi | B45: =[1]!PropsSI("H","P",B44,"Q",0,$P$5)/1000 -> 279.23103 | C45: =[1]!PropsSI("H","P",C44,"Q",0,$P$5)/1000 -> 279.23103 | D45: =[1]!PropsSI("H","P",D44,"Q",0,$P$5)/1000 -> 279.23103 | E45: =[1]!PropsSI("H","P",E44,"Q",0,$P$5)/1000 -> 279.23103 | F45: =[1]!PropsSI("H","P",F44,"Q",0,$P$5)/1000 -> 279.23103 | G45: =[1]!PropsSI("H","P",G44,"Q",0,$P$5)/1000 -> 279.23103 | H45: =[1]!PropsSI("H","P",H44,"Q",0,$P$5)/1000 -> 279.23103 | I45: =[1]!PropsSI("H","P",I44,"Q",0,$P$5)/1000 -> 279.23103 | J45: =[1]!PropsSI("H","P",J44,"Q",0,$P$5)/1000 -> 279.23103 | K45: =[1]!PropsSI("H","P",K44,"Q",0,$P$5)/1000 -> 279.23103 | L45: =[1]!PropsSI("H","P",L44,"Q",0,$P$5)/1000 -> 279.23103 | M45: =[1]!PropsSI("H","P",M44,"Q",0,$P$5)/1000 -> 279.23103 | N45: kj/kg
A46: Soğutucu akışkan kondenser gaz entalpisi | B46: =[1]!PropsSI("H","P",B44,"Q",1,$P$5)/1000 -> 425.1047759 | C46: =[1]!PropsSI("H","P",C44,"Q",1,$P$5)/1000 -> 425.1047759 | D46: =[1]!PropsSI("H","P",D44,"Q",1,$P$5)/1000 -> 425.1047759 | E46: =[1]!PropsSI("H","P",E44,"Q",1,$P$5)/1000 -> 425.1047759 | F46: =[1]!PropsSI("H","P",F44,"Q",1,$P$5)/1000 -> 425.1047759 | G46: =[1]!PropsSI("H","P",G44,"Q",1,$P$5)/1000 -> 425.1047759 | H46: =[1]!PropsSI("H","P",H44,"Q",1,$P$5)/1000 -> 425.1047759 | I46: =[1]!PropsSI("H","P",I44,"Q",1,$P$5)/1000 -> 425.1047759 | J46: =[1]!PropsSI("H","P",J44,"Q",1,$P$5)/1000 -> 425.1047759 | K46: =[1]!PropsSI("H","P",K44,"Q",1,$P$5)/1000 -> 425.1047759 | L46: =[1]!PropsSI("H","P",L44,"Q",1,$P$5)/1000 -> 425.1047759 | M46: =[1]!PropsSI("H","P",M44,"Q",1,$P$5)/1000 -> 425.1047759 | N46: kj/kg
A47: Subcooling sonrası sıcaklık | B47: =B43-B32 -> 50 | C47: 50 | D47: 50 | E47: 50 | F47: 50 | G47: 50 | H47: 50 | I47: 50 | J47: 50 | K47: 50 | L47: 50 | M47: 50 | N47: C
A48: Subcooling sonrası entalpi | B48: =[1]!PropsSI("H","T",B47+273,"Q",0,$P$5)/1000 -> 271.3904467 | C48: =[1]!PropsSI("H","T",C47+273,"Q",0,$P$5)/1000 -> 271.3904467 | D48: =[1]!PropsSI("H","T",D47+273,"Q",0,$P$5)/1000 -> 271.3904467 | E48: =[1]!PropsSI("H","T",E47+273,"Q",0,$P$5)/1000 -> 271.3904467 | F48: =[1]!PropsSI("H","T",F47+273,"Q",0,$P$5)/1000 -> 271.3904467 | G48: =[1]!PropsSI("H","T",G47+273,"Q",0,$P$5)/1000 -> 271.3904467 | H48: =[1]!PropsSI("H","T",H47+273,"Q",0,$P$5)/1000 -> 271.3904467 | I48: =[1]!PropsSI("H","T",I47+273,"Q",0,$P$5)/1000 -> 271.3904467 | J48: =[1]!PropsSI("H","T",J47+273,"Q",0,$P$5)/1000 -> 271.3904467 | K48: =[1]!PropsSI("H","T",K47+273,"Q",0,$P$5)/1000 -> 271.3904467 | L48: =[1]!PropsSI("H","T",L47+273,"Q",0,$P$5)/1000 -> 271.3904467 | M48: =[1]!PropsSI("H","T",M47+273,"Q",0,$P$5)/1000 -> 271.3904467 | N48: kj/kg
A49: Expansion sonrası flaşh buhar yüzdesi | B49: =(B48-B39)/(B40-B39) -> 0.3656296513 | C49: =(C48-C39)/(C40-C39) -> 0.3656296513 | D49: 0.3548647904 | E49: 0.3602701568 | F49: 0.3439125848 | G49: 0.3156581415 | H49: 0.3039828798 | I49: 0.2860381424 | J49: 0.2920791321 | K49: 0.3098484095 | L49: 0.3383637323 | M49: 0.3548647904 | N49: %
A50: Expansion sonrası flaşh sıvı yüzdesi | B50: =1-B49 -> 0.6343703487 | C50: =1-C49 -> 0.6343703487 | D50: 0.6451352096 | E50: 0.6397298432 | F50: 0.6560874152 | G50: 0.6843418585 | H50: 0.6960171202 | I50: 0.7139618576 | J50: 0.7079208679 | K50: 0.6901515905 | L50: 0.6616362677 | M50: 0.6451352096 | N50: %
A51: Evaporatör soğutma kabiliyeti(sadece buharlaşma) | B51: =B50*(B40-B39) -> 126.5404281 | C51: =C50*(C40-C39) -> 126.5404281 | D51: 127.7082381 | E51: 127.1254448 | F51: 128.8669325 | G51: 131.7207743 | H51: 132.8438867 | I51: 134.5072145 | J51: 133.9557069 | K51: 132.2837092 | L51: 129.4427203 | M51: 127.7082381 | N51: kj/kg
A52: Evaporatör soğutma kabiliyeti superheat dahil | B52: =B41-B48 -> 130.9827341 | C52: =C41-C48 -> 130.9827341 | D52: 132.1937614 | E52: 131.5892385 | F52: 133.3966636 | G52: 136.3656798 | H52: 137.5368692 | I52: 139.2746616 | J52: 138.6980074 | K52: 136.9525022 | L52: 133.9949414 | M52: 132.1937614 | N52: kj/kg
A53: Kompresör çıkış sıcaklığı | B53: =[1]!PropsSI("T","S",B42,"P",B44,$P$5) -> 338.4046483 | C53: =[1]!PropsSI("T","S",C42,"P",C44,$P$5) -> 338.4046483 | D53: =[1]!PropsSI("T","S",D42,"P",D44,$P$5) -> 338.1004532 | E53: =[1]!PropsSI("T","S",E42,"P",E44,$P$5) -> 338.2505145 | F53: =[1]!PropsSI("T","S",F42,"P",F44,$P$5) -> 337.81206 | G53: =[1]!PropsSI("T","S",G42,"P",G44,$P$5) -> 337.1539849 | H53: =[1]!PropsSI("T","S",H42,"P",H44,$P$5) -> 336.9135171 | I53: =[1]!PropsSI("T","S",I42,"P",I44,$P$5) -> 336.5744433 | J53: =[1]!PropsSI("T","S",J42,"P",J44,$P$5) -> 336.684728 | K53: =[1]!PropsSI("T","S",K42,"P",K44,$P$5) -> 337.0322367 | L53: =[1]!PropsSI("T","S",L42,"P",L44,$P$5) -> 337.6734885 | M53: =[1]!PropsSI("T","S",M42,"P",M44,$P$5) -> 338.1004532 | N53: K
A54: Kompresör çıkış entalpisi | B54: =[1]!PropsSI("H","T",B53,"P",B44,$P$5)/1000 -> 438.0398093 | C54: =[1]!PropsSI("H","T",C53,"P",C44,$P$5)/1000 -> 438.0398093 | D54: =[1]!PropsSI("H","T",D53,"P",D44,$P$5)/1000 -> 437.676023 | E54: =[1]!PropsSI("H","T",E53,"P",E44,$P$5)/1000 -> 437.8555623 | F54: =[1]!PropsSI("H","T",F53,"P",F44,$P$5)/1000 -> 437.3305272 | G54: =[1]!PropsSI("H","T",G53,"P",G44,$P$5)/1000 -> 436.5398701 | H54: =[1]!PropsSI("H","T",H53,"P",H44,$P$5)/1000 -> 436.25014 | I54: =[1]!PropsSI("H","T",I53,"P",I44,$P$5)/1000 -> 435.8408386 | J54: =[1]!PropsSI("H","T",J53,"P",J44,$P$5)/1000 -> 435.9740644 | K54: =[1]!PropsSI("H","T",K53,"P",K44,$P$5)/1000 -> 436.3932362 | L54: =[1]!PropsSI("H","T",L53,"P",L44,$P$5)/1000 -> 437.1643044 | M54: =[1]!PropsSI("H","T",M53,"P",M44,$P$5)/1000 -> 437.676023 | N54: kj/kg
A55: Basınçlandırma için gereken entalpi | B55: =B54-B41 -> 35.66662848 | C55: =C54-C41 -> 35.66662848 | D55: 34.09181488 | E55: 34.87587712 | F55: 32.54341692 | G55: 28.78374366 | H55: 27.32282418 | I55: 25.17573034 | J55: 25.88561031 | K55: 28.05028727 | L55: 31.77891625 | M55: 34.09181488 | N55: kj/kg
A56: Isı Pompası soğutma COP'si | B56: =IF(B52/B55*$P$4>Detaylı!$C$93,Detaylı!$C$93,B52/B55*$P$4) -> 2.387071074 | C56: =IF(C52/C55*$P$4>Detaylı!$C$93,Detaylı!$C$93,C52/C55*$P$4) -> 2.387071074 | D56: =IF(D52/D55*$P$4>Detaylı!$C$93,Detaylı!$C$93,D52/D55*$P$4) -> 2.520427417 | E56: =IF(E52/E55*$P$4>Detaylı!$C$93,Detaylı!$C$93,E52/E55*$P$4) -> 2.452497602 | F56: =IF(F52/F55*$P$4>Detaylı!$C$93,Detaylı!$C$93,F52/F55*$P$4) -> 2.664373921 | G56: =IF(G52/G55*$P$4>Detaylı!$C$93,Detaylı!$C$93,G52/G55*$P$4) -> 3.079435841 | H56: =IF(H52/H55*$P$4>Detaylı!$C$93,Detaylı!$C$93,H52/H55*$P$4) -> 3.271951844 | I56: =IF(I52/I55*$P$4>Detaylı!$C$93,Detaylı!$C$93,I52/I55*$P$4) -> 3.595865096 | J56: =IF(J52/J55*$P$4>Detaylı!$C$93,Detaylı!$C$93,J52/J55*$P$4) -> 3.482773005 | K56: =IF(K52/K55*$P$4>Detaylı!$C$93,Detaylı!$C$93,K52/K55*$P$4) -> 3.173554894 | L56: =IF(L52/L55*$P$4>Detaylı!$C$93,Detaylı!$C$93,L52/L55*$P$4) -> 2.740707431 | M56: =IF(M52/M55*$P$4>Detaylı!$C$93,Detaylı!$C$93,M52/M55*$P$4) -> 2.520427417 | N56: kW/kW
A57: Isı Pompası ısıtma COP'si | B57: =B56+1 -> 3.387071074 | C57: =C56+1 -> 3.387071074 | D57: 3.520427417 | E57: 3.452497602 | F57: 3.664373921 | G57: 4.079435841 | H57: 4.271951844 | I57: 4.595865096 | J57: 4.482773005 | K57: 4.173554894 | L57: 3.740707431 | M57: 3.520427417 | N57: kW/kW
A58: Soğutma için gereken güç | B58: =B60-B59 -> 24.66658826 | C58: =C60-C59 -> 24.66658826 | D58: 25.05802539 | E58: 24.8624115 | F58: 25.448573 | G58: 26.42038229 | H58: 26.80702375 | I58: 27.3844588 | J58: 27.19233275 | K58: 26.61386375 | L58: 25.64348104 | M58: 25.05802539 | N58: kW
A59: Kompresör elektrik tüketimi | B59: =B60/B57 -> 10.33341174 | C59: =C60/C57 -> 10.33341174 | D59: 9.941974611 | E59: 10.1375885 | F59: 9.551426997 | G59: 8.579617713 | H59: 8.192976251 | I59: 7.615541202 | J59: 7.807667254 | K59: 8.386136252 | L59: 9.356518961 | M59: 9.941974611 | N59: kW
A60: Isıtma gücü | B60: =Detaylı!F53 -> 35 | C60: =Detaylı!G53 -> 35 | D60: =Detaylı!H53 -> 35 | E60: =Detaylı!I53 -> 35 | F60: =Detaylı!J53 -> 35 | G60: =Detaylı!K53 -> 35 | H60: =Detaylı!L53 -> 35 | I60: =Detaylı!M53 -> 35 | J60: =Detaylı!N53 -> 35 | K60: =Detaylı!O53 -> 35 | L60: =Detaylı!P53 -> 35 | M60: =Detaylı!Q53 -> 35 | N60: kW

Sheet Havadan Sıcak Su (hidden)
A1: Sütun1 | B1: Ocak | C1: Şubat | D1: Mart | E1: Nisan | F1: Mayıs | G1: Haziran | H1: Temmuz | I1: Ağustos | J1: Eylül | K1: Ekim | L1: Kasım | M1: Aralık
A2: Isı kaynağı ortalama sıcaklık | B2: =Detaylı!F30 -> -12.948826 | C2: =Detaylı!G30 -> -11.378516 | D2: =Detaylı!H30 -> -5.330074 | E2: =Detaylı!I30 -> 2.432034 | F2: =Detaylı!J30 -> 11.997362 | G2: =Detaylı!K30 -> 17.835842 | H2: =Detaylı!L30 -> 21.546194 | I2: =Detaylı!M30 -> 21.4814 | J2: =Detaylı!N30 -> 17.492478 | K2: =Detaylı!O30 -> 10.714992 | L2: =Detaylı!P30 -> -2.23125 | M2: =Detaylı!Q30 -> -8.986326
A3: Isı Kaynağı Nem Miktarı | B3: =B30 -> 0.4 | C3: 0.4 | D3: 0.4 | E3: 0.4 | F3: 0.4 | G3: 0.4 | H3: 0.4 | I3: 0.4 | J3: 0.4 | K3: 0.4 | L3: 0.4 | M3: 0.4 | O3: Soğutma Kapasitesi | P3: =Detaylı!C10 -> 100
A4: Isı aktırımı ortalama sıcaklık | B4: =B38 -> 52 | C4: 52 | D4: 52 | E4: 52 | F4: 52 | G4: 52 | H4: 52 | I4: 52 | J4: 52 | K4: 52 | L4: 52 | M4: 52 | O4: Kompresör Verimi | P4: =VLOOKUP(Detaylı!H5,Komp_liste,2,) -> 0.65
A5: Isı Aktarımı Nem Miktarı | B5: - | C5: - | D5: - | E5: - | F5: - | G5: - | H5: - | I5: - | J5: - | K5: - | L5: - | M5: - | O5: Gaz | P5: =Detaylı!C4 -> R134a
A6: Isıtma / Soğutma | B6: =IF(B2<B4,"Isıtma","Soğutma") -> Isıtma | C6: =IF(C2<C4,"Isıtma","Soğutma") -> Isıtma | D6: Isıtma | E6: Isıtma | F6: Isıtma | G6: Isıtma | H6: Isıtma | I6: Isıtma | J6: Isıtma | K6: Isıtma | L6: Isıtma | M6: Isıtma
A7: Kapasite Kullanım %
A8: Isıtma Kapasitesi | B8: =B70 -> 35 | C8: 35 | D8: 35 | E8: 35 | F8: 35 | G8: 35 | H8: 35 | I8: 35 | J8: 35 | K8: 35 | L8: 35 | M8: 35
A9: Soğutma Kapasitesi | B9: =B8-B12 -> 20.34300008 | C9: =C8-C12 -> 20.65267507 | D9: =D8-D12 -> 21.84720611 | E9: 23.37987475 | F9: 25.2585207 | G9: 26.39496764 | H9: 27.11171435 | I9: 27.09923867 | J9: 26.32840825 | K9: 25.00770535 | L9: 22.45946564 | M9: 21.12488176
A10: Kapasite Kullanım kW | B10: =IF(B6="Isıtma",B8,B9) -> 35 | C10: =IF(C6="Isıtma",C8,C9) -> 35 | D10: 35 | E10: 35 | F10: 35 | G10: 35 | H10: 35 | I10: 35 | J10: 35 | K10: 35 | L10: 35 | M10: 35
A11: COP | B11: =(B10/B12) -> 2.387937518 | C11: =(C10/C12) -> 2.439479149 | D11: =(D10/D12) -> 2.661031586 | E11: 3.012015726 | F11: 3.592883475 | G11: 4.067387378 | H11: 4.436958999 | I11: 4.429952827 | J11: 4.036167868 | K11: 3.502698952 | L11: 2.790949652 | M11: 2.522501026
A12: Güç Gereksinimi (kW) | B12: =B69 -> 14.65699992 | C12: 14.34732493 | D12: 13.15279389 | E12: 11.62012525 | F12: 9.741479299 | G12: 8.605032358 | H12: 7.88828565 | I12: 7.900761332 | J12: 8.671591753 | K12: 9.99229465 | L12: 12.54053436 | M12: 13.87511824
A13: Çalışma Saati Günlük | B13: =Detaylı!$C$12 -> 10 | C13: =Detaylı!$C$12 -> 10 | D13: =Detaylı!$C$12 -> 10 | E13: =Detaylı!$C$12 -> 10 | F13: =Detaylı!$C$12 -> 10 | G13: =Detaylı!$C$12 -> 10 | H13: =Detaylı!$C$12 -> 10 | I13: =Detaylı!$C$12 -> 10 | J13: =Detaylı!$C$12 -> 10 | K13: =Detaylı!$C$12 -> 10 | L13: =Detaylı!$C$12 -> 10 | M13: =Detaylı!$C$12 -> 10
A14: Ayda Kaç Gün | B14: =Detaylı!$C$11 -> 22 | C14: =Detaylı!$C$11 -> 22 | D14: =Detaylı!$C$11 -> 22 | E14: =Detaylı!$C$11 -> 22 | F14: =Detaylı!$C$11 -> 22 | G14: =Detaylı!$C$11 -> 22 | H14: =Detaylı!$C$11 -> 22 | I14: =Detaylı!$C$11 -> 22 | J14: =Detaylı!$C$11 -> 22 | K14: =Detaylı!$C$11 -> 22 | L14: =Detaylı!$C$11 -> 22 | M14: =Detaylı!$C$11 -> 22
A15: Ayda Kaç Saat | B15: =B14*B13 -> 220 | C15: =C14*C13 -> 220 | D15: 220 | E15: 220 | F15: 220 | G15: 220 | H15: 220 | I15: 220 | J15: 220 | K15: 220 | L15: 220 | M15: 220
A16: Aylık Toplam Elektrik Tüketimi | B16: =B15*B12 -> 3224.539981 | C16: =C15*C12 -> 3156.411484 | D16: 2893.614657 | E16: 2556.427556 | F16: 2143.125446 | G16: 1893.107119 | H16: 1735.422843 | I16: 1738.167493 | J16: 1907.750186 | K16: 2198.304823 | L16: 2758.917559 | M16: 3052.526013
A17: Isıtma için Harcanan Enerji | B17: =IF(B6="Isıtma",B16,0) -> 3224.539981 | C17: =IF(C6="Isıtma",C16,0) -> 3156.411484 | D17: 2893.614657 | E17: 2556.427556 | F17: 2143.125446 | G17: 1893.107119 | H17: 1735.422843 | I17: 1738.167493 | J17: 1907.750186 | K17: 2198.304823 | L17: 2758.917559 | M17: 3052.526013
A18: Toplam Isıtma İçin Harcanan Enerji (kWh) | B18: =SUM(B17:M17) -> 29258.31516
A19: Soğutma için Harcanan Enerji | B19: =IF(B6="Soğutma",B16,0) -> 0 | C19: =IF(C6="Soğutma",C16,0) -> 0 | D19: 0 | E19: 0 | F19: 0 | G19: 0 | H19: 0 | I19: 0 | J19: 0 | K19: 0 | L19: 0 | M19: 0
A20: Toplam Soğutma için Harcanan Enerji (kWh) | B20: =SUM(B19:M19) -> 0
A21: Yıllık Toplam (kWh) | B21: =SUM(B16:M16) -> 29258.31516
A22: Aylık Isıtma Kapasitesi | B22: =IF(B6="Isıtma",B8*B15,0) -> 7700 | C22: =IF(C6="Isıtma",C8*C15,0) -> 7700 | D22: 7700 | E22: 7700 | F22: 7700 | G22: 7700 | H22: 7700 | I22: 7700 | J22: 7700 | K22: 7700 | L22: 7700 | M22: 7700
A23: Toplam Isıtma Kapasitesi | B23: =SUM(B22:M22) -> 92400
A25: Sütun1 | B25: Sütun2 | C25: Sütun3 | D25: Sütun4 | E25: Sütun5 | F25: Sütun6 | G25: Sütun7 | H25: Sütun8 | I25: Sütun9 | J25: Sütun10 | K25: Sütun11 | L25: Sütun12 | M25: Sütun13 | N25: Sütun14
B26: Ocak | C26: Şubat | D26: Mart | E26: Nisan | F26: Mayıs | G26: Haziran | H26: Temmuz | I26: Ağustos | J26: Eylül | K26: Ekim | L26: Kasım | M26: Aralık
A27: Açıklama | B27: Değer | C27: Değer | D27: Değer | E27: Değer | F27: Değer | G27: Değer | H27: Değer | I27: Değer | J27: Değer | K27: Değer | L27: Değer | M27: Değer | N27: Birim
A29: Isı Kaynağı Isı Pompası Giriş Sıcaklığı | B29: =B2 -> -12.948826 | C29: =C2 -> -11.378516 | D29: -5.330074 | E29: 2.432034 | F29: 11.997362 | G29: 17.835842 | H29: 21.546194 | I29: 21.4814 | J29: 17.492478 | K29: 10.714992 | L29: -2.23125 | M29: -8.986326 | N29: C
A30: Isı Kaynağı Isı Pompası Giriş Nem | B30: 0.4 | C30: 0.4 | D30: 0.4 | E30: 0.4 | F30: 0.4 | G30: 0.4 | H30: 0.4 | I30: 0.4 | J30: 0.4 | K30: 0.4 | L30: 0.4 | M30: 0.4 | N30: %
A31: Isı Kaynağı Isı Pompası Giriş Dew Point | B31: =[1]!HAPropsSI("D","T",273+B29,"P",101325,"R",B30)-273 -> -22.651567 | C31: =[1]!HAPropsSI("D","T",273+C29,"P",101325,"R",C30)-273 -> -21.19685957 | D31: =[1]!HAPropsSI("D","T",273+D29,"P",101325,"R",D30)-273 -> -15.60025736 | E31: =[1]!HAPropsSI("D","T",273+E29,"P",101325,"R",E30)-273 -> -8.684613303 | F31: =[1]!HAPropsSI("D","T",273+F29,"P",101325,"R",F30)-273 -> -1.005821702 | G31: =[1]!HAPropsSI("D","T",273+G29,"P",101325,"R",G30)-273 -> 4.083151489 | H31: =[1]!HAPropsSI("D","T",273+H29,"P",101325,"R",H30)-273 -> 7.406664347 | I31: =[1]!HAPropsSI("D","T",273+I29,"P",101325,"R",I30)-273 -> 7.348676328 | J31: =[1]!HAPropsSI("D","T",273+J29,"P",101325,"R",J30)-273 -> 3.775288793 | K31: =[1]!HAPropsSI("D","T",273+K29,"P",101325,"R",K30)-273 -> -2.026670375 | L31: =[1]!HAPropsSI("D","T",273+L29,"P",101325,"R",L30)-273 -> -12.73696855 | M31: =[1]!HAPropsSI("D","T",273+M29,"P",101325,"R",M30)-273 -> -18.98212763 | N31: C
A32: Isı Kaynağı Isı Pompası Çıkış Sıcaklığı | B32: =B29-Detaylı!$N$4 -> -15.948826 | C32: =C29-Detaylı!$N$4 -> -14.378516 | D32: =D29-Detaylı!$N$4 -> -8.330074 | E32: =E29-Detaylı!$N$4 -> -0.567966 | F32: =F29-Detaylı!$N$4 -> 8.997362 | G32: =G29-Detaylı!$N$4 -> 14.835842 | H32: =H29-Detaylı!$N$4 -> 18.546194 | I32: =I29-Detaylı!$N$4 -> 18.4814 | J32: =J29-Detaylı!$N$4 -> 14.492478 | K32: =K29-Detaylı!$N$4 -> 7.714992 | L32: =L29-Detaylı!$N$4 -> -5.23125 | M32: =M29-Detaylı!$N$4 -> -11.986326 | N32: C
A33: Isı Kaynağı Isı Pompası Çıkış Nem | B33: =[1]!HAPropsSI("RH","D",273+B31,"T",273+B32,"P",101325) -> 0.5270880829 | C33: =[1]!HAPropsSI("RH","D",273+C31,"T",273+C32,"P",101325) -> 0.5253345529 | D33: =[1]!HAPropsSI("RH","D",273+D31,"T",273+D32,"P",101325) -> 0.5189130396 | E33: =[1]!HAPropsSI("RH","D",273+E31,"T",273+E32,"P",101325) -> 0.500206179 | F33: =[1]!HAPropsSI("RH","D",273+F31,"T",273+F32,"P",101325) -> 0.4887953823 | G33: =[1]!HAPropsSI("RH","D",273+G31,"T",273+G32,"P",101325) -> 0.4844110434 | H33: =[1]!HAPropsSI("RH","D",273+H31,"T",273+H32,"P",101325) -> 0.4817877811 | I33: =[1]!HAPropsSI("RH","D",273+I31,"T",273+I32,"P",101325) -> 0.4818325624 | J33: =[1]!HAPropsSI("RH","D",273+J31,"T",273+J32,"P",101325) -> 0.4846600084 | K33: =[1]!HAPropsSI("RH","D",273+K31,"T",273+K32,"P",101325) -> 0.4898030553 | L33: =[1]!HAPropsSI("RH","D",273+L31,"T",273+L32,"P",101325) -> 0.5158150162 | M33: =[1]!HAPropsSI("RH","D",273+M31,"T",273+M32,"P",101325) -> 0.5227331785 | N33: %
B35: =B68 -> 20.34300008 | C35: =C68 -> 20.65267507 | D35: 21.84720611 | E35: 23.37987475 | F35: 25.2585207 | G35: 26.39496764 | H35: 27.11171435 | I35: 27.09923867 | J35: 26.32840825 | K35: 25.00770535 | L35: 22.45946564 | M35: 21.12488176
B36: =B35*3600*1000 -> 73234800.31 | C36: =C35*3600*1000 -> 74349630.26 | D36: 78649941.98 | E36: 84167549.08 | F36: 90930674.52 | G36: 95021883.51 | H36: 97602171.66 | I36: 97557259.21 | J36: 94782269.69 | K36: =K35*3600*1000 -> 90027739.26 | L36: =L35*3600*1000 -> 80854076.31 | M36: =M35*3600*1000 -> 76049574.33
A37: Isıtılacak Su Giriş Sıcaklığı | B37: =B38-Detaylı!$N$3 -> 47 | C37: =C38-Detaylı!$N$3 -> 47 | D37: =D38-Detaylı!$N$3 -> 47 | E37: =E38-Detaylı!$N$3 -> 47 | F37: =F38-Detaylı!$N$3 -> 47 | G37: =G38-Detaylı!$N$3 -> 47 | H37: =H38-Detaylı!$N$3 -> 47 | I37: =I38-Detaylı!$N$3 -> 47 | J37: =J38-Detaylı!$N$3 -> 47 | K37: =K38-Detaylı!$N$3 -> 47 | L37: =L38-Detaylı!$N$3 -> 47 | M37: =M38-Detaylı!$N$3 -> 47 | N37: C
A38: Isıtılacak Su Çıkış Sıcaklığı | B38: =Detaylı!F54 -> 52 | C38: =Detaylı!G54 -> 52 | D38: =Detaylı!H54 -> 52 | E38: =Detaylı!I54 -> 52 | F38: =Detaylı!J54 -> 52 | G38: =Detaylı!K54 -> 52 | H38: =Detaylı!L54 -> 52 | I38: =Detaylı!M54 -> 52 | J38: =Detaylı!N54 -> 52 | K38: =Detaylı!O54 -> 52 | L38: =Detaylı!P54 -> 52 | M38: =Detaylı!Q54 -> 52 | N38: C
A40: Subcooler kaç derece? | B40: 5 | C40: 5 | D40: 5 | E40: 5 | F40: 5 | G40: 5 | H40: 5 | I40: 5 | J40: 5 | K40: 5 | L40: 5 | M40: 5 | N40: C
A41: Superheat kaç derece | B41: 5 | C41: 5 | D41: 5 | E41: 5 | F41: 5 | G41: 5 | H41: 5 | I41: 5 | J41: 5 | K41: 5 | L41: 5 | M41: 5 | N41: C
A43: Evaporatör Yaklaşım Sıcaklığı | B43: =Detaylı!$I$4 -> 5 | C43: =Detaylı!$I$4 -> 5 | D43: =Detaylı!$I$4 -> 5 | E43: =Detaylı!$I$4 -> 5 | F43: =Detaylı!$I$4 -> 5 | G43: =Detaylı!$I$4 -> 5 | H43: =Detaylı!$I$4 -> 5 | I43: =Detaylı!$I$4 -> 5 | J43: =Detaylı!$I$4 -> 5 | K43: =Detaylı!$I$4 -> 5 | L43: =Detaylı!$I$4 -> 5 | M43: =Detaylı!$I$4 -> 5 | N43: Önerilen değer
A44: Kondenser Yaklaşım Sıcaklığı | B44: =Detaylı!$I$3 -> 5 | C44: =Detaylı!$I$3 -> 5 | D44: =Detaylı!$I$3 -> 5 | E44: =Detaylı!$I$3 -> 5 | F44: =Detaylı!$I$3 -> 5 | G44: =Detaylı!$I$3 -> 5 | H44: =Detaylı!$I$3 -> 5 | I44: =Detaylı!$I$3 -> 5 | J44: =Detaylı!$I$3 -> 5 | K44: =Detaylı!$I$3 -> 5 | L44: =Detaylı!$I$3 -> 5 | M44: =Detaylı!$I$3 -> 5 | N44: Önerilen değer
A46: Soğutucu akışkan evap faz değişim sıcaklığı | B46: =B32-B43 -> -20.948826 | C46: -19.378516 | D46: -13.330074 | E46: -5.567966 | F46: 3.997362 | G46: 9.835842 | H46: 13.546194 | I46: 13.4814 | J46: 9.492478 | K46: 2.714992 | L46: -10.23125 | M46: -16.986326 | N46: C
A47: Soğutucu Akışkan evap çıkış sıcaklığı | B47: =B46+B41 -> -15.948826 | C47: -14.378516 | D47: -8.330074 | E47: -0.567966 | F47: 8.997362 | G47: 14.835842 | H47: 18.546194 | I47: 18.4814 | J47: 14.492478 | K47: 7.714992 | L47: -5.23125 | M47: -11.986326 | N47: C
A48: Soğutucu akışkan evap faz değişim basıncı | B48: =[1]!PropsSI("P","T",B46+273,"Q",1,$P$5) -> 126549.8237 | C48: =[1]!PropsSI("P","T",C46+273,"Q",1,$P$5) -> 135460.6254 | D48: =[1]!PropsSI("P","T",D46+273,"Q",1,$P$5) -> 174479.9116 | E48: =[1]!PropsSI("P","T",E46+273,"Q",1,$P$5) -> 236807.4681 | F48: =[1]!PropsSI("P","T",F46+273,"Q",1,$P$5) -> 335859.8709 | G48: =[1]!PropsSI("P","T",G46+273,"Q",1,$P$5) -> 410274.7009 | H48: =[1]!PropsSI("P","T",H46+273,"Q",1,$P$5) -> 463706.7378 | I48: =[1]!PropsSI("P","T",I46+273,"Q",1,$P$5) -> 462730.5059 | J48: =[1]!PropsSI("P","T",J46+273,"Q",1,$P$5) -> 405578.7246 | K48: =[1]!PropsSI("P","T",K46+273,"Q",1,$P$5) -> 321002.7959 | L48: =[1]!PropsSI("P","T",L46+273,"Q",1,$P$5) -> 197601.7372 | M48: =[1]!PropsSI("P","T",M46+273,"Q",1,$P$5) -> 149974.3308 | N48: kPa
A49: Soğutucu akışkan evap sıvı entalpisi | B49: =[1]!PropsSI("H","P",B48,"Q",0,$P$5)/1000 -> 172.2142367 | C49: =[1]!PropsSI("H","P",C48,"Q",0,$P$5)/1000 -> 174.2464843 | D49: =[1]!PropsSI("H","P",D48,"Q",0,$P$5)/1000 -> 182.1252057 | E49: =[1]!PropsSI("H","P",E48,"Q",0,$P$5)/1000 -> 192.3617879 | F49: =[1]!PropsSI("H","P",F48,"Q",0,$P$5)/1000 -> 205.1892909 | G49: =[1]!PropsSI("H","P",G48,"Q",0,$P$5)/1000 -> 213.1461625 | H49: =[1]!PropsSI("H","P",H48,"Q",0,$P$5)/1000 -> 218.2573233 | I49: =[1]!PropsSI("H","P",I48,"Q",0,$P$5)/1000 -> 218.1676866 | J49: =[1]!PropsSI("H","P",J48,"Q",0,$P$5)/1000 -> 212.6753635 | K49: =[1]!PropsSI("H","P",K48,"Q",0,$P$5)/1000 -> 203.4550184 | L49: =[1]!PropsSI("H","P",L48,"Q",0,$P$5)/1000 -> 186.1943764 | M49: =[1]!PropsSI("H","P",M48,"Q",0,$P$5)/1000 -> 177.3527386 | N49: kj/kg
A50: Soğutucu akışkan evap gaz entalpisi | B50: =[1]!PropsSI("H","P",B48,"Q",1,$P$5)/1000 -> 385.8743571 | C50: =[1]!PropsSI("H","P",C48,"Q",1,$P$5)/1000 -> 386.8455361 | D50: =[1]!PropsSI("H","P",D48,"Q",1,$P$5)/1000 -> 390.5554216 | E50: =[1]!PropsSI("H","P",E48,"Q",1,$P$5)/1000 -> 395.2317579 | F50: =[1]!PropsSI("H","P",F48,"Q",1,$P$5)/1000 -> 400.8316512 | G50: =[1]!PropsSI("H","P",G48,"Q",1,$P$5)/1000 -> 404.1425677 | H50: =[1]!PropsSI("H","P",H48,"Q",1,$P$5)/1000 -> 406.1976175 | I50: =[1]!PropsSI("H","P",I48,"Q",1,$P$5)/1000 -> 406.1620819 | J50: =[1]!PropsSI("H","P",J48,"Q",1,$P$5)/1000 -> 403.9503796 | K50: =[1]!PropsSI("H","P",K48,"Q",1,$P$5)/1000 -> 400.0928345 | L50: =[1]!PropsSI("H","P",L48,"Q",1,$P$5)/1000 -> 392.4347918 | M50: =[1]!PropsSI("H","P",M48,"Q",1,$P$5)/1000 -> 388.3189369 | N50: kj/kg
A51: Soğutucu akışkan evap + superheat entalpi | B51: =[1]!PropsSI("H","T",273+B47,"P",B48,$P$5)/1000 -> 389.9318026 | C51: =[1]!PropsSI("H","T",273+C47,"P",C48,$P$5)/1000 -> 390.9305961 | D51: =[1]!PropsSI("H","T",273+D47,"P",D48,$P$5)/1000 -> 394.7508151 | E51: =[1]!PropsSI("H","T",273+E47,"P",E48,$P$5)/1000 -> 399.5788453 | F51: =[1]!PropsSI("H","T",273+F47,"P",F48,$P$5)/1000 -> 405.3838127 | G51: =[1]!PropsSI("H","T",273+G47,"P",G48,$P$5)/1000 -> 408.8315582 | H51: =[1]!PropsSI("H","T",273+H47,"P",H48,$P$5)/1000 -> 410.9789414 | I51: =[1]!PropsSI("H","T",273+I47,"P",I48,$P$5)/1000 -> 410.9417542 | J51: =[1]!PropsSI("H","T",273+J47,"P",J48,$P$5)/1000 -> 408.6310472 | K51: =[1]!PropsSI("H","T",273+K47,"P",K48,$P$5)/1000 -> 404.6162036 | L51: =[1]!PropsSI("H","T",273+L47,"P",L48,$P$5)/1000 -> 396.6893084 | M51: =[1]!PropsSI("H","T",273+M47,"P",M48,$P$5)/1000 -> 392.4468642 | N51: kj/kg
A52: Soğutucu akışkan evap çıkış entropisi | B52: =[1]!PropsSI("S","T",B47+273,"P",B48,$P$5) -> 1758.26204 | C52: =[1]!PropsSI("S","T",C47+273,"P",C48,$P$5) -> 1756.851865 | D52: =[1]!PropsSI("S","T",D47+273,"P",D48,$P$5) -> 1751.911931 | E52: =[1]!PropsSI("S","T",E47+273,"P",E48,$P$5) -> 1746.589339 | F52: =[1]!PropsSI("S","T",F47+273,"P",F48,$P$5) -> 1741.328266 | G52: =[1]!PropsSI("S","T",G47+273,"P",G48,$P$5) -> 1738.685702 | H52: =[1]!PropsSI("S","T",H47+273,"P",H48,$P$5) -> 1737.188844 | I52: =[1]!PropsSI("S","T",I47+273,"P",I48,$P$5) -> 1737.2139 | J52: =[1]!PropsSI("S","T",J47+273,"P",J48,$P$5) -> 1738.830937 | K52: =[1]!PropsSI("S","T",K47+273,"P",K48,$P$5) -> 1741.961691 | L52: =[1]!PropsSI("S","T",L47+273,"P",L48,$P$5) -> 1749.659724 | M52: =[1]!PropsSI("S","T",M47+273,"P",M48,$P$5) -> 1754.807548
A53: Soğutucu akışkan kondenser faz değişim sıcaklığı | B53: =B38+B44 -> 57 | C53: 57 | D53: 57 | E53: 57 | F53: 57 | G53: 57 | H53: 57 | I53: 57 | J53: 57 | K53: 57 | L53: 57 | M53: 57 | N53: C
A54: Soğutucu akışkan kondenser faz değişim basıncı | B54: =[1]!PropsSI("P","T",B53+273,"Q",1,$P$5) -> 1559915.013 | C54: =[1]!PropsSI("P","T",C53+273,"Q",1,$P$5) -> 1559915.013 | D54: =[1]!PropsSI("P","T",D53+273,"Q",1,$P$5) -> 1559915.013 | E54: =[1]!PropsSI("P","T",E53+273,"Q",1,$P$5) -> 1559915.013 | F54: =[1]!PropsSI("P","T",F53+273,"Q",1,$P$5) -> 1559915.013 | G54: =[1]!PropsSI("P","T",G53+273,"Q",1,$P$5) -> 1559915.013 | H54: =[1]!PropsSI("P","T",H53+273,"Q",1,$P$5) -> 1559915.013 | I54: =[1]!PropsSI("P","T",I53+273,"Q",1,$P$5) -> 1559915.013 | J54: =[1]!PropsSI("P","T",J53+273,"Q",1,$P$5) -> 1559915.013 | K54: =[1]!PropsSI("P","T",K53+273,"Q",1,$P$5) -> 1559915.013 | L54: =[1]!PropsSI("P","T",L53+273,"Q",1,$P$5) -> 1559915.013 | M54: =[1]!PropsSI("P","T",M53+273,"Q",1,$P$5) -> 1559915.013 | N54: Pa
A55: Soğutucu akışkan kondenser sıvı entalpisi | B55: =[1]!PropsSI("H","P",B54,"Q",0,$P$5)/1000 -> 282.4186215 | C55: =[1]!PropsSI("H","P",C54,"Q",0,$P$5)/1000 -> 282.4186215 | D55: =[1]!PropsSI("H","P",D54,"Q",0,$P$5)/1000 -> 282.4186215 | E55: =[1]!PropsSI("H","P",E54,"Q",0,$P$5)/1000 -> 282.4186215 | F55: =[1]!PropsSI("H","P",F54,"Q",0,$P$5)/1000 -> 282.4186215 | G55: =[1]!PropsSI("H","P",G54,"Q",0,$P$5)/1000 -> 282.4186215 | H55: =[1]!PropsSI("H","P",H54,"Q",0,$P$5)/1000 -> 282.4186215 | I55: =[1]!PropsSI("H","P",I54,"Q",0,$P$5)/1000 -> 282.4186215 | J55: =[1]!PropsSI("H","P",J54,"Q",0,$P$5)/1000 -> 282.4186215 | K55: =[1]!PropsSI("H","P",K54,"Q",0,$P$5)/1000 -> 282.4186215 | L55: =[1]!PropsSI("H","P",L54,"Q",0,$P$5)/1000 -> 282.4186215 | M55: =[1]!PropsSI("H","P",M54,"Q",0,$P$5)/1000 -> 282.4186215 | N55: kj/kg
A56: Soğutucu akışkan kondenser gaz entalpisi | B56: =[1]!PropsSI("H","P",B54,"Q",1,$P$5)/1000 -> 425.7295596 | C56: =[1]!PropsSI("H","P",C54,"Q",1,$P$5)/1000 -> 425.7295596 | D56: =[1]!PropsSI("H","P",D54,"Q",1,$P$5)/1000 -> 425.7295596 | E56: =[1]!PropsSI("H","P",E54,"Q",1,$P$5)/1000 -> 425.7295596 | F56: =[1]!PropsSI("H","P",F54,"Q",1,$P$5)/1000 -> 425.7295596 | G56: =[1]!PropsSI("H","P",G54,"Q",1,$P$5)/1000 -> 425.7295596 | H56: =[1]!PropsSI("H","P",H54,"Q",1,$P$5)/1000 -> 425.7295596 | I56: =[1]!PropsSI("H","P",I54,"Q",1,$P$5)/1000 -> 425.7295596 | J56: =[1]!PropsSI("H","P",J54,"Q",1,$P$5)/1000 -> 425.7295596 | K56: =[1]!PropsSI("H","P",K54,"Q",1,$P$5)/1000 -> 425.7295596 | L56: =[1]!PropsSI("H","P",L54,"Q",1,$P$5)/1000 -> 425.7295596 | M56: =[1]!PropsSI("H","P",M54,"Q",1,$P$5)/1000 -> 425.7295596 | N56: kj/kg
A57: Subcooling sonrası sıcaklık | B57: =B53-B40 -> 52 | C57: =C53-C40 -> 52 | D57: 52 | E57: 52 | F57: 52 | G57: 52 | H57: 52 | I57: 52 | J57: 52 | K57: 52 | L57: 52 | M57: 52 | N57: C
A58: Subcooling sonrası entalpi | B58: =[1]!PropsSI("H","T",B57+273,"Q",0,$P$5)/1000 -> 274.5056683 | C58: =[1]!PropsSI("H","T",C57+273,"Q",0,$P$5)/1000 -> 274.5056683 | D58: =[1]!PropsSI("H","T",D57+273,"Q",0,$P$5)/1000 -> 274.5056683 | E58: =[1]!PropsSI("H","T",E57+273,"Q",0,$P$5)/1000 -> 274.5056683 | F58: =[1]!PropsSI("H","T",F57+273,"Q",0,$P$5)/1000 -> 274.5056683 | G58: =[1]!PropsSI("H","T",G57+273,"Q",0,$P$5)/1000 -> 274.5056683 | H58: =[1]!PropsSI("H","T",H57+273,"Q",0,$P$5)/1000 -> 274.5056683 | I58: =[1]!PropsSI("H","T",I57+273,"Q",0,$P$5)/1000 -> 274.5056683 | J58: =[1]!PropsSI("H","T",J57+273,"Q",0,$P$5)/1000 -> 274.5056683 | K58: =[1]!PropsSI("H","T",K57+273,"Q",0,$P$5)/1000 -> 274.5056683 | L58: =[1]!PropsSI("H","T",L57+273,"Q",0,$P$5)/1000 -> 274.5056683 | M58: =[1]!PropsSI("H","T",M57+273,"Q",0,$P$5)/1000 -> 274.5056683 | N58: kj/kg
A59: Expansion sonrası flaşh buhar yüzdesi | B59: =(B58-B49)/(B50-B49) -> 0.4787577175 | C59: =(C58-C49)/(C50-C49) -> 0.4715881051 | D59: 0.443220107 | E59: 0.4049090181 | F59: 0.3543014776 | G59: 0.3212600034 | H59: 0.2992883734 | I59: 0.2996790494 | J59: 0.3232534285 | K59: 0.3613274967 | L59: 0.4281958593 | M59: 0.4605141983 | N59: %
A60: Expansion sonrası flaşh sıvı yüzdesi | B60: =1-B59 -> 0.5212422825 | C60: =1-C59 -> 0.5284118949 | D60: 0.556779893 | E60: 0.5950909819 | F60: 0.6456985224 | G60: 0.6787399966 | H60: 0.7007116266 | I60: 0.7003209506 | J60: 0.6767465715 | K60: 0.6386725033 | L60: 0.5718041407 | M60: 0.5394858017 | N60: %
A61: Evaporatör soğutma kabiliyeti(sadece buharlaşma) | B61: =B60*(B50-B49) -> 111.3686888 | C61: =C60*(C50-C49) -> 112.3398678 | D61: 116.0497533 | E61: 120.7260896 | F61: 126.325983 | G61: 129.6368994 | H61: 131.6919493 | I61: 131.6564136 | J61: 129.4447114 | K61: 125.5871662 | L61: 117.9291235 | M61: 113.8132686 | N61: kj/kg
A62: Evaporatör soğutma kabiliyeti superheat dahil | B62: =B51-B58 -> 115.4261343 | C62: =C51-C58 -> 116.4249278 | D62: 120.2451468 | E62: 125.073177 | F62: 130.8781444 | G62: 134.3258899 | H62: 136.4732731 | I62: 136.4360859 | J62: 134.1253789 | K62: 130.1105353 | L62: 122.1836401 | M62: 117.9411959 | N62: kj/kg
A63: Kompresör çıkış sıcaklığı | B63: =[1]!PropsSI("T","S",B52,"P",B54,$P$5) -> 344.6524399 | C63: =[1]!PropsSI("T","S",C52,"P",C54,$P$5) -> 344.2429882 | D63: =[1]!PropsSI("T","S",D52,"P",D54,$P$5) -> 342.8189547 | E63: =[1]!PropsSI("T","S",E52,"P",E54,$P$5) -> 341.3030942 | F63: =[1]!PropsSI("T","S",F52,"P",F54,$P$5) -> 339.8243698 | G63: =[1]!PropsSI("T","S",G52,"P",G54,$P$5) -> 339.0892485 | H63: =[1]!PropsSI("T","S",H52,"P",H54,$P$5) -> 338.6751646 | I63: =[1]!PropsSI("T","S",I52,"P",I54,$P$5) -> 338.6820821 | J63: =[1]!PropsSI("T","S",J52,"P",J54,$P$5) -> 339.1295154 | K63: =[1]!PropsSI("T","S",K52,"P",K54,$P$5) -> 340.0013457 | L63: =[1]!PropsSI("T","S",L52,"P",L54,$P$5) -> 342.1751489 | M63: =[1]!PropsSI("T","S",M52,"P",M54,$P$5) -> 343.6517124 | N63: K
A64: Kompresör çıkış entalpisi | B64: =[1]!PropsSI("H","T",B63,"P",B54,$P$5)/1000 -> 443.9882614 | C64: =[1]!PropsSI("H","T",C63,"P",C54,$P$5)/1000 -> 443.5025303 | D64: =[1]!PropsSI("H","T",D63,"P",D54,$P$5)/1000 -> 441.8055166 | E64: =[1]!PropsSI("H","T",E63,"P",E54,$P$5)/1000 -> 439.9848739 | F64: =[1]!PropsSI("H","T",F63,"P",F54,$P$5)/1000 -> 438.1931521 | G64: =[1]!PropsSI("H","T",G63,"P",G54,$P$5)/1000 -> 437.296117 | H64: =[1]!PropsSI("H","T",H63,"P",H54,$P$5)/1000 -> 436.7888587 | I64: =[1]!PropsSI("H","T",I63,"P",I54,$P$5)/1000 -> 436.7973447 | J64: =[1]!PropsSI("H","T",J63,"P",J54,$P$5)/1000 -> 437.3453674 | K64: =[1]!PropsSI("H","T",K63,"P",K54,$P$5)/1000 -> 438.4084613 | L64: =[1]!PropsSI("H","T",L63,"P",L54,$P$5)/1000 -> 441.034143 | M64: =[1]!PropsSI("H","T",M63,"P",M54,$P$5)/1000 -> 442.7993934 | N64: kj/kg
A65: Basınçlandırma için gereken entalpi | B65: =B64-B51 -> 54.05645883 | C65: =C64-C51 -> 52.5719342 | D65: 47.05470147 | E65: 40.40602865 | F65: 32.80933937 | G65: 28.46455882 | H65: 25.8099173 | I65: 25.85559053 | J65: 28.71432018 | K65: 33.79225771 | L65: 44.34483459 | M65: 50.35252918 | N65: kj/kg
A66: Isı Pompası soğutma COP'si | B66: =IF(B62/B65*$P$4>Detaylı!$C$93,Detaylı!$C$93,B62/B65*$P$4) -> 1.387937518 | C66: =IF(C62/C65*$P$4>Detaylı!$C$93,Detaylı!$C$93,C62/C65*$P$4) -> 1.439479149 | D66: =IF(D62/D65*$P$4>Detaylı!$C$93,Detaylı!$C$93,D62/D65*$P$4) -> 1.661031586 | E66: =IF(E62/E65*$P$4>Detaylı!$C$93,Detaylı!$C$93,E62/E65*$P$4) -> 2.012015726 | F66: =IF(F62/F65*$P$4>Detaylı!$C$93,Detaylı!$C$93,F62/F65*$P$4) -> 2.592883475 | G66: =IF(G62/G65*$P$4>Detaylı!$C$93,Detaylı!$C$93,G62/G65*$P$4) -> 3.067387378 | H66: =IF(H62/H65*$P$4>Detaylı!$C$93,Detaylı!$C$93,H62/H65*$P$4) -> 3.436958999 | I66: =IF(I62/I65*$P$4>Detaylı!$C$93,Detaylı!$C$93,I62/I65*$P$4) -> 3.429952827 | J66: =IF(J62/J65*$P$4>Detaylı!$C$93,Detaylı!$C$93,J62/J65*$P$4) -> 3.036167868 | K66: =IF(K62/K65*$P$4>Detaylı!$C$93,Detaylı!$C$93,K62/K65*$P$4) -> 2.502698952 | L66: =IF(L62/L65*$P$4>Detaylı!$C$93,Detaylı!$C$93,L62/L65*$P$4) -> 1.790949652 | M66: =IF(M62/M65*$P$4>Detaylı!$C$93,Detaylı!$C$93,M62/M65*$P$4) -> 1.522501026 | N66: kW/kW
A67: Isı Pompası ısıtma COP'si | B67: =B66+1 -> 2.387937518 | C67: =C66+1 -> 2.439479149 | D67: 2.661031586 | E67: 3.012015726 | F67: 3.592883475 | G67: 4.067387378 | H67: 4.436958999 | I67: 4.429952827 | J67: 4.036167868 | K67: 3.502698952 | L67: 2.790949652 | M67: 2.522501026 | N67: kW/kW
A68: Soğutma için gereken güç | B68: =B70-B69 -> 20.34300008 | C68: =C70-C69 -> 20.65267507 | D68: 21.84720611 | E68: 23.37987475 | F68: 25.2585207 | G68: 26.39496764 | H68: 27.11171435 | I68: 27.09923867 | J68: 26.32840825 | K68: 25.00770535 | L68: 22.45946564 | M68: 21.12488176 | N68: kW
A69: Kompresör elektrik tüketimi | B69: =B70/B67 -> 14.65699992 | C69: =C70/C67 -> 14.34732493 | D69: 13.15279389 | E69: 11.62012525 | F69: 9.741479299 | G69: 8.605032358 | H69: 7.88828565 | I69: 7.900761332 | J69: 8.671591753 | K69: 9.99229465 | L69: 12.54053436 | M69: 13.87511824 | N69: kW
A70: Isıtma gücü | B70: =Detaylı!F53 -> 35 | C70: =Detaylı!G53 -> 35 | D70: =Detaylı!H53 -> 35 | E70: =Detaylı!I53 -> 35 | F70: =Detaylı!J53 -> 35 | G70: =Detaylı!K53 -> 35 | H70: =Detaylı!L53 -> 35 | I70: =Detaylı!M53 -> 35 | J70: =Detaylı!N53 -> 35 | K70: =Detaylı!O53 -> 35 | L70: =Detaylı!P53 -> 35 | M70: =Detaylı!Q53 -> 35 | N70: kW

Sheet Topraktan Sıcak Su (hidden)
A1: Sütun1 | B1: Ocak | C1: Şubat | D1: Mart | E1: Nisan | F1: Mayıs | G1: Haziran | H1: Temmuz | I1: Ağustos | J1: Eylül | K1: Ekim | L1: Kasım | M1: Aralık
A2: Dış Hava Sıcaklığı | B2: =Detaylı!F30 -> -12.948826 | C2: =Detaylı!G30 -> -11.378516 | D2: =Detaylı!H30 -> -5.330074 | E2: =Detaylı!I30 -> 2.432034 | F2: =Detaylı!J30 -> 11.997362 | G2: =Detaylı!K30 -> 17.835842 | H2: =Detaylı!L30 -> 21.546194 | I2: =Detaylı!M30 -> 21.4814 | J2: =Detaylı!N30 -> 17.492478 | K2: =Detaylı!O30 -> 10.714992 | L2: =Detaylı!P30 -> -2.23125 | M2: =Detaylı!Q30 -> -8.986326
A3: Isı kaynağı ortalama sıcaklık | B3: =Veriler!Z84 -> 6.223110808 | C3: =Veriler!AA84 -> 5.135541891 | D3: =Veriler!AB84 -> 5.488629148 | E3: =Veriler!AC84 -> 7.158569067 | F3: =Veriler!AD84 -> 9.709805878 | G3: =Veriler!AE84 -> 12.47692288 | H3: =Veriler!AF84 -> 14.73819724 | I3: =Veriler!AG84 -> 15.90384061 | J3: =Veriler!AH84 -> 15.66982848 | K3: =Veriler!AI84 -> 14.09719616 | L3: =Veriler!AJ84 -> 11.59611954 | M3: =Veriler!AK84 -> 8.818932478
A4: Isıtılan ortam sıcaklık | B4: =Detaylı!F10 -> 27 | C4: =Detaylı!G10 -> 26.75022188 | D4: =Detaylı!H10 -> 25.78813892 | E4: =Detaylı!I10 -> 24.55347522 | F4: =Detaylı!J10 -> 23.03198605 | G4: =Detaylı!K10 -> 22.10330027 | H4: =Detaylı!L10 -> 21 | I4: =Detaylı!M10 -> 21 | J4: =Detaylı!N10 -> 22.15791675 | K4: =Detaylı!O10 -> 23.23596359 | L4: =Detaylı!P10 -> 25.29523087 | M4: =Detaylı!Q10 -> 26.36971311
A5: Isı aktırımı ortalama sıcaklık | B5: =Detaylı!F54 -> 52 | C5: =Detaylı!G54 -> 52 | D5: =Detaylı!H54 -> 52 | E5: =Detaylı!I54 -> 52 | F5: =Detaylı!J54 -> 52 | G5: =Detaylı!K54 -> 52 | H5: =Detaylı!L54 -> 52 | I5: =Detaylı!M54 -> 52 | J5: =Detaylı!N54 -> 52 | K5: =Detaylı!O54 -> 52 | L5: =Detaylı!P54 -> 52 | M5: =Detaylı!Q54 -> 52
A6: Isıtma / Soğutma | B6: =IF(B3<B5,"Isıtma","Soğutma") -> Isıtma | C6: Isıtma | D6: Isıtma | E6: Isıtma | F6: Isıtma | G6: Isıtma | H6: Isıtma | I6: Isıtma | J6: Isıtma | K6: Isıtma | L6: Isıtma | M6: Isıtma
A7: Kapasite Kullanım % | O7: Soğutma Kapasitesi | P7: =Detaylı!C10 -> 100
A8: Isıtma Kapasitesi | B8: =B60 -> 35 | C8: =C60 -> 35 | D8: 35 | E8: 35 | F8: 35 | G8: 35 | H8: 35 | I8: 35 | J8: 35 | K8: 35 | L8: 35 | M8: 35 | O8: Kompresör Verimi | P8: =VLOOKUP(Detaylı!H5,Komp_liste,2,) -> 0.65
A9: Soğutma Kapasitesi | B9: =B8-B12 -> 24.96324976 | C9: =C8-C12 -> 24.76901193 | D9: =D8-D12 -> 24.83210734 | E9: 25.13006267 | F9: 25.58372367 | G9: 26.07350539 | H9: 26.47186661 | I9: 26.67651423 | J9: 26.63546883 | K9: 26.35912276 | L9: 25.91787013 | M9: 25.42552779 | O9: Gaz | P9: =Detaylı!C4 -> R134a
A10: Kapasite Kullanım kW | B10: =IF(B6="Isıtma",B8,B9) -> 35 | C10: =IF(C6="Isıtma",C8,C9) -> 35 | D10: 35 | E10: 35 | F10: 35 | G10: 35 | H10: 35 | I10: 35 | J10: 35 | K10: 35 | L10: 35 | M10: 35
A11: COP | B11: =(B10/B12) -> 3.487184515 | C11: =(C10/C12) -> 3.420979457 | D11: =(D10/D12) -> 3.442207857 | E11: 3.546121806 | F11: 3.716968234 | G11: 3.92091202 | H11: 4.104063387 | I11: 4.204969046 | J11: 4.184334936 | K11: 4.050514669 | L11: 3.853721596 | M11: 3.655553981
A12: Güç Gereksinimi (kW) | B12: =B59 -> 10.03675024 | C12: 10.23098807 | D12: 10.16789266 | E12: 9.869937334 | F12: 9.416276329 | G12: 8.926494608 | H12: 8.528133389 | I12: 8.323485766 | J12: 8.36453117 | K12: 8.640877236 | L12: 9.082129865 | M12: 9.574472209
A13: Çalışma Saati Günlük | B13: =Detaylı!$C$12 -> 10 | C13: =Detaylı!$C$12 -> 10 | D13: =Detaylı!$C$12 -> 10 | E13: =Detaylı!$C$12 -> 10 | F13: =Detaylı!$C$12 -> 10 | G13: =Detaylı!$C$12 -> 10 | H13: =Detaylı!$C$12 -> 10 | I13: =Detaylı!$C$12 -> 10 | J13: =Detaylı!$C$12 -> 10 | K13: =Detaylı!$C$12 -> 10 | L13: =Detaylı!$C$12 -> 10 | M13: =Detaylı!$C$12 -> 10
A14: Ayda Kaç Gün | B14: =Detaylı!$C$11 -> 22 | C14: =Detaylı!$C$11 -> 22 | D14: =Detaylı!$C$11 -> 22 | E14: =Detaylı!$C$11 -> 22 | F14: =Detaylı!$C$11 -> 22 | G14: =Detaylı!$C$11 -> 22 | H14: =Detaylı!$C$11 -> 22 | I14: =Detaylı!$C$11 -> 22 | J14: =Detaylı!$C$11 -> 22 | K14: =Detaylı!$C$11 -> 22 | L14: =Detaylı!$C$11 -> 22 | M14: =Detaylı!$C$11 -> 22
A15: Ayda Kaç Saat | B15: =B14*B13 -> 220 | C15: =C14*C13 -> 220 | D15: 220 | E15: 220 | F15: 220 | G15: 220 | H15: 220 | I15: 220 | J15: 220 | K15: 220 | L15: 220 | M15: 220
A16: Aylık Toplam Elektrik Tüketimi | B16: =B15*B12 -> 2208.085052 | C16: =C15*C12 -> 2250.817375 | D16: 2236.936385 | E16: 2171.386213 | F16: 2071.580792 | G16: 1963.828814 | H16: 1876.189346 | I16: 1831.166869 | J16: 1840.196857 | K16: 1900.992992 | L16: 1998.06857 | M16: 2106.383886
A17: Isıtma için Harcanan Enerji | B17: =IF(B6="Isıtma",B16,0) -> 2208.085052 | C17: =IF(C6="Isıtma",C16,0) -> 2250.817375 | D17: 2236.936385 | E17: 2171.386213 | F17: 2071.580792 | G17: 1963.828814 | H17: 1876.189346 | I17: 1831.166869 | J17: 1840.196857 | K17: 1900.992992 | L17: 1998.06857 | M17: 2106.383886
A18: Toplam Isıtma İçin Harcanan Enerji (kWh) | B18: =SUM(B17:M17) -> 24455.63315
A19: Soğutma için Harcanan Enerji | B19: =IF(B6="Soğutma",B16,0) -> 0 | C19: =IF(C6="Soğutma",C16,0) -> 0 | D19: 0 | E19: 0 | F19: 0 | G19: 0 | H19: 0 | I19: 0 | J19: 0 | K19: 0 | L19: 0 | M19: 0
A20: Toplam Soğutma için Harcanan Enerji (kWh) | B20: =SUM(B19:M19) -> 0
A21: Yıllık Toplam (kWh) | B21: =SUM(B16:M16) -> 24455.63315
A22: Aylık Isıtma Kapasitesi | B22: =IF(B6="Isıtma",B8*B15,0) -> 7700 | C22: =IF(C6="Isıtma",C8*C15,0) -> 7700 | D22: 7700 | E22: 7700 | F22: 7700 | G22: 7700 | H22: 7700 | I22: 7700 | J22: 7700 | K22: 7700 | L22: 7700 | M22: 7700
A23: Toplam Isıtma Kapasitesi | B23: =SUM(B22:M22) -> 92400
A26: Sütun1 | B26: OCAK | C26: ŞUBAT | D26: MART | E26: NİSAN | F26: MAYIS | G26: HAZİRAN | H26: TEMMUZ | I26: AĞUSTOS | J26: EYLÜL | K26: EKİM | L26: KASIM | M26: ARALIK | N26: Sütun2
A27: Açıklama | B27: Değer | C27: Değer | D27: Değer | E27: Değer | F27: Değer | G27: Değer | H27: Değer | I27: Değer | J27: Değer | K27: Değer | L27: Değer | M27: Değer | N27: Birim
A28: Isı Kaynağı Isı Pompası Giriş Sıcaklığı | B28: =B3 -> 6.223110808 | C28: 5.135541891 | D28: 5.488629148 | E28: 7.158569067 | F28: 9.709805878 | G28: 12.47692288 | H28: 14.73819724 | I28: 15.90384061 | J28: 15.66982848 | K28: 14.09719616 | L28: 11.59611954 | M28: 8.818932478 | N28: C
A29: Isı Kaynağı Isı Pompası Çıkış Sıcaklığı | B29: =B28-Detaylı!$O$4 -> 1.223110808 | C29: =C28-Detaylı!$O$4 -> 0.1355418913 | D29: =D28-Detaylı!$O$4 -> 0.4886291482 | E29: =E28-Detaylı!$O$4 -> 2.158569067 | F29: =F28-Detaylı!$O$4 -> 4.709805878 | G29: =G28-Detaylı!$O$4 -> 7.476922881 | H29: =H28-Detaylı!$O$4 -> 9.73819724 | I29: =I28-Detaylı!$O$4 -> 10.90384061 | J29: =J28-Detaylı!$O$4 -> 10.66982848 | K29: =K28-Detaylı!$O$4 -> 9.097196155 | L29: =L28-Detaylı!$O$4 -> 6.596119537 | M29: =M28-Detaylı!$O$4 -> 3.818932478 | N29: C
A30: Isıtılacak Su Giriş Sıcaklığı | B30: =B31-Detaylı!$O$3 -> 49 | C30: =C31-Detaylı!$O$3 -> 49 | D30: =D31-Detaylı!$O$3 -> 49 | E30: =E31-Detaylı!$O$3 -> 49 | F30: =F31-Detaylı!$O$3 -> 49 | G30: =G31-Detaylı!$O$3 -> 49 | H30: =H31-Detaylı!$O$3 -> 49 | I30: =I31-Detaylı!$O$3 -> 49 | J30: =J31-Detaylı!$O$3 -> 49 | K30: =K31-Detaylı!$O$3 -> 49 | L30: =L31-Detaylı!$O$3 -> 49 | M30: =M31-Detaylı!$O$3 -> 49 | N30: C
A31: Isıtılacak Su Çıkış Sıcaklığı | B31: =Detaylı!F54 -> 52 | C31: =Detaylı!G54 -> 52 | D31: =Detaylı!H54 -> 52 | E31: =Detaylı!I54 -> 52 | F31: =Detaylı!J54 -> 52 | G31: =Detaylı!K54 -> 52 | H31: =Detaylı!L54 -> 52 | I31: =Detaylı!M54 -> 52 | J31: =Detaylı!N54 -> 52 | K31: =Detaylı!O54 -> 52 | L31: =Detaylı!P54 -> 52 | M31: =Detaylı!Q54 -> 52 | N31: C
A32: Subcooler kaç derece? | B32: 20 | C32: 20 | D32: 20 | E32: 20 | F32: 20 | G32: 20 | H32: 20 | I32: 20 | J32: 20 | K32: 20 | L32: 20 | M32: 20 | N32: C
A33: Superheat kaç derece | B33: 10 | C33: 10 | D33: 10 | E33: 10 | F33: 10 | G33: 10 | H33: 10 | I33: 10 | J33: 10 | K33: 10 | L33: 10 | M33: 10 | N33: C
A34: Evaporatör Yaklaşım Sıcaklığı | B34: =Detaylı!$J$4 -> 6 | C34: =Detaylı!$J$4 -> 6 | D34: =Detaylı!$J$4 -> 6 | E34: =Detaylı!$J$4 -> 6 | F34: =Detaylı!$J$4 -> 6 | G34: =Detaylı!$J$4 -> 6 | H34: =Detaylı!$J$4 -> 6 | I34: =Detaylı!$J$4 -> 6 | J34: =Detaylı!$J$4 -> 6 | K34: =Detaylı!$J$4 -> 6 | L34: =Detaylı!$J$4 -> 6 | M34: =Detaylı!$J$4 -> 6 | N34: Önerilen değer
A35: Kondenser Yaklaşım Sıcaklığı | B35: =Detaylı!$J$3 -> 4 | C35: =Detaylı!$J$3 -> 4 | D35: =Detaylı!$J$3 -> 4 | E35: =Detaylı!$J$3 -> 4 | F35: =Detaylı!$J$3 -> 4 | G35: =Detaylı!$J$3 -> 4 | H35: =Detaylı!$J$3 -> 4 | I35: =Detaylı!$J$3 -> 4 | J35: =Detaylı!$J$3 -> 4 | K35: =Detaylı!$J$3 -> 4 | L35: =Detaylı!$J$3 -> 4 | M35: =Detaylı!$J$3 -> 4 | N35: Önerilen değer
A36: Soğutucu akışkan evap faz değişim sıcaklığı | B36: =B29-B34 -> -4.776889192 | C36: -5.864458109 | D36: -5.511370852 | E36: -3.841430933 | F36: -1.290194122 | G36: 1.476922881 | H36: 3.73819724 | I36: 4.903840614 | J36: 4.669828475 | K36: 3.097196155 | L36: 0.5961195368 | M36: -2.181067522 | N36: C
A37: Soğutucu Akışkan evap çıkış sıcaklığı | B37: =B36+B33 -> 5.223110808 | C37: 4.135541891 | D37: 4.488629148 | E37: 6.158569067 | F37: 8.709805878 | G37: 11.47692288 | H37: 13.73819724 | I37: 14.90384061 | J37: 14.66982848 | K37: 13.09719616 | L37: 10.59611954 | M37: 7.818932478 | N37: C
A38: Soğutucu akışkan evap faz değişim basıncı | B38: =[1]!PropsSI("P","T",B36+273,"Q",1,$P$9) -> 244015.5618 | C38: =[1]!PropsSI("P","T",C36+273,"Q",1,$P$9) -> 234148.7717 | D38: =[1]!PropsSI("P","T",D36+273,"Q",1,$P$9) -> 237317.6102 | E38: =[1]!PropsSI("P","T",E36+273,"Q",1,$P$9) -> 252756.796 | F38: =[1]!PropsSI("P","T",F36+273,"Q",1,$P$9) -> 277828.4507 | G38: =[1]!PropsSI("P","T",G36+273,"Q",1,$P$9) -> 307142.6483 | H38: =[1]!PropsSI("P","T",H36+273,"Q",1,$P$9) -> 332815.619 | I38: =[1]!PropsSI("P","T",I36+273,"Q",1,$P$9) -> 346675.9113 | J38: =[1]!PropsSI("P","T",J36+273,"Q",1,$P$9) -> 343858.5085 | K38: =[1]!PropsSI("P","T",K36+273,"Q",1,$P$9) -> 325377.0277 | L38: =[1]!PropsSI("P","T",L36+273,"Q",1,$P$9) -> 297565.4626 | M38: =[1]!PropsSI("P","T",M36+273,"Q",1,$P$9) -> 268865.3119 | N38: kPa
A39: Soğutucu akışkan evap sıvı entalpisi | B39: =[1]!PropsSI("H","P",B38,"Q",0,$P$9)/1000 -> 193.4134334 | C39: =[1]!PropsSI("H","P",C38,"Q",0,$P$9)/1000 -> 191.9680471 | D39: =[1]!PropsSI("H","P",D38,"Q",0,$P$9)/1000 -> 192.4369716 | E39: =[1]!PropsSI("H","P",E38,"Q",0,$P$9)/1000 -> 194.6590942 | F39: =[1]!PropsSI("H","P",F38,"Q",0,$P$9)/1000 -> 198.0679726 | G39: =[1]!PropsSI("H","P",G38,"Q",0,$P$9)/1000 -> 201.7850646 | H39: =[1]!PropsSI("H","P",H38,"Q",0,$P$9)/1000 -> 204.8384193 | I39: =[1]!PropsSI("H","P",I38,"Q",0,$P$9)/1000 -> 206.4180533 | J39: =[1]!PropsSI("H","P",J38,"Q",0,$P$9)/1000 -> 206.1006145 | K39: =[1]!PropsSI("H","P",K38,"Q",0,$P$9)/1000 -> 203.9714207 | L39: =[1]!PropsSI("H","P",L38,"Q",0,$P$9)/1000 -> 200.5996012 | M39: =[1]!PropsSI("H","P",M38,"Q",0,$P$9)/1000 -> 196.8756609 | N39: kj/kg
A40: Soğutucu akışkan evap gaz entalpisi | B40: =[1]!PropsSI("H","P",B38,"Q",1,$P$9)/1000 -> 395.7022096 | C40: =[1]!PropsSI("H","P",C38,"Q",1,$P$9)/1000 -> 395.0551222 | D40: =[1]!PropsSI("H","P",D38,"Q",1,$P$9)/1000 -> 395.2654553 | E40: =[1]!PropsSI("H","P",E38,"Q",1,$P$9)/1000 -> 396.2569315 | F40: =[1]!PropsSI("H","P",F38,"Q",1,$P$9)/1000 -> 397.7606979 | G40: =[1]!PropsSI("H","P",G38,"Q",1,$P$9)/1000 -> 399.3758332 | H40: =[1]!PropsSI("H","P",H38,"Q",1,$P$9)/1000 -> 400.6826585 | I40: =[1]!PropsSI("H","P",I38,"Q",1,$P$9)/1000 -> 401.351481 | J40: =[1]!PropsSI("H","P",J38,"Q",1,$P$9)/1000 -> 401.2174795 | K40: =[1]!PropsSI("H","P",K38,"Q",1,$P$9)/1000 -> 400.3134494 | L40: =[1]!PropsSI("H","P",L38,"Q",1,$P$9)/1000 -> 398.8635772 | M40: =[1]!PropsSI("H","P",M38,"Q",1,$P$9)/1000 -> 397.237141 | N40: kj/kg
A41: Soğutucu akışkan evap + superheat entalpi | B41: =[1]!PropsSI("H","T",273+B37,"P",B38,$P$9)/1000 -> 404.4133341 | C41: =[1]!PropsSI("H","T",273+C37,"P",C38,$P$9)/1000 -> 403.7235429 | D41: =[1]!PropsSI("H","T",273+D37,"P",D38,$P$9)/1000 -> 403.9476882 | E41: =[1]!PropsSI("H","T",273+E37,"P",E38,$P$9)/1000 -> 405.0051705 | F41: =[1]!PropsSI("H","T",273+F37,"P",F38,$P$9)/1000 -> 406.6120161 | G41: =[1]!PropsSI("H","T",273+G37,"P",G38,$P$9)/1000 -> 408.342164 | H41: =[1]!PropsSI("H","T",273+H37,"P",H38,$P$9)/1000 -> 409.7455974 | I41: =[1]!PropsSI("H","T",273+I37,"P",I38,$P$9)/1000 -> 410.4651839 | J41: =[1]!PropsSI("H","T",273+J37,"P",J38,$P$9)/1000 -> 410.3209372 | K41: =[1]!PropsSI("H","T",273+K37,"P",K38,$P$9)/1000 -> 409.3487556 | L41: =[1]!PropsSI("H","T",273+L37,"P",L38,$P$9)/1000 -> 407.7929242 | M41: =[1]!PropsSI("H","T",273+M37,"P",M38,$P$9)/1000 -> 406.0521502 | N41: kj/kg
A42: Soğutucu akışkan evap çıkış entropisi | B42: =[1]!PropsSI("S","T",B37+273,"P",B38,$P$9) -> 1761.87337 | C42: =[1]!PropsSI("S","T",C37+273,"P",C38,$P$9) -> 1762.531014 | D42: =[1]!PropsSI("S","T",D37+273,"P",D38,$P$9) -> 1762.315379 | E42: =[1]!PropsSI("S","T",E37+273,"P",E38,$P$9) -> 1761.323008 | F42: =[1]!PropsSI("S","T",F37+273,"P",F38,$P$9) -> 1759.891284 | G42: =[1]!PropsSI("S","T",G37+273,"P",G38,$P$9) -> 1758.447082 | H42: =[1]!PropsSI("S","T",H37+273,"P",H38,$P$9) -> 1757.345455 | I42: =[1]!PropsSI("S","T",I37+273,"P",I38,$P$9) -> 1756.803674 | J42: =[1]!PropsSI("S","T",J37+273,"P",J38,$P$9) -> 1756.911059 | K42: =[1]!PropsSI("S","T",K37+273,"P",K38,$P$9) -> 1757.650836 | L42: =[1]!PropsSI("S","T",L37+273,"P",L38,$P$9) -> 1758.894984 | M42: =[1]!PropsSI("S","T",M37+273,"P",M38,$P$9) -> 1760.379964
A43: Soğutucu akışkan kondenser faz değişim sıcaklığı | B43: =B31+B35 -> 56 | C43: 56 | D43: 56 | E43: 56 | F43: 56 | G43: 56 | H43: 56 | I43: 56 | J43: 56 | K43: 56 | L43: 56 | M43: 56 | N43: C
A44: Soğutucu akışkan kondenser faz değişim basıncı | B44: =[1]!PropsSI("P","T",B43+273,"Q",1,$P$9) -> 1522655.109 | C44: =[1]!PropsSI("P","T",C43+273,"Q",1,$P$9) -> 1522655.109 | D44: =[1]!PropsSI("P","T",D43+273,"Q",1,$P$9) -> 1522655.109 | E44: =[1]!PropsSI("P","T",E43+273,"Q",1,$P$9) -> 1522655.109 | F44: =[1]!PropsSI("P","T",F43+273,"Q",1,$P$9) -> 1522655.109 | G44: =[1]!PropsSI("P","T",G43+273,"Q",1,$P$9) -> 1522655.109 | H44: =[1]!PropsSI("P","T",H43+273,"Q",1,$P$9) -> 1522655.109 | I44: =[1]!PropsSI("P","T",I43+273,"Q",1,$P$9) -> 1522655.109 | J44: =[1]!PropsSI("P","T",J43+273,"Q",1,$P$9) -> 1522655.109 | K44: =[1]!PropsSI("P","T",K43+273,"Q",1,$P$9) -> 1522655.109 | L44: =[1]!PropsSI("P","T",L43+273,"Q",1,$P$9) -> 1522655.109 | M44: =[1]!PropsSI("P","T",M43+273,"Q",1,$P$9) -> 1522655.109 | N44: Pa
A45: Soğutucu akışkan kondenser sıvı entalpisi | B45: =[1]!PropsSI("H","P",B44,"Q",0,$P$9)/1000 -> 280.8209471 | C45: =[1]!PropsSI("H","P",C44,"Q",0,$P$9)/1000 -> 280.8209471 | D45: =[1]!PropsSI("H","P",D44,"Q",0,$P$9)/1000 -> 280.8209471 | E45: =[1]!PropsSI("H","P",E44,"Q",0,$P$9)/1000 -> 280.8209471 | F45: =[1]!PropsSI("H","P",F44,"Q",0,$P$9)/1000 -> 280.8209471 | G45: =[1]!PropsSI("H","P",G44,"Q",0,$P$9)/1000 -> 280.8209471 | H45: =[1]!PropsSI("H","P",H44,"Q",0,$P$9)/1000 -> 280.8209471 | I45: =[1]!PropsSI("H","P",I44,"Q",0,$P$9)/1000 -> 280.8209471 | J45: =[1]!PropsSI("H","P",J44,"Q",0,$P$9)/1000 -> 280.8209471 | K45: =[1]!PropsSI("H","P",K44,"Q",0,$P$9)/1000 -> 280.8209471 | L45: =[1]!PropsSI("H","P",L44,"Q",0,$P$9)/1000 -> 280.8209471 | M45: =[1]!PropsSI("H","P",M44,"Q",0,$P$9)/1000 -> 280.8209471 | N45: kj/kg
A46: Soğutucu akışkan kondenser gaz entalpisi | B46: =[1]!PropsSI("H","P",B44,"Q",1,$P$9)/1000 -> 425.422083 | C46: =[1]!PropsSI("H","P",C44,"Q",1,$P$9)/1000 -> 425.422083 | D46: =[1]!PropsSI("H","P",D44,"Q",1,$P$9)/1000 -> 425.422083 | E46: =[1]!PropsSI("H","P",E44,"Q",1,$P$9)/1000 -> 425.422083 | F46: =[1]!PropsSI("H","P",F44,"Q",1,$P$9)/1000 -> 425.422083 | G46: =[1]!PropsSI("H","P",G44,"Q",1,$P$9)/1000 -> 425.422083 | H46: =[1]!PropsSI("H","P",H44,"Q",1,$P$9)/1000 -> 425.422083 | I46: =[1]!PropsSI("H","P",I44,"Q",1,$P$9)/1000 -> 425.422083 | J46: =[1]!PropsSI("H","P",J44,"Q",1,$P$9)/1000 -> 425.422083 | K46: =[1]!PropsSI("H","P",K44,"Q",1,$P$9)/1000 -> 425.422083 | L46: =[1]!PropsSI("H","P",L44,"Q",1,$P$9)/1000 -> 425.422083 | M46: =[1]!PropsSI("H","P",M44,"Q",1,$P$9)/1000 -> 425.422083 | N46: kj/kg
A47: Subcooling sonrası sıcaklık | B47: =B43-B32 -> 36 | C47: 36 | D47: 36 | E47: 36 | F47: 36 | G47: 36 | H47: 36 | I47: 36 | J47: 36 | K47: 36 | L47: 36 | M47: 36 | N47: C
A48: Subcooling sonrası entalpi | B48: =[1]!PropsSI("H","T",B47+273,"Q",0,$P$9)/1000 -> 250.2564222 | C48: =[1]!PropsSI("H","T",C47+273,"Q",0,$P$9)/1000 -> 250.2564222 | D48: =[1]!PropsSI("H","T",D47+273,"Q",0,$P$9)/1000 -> 250.2564222 | E48: =[1]!PropsSI("H","T",E47+273,"Q",0,$P$9)/1000 -> 250.2564222 | F48: =[1]!PropsSI("H","T",F47+273,"Q",0,$P$9)/1000 -> 250.2564222 | G48: =[1]!PropsSI("H","T",G47+273,"Q",0,$P$9)/1000 -> 250.2564222 | H48: =[1]!PropsSI("H","T",H47+273,"Q",0,$P$9)/1000 -> 250.2564222 | I48: =[1]!PropsSI("H","T",I47+273,"Q",0,$P$9)/1000 -> 250.2564222 | J48: =[1]!PropsSI("H","T",J47+273,"Q",0,$P$9)/1000 -> 250.2564222 | K48: =[1]!PropsSI("H","T",K47+273,"Q",0,$P$9)/1000 -> 250.2564222 | L48: =[1]!PropsSI("H","T",L47+273,"Q",0,$P$9)/1000 -> 250.2564222 | M48: =[1]!PropsSI("H","T",M47+273,"Q",0,$P$9)/1000 -> 250.2564222 | N48: kj/kg
A49: Expansion sonrası flaşh buhar yüzdesi | B49: =(B48-B39)/(B40-B39) -> 0.2809992221 | C49: =(C48-C39)/(C40-C39) -> 0.2870117414 | D49: 0.285065734 | E49: 0.2757833553 | F49: 0.2613437692 | G49: 0.2453118528 | H49: 0.2319088018 | I49: 0.224888924 | J49: 0.2263044134 | K49: 0.2357365959 | L49: 0.2504581114 | M49: 0.2664222745 | N49: %
A50: Expansion sonrası flaşh sıvı yüzdesi | B50: =1-B49 -> 0.7190007779 | C50: =1-C49 -> 0.7129882586 | D50: 0.714934266 | E50: 0.7242166447 | F50: 0.7386562308 | G50: 0.7546881472 | H50: 0.7680911982 | I50: 0.775111076 | J50: 0.7736955866 | K50: 0.7642634041 | L50: 0.7495418886 | M50: 0.7335777255 | N50: %
A51: Evaporatör soğutma kabiliyeti(sadece buharlaşma) | B51: =B50*(B40-B39) -> 145.4457875 | C51: =C50*(C40-C39) -> 144.7987 | D51: 145.0090332 | E51: 146.0005093 | F51: 147.5042758 | G51: 149.119411 | H51: 150.4262363 | I51: 151.0950589 | J51: 150.9610573 | K51: 150.0570272 | L51: 148.607155 | M51: 146.9807188 | N51: kj/kg
A52: Evaporatör soğutma kabiliyeti superheat dahil | B52: =B41-B48 -> 154.156912 | C52: =C41-C48 -> 153.4671208 | D52: 153.691266 | E52: 154.7487483 | F52: 156.355594 | G52: 158.0857418 | H52: 159.4891752 | I52: 160.2087618 | J52: 160.064515 | K52: 159.0923335 | L52: 157.536502 | M52: 155.795728 | N52: kj/kg
A53: Kompresör çıkış sıcaklığı | B53: =[1]!PropsSI("T","S",B42,"P",B44,$P$9) -> 344.652427 | C53: =[1]!PropsSI("T","S",C42,"P",C44,$P$9) -> 344.8459542 | D53: =[1]!PropsSI("T","S",D42,"P",D44,$P$9) -> 344.7824691 | E53: =[1]!PropsSI("T","S",E42,"P",E44,$P$9) -> 344.4906761 | F53: =[1]!PropsSI("T","S",F42,"P",F44,$P$9) -> 344.0707793 | G53: =[1]!PropsSI("T","S",G42,"P",G44,$P$9) -> 343.6485301 | H53: =[1]!PropsSI("T","S",H42,"P",H44,$P$9) -> 343.3273323 | I53: =[1]!PropsSI("T","S",I42,"P",I44,$P$9) -> 343.1696522 | J53: =[1]!PropsSI("T","S",J42,"P",J44,$P$9) -> 343.2008906 | K53: =[1]!PropsSI("T","S",K42,"P",K44,$P$9) -> 343.4162935 | L53: =[1]!PropsSI("T","S",L42,"P",L44,$P$9) -> 343.7793444 | M53: =[1]!PropsSI("T","S",M42,"P",M44,$P$9) -> 344.2139555 | N53: K
A54: Kompresör çıkış entalpisi | B54: =[1]!PropsSI("H","T",B53,"P",B44,$P$9)/1000 -> 444.7006518 | C54: =[1]!PropsSI("H","T",C53,"P",C44,$P$9)/1000 -> 444.927374 | D54: =[1]!PropsSI("H","T",D53,"P",D44,$P$9)/1000 -> 444.8530201 | E54: =[1]!PropsSI("H","T",E53,"P",E44,$P$9)/1000 -> 444.5110128 | F54: =[1]!PropsSI("H","T",F53,"P",F44,$P$9)/1000 -> 444.018098 | G54: =[1]!PropsSI("H","T",G53,"P",G44,$P$9)/1000 -> 443.5214954 | H54: =[1]!PropsSI("H","T",H53,"P",H44,$P$9)/1000 -> 443.1430996 | I54: =[1]!PropsSI("H","T",I53,"P",I44,$P$9)/1000 -> 442.9571343 | J54: =[1]!PropsSI("H","T",J53,"P",J44,$P$9)/1000 -> 442.9939872 | K54: =[1]!PropsSI("H","T",K53,"P",K44,$P$9)/1000 -> 443.2479589 | L54: =[1]!PropsSI("H","T",L53,"P",L44,$P$9)/1000 -> 443.6754456 | M54: =[1]!PropsSI("H","T",M53,"P",M44,$P$9)/1000 -> 444.1862736 | N54: kj/kg
A55: Basınçlandırma için gereken entalpi | B55: =B54-B41 -> 40.28731772 | C55: =C54-C41 -> 41.20383104 | D55: 40.9053319 | E55: 39.50584226 | F55: 37.40608183 | G55: 35.17933148 | H55: 33.39750224 | I55: 32.49195036 | J55: 32.67305005 | K55: 33.89920324 | L55: 35.88252142 | M55: 38.1341234 | N55: kj/kg
A56: Isı Pompası soğutma COP'si | B56: =IF(B52/B55*$P$8>Detaylı!$C$93,Detaylı!$C$93,B52/B55*$P$8) -> 2.487184515 | C56: =IF(C52/C55*$P$8>Detaylı!$C$93,Detaylı!$C$93,C52/C55*$P$8) -> 2.420979457 | D56: =IF(D52/D55*$P$8>Detaylı!$C$93,Detaylı!$C$93,D52/D55*$P$8) -> 2.442207857 | E56: =IF(E52/E55*$P$8>Detaylı!$C$93,Detaylı!$C$93,E52/E55*$P$8) -> 2.546121806 | F56: =IF(F52/F55*$P$8>Detaylı!$C$93,Detaylı!$C$93,F52/F55*$P$8) -> 2.716968234 | G56: =IF(G52/G55*$P$8>Detaylı!$C$93,Detaylı!$C$93,G52/G55*$P$8) -> 2.92091202 | H56: =IF(H52/H55*$P$8>Detaylı!$C$93,Detaylı!$C$93,H52/H55*$P$8) -> 3.104063387 | I56: =IF(I52/I55*$P$8>Detaylı!$C$93,Detaylı!$C$93,I52/I55*$P$8) -> 3.204969046 | J56: =IF(J52/J55*$P$8>Detaylı!$C$93,Detaylı!$C$93,J52/J55*$P$8) -> 3.184334936 | K56: =IF(K52/K55*$P$8>Detaylı!$C$93,Detaylı!$C$93,K52/K55*$P$8) -> 3.050514669 | L56: =IF(L52/L55*$P$8>Detaylı!$C$93,Detaylı!$C$93,L52/L55*$P$8) -> 2.853721596 | M56: =IF(M52/M55*$P$8>Detaylı!$C$93,Detaylı!$C$93,M52/M55*$P$8) -> 2.655553981 | N56: kW/kW
A57: Isı Pompası ısıtma COP'si | B57: =B56+1 -> 3.487184515 | C57: =C56+1 -> 3.420979457 | D57: 3.442207857 | E57: 3.546121806 | F57: 3.716968234 | G57: 3.92091202 | H57: 4.104063387 | I57: 4.204969046 | J57: 4.184334936 | K57: 4.050514669 | L57: 3.853721596 | M57: 3.655553981 | N57: kW/kW
A58: Soğutma için gereken güç | B58: =B60-B59 -> 24.96324976 | C58: =C60-C59 -> 24.76901193 | D58: 24.83210734 | E58: 25.13006267 | F58: 25.58372367 | G58: 26.07350539 | H58: 26.47186661 | I58: 26.67651423 | J58: 26.63546883 | K58: 26.35912276 | L58: 25.91787013 | M58: 25.42552779 | N58: kW
A59: Kompresör elektrik tüketimi | B59: =B60/B57 -> 10.03675024 | C59: =C60/C57 -> 10.23098807 | D59: 10.16789266 | E59: 9.869937334 | F59: 9.416276329 | G59: 8.926494608 | H59: 8.528133389 | I59: 8.323485766 | J59: 8.36453117 | K59: 8.640877236 | L59: 9.082129865 | M59: 9.574472209 | N59: kW
A60: Isıtma gücü | B60: =Detaylı!F53 -> 35 | C60: =Detaylı!G53 -> 35 | D60: =Detaylı!H53 -> 35 | E60: =Detaylı!I53 -> 35 | F60: =Detaylı!J53 -> 35 | G60: =Detaylı!K53 -> 35 | H60: =Detaylı!L53 -> 35 | I60: =Detaylı!M53 -> 35 | J60: =Detaylı!N53 -> 35 | K60: =Detaylı!O53 -> 35 | L60: =Detaylı!P53 -> 35 | M60: =Detaylı!Q53 -> 35 | N60: kW

Sheet Veriler (hidden)
A1: il_id | B1: il_adi | G1: Enlem | H1: =VLOOKUP(Detaylı!C3,Veriler!B83:D1039,2,FALSE) -> 0 | J1: 1 | O1: Soğutucu Akışkanlar
A2: 1 | B2: ADANA | G2: Boylam | H2: =VLOOKUP(Detaylı!C3,Veriler!B83:D1039,3,FALSE) -> 0 | J2: 3
A3: 2 | B3: ADIYAMAN | O3: R1233zd(E) | Q3: Scroll | R3: 0.65
A4: 3 | B4: AFYONKARAHİSAR | O4: R1234yf | Q4: Piston | R4: 0.6
A5: 4 | B5: AĞRI | O5: R1234ze(E) | Q5: Vidalı | R5: 0.73
A6: 5 | B6: AMASYA | O6: R1234ze(Z) | Q6: Santrifüj | R6: 0.85
A7: 6 | B7: ANKARA | G7: Doğal zemin | H7: 0.02 | K7: Doğalgaz | L7: 8250 | M7: kCal/Sm3 | N7: Sm3 | O7: R134a
A8: 7 | B8: ANTALYA | G8: Kuru toprak | H8: 0.001 | K8: Fuel Oil | L8: 9200 | M8: kCal/lt | N8: lt | O8: R22
A9: 8 | B9: ARTVİN | G9: Killi kuru toprak | H9: 0.01 | K9: Kömür | L9: 6000 | M9: kCal/kg | N9: kg | O9: R227EA
A10: 9 | B10: AYDIN | G10: Killi nemli toprak | H10: 0.002 | K10: Talaş | L10: 4500 | M10: kCal/kg | N10: kg | O10: R245fa
A11: 10 | B11: BALIKESİR | G11: Islak Kil | H11: 0.015 | K11: Elektrik | L11: 1 | M11: kWh | N11: kWh | O11: R365MFC
A12: 11 | B12: BİLECİK | K12: Diğer Yakıt | O12: R404A
A13: 12 | B13: BİNGÖL | G13: Seçim | H13: =VLOOKUP(Detaylı!C22,Veriler!G7:H11,2,) -> 0.02 | O13: R407C
A14: 13 | B14: BİTLİS | M14: =VLOOKUP(Detaylı!C7,Veriler!K7:N12,3,FALSE) -> kCal/Sm3 | N14: =VLOOKUP(Detaylı!C7,Veriler!K7:N12,4,FALSE) -> Sm3 | O14: R410A
A15: 14 | B15: BOLU | O15: R507A
A16: 15 | B16: BURDUR
A17: 16 | B17: BURSA
A18: 17 | B18: ÇANAKKALE | G18: DN15 | H18: 15.7
A19: 18 | B19: ÇANKIRI | G19: DN20 | H19: 21.1
A20: 19 | B20: ÇORUM | G20: DN25 | H20: 26.9
A21: 20 | B21: DENİZLİ | G21: DN32 | H21: 35.2
A22: 21 | B22: DİYARBAKIR | G22: DN40 | H22: 40.9
A23: 22 | B23: EDİRNE | G23: DN50 | H23: 52.5
A24: 23 | B24: ELAZIĞ | G24: DN65 | H24: 62.6
A25: 24 | B25: ERZİNCAN | G25: DN80 | H25: 77.9
A26: 25 | B26: ERZURUM | G26: DN100 | H26: 102.3
A27: 26 | B27: ESKİŞEHİR | G27: DN125 | H27: 127.8
A28: 27 | B28: GAZİANTEP | G28: DN150 | H28: 154.1
A29: 28 | B29: GİRESUN | G29: DN200 | H29: 202.74
A30: 29 | B30: GÜMÜŞHANE
A31: 30 | B31: HAKKARİ | G31: Doğal zemin | H31: 0.255
A32: 31 | B32: HATAY | G32: Kuru toprak | H32: 0.237
A33: 32 | B33: ISPARTA | G33: Killi kuru toprak | H33: 0.225
A34: 33 | B34: MERSİN(İÇEL) | G34: Killi nemli toprak | H34: 0.285
A35: 34 | B35: İSTANBUL
A36: 35 | B36: İZMİR | G36: Seçim | H36: =VLOOKUP(Detaylı!C22,Veriler!G31:H34,2,) -> 0.255
A37: 36 | B37: KARS
A38: 37 | B38: KASTAMONU | G38: En Yüksek Kapasite Gereksinimi | H38: =MAX(Detaylı!F11:Q11) -> 100
A39: 38 | B39: KAYSERİ
A40: 39 | B40: KIRKLARELİ
A41: 40 | B41: KIRŞEHİR
A42: 41 | B42: KOCAELİ
A43: 42 | B43: KONYA | H43: ADANA | I43: ADIYAMAN | J43: AFYONKARAHİSAR | K43: AĞRI | L43: AMASYA | M43: ANKARA | N43: ANTALYA | O43: ARTVİN | P43: AYDIN | Q43: BALIKESİR | R43: BİLECİK | S43: BİNGÖL | T43: BİTLİS | U43: BOLU | V43: BURDUR | W43: BURSA | X43: ÇANAKKALE | Y43: ÇANKIRI | Z43: ÇORUM | AA43: DENİZLİ | AB43: DİYARBAKIR | AC43: EDİRNE | AD43: ELAZIĞ | AE43: ERZİNCAN | AF43: ERZURUM | AG43: ESKİŞEHİR | AH43: GAZİANTEP | AI43: GİRESUN | AJ43: GÜMÜŞHANE | AK43: HAKKARİ | AL43: HATAY | AM43: ISPARTA | AN43: MERSİN(İÇEL) | AO43: İSTANBUL | AP43: İZMİR | AQ43: KARS | AR43: KASTAMONU | AS43: KAYSERİ | AT43: KIRKLARELİ | AU43: KIRŞEHİR | AV43: KOCAELİ | AW43: KONYA | AX43: KÜTAHYA | AY43: MALATYA | AZ43: MANİSA | BA43: KAHRAMANMARAŞ | BB43: MARDİN | BC43: MUĞLA | BD43: MUŞ | BE43: NEVŞEHİR | BF43: NİĞDE | BG43: ORDU | BH43: RİZE | BI43: SAKARYA | BJ43: SAMSUN | BK43: SİİRT | BL43: SİNOP | BM43: SİVAS | BN43: TEKİRDAĞ | BO43: TOKAT | BP43: TRABZON | BQ43: TUNCELİ | BR43: ŞANLIURFA | BS43: UŞAK | BT43: VAN | BU43: YOZGAT | BV43: ZONGULDAK | BW43: AKSARAY | BX43: BAYBURT | BY43: KARAMAN | BZ43: KIRIKKALE | CA43: BATMAN | CB43: ŞIRNAK | CC43: BARTIN | CD43: ARDAHAN | CE43: IĞDIR | CF43: YALOVA | CG43: KARABÜK | CH43: KİLİS | CI43: OSMANİYE | CJ43: DÜZCE
A44: 43 | B44: KÜTAHYA | H44: ALADAĞ(KARSANTI) | I44: ADIYAMAN | J44: AFYON | K44: AĞRI | L44: AMASYA | M44: AKYURT | N44: AKSEKİ | O44: ARDANUÇ | P44: AYDIN | Q44: AYVALIK | R44: BİLECİK | S44: ADAKLI | T44: ADİLCEVAZ | U44: BOLU | V44: AĞLASUN | W44: BÜYÜKORHAN | X44: AYVACIK | Y44: ATKARACALAR | Z44: ALACA | AA44: ACIPAYAM | AB44: BAĞLAR | AC44: EDİRNE | AD44: AĞIN | AE44: ÇAYIRLI | AF44: AŞKALE | AG44: ALPU | AH44: ARABAN | AI44: ALUCRA | AJ44: GÜMÜŞHANE | AK44: ÇUKURCA | AL44: ALTINÖZÜ | AM44: AKSU | AN44: AKDENİZ | AO44: ADALAR | AP44: ALİAĞA | AQ44: AKYAKA | AR44: ABANA | AS44: AKKIŞLA | AT44: BABAESKİ | AU44: AKÇAKENT | AV44: BAŞİSKELE | AW44: AHIRLI | AX44: ALTINTAŞ | AY44: AKÇADAĞ | AZ44: AHMETLİ | BA44: AFŞİN | BB44: DARGEÇİT | BC44: BODRUM | BD44: BULANIK | BE44: ACIGÖL | BF44: ALTUNHİSAR | BG44: AKKUŞ | BH44: ARDEŞEN | BI44: ADAPAZARI | BJ44: ALAÇAM | BK44: AYDINLAR | BL44: AYANCIK | BM44: AKINCILAR | BN44: ÇERKEZKÖY | BO44: ALMUS | BP44: AKÇAABAT | BQ44: ÇEMİŞGEZEK | BR44: AKÇAKALE | BS44: BANAZ | BT44: BAHÇESARAY | BU44: AKDAĞMADENİ | BV44: ALAPLI | BW44: AĞAÇÖREN | BX44: AYDINTEPE | BY44: AYRANCI | BZ44: BAHŞİLİ | CA44: BATMAN | CB44: BEYTÜŞŞEBAP | CC44: AMASRA | CD44: ARDAHAN | CE44: ARALIK | CF44: ALTINOVA | CG44: EFLANİ | CH44: ELBEYLİ | CI44: BAHÇE | CJ44: AKÇAKOCA
A45: 44 | B45: MALATYA | H45: CEYHAN | I45: BESNİ | J45: BAŞMAKÇI | K45: DİYADİN | L45: GÖYNÜCEK | M45: ALTINDAĞ | N45: AKSU | O45: ARHAVİ | P45: BOZDOĞAN | Q45: BALIKESİR | R45: BOZÜYÜK | S45: BİNGÖL | T45: AHLAT | U45: DÖRTDİVAN | V45: ALTINYAYLA(DİRMİL) | W45: GEMLİK | X45: BAYRAMİÇ | Y45: BAYRAMÖREN | Z45: BAYAT | AA45: AKKÖY | AB45: BİSMİL | AC45: ENEZ | AD45: ALACAKAYA | AE45: ERZİNCAN | AF45: AZİZİYE(ILICA) | AG45: BEYLİKOVA | AH45: İSLAHİYE | AI45: BULANCAK | AJ45: KELKİT | AK45: HAKKARİ | AL45: ANTAKYA | AM45: ATABEY | AN45: ANAMUR | AO45: ARNAVUTKÖY | AP45: BALÇOVA | AQ45: ARPAÇAY | AR45: AĞLI | AS45: BÜNYAN | AT45: DEMİRKÖY | AU45: AKPINAR | AV45: ÇAYIROVA | AW45: AKÖREN | AX45: ASLANAPA | AY45: ARAPKİR(ARAPGİR) | AZ45: AKHİSAR | BA45: ANDIRIN | BB45: DERİK | BC45: DALAMAN | BD45: HASKÖY | BE45: AVANOS | BF45: BOR | BG45: AYBASTI | BH45: ÇAMLIHEMŞİN | BI45: AKYAZI | BJ45: ASARCIK | BK45: BAYKAN | BL45: BOYABAT | BM45: ALTINYAYLA | BN45: ÇORLU | BO45: ARTOVA | BP45: ARAKLI | BQ45: HOZAT | BR45: BİRECİK | BS45: EŞME | BT45: BAŞKALE | BU45: AYDINCIK | BV45: ÇAYCUMA | BW45: AKSARAY | BX45: BAYBURT | BY45: BAŞYAYLA | BZ45: BALIŞEYH | CA45: BEŞİRİ | CB45: CİZRE | CC45: BARTIN | CD45: ÇILDIR | CE45: IĞDIR | CF45: ARMUTLU | CG45: ESKİPAZAR | CH45: KİLİS | CI45: DÜZİÇİ | CJ45: CUMAYERİ
A46: 45 | B46: MANİSA | H46: ÇUKUROVA | I46: ÇELİKHAN | J46: BAYAT | K46: DOĞUBAYAZIT(DOĞUBEYAZIT) | L46: GÜMÜŞHACIKÖY | M46: AYAŞ | N46: ALANYA | O46: ARTVİN | P46: BUHARKENT(ÇUBUKDAĞI) | Q46: BALYA | R46: GÖLPAZARI | S46: GENÇ | T46: BİTLİS | U46: GEREDE | V46: BUCAK | W46: GÜRSU | X46: BİGA | Y46: ÇANKIRI | Z46: BOĞAZKALE | AA46: BABADAĞ | AB46: ÇERMİK | AC46: HAVSA | AD46: ARICAK | AE46: ILIÇ(İLİÇ) | AF46: ÇAT | AG46: ÇİFTELER | AH46: KARKAMIŞ | AI46: ÇAMOLUK | AJ46: KÖSE | AK46: ŞEMDİNLİ | AL46: BELEN | AM46: EĞİRDİR(EĞRİDİR) | AN46: AYDINCIK | AO46: ATAŞEHİR | AP46: BAYINDIR | AQ46: DİGOR | AR46: ARAÇ | AS46: DEVELİ | AT46: KIRKLARELİ | AU46: BOZTEPE | AV46: DARICA | AW46: AKŞEHİR | AX46: ÇAVDARHİSAR | AY46: ARGUVAN | AZ46: ALAŞEHİR | BA46: ÇAĞLIYANCERİT | BB46: KIZILTEPE | BC46: DATÇA | BD46: KORKUT | BE46: DERİNKUYU | BF46: ÇAMARDI | BG46: ÇAMAŞ | BH46: ÇAYELİ | BI46: ARİFİYE | BJ46: ATAKUM | BK46: ERUH | BL46: DİKMEN | BM46: DİVRİĞİ | BN46: HAYRABOLU | BO46: BAŞÇİFTLİK | BP46: ARSİN | BQ46: MAZGİRT | BR46: BOZOVA | BS46: KARAHALLI | BT46: ÇALDIRAN | BU46: BOĞAZLIYAN | BV46: DEVREK | BW46: ESKİL | BX46: DEMİRÖZÜ | BY46: ERMENEK | BZ46: ÇELEBİ | CA46: GERCÜŞ | CB46: GÜÇLÜKONAK | CC46: KURUCAŞİLE | CD46: DAMAL | CE46: KARAKOYUNLU | CF46: ÇINARCIK | CG46: KARABÜK | CH46: MUSABEYLİ | CI46: HASANBEYLİ | CJ46: ÇİLİMLİ
A47: 46 | B47: KAHRAMANMARAŞ | H47: FEKE | I47: GERGER | J47: BOLVADİN | K47: ELEŞKİRT | L47: HAMAMÖZÜ | M47: BALA | N47: DEMRE(KALE) | O47: BORÇKA | P47: ÇİNE | Q47: BANDIRMA | R47: İNHİSAR | S47: KARLIOVA | T47: GÜROYMAK | U47: GÖYNÜK | V47: BURDUR | W47: HARMANCIK | X47: BOZCAADA | Y47: ÇERKEŞ | Z47: ÇORUM | AA47: BAKLAN | AB47: ÇINAR | AC47: İPSALA | AD47: BASKİL | AE47: KEMAH | AF47: HINIS | AG47: GÜNYÜZÜ | AH47: NİZİP | AI47: ÇANAKÇI | AJ47: KÜRTÜN | AK47: YÜKSEKOVA | AL47: DÖRTYOL | AM47: GELENDOST | AN47: BOZYAZI | AO47: AVCILAR | AP47: BAYRAKLI | AQ47: KAĞIZMAN | AR47: AZDAVAY | AS47: FELAHİYE | AT47: KOFÇAZ | AU47: ÇİÇEKDAĞI | AV47: DERİNCE | AW47: ALTINEKİN | AX47: DOMANİÇ | AY47: BATTALGAZİ | AZ47: DEMİRCİ | BA47: EKİNÖZÜ | BB47: MARDİN | BC47: FETHİYE | BD47: MALAZGİRT | BE47: GÜLŞEHİR | BF47: ÇİFTLİK(ÖZYURT) | BG47: ÇATALPINAR | BH47: DEREPAZARI | BI47: ERENLER | BJ47: AYVACIK | BK47: KURTALAN | BL47: DURAĞAN | BM47: DOĞANŞAR | BN47: MALKARA | BO47: ERBAA | BP47: BEŞİKDÜZÜ | BQ47: NAZIMİYE | BR47: CEYLANPINAR | BS47: SİVASLI | BT47: ÇATAK | BU47: ÇANDIR | BV47: GÖKÇEBEY | BW47: GÜLAĞAÇ | BY47: KARAMAN | BZ47: DELİCE | CA47: HASANKEYF | CB47: İDİL | CC47: ULUS | CD47: GÖLE | CE47: TUZLUCA | CF47: ÇİFTLİKKÖY | CG47: OVACIK | CH47: POLATELİ | CI47: KADİRLİ | CJ47: DÜZCE
A48: 47 | B48: MARDİN | H48: İMAMOĞLU | I48: GÖLBAŞI | J48: ÇAY | K48: HAMUR | L48: MERZİFON | M48: BEYPAZARI | N48: DÖŞEMEALTI | O48: HOPA | P48: DİDİM(YENİHİSAR) | Q48: BİGADİÇ | R48: OSMANELİ | S48: KİĞI | T48: HİZAN | U48: KIBRISCIK | V48: ÇAVDIR | W48: İNEGÖL | X48: ÇAN | Y48: ELDİVAN | Z48: DODURGA | AA48: BEKİLLİ | AB48: ÇÜNGÜŞ | AC48: KEŞAN | AD48: ELAZIĞ | AE48: KEMALİYE | AF48: HORASAN | AG48: HAN | AH48: NURDAĞI | AI48: DERELİ | AJ48: ŞİRAN | AL48: ERZİN | AM48: GÖNEN | AN48: ÇAMLIYAYLA | AO48: BAĞCILAR | AP48: BERGAMA | AQ48: KARS | AR48: BOZKURT | AS48: HACILAR | AT48: LÜLEBURGAZ | AU48: KAMAN | AV48: DİLOVASI | AW48: BEYŞEHİR | AX48: DUMLUPINAR | AY48: DARENDE | AZ48: GÖLMARMARA | BA48: ELBİSTAN | BB48: MAZIDAĞI | BC48: KAVAKLIDERE | BD48: MUŞ | BE48: HACIBEKTAŞ | BF48: NİĞDE | BG48: ÇAYBAŞI | BH48: FINDIKLI | BI48: FERİZLİ | BJ48: BAFRA | BK48: PERVARİ | BL48: ERFELEK | BM48: GEMEREK | BN48: MARMARAEREĞLİSİ | BO48: NİKSAR | BP48: ÇARŞIBAŞI | BQ48: OVACIK | BR48: HALFETİ | BS48: ULUBEY | BT48: EDREMİT(GÜMÜŞDERE) | BU48: ÇAYIRALAN | BV48: KARADENİZEREĞLİ | BW48: GÜZELYURT | BY48: KAZIMKARABEKİR | BZ48: KARAKEÇİLİ | CA48: KOZLUK | CB48: SİLOPİ | CD48: HANAK | CF48: TERMAL | CG48: SAFRANBOLU | CI48: OSMANİYE | CJ48: GÖLYAKA
A49: 48 | B49: MUĞLA | H49: KARAİSALI | I49: KAHTA | J49: ÇOBANLAR | K49: PATNOS | L49: SULUOVA | M49: ÇAMLIDERE | N49: ELMALI | O49: MURGUL(GÖKTAŞ) | P49: GERMENCİK | Q49: BURHANİYE | R49: PAZARYERİ | S49: SOLHAN | T49: MUTKİ | U49: MENGEN | V49: ÇELTİKÇİ | W49: İZNİK | X49: ÇANAKKALE | Y49: ILGAZ | Z49: İSKİLİP | AA49: BEYAĞAÇ | AB49: DİCLE | AC49: LALAPAŞA | AD49: KARAKOÇAN | AE49: OTLUKBELİ | AF49: İSPİR | AG49: İNÖNÜ | AH49: OĞUZELİ | AI49: DOĞANKENT | AJ49: TORUL | AL49: HASSA | AM49: ISPARTA | AN49: ERDEMLİ | AO49: BAHÇELİEVLER | AP49: BEYDAĞ | AQ49: SARIKAMIŞ | AR49: CİDE | AS49: İNCESU | AT49: PEHLİVANKÖY | AU49: KIRŞEHİR | AV49: GEBZE | AW49: BOZKIR | AX49: EMET | AY49: DOĞANŞEHİR | AZ49: GÖRDES | BA49: GÖKSUN | BB49: MİDYAT(ESTEL) | BC49: KÖYCEĞİZ | BD49: VARTO | BE49: KOZAKLI | BF49: ULUKIŞLA | BG49: FATSA | BH49: GÜNEYSU | BI49: GEYVE | BJ49: CANİK | BK49: SİİRT | BL49: GERZE | BM49: GÖLOVA | BN49: MURATLI | BO49: PAZAR | BP49: ÇAYKARA | BQ49: PERTEK | BR49: HARRAN | BS49: UŞAK | BT49: ERCİŞ | BU49: ÇEKEREK | BV49: ZONGULDAK | BW49: ORTAKÖY | BY49: SARIVELİLER | BZ49: KESKİN | CA49: SASON | CB49: ŞIRNAK | CD49: POSOF | CF49: YALOVA | CG49: YENİCE | CI49: SUMBAS | CJ49: GÜMÜŞOVA
A50: 49 | B50: MUŞ | H50: KARATAŞ | I50: SAMSAT | J50: DAZKIRI | K50: TAŞLIÇAY | L50: TAŞOVA | M50: ÇANKAYA | N50: FİNİKE | O50: ŞAVŞAT | P50: İNCİRLİOVA | Q50: DURSUNBEY | R50: SÖĞÜT | S50: YAYLADERE | T50: TATVAN | U50: MUDURNU | V50: GÖLHİSAR | W50: KARACABEY | X50: ECEABAT | Y50: KIZILIRMAK | Z50: KARGI | AA50: BOZKURT | AB50: EĞİL | AC50: MERİÇ | AD50: KEBAN | AE50: REFAHİYE | AF50: KARAÇOBAN | AG50: MAHMUDİYE | AH50: ŞAHİNBEY | AI50: ESPİYE | AL50: İSKENDERUN | AM50: KEÇİBORLU | AN50: GÜLNAR (GÜLPINAR) | AO50: BAKIRKÖY | AP50: BORNOVA | AQ50: SELİM | AR50: ÇATALZEYTİN | AS50: KOCASİNAN | AT50: PINARHİSAR | AU50: MUCUR | AV50: GÖLCÜK | AW50: CİHANBEYLİ | AX50: GEDİZ | AY50: DOĞANYOL | AZ50: KIRKAĞAÇ | BA50: KAHRAMANMARAŞ | BB50: NUSAYBİN | BC50: MARMARİS | BE50: NEVŞEHİR | BG50: GÖLKÖY | BH50: HEMŞİN | BI50: HENDEK | BJ50: ÇARŞAMBA | BK50: ŞİRVAN | BL50: SARAYDÜZÜ | BM50: GÜRÜN | BN50: SARAY | BO50: REŞADİYE | BP50: DERNEKPAZARI | BQ50: PÜLÜMÜR | BR50: HİLVAN | BT50: GEVAŞ | BU50: KADIŞEHRİ | BW50: SARIYAHŞİ | BZ50: KIRIKKALE | CB50: ULUDERE | CI50: TOPRAKKALE | CJ50: KAYNAŞLI
A51: 50 | B51: NEVŞEHİR | H51: KOZAN | I51: SİNCİK | J51: DİNAR | K51: TUTAK | M51: ÇUBUK | N51: GAZİPAŞA | O51: YUSUFELİ | P51: KARACASU | Q51: EDREMİT | R51: YENİPAZAR | S51: YEDİSU | U51: SEBEN | V51: KARAMANLI | W51: KELES | X51: EZİNE | Y51: KORGUN | Z51: LAÇİN | AA51: BULDAN | AB51: ERGANİ | AC51: SÜLOĞLU(SÜLEOĞLU) | AD51: KOVANCILAR | AE51: TERCAN | AF51: KARAYAZI | AG51: MİHALGAZİ | AH51: ŞEHİTKAMİL | AI51: EYNESİL | AL51: KIRIKHAN | AM51: SENİRKENT | AN51: MEZİTLİ | AO51: BAŞAKŞEHİR | AP51: BUCA | AQ51: SUSUZ | AR51: DADAY | AS51: MELİKGAZİ | AT51: VİZE | AV51: İZMİT | AW51: ÇELTİK | AX51: HİSARCIK | AY51: HEKİMHAN | AZ51: KÖPRÜBAŞI | BA51: NURHAK | BB51: ÖMERLİ | BC51: MİLAS | BE51: ÜRGÜP | BG51: GÜLYALI | BH51: İKİZDERE | BI51: KARAPÜRÇEK | BJ51: HAVZA | BL51: SİNOP | BM51: HAFİK | BN51: ŞARKÖY | BO51: SULUSARAY | BP51: DÜZKÖY | BQ51: TUNCELİ | BR51: SİVEREK | BT51: GÜRPINAR | BU51: SARAYKENT | BZ51: SULAKYURT | CJ51: YIĞILCA
A52: 51 | B52: NİĞDE | H52: POZANTI | I52: TUT | J52: EMİRDAĞ | M52: ELMADAĞ | N52: GÜNDOĞMUŞ | P52: KARPUZLU | Q52: ERDEK | U52: YENİÇAĞA | V52: KEMER | W52: KESTEL | X52: GELİBOLU | Y52: KURŞUNLU | Z52: MECİTÖZÜ | AA52: ÇAL | AB52: HANİ | AC52: UZUNKÖPRÜ | AD52: MADEN | AE52: ÜZÜMLÜ | AF52: KÖPRÜKÖY | AG52: MİHALIÇÇIK | AH52: YAVUZELİ | AI52: GİRESUN | AL52: KUMLU | AM52: SÜTÇÜLER | AN52: MUT | AO52: BAYRAMPAŞA | AP52: ÇEŞME | AR52: DEVREKANİ | AS52: ÖZVATAN(ÇUKUR) | AV52: KANDIRA | AW52: ÇUMRA | AX52: KÜTAHYA | AY52: KALE | AZ52: KULA | BA52: PAZARCIK | BB52: SAVUR | BC52: MUĞLA | BG52: GÜRGENTEPE | BH52: İYİDERE | BI52: KARASU | BJ52: İLKADIM | BL52: TÜRKELİ | BM52: İMRANLI | BN52: TEKİRDAĞ | BO52: TOKAT | BP52: HAYRAT | BR52: SURUÇ | BT52: MURADİYE | BU52: SARIKAYA | BZ52: YAHŞİHAN
A53: 52 | B53: ORDU | H53: SAİMBEYLİ | J53: EVCİLER | M53: ETİMESGUT | N53: İBRADI(AYDINKENT) | P53: KOÇARLI | Q53: GÖMEÇ | V53: TEFENNİ | W53: MUDANYA | X53: GÖKÇEADA(İMROZ) | Y53: ORTA | Z53: OĞUZLAR(KARAÖREN) | AA53: ÇAMELİ | AB53: HAZRO | AD53: PALU | AF53: NARMAN | AG53: ODUNPAZARI | AI53: GÖRELE | AL53: REYHANLI | AM53: ŞARKİKARAAĞAÇ | AN53: SİLİFKE | AO53: BEŞİKTAŞ | AP53: ÇİĞLİ | AR53: DOĞANYURT | AS53: PINARBAŞI | AV53: KARAMÜRSEL | AW53: DERBENT | AX53: PAZARLAR | AY53: KULUNCAK | AZ53: MANİSA | BA53: TÜRKOĞLU | BB53: YEŞİLLİ | BC53: ORTACA | BG53: İKİZCE | BH53: KALKANDERE | BI53: KAYNARCA | BJ53: KAVAK | BM53: KANGAL | BO53: TURHAL | BP53: KÖPRÜBAŞI | BR53: ŞANLIURFA | BT53: ÖZALP | BU53: SORGUN
A54: 53 | B54: RİZE | H54: SARIÇAM | J54: HOCALAR | M54: EVREN | N54: KAŞ | P54: KÖŞK | Q54: GÖNEN | V54: YEŞİLOVA | W54: MUSTAFAKEMALPAŞA | X54: LAPSEKİ | Y54: ŞABANÖZÜ | Z54: ORTAKÖY | AA54: ÇARDAK | AB54: KAYAPINAR | AD54: SİVRİCE | AF54: OLTU | AG54: SARICAKAYA | AI54: GÜCE | AL54: SAMANDAĞ | AM54: ULUBORLU | AN54: TARSUS | AO54: BEYKOZ | AP54: DİKİLİ | AR54: HANÖNÜ(GÖKÇEAĞAÇ) | AS54: SARIOĞLAN | AV54: KARTEPE | AW54: DEREBUCAK | AX54: SİMAV | AY54: MALATYA | AZ54: SALİHLİ | BC54: ULA | BG54: KABADÜZ(KARADÜZ) | BH54: PAZAR | BI54: KOCAALİ | BJ54: LADİK | BM54: KOYULHİSAR | BO54: YEŞİLYURT | BP54: MAÇKA | BR54: VİRANŞEHİR | BT54: SARAY | BU54: ŞEFAATLİ
A55: 54 | B55: SAKARYA | H55: SEYHAN | J55: İHSANİYE | M55: GÖLBAŞI | N55: KEMER | P55: KUŞADASI | Q55: HAVRAN | W55: NİLÜFER | X55: YENİCE | Y55: YAPRAKLI | Z55: OSMANCIK | AA55: ÇİVRİL | AB55: KOCAKÖY | AF55: OLUR | AG55: SEYİTGAZİ | AI55: KEŞAP | AL55: YAYLADAĞI | AM55: YALVAÇ | AN55: TOROSLAR | AO55: BEYLİKDÜZÜ | AP55: FOÇA | AR55: İHSANGAZİ | AS55: SARIZ | AV55: KÖRFEZ(TÜTÜNÇİFTLİK) | AW55: DOĞANHİSAR | AX55: ŞAPHANE | AY55: PÜTÜRGE(PÖTÜRGE) | AZ55: SARIGÖL | BC55: YATAĞAN | BG55: KABATAŞ | BH55: RİZE | BI55: PAMUKOVA | BJ55: ONDOKUZMAYIS(BALLICA) | BM55: SİVAS | BO55: ZİLE | BP55: OF | BT55: VAN | BU55: YENİFAKILI
A56: 55 | B56: SAMSUN | H56: TUFANBEYLİ | J56: İSCEHİSAR | M56: GÜDÜL | N56: KEPEZ | P56: KUYUCAK | Q56: İVRİNDİ | W56: ORHANELİ | Z56: SUNGURLU | AA56: DENİZLİ | AB56: KULP | AF56: PALANDÖKEN | AG56: SİVRİHİSAR | AI56: PİRAZİZ | AM56: YENİŞARBADEMLİ | AN56: YENİŞEHİR | AO56: BEYOĞLU | AP56: GAZİEMİR | AR56: İNEBOLU | AS56: TALAS | AW56: EMİRGAZİ | AX56: TAVŞANLI | AY56: YAZIHAN | AZ56: SARUHANLI | BG56: KORGAN | BI56: SAPANCA | BJ56: SALIPAZARI | BM56: SUŞEHRİ | BP56: SÜRMENE | BU56: YERKÖY
A57: 56 | B57: SİİRT | H57: YUMURTALIK | J57: KIZILÖREN | M57: HAYMANA | N57: KONYAALTI | P57: NAZİLLİ | Q57: KEPSUT | W57: ORHANGAZİ | Z57: UĞURLUDAĞ | AA57: GÜNEY | AB57: LİCE | AF57: PASİNLER | AG57: TEPEBAŞI | AI57: ŞEBİNKARAHİSAR | AO57: BÜYÜKÇEKMECE | AP57: GÜZELBAHÇE | AR57: KASTAMONU | AS57: TOMARZA | AW57: EREĞLİ | AY57: YEŞİLYURT | AZ57: SELENDİ | BG57: KUMRU | BI57: SERDİVAN | BJ57: TEKKEKÖY | BM57: ŞARKIŞLA | BP57: ŞALPAZARI | BU57: YOZGAT
A58: 57 | B58: SİNOP | H58: YÜREĞİR | J58: SANDIKLI | M58: KALECİK | N58: KORKUTELİ | P58: SÖKE | Q58: MANYAS | W58: OSMANGAZİ | AA58: HONAZ | AB58: SİLVAN | AF58: PAZARYOLU | AI58: TİREBOLU | AO58: ÇATALCA | AP58: KARABAĞLAR | AR58: KÜRE | AS58: YAHYALI | AW58: GÜNEYSINIR | AZ58: SOMA | BG58: MESUDİYE | BI58: SÖĞÜTLÜ | BJ58: TERME | BM58: ULAŞ | BP58: TONYA
A59: 58 | B59: SİVAS | J59: SİNCANLI(SİNANPAŞA) | M59: KAZAN | N59: KUMLUCA | P59: SULTANHİSAR | Q59: MARMARA | W59: YENİŞEHİR | AA59: KALE | AB59: SUR | AF59: ŞENKAYA | AI59: YAĞLIDERE | AO59: ÇEKMEKÖY | AP59: KARABURUN | AR59: PINARBAŞI | AS59: YEŞİLHİSAR | AW59: HADİM | AZ59: TURGUTLU | BG59: ORDU | BI59: TARAKLI | BJ59: VEZİRKÖPRÜ | BM59: YILDIZELİ | BP59: TRABZON
A60: 59 | B60: TEKİRDAĞ | J60: SULTANDAĞI | M60: KEÇİÖREN | N60: MANAVGAT | P60: YENİPAZAR | Q60: SAVAŞTEPE | W60: YILDIRIM | AA60: SARAYKÖY | AB60: YENİŞEHİR | AF60: TEKMAN | AO60: ESENLER | AP60: KARŞIYAKA | AR60: SEYDİLER | AW60: HALKAPINAR | BG60: PERŞEMBE | BJ60: YAKAKENT | BM60: ZARA | BP60: VAKFIKEBİR
A61: 60 | B61: TOKAT | J61: ŞUHUT | M61: KIZILCAHAMAM | N61: MURATPAŞA | Q61: SINDIRGI | AA61: SERİNHİSAR | AF61: TORTUM | AO61: ESENYURT | AP61: KEMALPAŞA | AR61: ŞENPAZAR | AW61: HÜYÜK | BG61: ULUBEY | BP61: YOMRA
A62: 61 | B62: TRABZON | M62: MAMAK | N62: SERİK | Q62: SUSURLUK | AA62: TAVAS | AF62: UZUNDERE | AO62: EYÜP | AP62: KINIK | AR62: TAŞKÖPRÜ | AW62: ILGIN | BG62: ÜNYE
A63: 62 | B63: TUNCELİ | M63: NALLIHAN | AF63: YAKUTİYE | AO63: FATİH | AP63: KİRAZ | AR63: TOSYA | AW63: KADINHANI
A64: 63 | B64: ŞANLIURFA | M64: POLATLI | AO64: GAZİOSMANPAŞA | AP64: KONAK | AW64: KARAPINAR
A65: 64 | B65: UŞAK | M65: PURSAKLAR | AO65: GÜNGÖREN | AP65: MENDERES(CUMAOVASI) | AW65: KARATAY
A66: 65 | B66: VAN | M66: SİNCAN | AO66: KADIKÖY | AP66: MENEMEN | AW66: KULU
A67: 66 | B67: YOZGAT | M67: ŞEREFLİKOÇHİSAR | AO67: KAĞITHANE | AP67: NARLIDERE | AW67: MERAM
A68: 67 | B68: ZONGULDAK | M68: YENİMAHALLE | AO68: KARTAL | AP68: ÖDEMİŞ | AW68: SARAYÖNÜ
A69: 68 | B69: AKSARAY | AO69: KÜÇÜKÇEKMECE | AP69: SEFERİHİSAR | AW69: SELÇUKLU
A70: 69 | B70: BAYBURT | AO70: MALTEPE | AP70: SELÇUK | AW70: SEYDİŞEHİR
A71: 70 | B71: KARAMAN | AO71: PENDİK | AP71: TİRE | AW71: TAŞKENT
A72: 71 | B72: KIRIKKALE | AO72: SANCAKTEPE | AP72: TORBALI | AW72: TUZLUKÇU
A73: 72 | B73: BATMAN | AO73: SARIYER | AP73: URLA | AW73: YALIHÜYÜK
A74: 73 | B74: ŞIRNAK | AO74: SİLİVRİ | AW74: YUNAK
A75: 74 | B75: BARTIN | AO75: SULTANBEYLİ
A76: 75 | B76: ARDAHAN | AO76: SULTANGAZİ
A77: 76 | B77: IĞDIR | AO77: ŞİLE
A78: 77 | B78: YALOVA | I78: Ocak | AO78: ŞİŞLİ
A79: 78 | B79: KARABÜK | I79: 2 | J79: 3 | K79: 4 | L79: 5 | M79: 6 | N79: 7 | O79: 8 | P79: 9 | Q79: 10 | R79: 11 | S79: 12 | T79: 13 | AO79: TUZLA
A80: 79 | B80: KİLİS | G80: Seçilen | I80: =VLOOKUP(Detaylı!$C$2&Detaylı!$C$3,Veriler!$H$83:$T$1039,I79,FALSE) -> 260.201174 | J80: =VLOOKUP(Detaylı!$C$2&Detaylı!$C$3,Veriler!$H$83:$T$1039,J79,FALSE) -> 261.771484 | K80: =VLOOKUP(Detaylı!$C$2&Detaylı!$C$3,Veriler!$H$83:$T$1039,K79,FALSE) -> 267.819926 | L80: =VLOOKUP(Detaylı!$C$2&Detaylı!$C$3,Veriler!$H$83:$T$1039,L79,FALSE) -> 275.582034 | M80: =VLOOKUP(Detaylı!$C$2&Detaylı!$C$3,Veriler!$H$83:$T$1039,M79,FALSE) -> 285.147362 | N80: =VLOOKUP(Detaylı!$C$2&Detaylı!$C$3,Veriler!$H$83:$T$1039,N79,FALSE) -> 290.985842 | O80: =VLOOKUP(Detaylı!$C$2&Detaylı!$C$3,Veriler!$H$83:$T$1039,O79,FALSE) -> 294.696194 | P80: =VLOOKUP(Detaylı!$C$2&Detaylı!$C$3,Veriler!$H$83:$T$1039,P79,FALSE) -> 294.6314 | Q80: =VLOOKUP(Detaylı!$C$2&Detaylı!$C$3,Veriler!$H$83:$T$1039,Q79,FALSE) -> 290.642478 | R80: =VLOOKUP(Detaylı!$C$2&Detaylı!$C$3,Veriler!$H$83:$T$1039,R79,FALSE) -> 283.864992 | S80: =VLOOKUP(Detaylı!$C$2&Detaylı!$C$3,Veriler!$H$83:$T$1039,S79,FALSE) -> 270.91875 | T80: =VLOOKUP(Detaylı!$C$2&Detaylı!$C$3,Veriler!$H$83:$T$1039,T79,FALSE) -> 264.163674 | AO80: ÜMRANİYE
A81: 80 | B81: OSMANİYE | AO81: ÜSKÜDAR
A82: 81 | B82: DÜZCE | AO82: ZEYTİNBURNU
A83: 1 | B83: ALADAĞ(KARSANTI) | E83: =VLOOKUP(A83:A1039,A2:B82,2,FALSE) -> ADANA | G83: ADANA | H83: =G83&B83 -> ADANAALADAĞ(KARSANTI) | I83: 275.73335 | J83: 277.996582 | K83: 281.246778 | L83: 285.23989 | M83: 296.641988 | N83: 299.55488 | O83: 304.619484 | P83: 304.131394 | Q83: 301.643356 | R83: 294.68872 | S83: 283.513134 | T83: 278.864262 | Z83: Ocak | AA83: Şubat | AB83: Mart | AC83: Nisan | AD83: Mayıs | AE83: Haziran | AF83: Temmuz | AG83: Ağustos | AH83: Eylül | AI83: Ekim | AJ83: Kasım | AK83: Aralık
A84: 1 | B84: CEYHAN | E84: ADANA | G84: ADANA | H84: ADANACEYHAN | I84: 281.55639 | J84: 283.196974 | K84: 286.327242 | L84: 290.0563 | M84: 301.171678 | N84: 303.797458 | O84: 308.017534 | P84: 308.127096 | Q84: 306.191012 | R84: 300.20395 | S84: 288.611956 | T84: 284.186528 | Z84: =AVERAGE(AD87:AD117) -> 6.223110808 | AA84: =AVERAGE(AD118:AD147) -> 5.135541891 | AB84: =AVERAGE(AD148:AD177) -> 5.488629148 | AC84: =AVERAGE(AD178:AD207) -> 7.158569067 | AD84: =AVERAGE(AD208:AD237) -> 9.709805878 | AE84: =AVERAGE(AD238:AD267) -> 12.47692288 | AF84: =AVERAGE(AD268:AD297) -> 14.73819724 | AG84: =AVERAGE(AD298:AD327) -> 15.90384061 | AH84: =AVERAGE(AD328:AD357) -> 15.66982848 | AI84: =AVERAGE(AD358:AD387) -> 14.09719616 | AJ84: =AVERAGE(AD388:AD417) -> 11.59611954 | AK84: =AVERAGE(AD418:AD447) -> 8.818932478
A85: 1 | B85: ÇUKUROVA | E85: ADANA | G85: ADANA | H85: ADANAÇUKUROVA | I85: 281.388816 | J85: 283.092678 | K85: 286.26514 | L85: 289.876612 | M85: 301.20605 | N85: 304.09121 | O85: 308.30699 | P85: 308.262644 | Q85: 306.312886 | R85: 300.123484 | S85: 288.533058 | T85: 284.080274
A86: 1 | B86: FEKE | E86: ADANA | G86: ADANA | H86: ADANAFEKE | I86: 273.369678 | J86: 275.673924 | K86: 279.827248 | L86: 284.438724 | M86: 295.59199 | N86: 298.799024 | O86: 304.237062 | P86: 303.895458 | Q86: 301.33242 | R86: 293.974652 | S86: 282.403758 | T86: 277.240432 | AE86: Tmean | AF86: Tamp | AG86: Z | AH86: a | AI86: tyear | AJ86: tshift
A87: 1 | B87: İMAMOĞLU | E87: ADANA | G87: ADANA | H87: ADANAİMAMOĞLU | I87: 280.062258 | J87: 281.93174 | K87: 285.288962 | L87: 289.168796 | M87: 300.531442 | N87: 303.406444 | O87: 308.062062 | P87: 307.998574 | Q87: 305.698042 | R87: 298.875824 | S87: 287.156884 | T87: 282.622076 | Y87: a | Z87: Z | AA87: Tmin | AB87: Tmax | AC87: tshift | AD87: =AE87-AF87*(EXP(1)^(-AG87*AL87))*COS(2*PI()/365*(AI87-AJ87-(AG87/2)*AK87)) -> 7.174436667 | AE87: =($AB$88+$AA$88)/2 -> 10.5375 | AF87: =($AB$88-$AA$88)/2 -> 10.6175 | AG87: =$Z$88 -> 1 | AH87: =$Y$88 -> 0.02 | AI87: 0 | AJ87: =$AC$88 -> 15 | AK87: =SQRT(365/(PI()*AH87)) -> 76.21781565 | AL87: =SQRT(PI()/(365*AH87)) -> 0.656014602
A88: 1 | B88: KARAİSALI | E88: ADANA | G88: ADANA | H88: ADANAKARAİSALI | I88: 277.267336 | J88: 279.296582 | K88: 282.572172 | L88: 286.690284 | M88: 298.13144 | N88: 301.008788 | O88: 305.76831 | P88: 305.197022 | Q88: 302.74687 | R88: 296.069184 | S88: 284.839698 | T88: 280.299414 | Y88: =Veriler!H13 -> 0.02 | Z88: =Detaylı!C23 -> 1 | AA88: =Veriler!AA92 -> -0.08 | AB88: =Veriler!AB92 -> 21.155 | AC88: 15 | AD88: 7.099814244 | AE88: 10.5375 | AF88: 10.6175 | AG88: 1 | AH88: 0.02 | AI88: 1 | AJ88: 15 | AK88: 76.21781565 | AL88: 0.656014602
A89: 1 | B89: KARATAŞ | E89: ADANA | G89: ADANA | H89: ADANAKARATAŞ | I89: 283.93628 | J89: 285.06226 | K89: 286.80347 | L89: 289.62256 | M89: 301.45 | N89: 304.85 | O89: 307.05 | P89: 307.85 | Q89: 306.25 | R89: 302.25 | S89: 291.68896 | T89: 286.02783 | AD89: 7.026210483 | AE89: 10.5375 | AF89: 10.6175 | AG89: 1 | AH89: 0.02 | AI89: 2 | AJ89: 15 | AK89: 76.21781565 | AL89: 0.656014602
A90: 1 | B90: KOZAN | E90: ADANA | G90: ADANA | H90: ADANAKOZAN | I90: 278.557568 | J90: 280.548536 | K90: 283.815524 | L90: 287.622312 | M90: 298.837694 | N90: 301.683398 | O90: 306.610504 | P90: 306.322022 | Q90: 304.017184 | R90: 297.326212 | S90: 286.015478 | T90: 281.37793 | AD90: 6.953647192 | AE90: 10.5375 | AF90: 10.6175 | AG90: 1 | AH90: 0.02 | AI90: 3 | AJ90: 15 | AK90: 76.21781565 | AL90: 0.656014602
A91: 1 | B91: POZANTI | E91: ADANA | G91: ADANA | H91: ADANAPOZANTI | I91: 272.121244 | J91: 273.985646 | K91: 277.238574 | L91: 281.880516 | M91: 293.410346 | N91: 296.225974 | O91: 301.46675 | P91: 300.95952 | Q91: 298.066016 | R91: 291.138328 | S91: 280.2729 | T91: 275.690044 | Z91: İl | AA91: Min | AB91: Max | AD91: 6.882145874 | AE91: 10.5375 | AF91: 10.6175 | AG91: 1 | AH91: 0.02 | AI91: 4 | AJ91: 15 | AK91: 76.21781565 | AL91: 0.656014602
A92: 1 | B92: SAİMBEYLİ | E92: ADANA | G92: ADANA | H92: ADANASAİMBEYLİ | I92: 269.966556 | J92: 272.004398 | K92: 275.981546 | L92: 281.468014 | M92: 292.912696 | N92: 296.363474 | O92: 301.656206 | P92: 301.314988 | Q92: 298.553128 | R92: 291.039104 | S92: 279.371338 | T92: 273.858788 | Y92: Seçim | Z92: =VLOOKUP(Detaylı!C2,Veriler!Z97:AB177,1,FALSE) -> ERZURUM | AA92: =VLOOKUP(Detaylı!C2,Veriler!Z97:AB177,2,FALSE) -> -0.08 | AB92: =VLOOKUP(Detaylı!C2,Veriler!Z97:AB177,3,FALSE) -> 21.155 | AD92: 6.811727717 | AE92: 10.5375 | AF92: 10.6175 | AG92: 1 | AH92: 0.02 | AI92: 5 | AJ92: 15 | AK92: 76.21781565 | AL92: 0.656014602
A93: 1 | B93: SARIÇAM | E93: ADANA | G93: ADANA | H93: ADANASARIÇAM | I93: 281.388816 | J93: 283.092678 | K93: 286.26514 | L93: 289.876612 | M93: 301.20605 | N93: 304.09121 | O93: 308.30699 | P93: 308.262644 | Q93: 306.312886 | R93: 300.123484 | S93: 288.533058 | T93: 284.080274 | AD93: 6.742413586 | AE93: 10.5375 | AF93: 10.6175 | AG93: 1 | AH93: 0.02 | AI93: 6 | AJ93: 15 | AK93: 76.21781565 | AL93: 0.656014602
A94: 1 | B94: SEYHAN | E94: ADANA | G94: ADANA | H94: ADANASEYHAN | I94: 281.388816 | J94: 283.092678 | K94: 286.26514 | L94: 289.876612 | M94: 301.20605 | N94: 304.09121 | O94: 308.30699 | P94: 308.262644 | Q94: 306.312886 | R94: 300.123484 | S94: 288.533058 | T94: 284.080274 | AD94: 6.674224021 | AE94: 10.5375 | AF94: 10.6175 | AG94: 1 | AH94: 0.02 | AI94: 7 | AJ94: 15 | AK94: 76.21781565 | AL94: 0.656014602
A95: 1 | B95: TUFANBEYLİ | E95: ADANA | G95: ADANA | H95: ADANATUFANBEYLİ | I95: 268.0271 | J95: 270.02588 | K95: 274.04209 | L95: 279.691064 | M95: 291.306442 | N95: 294.859568 | O95: 299.72495 | P95: 299.34272 | Q95: 296.800386 | R95: 289.194966 | S95: 277.60493 | T95: 271.79824 | AD95: 6.607179228 | AE95: 10.5375 | AF95: 10.6175 | AG95: 1 | AH95: 0.02 | AI95: 8 | AJ95: 15 | AK95: 76.21781565 | AL95: 0.656014602
A96: 1 | B96: YUMURTALIK | E96: ADANA | G96: ADANA | H96: ADANAYUMURTALIK | I96: 282.0984 | J96: 283.57202 | K96: 285.5476 | L96: 288.50928 | M96: 301.18048 | N96: 304.39686 | O96: 306.259 | P96: 307.14882 | Q96: 305.31444 | R96: 300.98437 | S96: 289.78662 | T96: 284.5415 | Z96: İl | AA96: En Düşük ort | AB96: En Yüksek ort | AD96: 6.541299074 | AE96: 10.5375 | AF96: 10.6175 | AG96: 1 | AH96: 0.02 | AI96: 9 | AJ96: 15 | AK96: 76.21781565 | AL96: 0.656014602
A97: 1 | B97: YÜREĞİR | E97: ADANA | G97: ADANA | H97: ADANAYÜREĞİR | I97: 281.388816 | J97: 283.092678 | K97: 286.26514 | L97: 289.876612 | M97: 301.20605 | N97: 304.09121 | O97: 308.30699 | P97: 308.262644 | Q97: 306.312886 | R97: 300.123484 | S97: 288.533058 | T97: 284.080274 | Y97: 1 | Z97: ADANA | AA97: 9.79 | AB97: 28.64 | AD97: 6.476603081 | AE97: 10.5375 | AF97: 10.6175 | AG97: 1 | AH97: 0.02 | AI97: 10 | AJ97: 15 | AK97: 76.21781565 | AL97: 0.656014602
A98: 2 | B98: ADIYAMAN | E98: ADIYAMAN | G98: ADIYAMAN | H98: ADIYAMANADIYAMAN | I98: 275.374366 | J98: 277.078224 | K98: 281.470604 | L98: 286.007866 | M98: 292.554784 | N98: 298.412792 | O98: 302.74502 | P98: 302.441554 | Q98: 298.237018 | R98: 291.147804 | S98: 283.370168 | T98: 278.24668 | Y98: 2 | Z98: ADIYAMAN | AA98: 5.025 | AB98: 31.255 | AD98: 6.413110419 | AE98: 10.5375 | AF98: 10.6175 | AG98: 1 | AH98: 0.02 | AI98: 11 | AJ98: 15 | AK98: 76.21781565 | AL98: 0.656014602
A99: 2 | B99: BESNİ | E99: ADIYAMAN | G99: ADIYAMAN | H99: ADIYAMANBESNİ | I99: 274.729054 | J99: 276.754784 | K99: 280.906152 | L99: 285.332084 | M99: 291.80283 | N99: 297.450296 | O99: 301.804006 | P99: 301.452486 | Q99: 297.355762 | R99: 290.29507 | S99: 282.546728 | T99: 277.771682 | Y99: 3 | Z99: AFYONKARAHİSAR | AA99: 0.485 | AB99: 22.42 | AD99: 6.350839903 | AE99: 10.5375 | AF99: 10.6175 | AG99: 1 | AH99: 0.02 | AI99: 12 | AJ99: 15 | AK99: 76.21781565 | AL99: 0.656014602
A100: 2 | B100: ÇELİKHAN | E100: ADIYAMAN | G100: ADIYAMAN | H100: ADIYAMANÇELİKHAN | I100: 270.503272 | J100: 272.00713 | K100: 276.379202 | L100: 281.566064 | M100: 287.86846 | N100: 293.081934 | O100: 297.483306 | P100: 297.199364 | Q100: 293.5456 | R100: 286.670074 | S100: 279.116648 | T100: 273.935352 | Y100: 4 | Z100: AĞRI | AA100: -9.92 | AB100: 21.525 | AD100: 6.289809984 | AE100: 10.5375 | AF100: 10.6175 | AG100: 1 | AH100: 0.02 | AI100: 13 | AJ100: 15 | AK100: 76.21781565 | AL100: 0.656014602
A101: 2 | B101: GERGER | E101: ADIYAMAN | G101: ADIYAMAN | H101: ADIYAMANGERGER | I101: 273.445456 | J101: 275.993456 | K101: 280.57412 | L101: 285.03169 | M101: 291.204 | N101: 297.0374 | O101: 301.495408 | P101: 301.26968 | Q101: 297.149124 | R101: 289.968898 | S101: 282.24165 | T101: 277.082228 | Y101: 5 | Z101: AMASYA | AA101: 0.625 | AB101: 23.97 | AD101: 6.230038748 | AE101: 10.5375 | AF101: 10.6175 | AG101: 1 | AH101: 0.02 | AI101: 14 | AJ101: 15 | AK101: 76.21781565 | AL101: 0.656014602
A102: 2 | B102: GÖLBAŞI | E102: ADIYAMAN | G102: ADIYAMAN | H102: ADIYAMANGÖLBAŞI | I102: 272.42671 | J102: 274.774314 | K102: 279.595606 | L102: 284.624654 | M102: 290.797362 | N102: 295.991306 | O102: 300.360252 | P102: 300.08491 | Q102: 296.48662 | R102: 289.726712 | S102: 281.740474 | T102: 276.135744 | Y102: 6 | Z102: ANKARA | AA102: 2.885 | AB102: 24.09 | AD102: 6.171543905 | AE102: 10.5375 | AF102: 10.6175 | AG102: 1 | AH102: 0.02 | AI102: 15 | AJ102: 15 | AK102: 76.21781565 | AL102: 0.656014602
A103: 2 | B103: KAHTA | E103: ADIYAMAN | G103: ADIYAMAN | H103: ADIYAMANKAHTA | I103: 276.343114 | J103: 278.088376 | K103: 282.702638 | L103: 287.04419 | M103: 293.484474 | N103: 299.337796 | O103: 303.711816 | P103: 303.493502 | Q103: 299.081934 | R103: 291.98999 | S103: 284.254154 | T103: 279.23379 | Y103: 7 | Z103: ANTALYA | AA103: 0.79 | AB103: 23.605 | AD103: 6.11434279 | AE103: 10.5375 | AF103: 10.6175 | AG103: 1 | AH103: 0.02 | AI103: 16 | AJ103: 15 | AK103: 76.21781565 | AL103: 0.656014602
A104: 2 | B104: SAMSAT | E104: ADIYAMAN | G104: ADIYAMAN | H104: ADIYAMANSAMSAT | I104: 277.761082 | J104: 279.261034 | K104: 283.607716 | L104: 287.953956 | M104: 294.110254 | N104: 299.587794 | O104: 303.84346 | P104: 303.628664 | Q104: 299.556544 | R104: 292.642724 | S104: 284.97407 | T104: 280.322464 | Y104: 8 | Z104: ARTVİN | AA104: 8.52 | AB104: 27.83 | AD104: 6.058452351 | AE104: 10.5375 | AF104: 10.6175 | AG104: 1 | AH104: 0.02 | AI104: 17 | AJ104: 15 | AK104: 76.21781565 | AL104: 0.656014602
A105: 2 | B105: SİNCİK | E105: ADIYAMAN | G105: ADIYAMAN | H105: ADIYAMANSİNCİK | I105: 272.82202 | J105: 274.881732 | K105: 279.871774 | L105: 284.691068 | M105: 290.97432 | N105: 296.534278 | O105: 300.855958 | P105: 300.652882 | Q105: 296.783886 | R105: 289.80952 | S105: 281.89243 | T105: 276.502152 | Y105: 9 | Z105: AYDIN | AA105: 9.62 | AB105: 28.46 | AD105: 6.003889151 | AE105: 10.5375 | AF105: 10.6175 | AG105: 1 | AH105: 0.02 | AI105: 18 | AJ105: 15 | AK105: 76.21781565 | AL105: 0.656014602
A106: 2 | B106: TUT | E106: ADIYAMAN | G106: ADIYAMAN | H106: ADIYAMANTUT | I106: 273.0771 | J106: 275.02119 | K106: 279.265528 | L106: 283.884422 | M106: 290.311426 | N106: 295.845608 | O106: 300.17861 | P106: 299.818506 | Q106: 295.849122 | R106: 288.873976 | S106: 281.263912 | T106: 276.321292 | Y106: 10 | Z106: BALIKESİR | AA106: -10.84 | AB106: 16.36 | AD106: 5.950669357 | AE106: 10.5375 | AF106: 10.6175 | AG106: 1 | AH106: 0.02 | AI106: 19 | AJ106: 15 | AK106: 76.21781565 | AL106: 0.656014602
A107: 3 | B107: AFYON | E107: AFYONKARAHİSAR | G107: AFYONKARAHİSAR | H107: AFYONKARAHİSARAFYON | I107: 272.37866 | J107: 275.886426 | K107: 279.013182 | L107: 283.73325 | M107: 289.323538 | N107: 291.982716 | O107: 296.216506 | P107: 296.05522 | Q107: 292.494042 | R107: 286.462256 | S107: 280.087746 | T107: 275.48262 | Y107: 11 | Z107: BİLECİK | AA107: 2.525 | AB107: 20.645 | AD107: 5.898808741 | AE107: 10.5375 | AF107: 10.6175 | AG107: 1 | AH107: 0.02 | AI107: 20 | AJ107: 15 | AK107: 76.21781565 | AL107: 0.656014602
A108: 3 | B108: BAŞMAKÇI | E108: AFYONKARAHİSAR | G108: AFYONKARAHİSAR | H108: AFYONKARAHİSARBAŞMAKÇI | I108: 275.41343 | J108: 277.746974 | K108: 280.488182 | L108: 285.03091 | M108: 290.76299 | N108: 293.817476 | O108: 298.341114 | P108: 298.203658 | Q108: 294.743654 | R108: 288.624756 | S108: 282.613914 | T108: 277.952146 | Y108: 12 | Z108: BİNGÖL | AA108: 8.41 | AB108: 28.725 | AD108: 5.848322669 | AE108: 10.5375 | AF108: 10.6175 | AG108: 1 | AH108: 0.02 | AI108: 21 | AJ108: 15 | AK108: 76.21781565 | AL108: 0.656014602
A109: 3 | B109: BAYAT | E109: AFYONKARAHİSAR | G109: AFYONKARAHİSAR | H109: AFYONKARAHİSARBAYAT | I109: 271.468508 | J109: 274.948144 | K109: 278.053028 | L109: 282.596922 | M109: 288.066894 | N109: 290.64522 | O109: 294.973144 | P109: 294.882178 | Q109: 291.307712 | R109: 285.484134 | S109: 279.370948 | T109: 274.711914 | Y109: 13 | Z109: BİTLİS | AA109: 5.1 | AB109: 25.045 | AD109: 5.799226101 | AE109: 10.5375 | AF109: 10.6175 | AG109: 1 | AH109: 0.02 | AI109: 22 | AJ109: 15 | AK109: 76.21781565 | AL109: 0.656014602
A110: 3 | B110: BOLVADİN | E110: AFYONKARAHİSAR | G110: AFYONKARAHİSAR | H110: AFYONKARAHİSARBOLVADİN | I110: 272.750542 | J110: 276.258692 | K110: 279.850684 | L110: 284.482858 | M110: 290.05127 | N110: 292.884672 | O110: 297.008304 | P110: 296.831396 | Q110: 293.401468 | R110: 287.448972 | S110: 280.930712 | T110: 276.205666 | Y110: 14 | Z110: BOLU | AA110: 4.14 | AB110: 22.05 | AD110: 5.751533586 | AE110: 10.5375 | AF110: 10.6175 | AG110: 1 | AH110: 0.02 | AI110: 23 | AJ110: 15 | AK110: 76.21781565 | AL110: 0.656014602
A111: 3 | B111: ÇAY | E111: AFYONKARAHİSAR | G111: AFYONKARAHİSAR | H111: AFYONKARAHİSARÇAY | I111: 272.574754 | J111: 275.734472 | K111: 279.182328 | L111: 283.728952 | M111: 289.304 | N111: 292.183886 | O111: 296.38252 | P111: 296.176708 | Q111: 292.763968 | R111: 286.83726 | S111: 280.54907 | T111: 275.868164 | Y111: 15 | Z111: BURDUR | AA111: 3.765 | AB111: 31.69 | AD111: 5.705259256 | AE111: 10.5375 | AF111: 10.6175 | AG111: 1 | AH111: 0.02 | AI111: 24 | AJ111: 15 | AK111: 76.21781565 | AL111: 0.656014602
A112: 3 | B112: ÇOBANLAR | E112: AFYONKARAHİSAR | G112: AFYONKARAHİSAR | H112: AFYONKARAHİSARÇOBANLAR | I112: 272.601708 | J112: 276.086426 | K112: 279.475296 | L112: 284.119972 | M112: 289.717282 | N112: 292.477248 | O112: 296.680958 | P112: 296.523976 | Q112: 293.020608 | R112: 287.012256 | S112: 280.565476 | T112: 275.842772 | Y112: 16 | Z112: BURSA | AA112: -5.92 | AB112: 19.065 | AD112: 5.660416824 | AE112: 10.5375 | AF112: 10.6175 | AG112: 1 | AH112: 0.02 | AI112: 25 | AJ112: 15 | AK112: 76.21781565 | AL112: 0.656014602
A113: 3 | B113: DAZKIRI | E113: AFYONKARAHİSAR | G113: AFYONKARAHİSAR | H113: AFYONKARAHİSARDAZKIRI | I113: 275.788426 | J113: 278.098926 | K113: 280.911618 | L113: 285.594578 | M113: 291.29463 | N113: 294.275688 | O113: 298.884474 | P113: 298.712648 | Q113: 295.15928 | R113: 289.077882 | S113: 283.058052 | T113: 278.322072 | Y113: 17 | Z113: ÇANAKKALE | AA113: 2.994736842 | AB113: 22.38 | AD113: 5.617019576 | AE113: 10.5375 | AF113: 10.6175 | AG113: 1 | AH113: 0.02 | AI113: 26 | AJ113: 15 | AK113: 76.21781565 | AL113: 0.656014602
A114: 3 | B114: DİNAR | E114: AFYONKARAHİSAR | G114: AFYONKARAHİSAR | H114: AFYONKARAHİSARDİNAR | I114: 273.90171 | J114: 276.491894 | K114: 279.37178 | L114: 283.702392 | M114: 289.387204 | N114: 292.413576 | O114: 296.926266 | P114: 296.75991 | Q114: 293.454596 | R114: 287.070068 | S114: 280.821734 | T114: 276.650192 | Y114: 18 | Z114: ÇANKIRI | AA114: -1.725 | AB114: 26.915 | AD114: 5.575080373 | AE114: 10.5375 | AF114: 10.6175 | AG114: 1 | AH114: 0.02 | AI114: 27 | AJ114: 15 | AK114: 76.21781565 | AL114: 0.656014602
A115: 3 | B115: EMİRDAĞ | E115: AFYONKARAHİSAR | G115: AFYONKARAHİSAR | H115: AFYONKARAHİSAREMİRDAĞ | I115: 272.125144 | J115: 275.747366 | K115: 279.262008 | L115: 283.930908 | M115: 289.446192 | N115: 292.112794 | O115: 296.382908 | P115: 296.279832 | Q115: 292.631932 | R115: 286.755226 | S115: 280.299078 | T115: 275.330274 | Y115: 19 | Z115: ÇORUM | AA115: -2.5 | AB115: 23.19 | AD115: 5.534611642 | AE115: 10.5375 | AF115: 10.6175 | AG115: 1 | AH115: 0.02 | AI115: 28 | AJ115: 15 | AK115: 76.21781565 | AL115: 0.656014602
A116: 3 | B116: EVCİLER | E116: AFYONKARAHİSAR | G116: AFYONKARAHİSAR | H116: AFYONKARAHİSAREVCİLER | I116: 275.84546 | J116: 278.452046 | K116: 281.39053 | L116: 286.193018 | M116: 291.954004 | N116: 294.894434 | O116: 299.460644 | P116: 299.225146 | Q116: 295.619826 | R116: 289.338428 | S116: 283.017824 | T116: 278.368168 | Y116: 20 | Z116: DENİZLİ | AA116: 1.18 | AB116: 20.005 | AD116: 5.495625375 | AE116: 10.5375 | AF116: 10.6175 | AG116: 1 | AH116: 0.02 | AI116: 29 | AJ116: 15 | AK116: 76.21781565 | AL116: 0.656014602
A117: 3 | B117: HOCALAR | E117: AFYONKARAHİSAR | G117: AFYONKARAHİSAR | H117: AFYONKARAHİSARHOCALAR | I117: 272.30366 | J117: 275.402052 | K117: 278.20654 | L117: 282.733248 | M117: 288.267676 | N117: 290.940916 | O117: 295.45752 | P117: 295.462254 | Q117: 291.895994 | R117: 285.922414 | S117: 279.967822 | T117: 275.41582 | Y117: 21 | Z117: DİYARBAKIR | AA117: 2.685 | AB117: 24.76 | AD117: 5.458133124 | AE117: 10.5375 | AF117: 10.6175 | AG117: 1 | AH117: 0.02 | AI117: 30 | AJ117: 15 | AK117: 76.21781565 | AL117: 0.656014602
A118: 3 | B118: İHSANİYE | E118: AFYONKARAHİSAR | G118: AFYONKARAHİSAR | H118: AFYONKARAHİSARİHSANİYE | I118: 272.054444 | J118: 275.574706 | K118: 278.525682 | L118: 283.204342 | M118: 288.700492 | N118: 291.293652 | O118: 295.37275 | P118: 295.300924 | Q118: 291.770604 | R118: 285.884914 | S118: 279.645946 | T118: 275.21621 | Y118: 22 | Z118: EDİRNE | AA118: 5.66 | AB118: 24.83 | AD118: 5.422145999 | AE118: 10.5375 | AF118: 10.6175 | AG118: 1 | AH118: 0.02 | AI118: 31 | AJ118: 15 | AK118: 76.21781565 | AL118: 0.656014602
A119: 3 | B119: İSCEHİSAR | E119: AFYONKARAHİSAR | G119: AFYONKARAHİSAR | H119: AFYONKARAHİSARİSCEHİSAR | I119: 271.75796 | J119: 275.313772 | K119: 278.445212 | L119: 283.025828 | M119: 288.59658 | N119: 291.223334 | O119: 295.519238 | P119: 295.357566 | Q119: 291.799514 | R119: 285.762648 | S119: 279.486966 | T119: 275.048244 | Y119: 23 | Z119: ELAZIĞ | AA119: 6.435 | AB119: 25.315 | AD119: 5.387674664 | AE119: 10.5375 | AF119: 10.6175 | AG119: 1 | AH119: 0.02 | AI119: 32 | AJ119: 15 | AK119: 76.21781565 | AL119: 0.656014602
A120: 3 | B120: KIZILÖREN | E120: AFYONKARAHİSAR | G120: AFYONKARAHİSAR | H120: AFYONKARAHİSARKIZILÖREN | I120: 275.17983 | J120: 277.634474 | K120: 280.4667 | L120: 285.198874 | M120: 290.884082 | N120: 293.742092 | O120: 298.413376 | P120: 298.231394 | Q120: 294.570214 | R120: 288.305226 | S120: 282.168998 | T120: 277.659572 | Y120: 24 | Z120: ERZİNCAN | AA120: -0.3 | AB120: 23.215 | AD120: 5.354729333 | AE120: 10.5375 | AF120: 10.6175 | AG120: 1 | AH120: 0.02 | AI120: 33 | AJ120: 15 | AK120: 76.21781565 | AL120: 0.656014602
A121: 3 | B121: SANDIKLI | E121: AFYONKARAHİSAR | G121: AFYONKARAHİSAR | H121: AFYONKARAHİSARSANDIKLI | I121: 272.207176 | J121: 275.378614 | K121: 278.204982 | L121: 282.79419 | M121: 288.299712 | N121: 291.045996 | O121: 295.385646 | P121: 295.322802 | Q121: 291.901072 | R121: 285.918508 | S121: 279.75259 | T121: 275.276366 | Y121: 25 | Z121: ERZURUM | AA121: -0.08 | AB121: 21.155 | AD121: 5.32331977 | AE121: 10.5375 | AF121: 10.6175 | AG121: 1 | AH121: 0.02 | AI121: 34 | AJ121: 15 | AK121: 76.21781565 | AL121: 0.656014602
A122: 3 | B122: SİNCANLI(SİNANPAŞA) | E122: AFYONKARAHİSAR | G122: AFYONKARAHİSAR | H122: AFYONKARAHİSARSİNCANLI(SİNANPAŞA) | I122: 271.6732 | J122: 274.903614 | K122: 277.645216 | L122: 282.294578 | M122: 287.830566 | N122: 290.481152 | O122: 294.919628 | P122: 294.797802 | Q122: 291.21318 | R122: 285.338036 | S122: 279.32407 | T122: 274.744726 | Y122: 26 | Z122: ESKİŞEHİR | AA122: 6.11 | AB122: 27.83 | AD122: 5.29345528 | AE122: 10.5375 | AF122: 10.6175 | AG122: 1 | AH122: 0.02 | AI122: 35 | AJ122: 15 | AK122: 76.21781565 | AL122: 0.656014602
A123: 3 | B123: SULTANDAĞI | E123: AFYONKARAHİSAR | G123: AFYONKARAHİSAR | H123: AFYONKARAHİSARSULTANDAĞI | I123: 271.719678 | J123: 274.531738 | K123: 277.86982 | L123: 282.33911 | M123: 287.812598 | N123: 290.709666 | O123: 295.061428 | P123: 294.874368 | Q123: 291.569822 | R123: 285.776716 | S123: 279.81001 | T123: 275.072854 | Y123: 27 | Z123: GAZİANTEP | AA123: 2.11 | AB123: 31.215 | AD123: 5.265144714 | AE123: 10.5375 | AF123: 10.6175 | AG123: 1 | AH123: 0.02 | AI123: 36 | AJ123: 15 | AK123: 76.21781565 | AL123: 0.656014602
A124: 3 | B124: ŞUHUT | E124: AFYONKARAHİSAR | G124: AFYONKARAHİSAR | H124: AFYONKARAHİSARŞUHUT | I124: 271.45054 | J124: 274.50361 | K124: 277.345602 | L124: 281.780516 | M124: 287.251664 | N124: 290.072172 | O124: 294.482522 | P124: 294.441552 | Q124: 290.994044 | R124: 284.985696 | S124: 278.931494 | T124: 274.503316 | Y124: 28 | Z124: GİRESUN | AA124: 3.875 | AB124: 22.575 | AD124: 5.23839646 | AE124: 10.5375 | AF124: 10.6175 | AG124: 1 | AH124: 0.02 | AI124: 37 | AJ124: 15 | AK124: 76.21781565 | AL124: 0.656014602
A125: 4 | B125: AĞRI | E125: AĞRI | G125: AĞRI | H125: AĞRIAĞRI | I125: 259.005082 | J125: 260.489452 | K125: 267.204684 | L125: 276.847656 | M125: 286.08838 | N125: 291.591696 | O125: 294.862202 | P125: 294.32124 | Q125: 290.792482 | R125: 283.557178 | S125: 271.610932 | T125: 264.648046 | Y125: 29 | Z125: GÜMÜŞHANE | AA125: 2.93 | AB125: 24.87 | AD125: 5.213218445 | AE125: 10.5375 | AF125: 10.6175 | AG125: 1 | AH125: 0.02 | AI125: 38 | AJ125: 15 | AK125: 76.21781565 | AL125: 0.656014602
A126: 4 | B126: DİYADİN | E126: AĞRI | G126: AĞRI | H126: AĞRIDİYADİN | I126: 257.55 | J126: 258.75 | K126: 265.25 | L126: 273.85 | M126: 283.921582 | N126: 289.587012 | O126: 292.7622 | P126: 292.16499 | Q126: 288.403024 | R126: 281.13921 | S126: 269.65 | T126: 262.45 | Y126: 30 | Z126: HAKKARİ | AA126: -0.44 | AB126: 27.33 | AD126: 5.18961813 | AE126: 10.5375 | AF126: 10.6175 | AG126: 1 | AH126: 0.02 | AI126: 39 | AJ126: 15 | AK126: 76.21781565 | AL126: 0.656014602
A127: 4 | B127: DOĞUBAYAZIT(DOĞUBEYAZIT) | E127: AĞRI | G127: AĞRI | H127: AĞRIDOĞUBAYAZIT(DOĞUBEYAZIT) | I127: 260.554688 | J127: 261.50859 | K127: 268.498826 | L127: 277.641798 | M127: 287.233692 | N127: 292.882324 | O127: 296.033302 | P127: 295.336084 | Q127: 291.417866 | R127: 284.006788 | S127: 272.265238 | T127: 265.784374 | Y127: 31 | Z127: HATAY | AA127: -2.285 | AB127: 24.19 | AD127: 5.167602508 | AE127: 10.5375 | AF127: 10.6175 | AG127: 1 | AH127: 0.02 | AI127: 40 | AJ127: 15 | AK127: 76.21781565 | AL127: 0.656014602
A128: 4 | B128: ELEŞKİRT | E128: AĞRI | G128: AĞRI | H128: AĞRIELEŞKİRT | I128: 258.006646 | J128: 259.007026 | K128: 265.042182 | L128: 274.166016 | M128: 283.595408 | N128: 288.928032 | O128: 292.293066 | P128: 291.988424 | Q128: 288.356152 | R128: 281.549756 | S128: 269.999222 | T128: 263.220314 | Y128: 32 | Z128: ISPARTA | AA128: -9.785 | AB128: 19.24 | AD128: 5.147178102 | AE128: 10.5375 | AF128: 10.6175 | AG128: 1 | AH128: 0.02 | AI128: 41 | AJ128: 15 | AK128: 76.21781565 | AL128: 0.656014602
A129: 4 | B129: HAMUR | E129: AĞRI | G129: AĞRI | H129: AĞRIHAMUR | I129: 258.82031 | J129: 259.919528 | K129: 266.297656 | L129: 275.773434 | M129: 284.905174 | N129: 290.52412 | O129: 294.37744 | P129: 293.93726 | Q129: 289.81201 | R129: 282.57124 | S129: 270.801566 | T129: 264.278128 | Y129: 33 | Z129: MERSİN(İÇEL) | AA129: 0.055 | AB129: 21.765 | AD129: 5.128350965 | AE129: 10.5375 | AF129: 10.6175 | AG129: 1 | AH129: 0.02 | AI129: 42 | AJ129: 15 | AK129: 76.21781565 | AL129: 0.656014602
A130: 4 | B130: PATNOS | E130: AĞRI | G130: AĞRI | H130: AĞRIPATNOS | I130: 259.522658 | J130: 260.196482 | K130: 266.77344 | L130: 276.457812 | M130: 285.78838 | N130: 291.842086 | O130: 296.230176 | P130: 295.829838 | Q130: 291.504988 | R130: 283.747414 | S130: 271.569142 | T130: 264.582426 | Y130: 34 | Z130: İSTANBUL | AA130: 3.685 | AB130: 28.06 | AD130: 5.111126675 | AE130: 10.5375 | AF130: 10.6175 | AG130: 1 | AH130: 0.02 | AI130: 43 | AJ130: 15 | AK130: 76.21781565 | AL130: 0.656014602
A131: 4 | B131: TAŞLIÇAY | E131: AĞRI | G131: AĞRI | H131: AĞRITAŞLIÇAY | I131: 258.258596 | J131: 259.404294 | K131: 265.644916 | L131: 274.607034 | M131: 284.433302 | N131: 289.961622 | O131: 292.975874 | P131: 292.419288 | Q131: 289.09834 | R131: 282.006788 | S131: 270.26758 | T131: 263.403906 | Y131: 35 | Z131: İZMİR | AA131: 6.565 | AB131: 23.385 | AD131: 5.095510337 | AE131: 10.5375 | AF131: 10.6175 | AG131: 1 | AH131: 0.02 | AI131: 44 | AJ131: 15 | AK131: 76.21781565 | AL131: 0.656014602
A132: 4 | B132: TUTAK | E132: AĞRI | G132: AĞRI | H132: AĞRITUTAK | I132: 259.451564 | J132: 260.25351 | K132: 266.729298 | L132: 276.183596 | M132: 285.221188 | N132: 291.026854 | O132: 295.174708 | P132: 294.721628 | Q132: 290.31592 | R132: 283.011084 | S132: 271.124218 | T132: 264.78047 | Y132: 36 | Z132: KARS | AA132: -1.663157895 | AB132: 20.04 | AD132: 5.081506578 | AE132: 10.5375 | AF132: 10.6175 | AG132: 1 | AH132: 0.02 | AI132: 45 | AJ132: 15 | AK132: 76.21781565 | AL132: 0.656014602
A133: 5 | B133: AMASYA | E133: AMASYA | G133: AMASYA | H133: AMASYAAMASYA | I133: 274.25913 | J133: 276.63096 | K133: 279.778808 | L133: 283.453954 | M133: 289.04736 | N133: 292.36944 | O133: 294.568848 | P133: 294.352102 | Q133: 291.629984 | R133: 287.57749 | S133: 281.025246 | T133: 277.084958 | Y133: 37 | Z133: KASTAMONU | AA133: -4.055 | AB133: 25.175 | AD133: 5.069119548 | AE133: 10.5375 | AF133: 10.6175 | AG133: 1 | AH133: 0.02 | AI133: 46 | AJ133: 15 | AK133: 76.21781565 | AL133: 0.656014602
A134: 5 | B134: GÖYNÜCEK | E134: AMASYA | G134: AMASYA | H134: AMASYAGÖYNÜCEK | I134: 274.070848 | J134: 276.559082 | K134: 279.944048 | L134: 284.028174 | M134: 289.670802 | N134: 293.004198 | O134: 295.616114 | P134: 295.28374 | Q134: 292.43623 | R134: 287.818896 | S134: 280.655322 | T134: 276.460352 | Y134: 38 | Z134: KAYSERİ | AA134: -2.64 | AB134: 26.035 | AD134: 5.058352916 | AE134: 10.5375 | AF134: 10.6175 | AG134: 1 | AH134: 0.02 | AI134: 47 | AJ134: 15 | AK134: 76.21781565 | AL134: 0.656014602
A135: 5 | B135: GÜMÜŞHACIKÖY | E135: AMASYA | G135: AMASYA | H135: AMASYAGÜMÜŞHACIKÖY | I135: 272.025928 | J135: 274.10283 | K135: 277.263578 | L135: 281.141066 | M135: 286.538768 | N135: 289.808106 | O135: 292.498536 | P135: 292.711086 | Q135: 289.758496 | R135: 285.21538 | S135: 278.55454 | T135: 274.229884 | Y135: 39 | Z135: KIRKLARELİ | AA135: 2.01 | AB135: 23.735 | AD135: 5.049209874 | AE135: 10.5375 | AF135: 10.6175 | AG135: 1 | AH135: 0.02 | AI135: 48 | AJ135: 15 | AK135: 76.21781565 | AL135: 0.656014602
A136: 5 | B136: HAMAMÖZÜ | E136: AMASYA | G136: AMASYA | H136: AMASYAHAMAMÖZÜ | I136: 273.716556 | J136: 275.976266 | K136: 279.283884 | L136: 283.330906 | M136: 288.939162 | N136: 292.05498 | O136: 294.78525 | P136: 294.547024 | Q136: 291.575296 | R136: 287.016942 | S136: 280.132278 | T136: 275.994334 | Y136: 40 | Z136: KIRŞEHİR | AA136: 5.925 | AB136: 24.06 | AD136: 5.041693132 | AE136: 10.5375 | AF136: 10.6175 | AG136: 1 | AH136: 0.02 | AI136: 49 | AJ136: 15 | AK136: 76.21781565 | AL136: 0.656014602
A137: 5 | B137: MERZİFON | E137: AMASYA | G137: AMASYA | H137: AMASYAMERZİFON | I137: 273.082176 | J137: 275.202442 | K137: 278.373338 | L137: 282.092626 | M137: 287.54346 | N137: 290.860836 | O137: 293.329788 | P137: 293.426316 | Q137: 290.542482 | R137: 286.289602 | S137: 279.676418 | T137: 275.41504 | Y137: 41 | Z137: KOCAELİ | AA137: 9.115 | AB137: 28.37 | AD137: 5.035804915 | AE137: 10.5375 | AF137: 10.6175 | AG137: 1 | AH137: 0.02 | AI137: 50 | AJ137: 15 | AK137: 76.21781565 | AL137: 0.656014602
A138: 5 | B138: SULUOVA | E138: AMASYA | G138: AMASYA | H138: AMASYASULUOVA | I138: 274.746632 | J138: 277.003614 | K138: 280.278028 | L138: 283.996534 | M138: 289.545802 | N138: 292.737402 | O138: 295.021974 | P138: 294.887644 | Q138: 292.128418 | R138: 288.044684 | S138: 281.245164 | T138: 277.151758 | Y138: 42 | Z138: KONYA | AA138: 5.285 | AB138: 28.435 | AD138: 5.031546969 | AE138: 10.5375 | AF138: 10.6175 | AG138: 1 | AH138: 0.02 | AI138: 51 | AJ138: 15 | AK138: 76.21781565 | AL138: 0.656014602
A139: 5 | B139: TAŞOVA | E139: AMASYA | G139: AMASYA | H139: AMASYATAŞOVA | I139: 274.473976 | J139: 276.762206 | K139: 280.260056 | L139: 283.796924 | M139: 289.092286 | N139: 292.03545 | O139: 293.519628 | P139: 293.559526 | Q139: 291.059274 | R139: 287.80483 | S139: 281.78345 | T139: 277.924024 | Y139: 43 | Z139: KÜTAHYA | AA139: 3.8 | AB139: 24.06666667 | AD139: 5.028920556 | AE139: 10.5375 | AF139: 10.6175 | AG139: 1 | AH139: 0.02 | AI139: 52 | AJ139: 15 | AK139: 76.21781565 | AL139: 0.656014602
A140: 6 | B140: AKYURT | E140: ANKARA | G140: ANKARA | H140: ANKARAAKYURT | I140: 271.795852 | J140: 274.768456 | K140: 277.967482 | L140: 282.348486 | M140: 287.854006 | N140: 291.032326 | O140: 295.042282 | P140: 295.18413 | Q140: 291.340916 | R140: 285.73843 | S140: 279.175636 | T140: 274.858398 | Y140: 44 | Z140: MALATYA | AA140: 0.18 | AB140: 23.755 | AD140: 5.027926454 | AE140: 10.5375 | AF140: 10.6175 | AG140: 1 | AH140: 0.02 | AI140: 53 | AJ140: 15 | AK140: 76.21781565 | AL140: 0.656014602
A141: 6 | B141: ALTINDAĞ | E141: ANKARA | G141: ANKARA | H141: ANKARAALTINDAĞ | I141: 273.004052 | J141: 276.025486 | K141: 279.363188 | L141: 283.775832 | M141: 289.407126 | N141: 292.648344 | O141: 296.629788 | P141: 296.645454 | Q141: 292.915914 | R141: 287.122024 | S141: 280.21782 | T141: 275.908792 | Y141: 45 | Z141: MANİSA | AA141: -9.405 | AB141: 17.76 | AD141: 5.028564957 | AE141: 10.5375 | AF141: 10.6175 | AG141: 1 | AH141: 0.02 | AI141: 54 | AJ141: 15 | AK141: 76.21781565 | AL141: 0.656014602
A142: 6 | B142: AYAŞ | E142: ANKARA | G142: ANKARA | H142: ANKARAAYAŞ | I142: 273.051322 | J142: 276.021198 | K142: 279.107324 | L142: 283.512154 | M142: 289.352048 | N142: 292.788182 | O142: 296.711426 | P142: 296.63999 | Q142: 292.540136 | R142: 286.442336 | S142: 279.506884 | T142: 275.668164 | Y142: 46 | Z142: KAHRAMANMARAŞ | AA142: -0.515 | AB142: 20.49 | AD142: 5.030835877 | AE142: 10.5375 | AF142: 10.6175 | AG142: 1 | AH142: 0.02 | AI142: 55 | AJ142: 15 | AK142: 76.21781565 | AL142: 0.656014602
A143: 6 | B143: BALA | E143: ANKARA | G143: ANKARA | H143: ANKARABALA | I143: 272.715768 | J143: 275.657912 | K143: 278.931546 | L143: 283.223882 | M143: 288.911032 | N143: 292.308108 | O143: 296.509474 | P143: 296.387254 | Q143: 292.587008 | R143: 286.586086 | S143: 280.05884 | T143: 275.697848 | Y143: 47 | Z143: MARDİN | AA143: -1.435 | AB143: 22.555 | AD143: 5.03473854 | AE143: 10.5375 | AF143: 10.6175 | AG143: 1 | AH143: 0.02 | AI143: 56 | AJ143: 15 | AK143: 76.21781565 | AL143: 0.656014602
A144: 6 | B144: BEYPAZARI | E144: ANKARA | G144: ANKARA | H144: ANKARABEYPAZARI | I144: 272.597802 | J144: 275.645416 | K144: 278.893652 | L144: 283.168018 | M144: 288.783692 | N144: 291.970604 | O144: 295.511814 | P144: 295.660306 | Q144: 291.83779 | R144: 286.252878 | S144: 279.682276 | T144: 275.65879 | Y144: 48 | Z144: MUĞLA | AA144: 6.115 | AB144: 28.075 | AD144: 5.04027179 | AE144: 10.5375 | AF144: 10.6175 | AG144: 1 | AH144: 0.02 | AI144: 57 | AJ144: 15 | AK144: 76.21781565 | AL144: 0.656014602
A145: 6 | B145: ÇAMLIDERE | E145: ANKARA | G145: ANKARA | H145: ANKARAÇAMLIDERE | I145: 270.520068 | J145: 273.428222 | K145: 276.804202 | L145: 280.948488 | M145: 286.147362 | N145: 289.057324 | O145: 292.01455 | P145: 292.693896 | Q145: 289.46553 | R145: 284.759132 | S145: 278.555326 | T145: 274.295898 | Y145: 49 | Z145: MUŞ | AA145: 0.895 | AB145: 24.66 | AD145: 5.047433988 | AE145: 10.5375 | AF145: 10.6175 | AG145: 1 | AH145: 0.02 | AI145: 58 | AJ145: 15 | AK145: 76.21781565 | AL145: 0.656014602
A146: 6 | B146: ÇANKAYA | E146: ANKARA | G146: ANKARA | H146: ANKARAÇANKAYA | I146: 272.81343 | J146: 275.73916 | K146: 278.999902 | L146: 283.369972 | M146: 288.963766 | N146: 292.215524 | O146: 296.302054 | P146: 296.313038 | Q146: 292.613966 | R146: 286.809132 | S146: 280.093604 | T146: 275.697852 | Y146: 50 | Z146: NEVŞEHİR | AA146: 3.395 | AB146: 24.21 | AD146: 5.05622301 | AE146: 10.5375 | AF146: 10.6175 | AG146: 1 | AH146: 0.02 | AI146: 59 | AJ146: 15 | AK146: 76.21781565 | AL146: 0.656014602
A147: 6 | B147: ÇUBUK | E147: ANKARA | G147: ANKARA | H147: =G147&B147 -> ANKARAÇUBUK | I147: 272.153272 | J147: 275.217284 | K147: 278.519822 | L147: 282.90083 | M147: 288.475488 | N147: 291.62959 | O147: 295.437988 | P147: 295.57397 | Q147: 291.669434 | R147: 286.128274 | S147: 279.388134 | T147: 275.326366 | Y147: 51 | Z147: NİĞDE | AA147: -0.16 | AB147: 23.105 | AD147: 5.066636254 | AE147: 10.5375 | AF147: 10.6175 | AG147: 1 | AH147: 0.02 | AI147: 60 | AJ147: 15 | AK147: 76.21781565 | AL147: 0.656014602
A148: 6 | B148: ELMADAĞ | E148: ANKARA | G148: ANKARA | H148: ANKARAELMADAĞ | I148: 272.228268 | J148: 275.209868 | K148: 278.48154 | L148: 282.797702 | M148: 288.436424 | N148: 291.68545 | O148: 295.764548 | P148: 295.722412 | Q148: 291.943262 | R148: 286.215772 | S148: 279.599856 | T148: 275.28223 | Y148: 52 | Z148: ORDU | AA148: 6.3 | AB148: 23.85 | AD148: 5.078670632 | AE148: 10.5375 | AF148: 10.6175 | AG148: 1 | AH148: 0.02 | AI148: 61 | AJ148: 15 | AK148: 76.21781565 | AL148: 0.656014602
A149: 6 | B149: ETİMESGUT | E149: ANKARA | G149: ANKARA | H149: ANKARAETİMESGUT | I149: 273.429834 | J149: 276.434474 | K149: 279.694044 | L149: 284.11372 | M149: 289.875486 | N149: 293.205374 | O149: 297.15986 | P149: 297.164208 | Q149: 293.291308 | R149: 287.288034 | S149: 280.147904 | T149: 276.092378 | Y149: 53 | Z149: RİZE | AA149: -0.385 | AB149: 23.52 | AD149: 5.092322579 | AE149: 10.5375 | AF149: 10.6175 | AG149: 1 | AH149: 0.02 | AI149: 62 | AJ149: 15 | AK149: 76.21781565 | AL149: 0.656014602
A150: 6 | B150: EVREN | E150: ANKARA | G150: ANKARA | H150: ANKARAEVREN | I150: 273.874756 | J150: 276.479004 | K150: 279.844824 | L150: 284.328174 | M150: 290.3751 | N150: 293.933886 | O150: 297.699712 | P150: 297.14585 | Q150: 293.645604 | R150: 287.960306 | S150: 280.946338 | T150: 276.690432 | Y150: 54 | Z150: SAKARYA | AA150: 0.705 | AB150: 20.98 | AD150: 5.10758805 | AE150: 10.5375 | AF150: 10.6175 | AG150: 1 | AH150: 0.02 | AI150: 63 | AJ150: 15 | AK150: 76.21781565 | AL150: 0.656014602
A151: 6 | B151: GÖLBAŞI | E151: ANKARA | G151: ANKARA | H151: ANKARAGÖLBAŞI | I151: 273.004052 | J151: 276.025486 | K151: 279.363188 | L151: 283.775832 | M151: 289.407126 | N151: 292.648344 | O151: 296.629788 | P151: 296.645454 | Q151: 292.915914 | R151: 287.122024 | S151: 280.21782 | T151: 275.908792 | Y151: 55 | Z151: SAMSUN | AA151: 0.58 | AB151: 27.59 | AD151: =AE151-AF151*(EXP(1)^(-AG151*AL151))*COS(2*PI()/365*(AI151-AJ151-(AG151/2)*AK151)) -> 5.124462521 | AE151: =($AB$88+$AA$88)/2 -> 10.5375 | AF151: =($AB$88-$AA$88)/2 -> 10.6175 | AG151: =$Z$88 -> 1 | AH151: =$Y$88 -> 0.02 | AI151: 64 | AJ151: =$AC$88 -> 15 | AK151: =SQRT(365/(PI()*AH151)) -> 76.21781565 | AL151: =SQRT(PI()/(365*AH151)) -> 0.656014602
A152: 6 | B152: GÜDÜL | E152: ANKARA | G152: ANKARA | H152: ANKARAGÜDÜL | I152: 272.93921 | J152: 276.234862 | K152: 279.569432 | L152: 283.887938 | M152: 289.600876 | N152: 292.769436 | O152: 296.356344 | P152: 296.50366 | Q152: 292.696776 | R152: 287.045852 | S152: 280.153368 | T152: 276.185742 | Y152: 56 | Z152: SİİRT | AA152: 6.84 | AB152: 28.59 | AD152: 5.142940992 | AE152: 10.5375 | AF152: 10.6175 | AG152: 1 | AH152: 0.02 | AI152: 65 | AJ152: 15 | AK152: 76.21781565 | AL152: 0.656014602
A153: 6 | B153: HAYMANA | E153: ANKARA | G153: ANKARA | H153: ANKARAHAYMANA | I153: 272.678658 | J153: 275.629 | K153: 278.875684 | L153: 283.235984 | M153: 289.095024 | N153: 292.371384 | O153: 296.570412 | P153: 296.403274 | Q153: 292.43779 | R153: 286.223584 | S153: 279.452586 | T153: 275.467382 | Y153: 57 | Z153: SİNOP | AA153: 3.525 | AB153: 30.34 | AD153: 5.163017987 | AE153: 10.5375 | AF153: 10.6175 | AG153: 1 | AH153: 0.02 | AI153: 66 | AJ153: 15 | AK153: 76.21781565 | AL153: 0.656014602
A154: 6 | B154: KALECİK | E154: ANKARA | G154: ANKARA | H154: ANKARAKALECİK | I154: 272.37671 | J154: 275.470022 | K154: 278.763186 | L154: 283.300438 | M154: 288.93135 | N154: 292.165532 | O154: 296.134084 | P154: 296.016552 | Q154: 292.184276 | R154: 286.620072 | S154: 279.785402 | T154: 275.513476 | Y154: 58 | Z154: SİVAS | AA154: 10.84 | AB154: 28.425 | AD154: 5.184687557 | AE154: 10.5375 | AF154: 10.6175 | AG154: 1 | AH154: 0.02 | AI154: 67 | AJ154: 15 | AK154: 76.21781565 | AL154: 0.656014602
A155: 6 | B155: KAZAN | E155: ANKARA | G155: ANKARA | H155: ANKARAKAZAN | I155: 272.194286 | J155: 275.121192 | K155: 278.20537 | L155: 282.596146 | M155: 288.246972 | N155: 291.475682 | O155: 295.220022 | P155: 295.373974 | Q155: 291.424512 | R155: 285.687648 | S155: 278.964698 | T155: 275.142766 | Y155: 59 | Z155: TEKİRDAĞ | AA155: 5.695 | AB155: 26.515 | AD155: 5.20794328 | AE155: 10.5375 | AF155: 10.6175 | AG155: 1 | AH155: 0.02 | AI155: 68 | AJ155: 15 | AK155: 76.21781565 | AL155: 0.656014602
A156: 6 | B156: KEÇİÖREN | E156: ANKARA | G156: ANKARA | H156: ANKARAKEÇİÖREN | I156: 273.067332 | J156: 276.121582 | K156: 279.394044 | L156: 283.828958 | M156: 289.55244 | N156: 292.828028 | O156: 296.689942 | P156: 296.730222 | Q156: 292.876462 | R156: 287.004832 | S156: 279.940874 | T156: 275.879886 | Y156: 60 | Z156: TOKAT | AA156: -6.545 | AB156: 25.87 | AD156: 5.232778267 | AE156: 10.5375 | AF156: 10.6175 | AG156: 1 | AH156: 0.02 | AI156: 69 | AJ156: 15 | AK156: 76.21781565 | AL156: 0.656014602
A157: 6 | B157: KIZILCAHAMAM | E157: ANKARA | G157: ANKARA | H157: ANKARAKIZILCAHAMAM | I157: 270.25484 | J157: 272.95205 | K157: 276.324516 | L157: 280.538328 | M157: 285.744626 | N157: 288.751466 | O157: 291.880568 | P157: 292.580222 | Q157: 289.205762 | R157: 284.368118 | S157: 278.179544 | T157: 273.85684 | Y157: 61 | Z157: TRABZON | AA157: -0.255 | AB157: 21.675 | AD157: 5.259185157 | AE157: 10.5375 | AF157: 10.6175 | AG157: 1 | AH157: 0.02 | AI157: 70 | AJ157: 15 | AK157: 76.21781565 | AL157: 0.656014602
A158: 6 | B158: MAMAK | E158: ANKARA | G158: ANKARA | H158: ANKARAMAMAK | I158: 272.448196 | J158: 275.446582 | K158: 278.715916 | L158: 283.07505 | M158: 288.634084 | N158: 291.844826 | O158: 295.919236 | P158: 295.956004 | Q158: 292.238966 | R158: 286.511864 | S158: 279.831884 | T158: 275.43262 | Y158: 62 | Z158: TUNCELİ | AA158: -0.415 | AB158: 22.83 | AD158: 5.287156126 | AE158: 10.5375 | AF158: 10.6175 | AG158: 1 | AH158: 0.02 | AI158: 71 | AJ158: 15 | AK158: 76.21781565 | AL158: 0.656014602
A159: 6 | B159: NALLIHAN | E159: ANKARA | G159: ANKARA | H159: ANKARANALLIHAN | I159: 273.39546 | J159: 276.395804 | K159: 279.727636 | L159: 284.032472 | M159: 289.477048 | N159: 292.493652 | O159: 295.79619 | P159: 295.94819 | Q159: 292.415918 | R159: 287.232566 | S159: 280.81626 | T159: 276.42012 | Y159: 63 | Z159: ŞANLIURFA | AA159: 6.29 | AB159: 23.51 | AD159: 5.316682884 | AE159: 10.5375 | AF159: 10.6175 | AG159: 1 | AH159: 0.02 | AI159: 72 | AJ159: 15 | AK159: 76.21781565 | AL159: 0.656014602
A160: 6 | B160: POLATLI | E160: ANKARA | G160: ANKARA | H160: ANKARAPOLATLI | I160: 273.482178 | J160: 276.32119 | K160: 279.750684 | L160: 284.371536 | M160: 290.198142 | N160: 293.548728 | O160: 297.606348 | P160: 297.456788 | Q160: 293.363574 | R160: 287.047412 | S160: 280.074074 | T160: 276.004102 | Y160: 64 | Z160: UŞAK | AA160: 8.41875 | AB160: 28.25294118 | AD160: 5.347756684 | AE160: 10.5375 | AF160: 10.6175 | AG160: 1 | AH160: 0.02 | AI160: 73 | AJ160: 15 | AK160: 76.21781565 | AL160: 0.656014602
A161: 6 | B161: PURSAKLAR | E161: ANKARA | G161: ANKARA | H161: ANKARAPURSAKLAR | I161: 272.951714 | J161: 276.025482 | K161: 279.342482 | L161: 283.785594 | M161: 289.445022 | N161: 292.679586 | O161: 296.582908 | P161: 296.630622 | Q161: 292.829198 | R161: 287.048974 | S161: 280.069384 | T161: 275.850584 | Y161: 65 | Z161: VAN | AA161: 5.99 | AB161: 23.305 | AD161: 5.380368317 | AE161: 10.5375 | AF161: 10.6175 | AG161: 1 | AH161: 0.02 | AI161: 74 | AJ161: 15 | AK161: 76.21781565 | AL161: 0.656014602
A162: 6 | B162: SİNCAN | E162: ANKARA | G162: ANKARA | H162: ANKARASİNCAN | I162: 273.302488 | J162: 276.365722 | K162: 279.583888 | L162: 283.98911 | M162: 289.790724 | N162: 293.128806 | O162: 296.986428 | P162: 296.984912 | Q162: 293.049904 | R162: 287.080226 | S162: 279.976418 | T162: 276.053324 | Y162: 66 | Z162: YOZGAT | AA162: 6.05 | AB162: 23.44 | AD162: 5.414508119 | AE162: 10.5375 | AF162: 10.6175 | AG162: 1 | AH162: 0.02 | AI162: 75 | AJ162: 15 | AK162: 76.21781565 | AL162: 0.656014602
A163: 6 | B163: ŞEREFLİKOÇHİSAR | E163: ANKARA | G163: ANKARA | H163: ANKARAŞEREFLİKOÇHİSAR | I163: 274.395068 | J163: 276.634082 | K163: 279.805368 | L163: 284.202002 | M163: 290.216504 | N163: 293.827246 | O163: 297.602052 | P163: 297.135696 | Q163: 293.613572 | R163: 287.989992 | S163: 281.290088 | T163: 277.169334 | Y163: 67 | Z163: ZONGULDAK | AA163: 6.365 | AB163: 23.64 | AD163: 5.450165974 | AE163: 10.5375 | AF163: 10.6175 | AG163: 1 | AH163: 0.02 | AI163: 76 | AJ163: 15 | AK163: 76.21781565 | AL163: 0.656014602
A164: 6 | B164: YENİMAHALLE | E164: ANKARA | G164: ANKARA | H164: ANKARAYENİMAHALLE | I164: 273.216162 | J164: 276.257522 | K164: 279.509666 | L164: 283.933252 | M164: 289.698536 | N164: 293.006934 | O164: 296.839164 | P164: 296.871244 | Q164: 292.981154 | R164: 287.043508 | S164: 279.924458 | T164: 275.974416 | Y164: 68 | Z164: AKSARAY | AA164: 6.1 | AB164: 32.165 | AD164: 5.487331316 | AE164: 10.5375 | AF164: 10.6175 | AG164: 1 | AH164: 0.02 | AI164: 77 | AJ164: 15 | AK164: 76.21781565 | AL164: 0.656014602
A165: 7 | B165: AKSEKİ | E165: ANTALYA | G165: ANTALYA | H165: ANTALYAAKSEKİ | I165: 273.5103 | J165: 275.400882 | K165: 278.231936 | L165: 282.656298 | M165: 292.153122 | N165: 296.38789 | O165: 300.122266 | P165: 299.789846 | Q165: 297.134758 | R165: 291.957816 | S165: 281.335794 | T165: 276.92402 | Y165: 69 | Z165: BAYBURT | AA165: 3.2 | AB165: 30.635 | AD165: 5.525993132 | AE165: 10.5375 | AF165: 10.6175 | AG165: 1 | AH165: 0.02 | AI165: 78 | AJ165: 15 | AK165: 76.21781565 | AL165: 0.656014602
A166: 7 | B166: AKSU | E166: ANTALYA | G166: ANTALYA | H166: ANTALYAAKSU | I166: 281.986868 | J166: 283.377828 | K166: 285.402244 | L166: 288.879736 | M166: 298.282032 | N166: 303.307032 | O166: 306.956642 | P166: 306.871872 | Q166: 303.766398 | R166: 298.752344 | S166: 288.221726 | T166: 284.212308 | Y166: 70 | Z166: KARAMAN | AA166: 6.065 | AB166: 23.25 | AD166: 5.566139965 | AE166: 10.5375 | AF166: 10.6175 | AG166: 1 | AH166: 0.02 | AI166: 79 | AJ166: 15 | AK166: 76.21781565 | AL166: 0.656014602
A167: 7 | B167: ALANYA | E167: ANTALYA | G167: ANTALYA | H167: ANTALYAALANYA | I167: 279.544284 | J167: 281.047362 | K167: 283.149902 | L167: 286.716846 | M167: 296.104296 | N167: 300.28789 | O167: 303.464062 | P167: 303.364846 | Q167: 301.143356 | R167: 296.812502 | S167: 286.577982 | T167: 282.389648 | Y167: 71 | Z167: KIRIKKALE | AA167: 2.9375 | AB167: 27.33333333 | AD167: 5.60775992 | AE167: 10.5375 | AF167: 10.6175 | AG167: 1 | AH167: 0.02 | AI167: 80 | AJ167: 15 | AK167: 76.21781565 | AL167: 0.656014602
A168: 7 | B168: DEMRE(KALE) | E168: ANTALYA | G168: ANTALYA | H168: ANTALYADEMRE(KALE) | I168: 279.48706 | J168: 281.0896 | K168: 283.05933 | L168: 285.0835 | M168: 295.969722 | N168: 301.126754 | O168: 302.535596 | P168: 303.438532 | Q168: 300.60117 | R168: 297.608936 | S168: 287.65967 | T168: 282.71924 | Y168: 72 | Z168: BATMAN | AA168: -2.87 | AB168: 20.315 | AD168: 5.650840663 | AE168: 10.5375 | AF168: 10.6175 | AG168: 1 | AH168: 0.02 | AI168: 81 | AJ168: 15 | AK168: 76.21781565 | AL168: 0.656014602
A169: 7 | B169: DÖŞEMEALTI | E169: ANTALYA | G169: ANTALYA | H169: ANTALYADÖŞEMEALTI | I169: 279.886474 | J169: 281.62002 | K169: 283.924902 | L169: 287.725832 | M169: 297.164452 | N169: 302.078514 | O169: 306.180468 | P169: 306.016404 | Q169: 302.537496 | R169: 296.919142 | S169: 286.236568 | T169: 282.167774 | Y169: 73 | Z169: ŞIRNAK | AA169: 5 | AB169: 23.85 | AD169: 5.695369429 | AE169: 10.5375 | AF169: 10.6175 | AG169: 1 | AH169: 0.02 | AI169: 82 | AJ169: 15 | AK169: 76.21781565 | AL169: 0.656014602
A170: 7 | B170: ELMALI | E170: ANTALYA | G170: ANTALYA | H170: ANTALYAELMALI | I170: 273.930618 | J170: 276.590326 | K170: 279.97334 | L170: 284.940672 | M170: 295.032422 | N170: 299.190234 | O170: 303.332816 | P170: 302.846092 | Q170: 299.53359 | R170: 293.770706 | S170: 282.808836 | T170: 277.561916 | Y170: 74 | Z170: BARTIN | AA170: 2.055 | AB170: 22.4 | AD170: 5.741333023 | AE170: 10.5375 | AF170: 10.6175 | AG170: 1 | AH170: 0.02 | AI170: 83 | AJ170: 15 | AK170: 76.21781565 | AL170: 0.656014602
A171: 7 | B171: FİNİKE | E171: ANTALYA | G171: ANTALYA | H171: ANTALYAFİNİKE | I171: 281.234528 | J171: 282.594624 | K171: 284.448734 | L171: 287.914504 | M171: 297.610156 | N171: 302.024218 | O171: 305.525 | P171: 305.213284 | Q171: 302.516404 | R171: 297.864058 | S171: 287.707276 | T171: 283.67051 | Y171: 75 | Z171: ARDAHAN | AA171: 6.715 | AB171: 23.49 | AD171: 5.788717824 | AE171: 10.5375 | AF171: 10.6175 | AG171: 1 | AH171: 0.02 | AI171: 84 | AJ171: 15 | AK171: 76.21781565 | AL171: 0.656014602
A172: 7 | B172: GAZİPAŞA | E172: ANTALYA | G172: ANTALYA | H172: ANTALYAGAZİPAŞA | I172: 282.543116 | J172: 283.701658 | K172: 285.566306 | L172: 288.875438 | M172: 297.94961 | N172: 301.861716 | O172: 304.820704 | P172: 304.596878 | Q172: 302.776558 | R172: 299.139848 | S172: 289.43423 | T172: 285.580668 | Y172: 76 | Z172: IĞDIR | AA172: -1.16 | AB172: 27.475 | AD172: 5.837509792 | AE172: 10.5375 | AF172: 10.6175 | AG172: 1 | AH172: 0.02 | AI172: 85 | AJ172: 15 | AK172: 76.21781565 | AL172: 0.656014602
A173: 7 | B173: GÜNDOĞMUŞ | E173: ANTALYA | G173: ANTALYA | H173: ANTALYAGÜNDOĞMUŞ | I173: 275.155226 | J173: 276.780568 | K173: 279.460448 | L173: 283.749268 | M173: 293.406638 | N173: 297.579688 | O173: 301.041798 | P173: 300.679686 | Q173: 298.19492 | R173: 293.384764 | S173: 282.880324 | T173: 278.579494 | Y173: 77 | Z173: YALOVA | AA173: 2.842105263 | AB173: 23.955 | AD173: 5.887694469 | AE173: 10.5375 | AF173: 10.6175 | AG173: 1 | AH173: 0.02 | AI173: 86 | AJ173: 15 | AK173: 76.21781565 | AL173: 0.656014602
A174: 7 | B174: İBRADI(AYDINKENT) | E174: ANTALYA | G174: ANTALYA | H174: ANTALYAİBRADI(AYDINKENT) | I174: 274.556786 | J174: 276.502052 | K174: 279.17529 | L174: 283.135988 | M174: 292.556636 | N174: 296.876174 | O174: 300.682028 | P174: 300.510938 | Q174: 297.639062 | R174: 292.521874 | S174: 282.00845 | T174: 277.724806 | Y174: 78 | Z174: KARABÜK | AA174: -2.935 | AB174: 22.65 | AD174: 5.939256983 | AE174: 10.5375 | AF174: 10.6175 | AG174: 1 | AH174: 0.02 | AI174: 87 | AJ174: 15 | AK174: 76.21781565 | AL174: 0.656014602
A175: 7 | B175: KAŞ | E175: ANTALYA | G175: ANTALYA | H175: ANTALYAKAŞ | I175: 278.49878 | J175: 280.2224 | K175: 282.39722 | L175: 284.3296 | M175: 294.944332 | N175: 300.300594 | O175: 301.820756 | P175: 302.776422 | Q175: 299.5035 | R175: 296.687076 | S175: 286.87256 | T175: 282.0083 | Y175: 79 | Z175: KİLİS | AA175: 6.475 | AB175: 23.96 | AD175: 5.992182056 | AE175: 10.5375 | AF175: 10.6175 | AG175: 1 | AH175: 0.02 | AI175: 88 | AJ175: 15 | AK175: 76.21781565 | AL175: 0.656014602
A176: 7 | B176: KEMER | E176: ANTALYA | G176: ANTALYA | H176: ANTALYAKEMER | I176: 281.154442 | J176: 282.493846 | K176: 284.264356 | L176: 287.518796 | M176: 296.617578 | N176: 300.948826 | O176: 304.50977 | P176: 304.600006 | Q176: 301.835544 | R176: 297.485548 | S176: 287.571728 | T176: 283.524412 | Y176: 80 | Z176: OSMANİYE | AA176: -1.757894737 | AB176: 19.76 | AD176: 6.046454005 | AE176: 10.5375 | AF176: 10.6175 | AG176: 1 | AH176: 0.02 | AI176: 89 | AJ176: 15 | AK176: 76.21781565 | AL176: 0.656014602
A177: 7 | B177: KEPEZ | E177: ANTALYA | G177: ANTALYA | H177: ANTALYAKEPEZ | I177: 280.83862 | J177: 282.69702 | K177: 284.90698 | L177: 287.22607 | M177: 297.782222 | N177: 304.542774 | O177: 306.582476 | P177: 307.383852 | Q177: 302.9625 | R177: 299.122606 | S177: 288.32178 | T177: 283.43604 | Y177: 81 | Z177: DÜZCE | AA177: 5.535 | AB177: 21.945 | AD177: 6.102056747 | AE177: 10.5375 | AF177: 10.6175 | AG177: 1 | AH177: 0.02 | AI177: 90 | AJ177: 15 | AK177: 76.21781565 | AL177: 0.656014602
A178: 7 | B178: KONYAALTI | E178: ANTALYA | G178: ANTALYA | H178: ANTALYAKONYAALTI | I178: 280.83862 | J178: 282.69702 | K178: 284.90698 | L178: 287.22607 | M178: 297.782222 | N178: 304.542774 | O178: 306.582476 | P178: 307.383852 | Q178: 302.9625 | R178: 299.122606 | S178: 288.32178 | T178: 283.43604 | AD178: 6.158973807 | AE178: 10.5375 | AF178: 10.6175 | AG178: 1 | AH178: 0.02 | AI178: 91 | AJ178: 15 | AK178: 76.21781565 | AL178: 0.656014602
A179: 7 | B179: KORKUTELİ | E179: ANTALYA | G179: ANTALYA | H179: ANTALYAKORKUTELİ | I179: 274.654444 | J179: 277.17471 | K179: 279.845998 | L179: 284.121144 | M179: 293.647652 | N179: 297.86602 | O179: 301.884378 | P179: 301.771488 | Q179: 298.147654 | R179: 292.481646 | S179: 281.735398 | T179: 277.3541 | AD179: 6.217188319 | AE179: 10.5375 | AF179: 10.6175 | AG179: 1 | AH179: 0.02 | AI179: 92 | AJ179: 15 | AK179: 76.21781565 | AL179: 0.656014602
A180: 7 | B180: KUMLUCA | E180: ANTALYA | G180: ANTALYA | H180: ANTALYAKUMLUCA | I180: 282.047414 | J180: 283.372754 | K180: 285.357324 | L180: 289.135598 | M180: 298.856248 | N180: 303.489062 | O180: 306.914846 | P180: 306.58945 | Q180: 303.623432 | R180: 299.013672 | S180: 288.72329 | T180: 284.500194 | AD180: 6.276683033 | AE180: 10.5375 | AF180: 10.6175 | AG180: 1 | AH180: 0.02 | AI180: 93 | AJ180: 15 | AK180: 76.21781565 | AL180: 0.656014602
A181: 7 | B181: MANAVGAT | E181: ANTALYA | G181: ANTALYA | H181: ANTALYAMANAVGAT | I181: 282.063818 | J181: 283.31338 | K181: 285.239356 | L181: 288.525828 | M181: 297.83359 | N181: 302.302732 | O181: 305.830472 | P181: 305.719138 | Q181: 303.239838 | R181: 298.953128 | S181: 288.783056 | T181: 284.547074 | AD181: 6.337440318 | AE181: 10.5375 | AF181: 10.6175 | AG181: 1 | AH181: 0.02 | AI181: 94 | AJ181: 15 | AK181: 76.21781565 | AL181: 0.656014602
A182: 7 | B182: MURATPAŞA | E182: ANTALYA | G182: ANTALYA | H182: ANTALYAMURATPAŞA | I182: 281.986868 | J182: 283.377828 | K182: 285.402244 | L182: 288.879736 | M182: 298.282032 | N182: 303.307032 | O182: 306.956642 | P182: 306.871872 | Q182: 303.766398 | R182: 298.752344 | S182: 288.221726 | T182: 284.212308 | AD182: 6.399442172 | AE182: 10.5375 | AF182: 10.6175 | AG182: 1 | AH182: 0.02 | AI182: 95 | AJ182: 15 | AK182: 76.21781565 | AL182: 0.656014602
A183: 7 | B183: SERİK | E183: ANTALYA | G183: ANTALYA | H183: ANTALYASERİK | I183: 282.760692 | J183: 284.061814 | K183: 286.027246 | L183: 289.395748 | M183: 298.85 | N183: 303.85 | O183: 307.35 | P183: 307.25 | Q183: 304.35 | R183: 299.75 | S183: 289.25415 | T183: 285.061524 | AD183: 6.462670222 | AE183: 10.5375 | AF183: 10.6175 | AG183: 1 | AH183: 0.02 | AI183: 96 | AJ183: 15 | AK183: 76.21781565 | AL183: 0.656014602
A184: 8 | B184: ARDANUÇ | E184: ARTVİN | G184: ARTVİN | H184: ARTVİNARDANUÇ | I184: 268.752102 | J184: 270.321582 | K184: 274.856936 | L184: 279.352394 | M184: 285.08174 | N184: 289.324128 | O184: 291.493452 | P184: 291.738424 | Q184: 288.186232 | R184: 282.908352 | S184: 276.418212 | T184: 271.934964 | AD184: 6.527105732 | AE184: 10.5375 | AF184: 10.6175 | AG184: 1 | AH184: 0.02 | AI184: 97 | AJ184: 15 | AK184: 76.21781565 | AL184: 0.656014602
A185: 8 | B185: ARHAVİ | E185: ARTVİN | G185: ARTVİN | H185: ARTVİNARHAVİ | I185: 278.8720675 | J185: 278.705745 | K185: 281.69452 | L185: 284.29657 | M185: 288.9318825 | N185: 292.3752425 | O185: 294.928895 | P185: 295.016785 | Q185: 293.1113275 | R185: 289.4268175 | S185: 284.721125 | T185: 281.7701425 | AD185: 6.592729608 | AE185: 10.5375 | AF185: 10.6175 | AG185: 1 | AH185: 0.02 | AI185: 98 | AJ185: 15 | AK185: 76.21781565 | AL185: 0.656014602
A186: 8 | B186: ARTVİN | E186: ARTVİN | G186: ARTVİN | H186: ARTVİNARTVİN | I186: 271.40132 | J186: 272.934864 | K186: 277.132716 | L186: 281.115672 | M186: 286.679004 | N186: 290.280372 | O186: 291.903608 | P186: 292.145064 | Q186: 289.240134 | R186: 284.86421 | S186: 278.682666 | T186: 274.18301 | AD186: 6.659522405 | AE186: 10.5375 | AF186: 10.6175 | AG186: 1 | AH186: 0.02 | AI186: 99 | AJ186: 15 | AK186: 76.21781565 | AL186: 0.656014602
A187: 8 | B187: BORÇKA | E187: ARTVİN | G187: ARTVİN | H187: ARTVİNBORÇKA | I187: 274.605224 | J187: 275.34541 | K187: 278.5124 | L187: 282.351224 | M187: 287.627048 | N187: 291.24053 | O187: 293.003224 | P187: 293.202494 | Q187: 290.707324 | R187: 286.75366 | S187: 281.340088 | T187: 277.36543 | AD187: 6.72746433 | AE187: 10.5375 | AF187: 10.6175 | AG187: 1 | AH187: 0.02 | AI187: 100 | AJ187: 15 | AK187: 76.21781565 | AL187: 0.656014602
A188: 8 | B188: HOPA | E188: ARTVİN | G188: ARTVİN | H188: ARTVİNHOPA | I188: 278.8720675 | J188: 278.705745 | K188: 281.69452 | L188: 284.29657 | M188: 288.9318825 | N188: 292.3752425 | O188: 294.928895 | P188: 295.016785 | Q188: 293.1113275 | R188: 289.4268175 | S188: 284.721125 | T188: 281.7701425 | AD188: 6.796535251 | AE188: 10.5375 | AF188: 10.6175 | AG188: 1 | AH188: 0.02 | AI188: 101 | AJ188: 15 | AK188: 76.21781565 | AL188: 0.656014602
A189: 8 | B189: MURGUL(GÖKTAŞ) | E189: ARTVİN | G189: ARTVİN | H189: ARTVİNMURGUL(GÖKTAŞ) | I189: 274.00991 | J189: 274.73682 | K189: 277.867872 | L189: 281.67661 | M189: 286.98291 | N189: 290.681936 | O189: 292.534472 | P189: 292.743114 | Q189: 290.209662 | R189: 286.156794 | S189: 280.786184 | T189: 276.8291 | AD189: 6.8667147 | AE189: 10.5375 | AF189: 10.6175 | AG189: 1 | AH189: 0.02 | AI189: 102 | AJ189: 15 | AK189: 76.21781565 | AL189: 0.656014602
A190: 8 | B190: ŞAVŞAT | E190: ARTVİN | G190: ARTVİN | H190: ARTVİNŞAVŞAT | I190: 266.048974 | J190: 267.793846 | K190: 272.284668 | L190: 276.748484 | M190: 282.810644 | N190: 287.045216 | O190: 289.630564 | P190: 289.762254 | Q190: 285.983106 | R190: 280.58491 | S190: 274.237352 | T190: 269.25996 | AD190: 6.937981883 | AE190: 10.5375 | AF190: 10.6175 | AG190: 1 | AH190: 0.02 | AI190: 103 | AJ190: 15 | AK190: 76.21781565 | AL190: 0.656014602
A191: 8 | B191: YUSUFELİ | E191: ARTVİN | G191: ARTVİN | H191: ARTVİNYUSUFELİ | I191: 268.306004 | J191: 270.312598 | K191: 274.794432 | L191: 279.134422 | M191: 285.60283 | N191: 289.815134 | O191: 291.554392 | P191: 291.925536 | Q191: 288.615916 | R191: 283.88999 | S191: 276.845164 | T191: 271.4834 | AD191: 7.01031568 | AE191: 10.5375 | AF191: 10.6175 | AG191: 1 | AH191: 0.02 | AI191: 104 | AJ191: 15 | AK191: 76.21781565 | AL191: 0.656014602
A192: 9 | B192: AYDIN | E192: AYDIN | G192: AYDIN | H192: AYDINAYDIN | I192: 280.178276 | J192: 282.744238 | K192: 285.044432 | L192: 289.358252 | M192: 294.755568 | N192: 298.724512 | O192: 302.95049 | P192: 303.207566 | Q192: 299.184278 | R192: 292.986474 | S192: 287.287356 | T192: 282.529882 | AD192: 7.083694659 | AE192: 10.5375 | AF192: 10.6175 | AG192: 1 | AH192: 0.02 | AI192: 105 | AJ192: 15 | AK192: 76.21781565 | AL192: 0.656014602
A193: 9 | B193: BOZDOĞAN | E193: AYDIN | G193: AYDIN | H193: AYDINBOZDOĞAN | I193: 277.716556 | J193: 280.189548 | K193: 282.49912 | L193: 287.123484 | M193: 292.438376 | N193: 296.06631 | O193: 300.796186 | P193: 300.895848 | Q193: 296.811622 | R193: 290.544284 | S193: 284.648294 | T193: 279.843558 | AD193: 7.158097074 | AE193: 10.5375 | AF193: 10.6175 | AG193: 1 | AH193: 0.02 | AI193: 106 | AJ193: 15 | AK193: 76.21781565 | AL193: 0.656014602
A194: 9 | B194: BUHARKENT(ÇUBUKDAĞI) | E194: AYDIN | G194: AYDIN | H194: AYDINBUHARKENT(ÇUBUKDAĞI) | I194: 276.930224 | J194: 279.85361 | K194: 282.431934 | L194: 287.378952 | M194: 292.802834 | N194: 295.849518 | O194: 300.270016 | P194: 300.329054 | Q194: 296.535452 | R194: 290.387646 | S194: 284.343212 | T194: 279.308398 | AD194: 7.233500879 | AE194: 10.5375 | AF194: 10.6175 | AG194: 1 | AH194: 0.02 | AI194: 107 | AJ194: 15 | AK194: 76.21781565 | AL194: 0.656014602
A195: 9 | B195: ÇİNE | E195: AYDIN | G195: AYDIN | H195: AYDINÇİNE | I195: 277.894676 | J195: 280.252828 | K195: 282.451078 | L195: 286.868018 | M195: 292.249708 | N195: 295.904978 | O195: 300.7833 | P195: 300.828662 | Q195: 296.690134 | R195: 290.30913 | S195: 284.611572 | T195: 280.083398 | AD195: 7.309883731 | AE195: 10.5375 | AF195: 10.6175 | AG195: 1 | AH195: 0.02 | AI195: 108 | AJ195: 15 | AK195: 76.21781565 | AL195: 0.656014602
A196: 9 | B196: DİDİM(YENİHİSAR) | E196: AYDIN | G196: AYDIN | H196: AYDINDİDİM(YENİHİSAR) | I196: 283.795066 | J196: 285.271974 | K196: 286.691698 | L196: 289.553958 | M196: 293.982914 | N196: 297.820214 | O196: 301.195018 | P196: 301.53413 | Q196: 298.220216 | R196: 293.75952 | S196: 289.868606 | T196: 285.936132 | AD196: 7.387222995 | AE196: 10.5375 | AF196: 10.6175 | AG196: 1 | AH196: 0.02 | AI196: 109 | AJ196: 15 | AK196: 76.21781565 | AL196: 0.656014602
A197: 9 | B197: GERMENCİK | E197: AYDIN | G197: AYDIN | H197: AYDINGERMENCİK | I197: 279.441158 | J197: 281.847364 | K197: 284.067878 | L197: 288.238332 | M197: 293.630176 | N197: 297.591702 | O197: 301.83721 | P197: 302.076316 | Q197: 297.98545 | R197: 291.733346 | S197: 286.420952 | T197: 281.76777 | AD197: 7.465495754 | AE197: 10.5375 | AF197: 10.6175 | AG197: 1 | AH197: 0.02 | AI197: 110 | AJ197: 15 | AK197: 76.21781565 | AL197: 0.656014602
A198: 9 | B198: İNCİRLİOVA | E198: AYDIN | G198: AYDIN | H198: AYDINİNCİRLİOVA | I198: 278.877488 | J198: 281.32939 | K198: 283.610454 | L198: 287.862548 | M198: 293.289158 | N198: 297.117094 | O198: 301.433694 | P198: 301.640382 | Q198: 297.612796 | R198: 291.265776 | S198: 285.842046 | T198: 281.22285 | AD198: 7.544678814 | AE198: 10.5375 | AF198: 10.6175 | AG198: 1 | AH198: 0.02 | AI198: 111 | AJ198: 15 | AK198: 76.21781565 | AL198: 0.656014602
A199: 9 | B199: KARACASU | E199: AYDIN | G199: AYDIN | H199: AYDINKARACASU | I199: 277.227098 | J199: 279.78877 | K199: 282.20694 | L199: 286.980126 | M199: 292.292288 | N199: 295.75498 | O199: 300.363774 | P199: 300.469288 | Q199: 296.603416 | R199: 290.364992 | S199: 284.356882 | T199: 279.408012 | AD199: 7.624748711 | AE199: 10.5375 | AF199: 10.6175 | AG199: 1 | AH199: 0.02 | AI199: 112 | AJ199: 15 | AK199: 76.21781565 | AL199: 0.656014602
A200: 9 | B200: KARPUZLU | E200: AYDIN | G200: AYDIN | H200: AYDINKARPUZLU | I200: 278.826318 | J200: 281.127834 | K200: 283.329204 | L200: 287.536376 | M200: 292.890718 | N200: 296.751854 | O200: 301.406742 | P200: 301.537258 | Q200: 297.344042 | R200: 291.062646 | S200: 285.57446 | T200: 281.062304 | AD200: 7.70568172 | AE200: 10.5375 | AF200: 10.6175 | AG200: 1 | AH200: 0.02 | AI200: 113 | AJ200: 15 | AK200: 76.21781565 | AL200: 0.656014602
... 839 more rows

Sheet Sezonsal Verim (hidden)
B6: ESEER
B7: % Kısmi Yük | C7: Sıcaklık | D7: Ağırlık Kat Sayısı | E7: COP
B8: 1 | C8: 35 | D8: 0.03 | E8: 6
B9: 0.75 | C9: 30 | D9: 0.33 | E9: 7
B10: 0.5 | C10: 25 | D10: 0.41 | E10: 9
B11: 0.25 | C11: 19 | D11: 0.23 | E11: 5
B12: ESEER Değeri | E12: =E8*D8+E9*D9+E10*D10+E11*D11 -> 7.33
B14: IPLV
B15: % Kısmi Yük | C15: Sıcaklık | D15: Ağırlık Kat Sayısı | E15: COP
B16: 1 | C16: 35 | D16: 0.01 | E16: 4
B17: 0.75 | C17: 26.7 | D17: 0.42 | E17: 4.5
B18: 0.5 | C18: 18.3 | D18: 0.45 | E18: 5
B19: 0.25 | C19: 12.8 | D19: 0.12 | E19: 6
B20: IPLV Değeri | E20: =E16*D16+E17*D17+E18*D18+E19*D19 -> 4.9
B24: Standart Olmayan Performans
B25: % Kısmi Yük | C25: Sıcaklık | D25: Ağırlık Kat Sayısı | E25: COP
B26: 1 | C26: 35 | D26: 0.14 | E26: 4
B27: 0.75 | C27: 26.7 | D27: 0.42 | E27: 4.5
B28: 0.5 | C28: 18.3 | D28: 0.45 | E28: 5
B29: 0.25 | C29: 12.8 | D29: 0.12 | E29: 6
B30: Sezonsal Performans | E30: =E26*D26+E27*D27+E28*D28+E29*D29 -> 5.42
